Workbook

Sheet START
A1: =muni -> LIM351 Blouberg

Sheet Instructions
D2: 2020
X4: Yes
X5: No
W7: Type of Entities Range: | X7: Parent Municipality
X8: Consolidated Information
W10: Date linked | X10: 7
W11: Date | X11: =VLOOKUP(X10,W39:X55,2) -> M07 January | Y11: 2013-08-01
W19: MTREF Range: | X19: 2008
X20: 2009
X21: 2010
X22: 2011
X23: 2012
X24: 2013
X25: 2014
X26: 2015
X27: 2016
X28: 2017
X29: 2018
X30: 2019
X31: 2020
X32: 2021
X33: 2022
W34: MTREF Linked:
W35: MTREF: | X35: 12
X36: =INDEX(X19:X33,X35,1) -> 2019
W37: Fin Year:
X38: =MTREF&"/"&RIGHT(MTREF,2)+1 -> 2019/20
V39: Date/type of report | W39: 1 | X39: M01 July
W40: 2 | X40: M02 August
W41: 3 | X41: M03 September
W42: 4 | X42: M04 October
W43: 5 | X43: M05 November
W44: 6 | X44: M06 December
W45: 7 | X45: M07 January
W46: 8 | X46: M08 February
W47: 9 | X47: M09 March
W48: 10 | X48: M10 April
W49: 11 | X49: M11 May
W50: 12 | X50: M12 June
W51: 13 | X51: Q1 First Quarter
W52: 14 | X52: Q2 Second Quarter
W53: 15 | X53: Q3 Third Quarter
W54: 16 | X54: Q4 Fourth Quarter
W55: 17 | X55: Mid-Year Assessment

Sheet Template names (hidden)
A1: Common sheet headings
A2: Head1 | B2: =HLOOKUP(MTREF,Headings,2) -> 2018/19 | C2: Prior year -1
A3: Head2 | B3: =HLOOKUP(MTREF,Headings,5) -> Budget Year 2019/20 | C3: Year of approved budget
A4: Head2A | B4: =HLOOKUP(MTREF,Headings,4) -> 2019/20 | C4: Approved budget year
A5: Head3 | B5: =HLOOKUP(MTREF,Headings,3) -> 2019/20 Medium Term Revenue & Expenditure Framework | C5: MTREF header name
A6: Head5 | B6: Audited Outcome
A7: Head5A | B7: Outcome
A8: Head5B | B8: Pre-audit outcome
A9: Head6 | B9: Original Budget
A10: Head7 | B10: Adjusted Budget
A11: Head8 | B11: Full Year Forecast
A12: Head9 | B12: =HLOOKUP(MTREF,Headings,5) -> Budget Year 2019/20 | C12: 1st year of MTREF | D12: Year1
A13: Head10 | B13: =HLOOKUP(MTREF,Headings,6) -> Budget Year +1 2020/21 | C13: 2nd year of MTREF | D13: Year2
A14: Head11 | B14: =HLOOKUP(MTREF,Headings,7) -> Budget Year +2 2021/22 | C14: 3rd year of MTREF | D14: Year3
A15: Head12 | B15: Forecast 2010/11 | D15: Year4
A16: Head13 | B16: Forecast 2011/12 | D16: Year5
A17: Head14 | B17: Forecast 2012/13 | D17: Year6
A18: Head15 | B18: Forecast 2013/14 | D18: Year7
A19: Head16 | B19: Forecast 2014/15 | D19: Year8
A20: Head17 | B20: Forecast 2015/16 | D20: Year9
A21: Head18 | B21: Forecast 2016/17 | D21: Year10
A22: Head19 | B22: Forecast 2017/18 | D22: Year11
A23: Head20 | B23: Forecast 2018/19 | D23: Year12
A24: Head21 | B24: Forecast 2019/20 | D24: Year13
A25: Head22 | B25: Forecast 2020/21 | D25: Year14
A26: Head23 | B26: Forecast 2021/22 | D26: Year15
A27: Head24 | B27: Description | D27: Desc
A28: Head25 | B28: Schedule of funding diligence | D28: fdil
A29: Head26 | B29: Vote Description | D29: VDesc
A30: Head27 | B30: Ref
A31: Head27a | B31: References
A32: Head28 | B32: Surplus/ (Deficit) for the year | D32: Result
A33: Head29 | B33: Annual target 2007/08
A34: Head30 | B34: Revised target 2007/08
A35: Head31 | B35: Quarter ended 30 September
A36: Head32 | B36: Quarter ended 31 December
A37: Head33 | B37: Quarter ended 31 March
A38: Head34 | B38: Quarter ended 30 June
A39: Head35 | B39: Variance explanation
A40: Head36 | B40: YTD Actual 31 Dec
A41: Head37 | B41: YTD Budget 31 Dec
A42: Head38 | B42: Monthly actual
A43: Head39 | B43: YearTD actual
A44: Head40 | B44: YearTD budget
A45: Head41 | B45: YTD variance
A46: Head42 | B46: Surplus/ (Deficit) for the yr/period
A47: Head43 | B47: =Head3&" Summary" -> 2019/20 Medium Term Revenue & Expenditure Framework Summary
A48: Head44 | B48: 1996 Census
A49: Head45 | B49: 2001 Census
A50: Head46 | B50: - Adjustments Budget - Month YYYY
A51: Head47 | B51: Previous target year to complete
A52: Head48 | B52: Present value
A53: Head49 | B53: Virement
A54: Head50 | B54: Other Adjusts.
A55: Head51 | B55: Accum. Funds
A56: Head52 | B56: Multi-year capital
A57: Head53 | B57: Unfore. Unavoid.
A58: Head54 | B58: Prior Adjusted
A59: Head55 | B59: Nat. or Prov. Govt
A60: Head56 | B60: Total Adjusts.
A61: Head57 | B61: =date -> M07 January
A62: Head58 | B62: Parent muni.
A63: Head59 | B63: Downward adjusts
A64: Head60 | B64: Month | C64: Report header part name | D64: =MONTH(date) -> 
A65: SFPerf1 | B65: Budgeted Financial Performance
A66: SFPerf2 | B66: Forecast Financial Performance
A67: SFPos1 | B67: Budgeted Financial Position
A68: SFPos2 | B68: Forecast Financial Position
A69: Cash1 | B69: Budget Cash Flow
A70: Cash2 | B70: Forecast Cash Flow
A71: RandM | B71: Expenditure includes repairs & maintenance of R'000
A72: Standard nomenclature
A73: Muni | B73: ='Lookup and lists'!B27 -> LIM351 Blouberg
A74: Municipal Entities | B74: 2 | C74: Type of report: | D74: 3
A75: =IF((MuniEntities=1)*(MuniType=2),"YES","NO") -> NO | B75: Does this municipality have entities (consolidated budget and entity budgets required)? YES/NO
A76: s71 (Monthly Mayor report) schedules and charts
A77: S71sum | B77: =IF(Consolques="YES",E77,F77) -> Table C1 Monthly Budget Statement Summary | D77: Table C1 | E77: =D77&"Consolidated Monthly Budget Statement Summary" -> Table C1 Consolidated Monthly Budget Statement Summary | F77: =D77&"Monthly Budget Statement Summary" -> Table C1 Monthly Budget Statement Summary
A78: S71C | B78: Table C3 Monthly Budget Statement - Financial Performance (revenue and expenditure by municipal vote) | D78: Table C3 | E78: =D78&"Consolidated Monthly Budget Statement - Financial Performance (revenue and expenditure by municipal vote) " -> Table C3 Consolidated Monthly Budget Statement - Financial Performance (revenue and expenditure by municipal vote) | F78: =D78&"Monthly Budget Statement - Financial Performance (revenue and expenditure by municipal vote)" -> Table C3 Monthly Budget Statement - Financial Performance (revenue and expenditure by municipal vote)
A79: S71A | B79: =IF(Consolques="YES",E79,F79) -> Table C2 Monthly Budget Statement - Financial Performance (functional classification) | D79: Table C2 | E79: =D79&"Consolidated Monthly Budget Statement - Financial Performance (functional classification) " -> Table C2 Consolidated Monthly Budget Statement - Financial Performance (functional classification) | F79: =D79&"Monthly Budget Statement - Financial Performance (functional classification)" -> Table C2 Monthly Budget Statement - Financial Performance (functional classification)
A80: S71B | B80: =IF(Consolques="YES",E80,F80) -> Table C4 Monthly Budget Statement - Financial Performance (revenue and expenditure) | D80: Table C4 | E80: =D80&"Consolidated Monthly Budget Statement - Financial Performance (revenue and expenditure) " -> Table C4 Consolidated Monthly Budget Statement - Financial Performance (revenue and expenditure) | F80: =D80&"Monthly Budget Statement - Financial Performance (revenue and expenditure)" -> Table C4 Monthly Budget Statement - Financial Performance (revenue and expenditure)
A81: S71D | B81: =IF(Consolques="YES",E81,F81) -> Table C5 Monthly Budget Statement - Capital Expenditure (municipal vote, functional classification and funding) | D81: Table C5 | E81: =D81&"Consolidated Monthly Budget Statement - Capital Expenditure (municipal vote, functional classification and funding " -> Table C5 Consolidated Monthly Budget Statement - Capital Expenditure (municipal vote, functional classification and funding | F81: =D81&"Monthly Budget Statement - Capital Expenditure (municipal vote, functional classification and funding)" -> Table C5 Monthly Budget Statement - Capital Expenditure (municipal vote, functional classification and funding)
A82: S71E | B82: Table C6 Monthly Budget Statement - Financial Position | D82: Table C6 | E82: =D82&"Consolidated Monthly Budget Statement - Financial Position " -> Table C6 Consolidated Monthly Budget Statement - Financial Position | F82: =D82&"Monthly Budget Statement - Financial Position" -> Table C6 Monthly Budget Statement - Financial Position
A83: S71F | B83: Table C7 Monthly Budget Statement - Cash Flow | D83: Table C7 | E83: =D83&"Consolidated Monthly Budget Statement - Cash Flow " -> Table C7 Consolidated Monthly Budget Statement - Cash Flow | F83: =D83&"Monthly Budget Statement - Cash Flow " -> Table C7 Monthly Budget Statement - Cash Flow
A84: S71G | B84: =D84&"Material variance explanations " -> Supporting Table SC1 Material variance explanations | D84: Supporting Table SC1
A85: S71H | B85: =D85&"Monthly Budget Statement - performance indicators " -> Supporting Table SC2 Monthly Budget Statement - performance indicators | D85: Supporting Table SC2
A86: S71I | B86: =D86&"Monthly Budget Statement - aged debtors" -> Supporting Table SC3 Monthly Budget Statement - aged debtors | D86: Supporting Table SC3
A87: S71J | B87: =D87&"Monthly Budget Statement - aged creditors " -> Supporting Table SC4 Monthly Budget Statement - aged creditors | D87: Supporting Table SC4
A88: S71K | B88: =D88&"Monthly Budget Statement - investment portfolio " -> Supporting Table SC5 Monthly Budget Statement - investment portfolio | D88: Supporting Table SC5
A89: S71L | B89: =D89&"Monthly Budget Statement - transfers and grant receipts " -> Supporting Table SC6 Monthly Budget Statement - transfers and grant receipts | D89: Supporting Table SC6
A90: S71M | B90: =D90&" Monthly Budget Statement - transfers and grant expenditure " -> Supporting Table SC7(1) Monthly Budget Statement - transfers and grant expenditure | D90: Supporting Table SC7(1)
A91: S71N | B91: =D91&"Monthly Budget Statement - councillor and staff benefits " -> Supporting Table SC8 Monthly Budget Statement - councillor and staff benefits | D91: Supporting Table SC8
A92: S71O | B92: =D92&"Monthly Budget Statement - actuals and revised targets for cash receipts" -> Supporting Table SC9 Monthly Budget Statement - actuals and revised targets for cash receipts | D92: Supporting Table SC9
A93: S71P | B93: =IF(Consolques="YES",E93,F93) -> NOT REQUIRED - municipality does not have entities or this is the parent municipality's budget | D93: Supporting Table SC10 | E93: =D93&"Monthly Budget Statement - Parent Municipality Financial Performance (revenue and expenditure) " -> Supporting Table SC10 Monthly Budget Statement - Parent Municipality Financial Performance (revenue and expenditure) | F93: NOT REQUIRED - municipality does not have entities or this is the parent municipality's budget
A94: S71Q | B94: NOT REQUIRED - municipality does not have entities or this is the parent municipality's budget | D94: Supporting Table SC11 | E94: =D94&"Monthly Budget Statement - summary of municipal entities" -> Supporting Table SC11 Monthly Budget Statement - summary of municipal entities | F94: NOT REQUIRED - municipality does not have entities or this is the parent municipality's budget
A95: S71R | B95: Supporting Table SC12 Monthly Budget Statement - capital expenditure trend | D95: Supporting Table SC12 | E95: =D95&"Consolidated Monthly Budget Statement - capital expenditure trend " -> Supporting Table SC12 Consolidated Monthly Budget Statement - capital expenditure trend | F95: =D95&"Monthly Budget Statement - capital expenditure trend" -> Supporting Table SC12 Monthly Budget Statement - capital expenditure trend
A96: S71Sa | B96: Supporting Table SC13a Monthly Budget Statement - capital expenditure on new assets by asset class | D96: Supporting Table SC13a | E96: =D96&"Consolidated Monthly Budget Statement - capital expenditure on new assets by asset class" -> Supporting Table SC13a Consolidated Monthly Budget Statement - capital expenditure on new assets by asset class | F96: =D96&"Monthly Budget Statement - capital expenditure on new assets by asset class" -> Supporting Table SC13a Monthly Budget Statement - capital expenditure on new assets by asset class
A97: S71Sb | B97: Supporting Table SC13b Monthly Budget Statement - capital expenditure on renewal of existing assets by asset class | D97: Supporting Table SC13b | E97: =D97&"Consolidated Monthly Budget Statement - capital expenditure on renewal of existing assets by asset class" -> Supporting Table SC13b Consolidated Monthly Budget Statement - capital expenditure on renewal of existing assets by asset class | F97: =D97&"Monthly Budget Statement - capital expenditure on renewal of existing assets by asset class" -> Supporting Table SC13b Monthly Budget Statement - capital expenditure on renewal of existing assets by asset class
A98: S71Sc | B98: Supporting Table SC13c Monthly Budget Statement - expenditure on repairs and maintenance by asset class | D98: Supporting Table SC13c | E98: =D98&"Consolidated Monthly Budget Statement - expenditure on repairs and maintenance by asset class" -> Supporting Table SC13c Consolidated Monthly Budget Statement - expenditure on repairs and maintenance by asset class | F98: =D98&"Monthly Budget Statement - expenditure on repairs and maintenance by asset class" -> Supporting Table SC13c Monthly Budget Statement - expenditure on repairs and maintenance by asset class
A99: S71Sd | B99: Supporting Table SC13d Monthly Budget Statement - depreciation by asset class | D99: Supporting Table SC13d | E99: =D99&"Consolidated Monthly Budget Statement - depreciation by asset class" -> Supporting Table SC13d Consolidated Monthly Budget Statement - depreciation by asset class | F99: =D99&"Monthly Budget Statement - depreciation by asset class" -> Supporting Table SC13d Monthly Budget Statement - depreciation by asset class
A100: S71Se | B100: =IF(Consolques="YES",E100,F100) -> Supporting Table SC13e Monthly Budget Statement - capital expenditure on upgrading of existing assets by asset class | D100: Supporting Table SC13e | E100: =D100&"Consolidated Monthly Budget Statement - capital expenditure on upgrading of existing assets by asset class" -> Supporting Table SC13e Consolidated Monthly Budget Statement - capital expenditure on upgrading of existing assets by asset class | F100: =D100&"Monthly Budget Statement - capital expenditure on upgrading of existing assets by asset class" -> Supporting Table SC13e Monthly Budget Statement - capital expenditure on upgrading of existing assets by asset class
B101: s71 charts listing
B102: =D102&Head2A&" Capital Expenditure Monthly Trend: actual v target" -> Chart C1 2019/20 Capital Expenditure Monthly Trend: actual v target | D102: Chart C1
B103: =D103&Head2A&" Capital Expenditure: YTD actual v YTD target" -> Chart C2 2019/20 Capital Expenditure: YTD actual v YTD target | D103: Chart C2
B104: =D104&"Aged Consumer Debtors Analysis" -> Chart C3 Aged Consumer Debtors Analysis | D104: Chart C3
B105: =D105&"Consumer Debtors (total by Debtor Customer Category)" -> Chart C4 Consumer Debtors (total by Debtor Customer Category) | D105: Chart C4
B106: =D106&"Aged Creditors Analysis" -> Chart C5 Aged Creditors Analysis | D106: Chart C5
A107: S71T | B107: =D107&" Monthly Budget Statement - Expenditure against approved rollovers" -> Supporting Table SC7(2) Monthly Budget Statement - Expenditure against approved rollovers | D107: Supporting Table SC7(2)

Sheet Lookup and lists (hidden)
A1: Description | B1: 2007 | C1: 2008 | D1: 2009 | E1: 2010 | F1: 2011 | G1: 2012 | H1: 2013 | I1: 2014 | J1: 2015 | K1: 2016 | L1: 2017 | M1: 2018 | N1: 2019 | O1: 2020 | Q1: Grants: | R1: National - opex | S1: Provincial - opex | T1: National - capex | U1: Provincial - capex | V1: YESNO
A2: ='Template names'!C2 -> Prior year -1 | B2: 2006/07 | C2: 2007/08 | D2: 2008/09 | E2: =E1-1&"/"&RIGHT(E1,2)-0 -> 2009/10 | F2: =F1-1&"/"&RIGHT(F1,2)-0 -> 2010/11 | G2: 2011/12 | H2: 2012/13 | I2: 2013/14 | J2: 2014/15 | K2: 2015/16 | L2: 2016/17 | M2: 2017/18 | N2: 2018/19 | O2: 2019/20 | R2: Local Government Equitable Share | S2: Health subsidy | T2: Municipal Infrastructure Grant (MIG) | U2: Agriculture | V2: Yes
A3: ='Template names'!C5 -> MTREF header name | B3: 2007/08 Medium Term Revenue & Expenditure Framework | C3: 2008/09 Medium Term Revenue & Expenditure Framework | D3: 2009/10 Medium Term Revenue & Expenditure Framework | E3: =E1&"/"&RIGHT(E1,2)+1&" Medium Term Revenue & Expenditure Framework" -> 2010/11 Medium Term Revenue & Expenditure Framework | F3: =F1&"/"&RIGHT(F1,2)+1&" Medium Term Revenue & Expenditure Framework" -> 2011/12 Medium Term Revenue & Expenditure Framework | G3: 2012/13 Medium Term Revenue & Expenditure Framework | H3: 2013/14 Medium Term Revenue & Expenditure Framework | I3: 2014/15 Medium Term Revenue & Expenditure Framework | J3: 2015/16 Medium Term Revenue & Expenditure Framework | K3: 2016/17 Medium Term Revenue & Expenditure Framework | L3: 2017/18 Medium Term Revenue & Expenditure Framework | M3: 2018/19 Medium Term Revenue & Expenditure Framework | N3: 2019/20 Medium Term Revenue & Expenditure Framework | O3: 2020/21 Medium Term Revenue & Expenditure Framework | R3: RSC Levy Replacement | S3: Ambulance subsidy | T3: Public Transport and Systems | U3: Education | V3: No
A4: ='Template names'!C4 -> Approved budget year | B4: 2007/08 | C4: 2008/09 | D4: 2009/10 | E4: =E1&"/"&RIGHT(E1,2)+1 -> 2010/11 | F4: =F1&"/"&RIGHT(F1,2)+1 -> 2011/12 | G4: 2012/13 | H4: 2013/14 | I4: 2014/15 | J4: 2015/16 | K4: 2016/17 | L4: 2017/18 | M4: 2018/19 | N4: 2019/20 | O4: 2020/21 | R4: Finance Management | S4: Housing | T4: Rural Transport Services and Infrastructure | U4: Health
A5: ='Template names'!C12 -> 1st year of MTREF | B5: Budget Year 2007/08 | C5: Budget Year 2008/09 | D5: Budget Year 2009/10 | E5: ="Budget Year "&E1&"/"&RIGHT(E1,2)+1 -> Budget Year 2010/11 | F5: ="Budget Year "&F1&"/"&RIGHT(F1,2)+1 -> Budget Year 2011/12 | G5: Budget Year 2012/13 | H5: Budget Year 2013/14 | I5: Budget Year 2014/15 | J5: Budget Year 2015/16 | K5: Budget Year 2016/17 | L5: Budget Year 2017/18 | M5: Budget Year 2018/19 | N5: Budget Year 2019/20 | O5: Budget Year 2020/21 | R5: Municipal Systems Improvement | S5: Sport and Recreation | T5: Regional Bulk Infrastructure | U5: Housing and Local Government
A6: ='Template names'!C13 -> 2nd year of MTREF | B6: Budget Year +1 2008/09 | C6: Budget Year +1 2009/10 | D6: Budget Year +1 2010/11 | E6: ="Budget Year +1 "&E1+1&"/"&RIGHT(E1,2)+2 -> Budget Year +1 2011/12 | F6: ="Budget Year +1 "&F1+1&"/"&RIGHT(F1,2)+2 -> Budget Year +1 2012/13 | G6: Budget Year +1 2013/14 | H6: Budget Year +1 2014/15 | I6: Budget Year +1 2015/16 | J6: Budget Year +1 2016/17 | K6: Budget Year +1 2017/18 | L6: Budget Year +1 2018/19 | M6: Budget Year +1 2019/20 | N6: Budget Year +1 2020/21 | O6: Budget Year +1 2021/22 | R6: Water Services Operating Subsidy | T6: Rural Households Infrastructure | U6: Other Departments
A7: ='Template names'!C14 -> 3rd year of MTREF | B7: Budget Year +2 2009/10 | C7: Budget Year +2 2010/11 | D7: Budget Year +2 2011/12 | E7: ="Budget Year +2 "&E1+2&"/"&RIGHT(E1,2)+3 -> Budget Year +2 2012/13 | F7: ="Budget Year +2 "&F1+2&"/"&RIGHT(F1,2)+3 -> Budget Year +2 2013/14 | G7: Budget Year +2 2014/15 | H7: Budget Year +2 2015/16 | I7: Budget Year +2 2016/17 | J7: Budget Year +2 2017/18 | K7: Budget Year +2 2018/19 | L7: Budget Year +2 2019/20 | M7: Budget Year +2 2020/21 | N7: Budget Year +2 2021/22 | O7: Budget Year +2 2022/23 | R7: Energy Efficiency and Demand Management | T7: Neighbourhood Development Partnership | U7: Public Works, Roads, Transport
A8: NOTE: This sheet should not be directly amended - select headings from sheet 'S' | R8: Integrated National Electrification Programme | T8: 2010 FIFA World Cup Stadiums Development | U8: Sport and Recreation
R9: Municipal Drought Relief
R10: 2010 FIFA World Cup Operating
R11: Electricity Demand Side Management
R12: EPWP Incentive
A26: Name link | B26: 140
A27: Name of Muni | B27: =INDEX(B28:B311,B26,1) -> LIM351 Blouberg
B28: Choose name from list | C28: Set name on 'Instructions' sheet
B29: BUF Buffalo City | C29: Eastern Cape
B30: NMA Nelson Mandela Bay | C30: Eastern Cape
B31: EC101 Dr. Beyers Naude | C31: Eastern Cape
B32: EC102 Blue Crane Route | C32: Eastern Cape
B33: EC104 Makana | C33: Eastern Cape
B34: EC105 Ndlambe | C34: Eastern Cape
B35: EC106 Sundays River Valley | C35: Eastern Cape
B36: EC108 Kouga | C36: Eastern Cape
B37: EC109 Kou-Kamma | C37: Eastern Cape
B38: DC10 Sarah Baartman | C38: Eastern Cape
B39: EC121 Mbhashe | C39: Eastern Cape
B40: EC122 Mnquma | C40: Eastern Cape
B41: EC123 Great Kei | C41: Eastern Cape
B42: EC124 Amahlathi | C42: Eastern Cape
B43: EC126 Ngqushwa | C43: Eastern Cape
B44: EC129 Raymond Mhlaba | C44: Eastern Cape
B45: DC12 Amathole | C45: Eastern Cape
B46: EC131 Inxuba Yethemba | C46: Eastern Cape
B47: EC135 Intsika Yethu | C47: Eastern Cape
B48: EC136 Emalahleni (Ec) | C48: Eastern Cape
B49: EC137 Engcobo | C49: Eastern Cape
B50: EC138 Sakhisizwe | C50: Eastern Cape
B51: EC139 Enoch Mgijima | C51: Eastern Cape
B52: DC13 Chris Hani | C52: Eastern Cape
B53: EC141 Elundini | C53: Eastern Cape
B54: EC142 Senqu | C54: Eastern Cape
B55: EC145 Walter Sisulu | C55: Eastern Cape
B56: DC14 Joe Gqabi | C56: Eastern Cape
B57: EC153 Ngquza Hills | C57: Eastern Cape
B58: EC154 Port St Johns | C58: Eastern Cape
B59: EC155 Nyandeni | C59: Eastern Cape
B60: EC156 Mhlontlo | C60: Eastern Cape
B61: EC157 King Sabata Dalindyebo | C61: Eastern Cape
B62: DC15 O .R. Tambo | C62: Eastern Cape
B63: EC441 Matatiele | C63: Eastern Cape
B64: EC442 Umzimvubu | C64: Eastern Cape
B65: EC443 Mbizana | C65: Eastern Cape
B66: EC444 Ntabankulu | C66: Eastern Cape
B67: DC44 Alfred Nzo | C67: Eastern Cape
B68: MAN Mangaung | C68: Free State
B69: FS161 Letsemeng | C69: Free State
B70: FS162 Kopanong | C70: Free State
B71: FS163 Mohokare | C71: Free State
B72: DC16 Xhariep | C72: Free State
B73: FS181 Masilonyana | C73: Free State
B74: FS182 Tokologo | C74: Free State
B75: FS183 Tswelopele | C75: Free State
B76: FS184 Matjhabeng | C76: Free State
B77: FS185 Nala | C77: Free State
B78: DC18 Lejweleputswa | C78: Free State
B79: FS191 Setsoto | C79: Free State
B80: FS192 Dihlabeng | C80: Free State
B81: FS193 Nketoana | C81: Free State
B82: FS194 Maluti-a-Phofung | C82: Free State
B83: FS195 Phumelela | C83: Free State
B84: FS196 Mantsopa | C84: Free State
B85: DC19 Thabo Mofutsanyana | C85: Free State
B86: FS201 Moqhaka | C86: Free State
B87: FS203 Ngwathe | C87: Free State
B88: FS204 Metsimaholo | C88: Free State
B89: FS205 Mafube | C89: Free State
B90: DC20 Fezile Dabi | C90: Free State
B91: EKU Ekurhuleni Metro | C91: Gauteng
B92: JHB City Of Johannesburg | C92: Gauteng
B93: TSH City Of Tshwane | C93: Gauteng
B94: GT421 Emfuleni | C94: Gauteng
B95: GT422 Midvaal | C95: Gauteng
B96: GT423 Lesedi | C96: Gauteng
B97: DC42 Sedibeng | C97: Gauteng
B98: GT481 Mogale City | C98: Gauteng
B99: GT484 Merafong City | C99: Gauteng
B100: GT485 GT485 | C100: Gauteng
B101: DC48 West Rand | C101: Gauteng
B102: ETH eThekwini | C102: Kwazulu-Natal
B103: KZN212 Umdoni | C103: Kwazulu-Natal
B104: KZN213 Umzumbe | C104: Kwazulu-Natal
B105: KZN214 uMuziwabantu | C105: Kwazulu-Natal
B106: KZN216 Ray Nkonyeni | C106: Kwazulu-Natal
B107: DC21 Ugu | C107: Kwazulu-Natal
B108: KZN221 uMshwathi | C108: Kwazulu-Natal
B109: KZN222 uMngeni | C109: Kwazulu-Natal
B110: KZN223 Mpofana | C110: Kwazulu-Natal
B111: KZN224 Impendle | C111: Kwazulu-Natal
B112: KZN225 Msunduzi | C112: Kwazulu-Natal
B113: KZN226 Mkhambathini | C113: Kwazulu-Natal
B114: KZN227 Richmond | C114: Kwazulu-Natal
B115: DC22 uMgungundlovu | C115: Kwazulu-Natal
B116: KZN235 Okhahlamba | C116: Kwazulu-Natal
B117: KZN237 Inkosi Langalibalele | C117: Kwazulu-Natal
B118: KZN238 Alfred Duma | C118: Kwazulu-Natal
B119: DC23 Uthukela | C119: Kwazulu-Natal
B120: KZN241 Endumeni | C120: Kwazulu-Natal
B121: KZN242 Nquthu | C121: Kwazulu-Natal
B122: KZN244 Msinga | C122: Kwazulu-Natal
B123: KZN245 Umvoti | C123: Kwazulu-Natal
B124: DC24 Umzinyathi | C124: Kwazulu-Natal
B125: KZN252 Newcastle | C125: Kwazulu-Natal
B126: KZN253 eMadlangeni | C126: Kwazulu-Natal
B127: KZN254 Dannhauser | C127: Kwazulu-Natal
B128: DC25 Amajuba | C128: Kwazulu-Natal
B129: KZN261 eDumbe | C129: Kwazulu-Natal
B130: KZN262 uPhongolo | C130: Kwazulu-Natal
B131: KZN263 Abaqulusi | C131: Kwazulu-Natal
B132: KZN265 Nongoma | C132: Kwazulu-Natal
B133: KZN266 Ulundi | C133: Kwazulu-Natal
B134: DC26 Zululand | C134: Kwazulu-Natal
B135: KZN271 Umhlabuyalingana | C135: Kwazulu-Natal
B136: KZN272 Jozini | C136: Kwazulu-Natal
B137: KZN275 Mtubatuba | C137: Kwazulu-Natal
B138: KZN276 The New Big 5 False Bay | C138: Kwazulu-Natal
B139: DC27 Umkhanyakude | C139: Kwazulu-Natal
B140: KZN281 Mfolozi | C140: Kwazulu-Natal
B141: KZN282 uMhlathuze | C141: Kwazulu-Natal
B142: KZN284 uMlalazi | C142: Kwazulu-Natal
B143: KZN285 Mthonjaneni | C143: Kwazulu-Natal
B144: KZN286 Nkandla | C144: Kwazulu-Natal
B145: DC28 King Cetshwayo | C145: Kwazulu-Natal
B146: KZN291 Mandeni | C146: Kwazulu-Natal
B147: KZN292 KwaDukuza | C147: Kwazulu-Natal
B148: KZN293 Ndwedwe | C148: Kwazulu-Natal
B149: KZN294 Maphumulo | C149: Kwazulu-Natal
B150: DC29 iLembe | C150: Kwazulu-Natal
B151: KZN433 Greater Kokstad | C151: Kwazulu-Natal
B152: KZN434 Ubuhlebezwe | C152: Kwazulu-Natal
B153: KZN435 Umzimkhulu | C153: Kwazulu-Natal
B154: KZN436 Dr Nkosazana Dlamini Zuma | C154: Kwazulu-Natal
B155: DC43 Harry Gwala | C155: Kwazulu-Natal
B156: LIM331 Greater Giyani | C156: Limpopo
B157: LIM332 Greater Letaba | C157: Limpopo
B158: LIM333 Greater Tzaneen | C158: Limpopo
B159: LIM334 Ba-Phalaborwa | C159: Limpopo
B160: LIM335 Maruleng | C160: Limpopo
B161: DC33 Mopani | C161: Limpopo
B162: LIM341 Musina | C162: Limpopo
B163: LIM343 Thulamela | C163: Limpopo
B164: LIM344 Makhado | C164: Limpopo
B165: LIM345 LIM345 | C165: Limpopo
B166: DC34 Vhembe | C166: Limpopo
B167: LIM351 Blouberg | C167: Limpopo
B168: LIM353 Molemole | C168: Limpopo
B169: LIM354 Polokwane | C169: Limpopo
B170: LIM355 Lepelle-Nkumpi | C170: Limpopo
B171: DC35 Capricorn | C171: Limpopo
B172: LIM361 Thabazimbi | C172: Limpopo
B173: LIM362 Lephalale | C173: Limpopo
B174: LIM366 Bela Bela | C174: Limpopo
B175: LIM367 Mogalakwena | C175: Limpopo
B176: LIM368 LIM368 | C176: Limpopo
B177: DC36 Waterberg | C177: Limpopo
B178: LIM471 Ephraim Mogale | C178: Limpopo
B179: LIM472 Elias Motsoaledi | C179: Limpopo
B180: LIM473 Makhuduthamaga | C180: Limpopo
B181: LIM476 LIM476 | C181: Limpopo
B182: DC47 Sekhukhune | C182: Limpopo
B183: MP301 Albert Luthuli | C183: Mpumalanga
B184: MP302 Msukaligwa | C184: Mpumalanga
B185: MP303 Mkhondo | C185: Mpumalanga
B186: MP304 Pixley Ka Seme (MP) | C186: Mpumalanga
B187: MP305 Lekwa | C187: Mpumalanga
B188: MP306 Dipaleseng | C188: Mpumalanga
B189: MP307 Govan Mbeki | C189: Mpumalanga
B190: DC30 Gert Sibande | C190: Mpumalanga
B191: MP311 Victor Khanye | C191: Mpumalanga
B192: MP312 Emalahleni (Mp) | C192: Mpumalanga
B193: MP313 Steve Tshwete | C193: Mpumalanga
B194: MP314 Emakhazeni | C194: Mpumalanga
B195: MP315 Thembisile Hani | C195: Mpumalanga
B196: MP316 Dr J.S. Moroka | C196: Mpumalanga
B197: DC31 Nkangala | C197: Mpumalanga
B198: MP321 Thaba Chweu | C198: Mpumalanga
B199: MP324 Nkomazi | C199: Mpumalanga
B200: MP325 Bushbuckridge | C200: Mpumalanga
B201: MP326 City of Mbombela | C201: Mpumalanga
B202: DC32 Ehlanzeni | C202: Mpumalanga
B203: NC451 Joe Morolong | C203: Northern Cape
B204: NC452 Ga-Segonyana | C204: Northern Cape
B205: NC453 Gamagara | C205: Northern Cape
B206: DC45 John Taolo Gaetsewe | C206: Northern Cape
B207: NC061 Richtersveld | C207: Northern Cape
B208: NC062 Nama Khoi | C208: Northern Cape
B209: NC064 Kamiesberg | C209: Northern Cape
B210: NC065 Hantam | C210: Northern Cape
B211: NC066 Karoo Hoogland | C211: Northern Cape
B212: NC067 Khai-Ma | C212: Northern Cape
B213: DC6 Namakwa | C213: Northern Cape
... 73 more rows

Sheet Org structure
A1: Organisational Structure Votes | C1: Organisational Structure Sub-Votes | E1: Display Sub-Votes
A2: Vote 1 - Executive and council | B2: Vote 1 | C2: Executive and council
A3: Vote 2 - Finance and Administration | B3: 1.1 | C3: Mayor and council | D3: =CONCATENATE(B3, " - ", C3) -> 1.1 - Mayor and council | E3: 1.1 - Mayor and council
A4: Vote 3 - Community Services | B4: 1.2 | C4: Municipal Manager | D4: 1.2 - Municipal Manager | E4: 1.2 - Municipal Manager
A5: Vote 4 - Public and Safety | B5: 1.3 | C5: [Name of sub-vote] | D5: 1.3 - [Name of sub-vote]
A6: Vote 5 - Waste Management | B6: 1.4 | C6: [Name of sub-vote] | D6: 1.4 - [Name of sub-vote]
A7: Vote 6 - Technical administration and Trading services | B7: 1.5 | C7: [Name of sub-vote] | D7: 1.5 - [Name of sub-vote]
A8: Vote 7 - Roads and Transport | B8: 1.6 | C8: [Name of sub-vote] | D8: 1.6 - [Name of sub-vote]
A9: Vote 8 - Planning and development | B9: 1.7 | C9: [Name of sub-vote] | D9: 1.7 - [Name of sub-vote]
A10: =B90&" - "&C90 -> Vote 9 - [NAME OF VOTE 9] | B10: 1.8 | C10: [Name of sub-vote] | D10: 1.8 - [Name of sub-vote]
A11: =B101&" - "&C101 -> Vote 10 - [NAME OF VOTE 10] | B11: 1.9 | C11: [Name of sub-vote] | D11: 1.9 - [Name of sub-vote]
A12: =B112&" - "&C112 -> Vote 11 - [NAME OF VOTE 11] | B12: 1.10 | C12: [Name of sub-vote] | D12: 1.10 - [Name of sub-vote]
A13: =B123&" - "&C123 -> Vote 12 - [NAME OF VOTE 12] | B13: Vote 2 | C13: Finance and Administration
A14: =B134&" - "&C134 -> Vote 13 - [NAME OF VOTE 13] | B14: 2.1 | C14: Admistartive and Corporate Support | D14: =CONCATENATE(B14, " - ", C14) -> 2.1 - Admistartive and Corporate Support | E14: 2.1 - Admistartive and Corporate Support
A15: =B145&" - "&C145 -> Vote 14 - [NAME OF VOTE 14] | B15: 2.2 | C15: Asset Management | D15: 2.2 - Asset Management | E15: 2.2 - Asset Management
A16: =B156&" - "&C156 -> Vote 15 - [NAME OF VOTE 15] | B16: 2.3 | C16: Budget and Treasury offices | D16: 2.3 - Budget and Treasury offices | E16: 2.3 - Budget and Treasury offices
B17: 2.4 | C17: Finance | D17: 2.4 - Finance | E17: 2.4 - Finance
B18: 2.5 | C18: Fleet Management | D18: 2.5 - Fleet Management | E18: 2.5 - Fleet Management
B19: 2.6 | C19: Human Resources | D19: 2.6 - Human Resources | E19: 2.6 - Human Resources
B20: 2.7 | C20: Information Technology | D20: 2.7 - Information Technology | E20: 2.7 - Information Technology
B21: 2.8 | C21: Legal Services | D21: 2.8 - Legal Services | E21: 2.8 - Legal Services
B22: 2.9 | C22: [Name of sub-vote] | D22: 2.9 - [Name of sub-vote]
B23: 2.10 | C23: [Name of sub-vote] | D23: 2.10 - [Name of sub-vote]
B24: Vote 3 | C24: Community Services
B25: 3.1 | C25: Community and other social services | D25: =CONCATENATE(B25, " - ", C25) -> 3.1 - Community and other social services | E25: 3.1 - Community and other social services
B26: 3.2 | C26: Community Halls and Facilities | D26: 3.2 - Community Halls and Facilities | E26: 3.2 - Community Halls and Facilities
B27: 3.3 | C27: Disaster Management | D27: 3.3 - Disaster Management | E27: 3.3 - Disaster Management
B28: 3.4 | C28: Animal Care and Diseases | D28: 3.4 - Animal Care and Diseases | E28: 3.4 - Animal Care and Diseases
B29: 3.5 | C29: Cementeries, Funeral Parlours and Crematoriums | D29: 3.5 - Cementeries, Funeral Parlours and Crematoriums | E29: 3.5 - Cementeries, Funeral Parlours and Crematoriums
B30: 3.6 | C30: Libraries and Archives | D30: 3.6 - Libraries and Archives | E30: 3.6 - Libraries and Archives
B31: 3.7 | C31: Literacy Programmes | D31: 3.7 - Literacy Programmes | E31: 3.7 - Literacy Programmes
B32: 3.8 | C32: Community Parks (including Nurseries) | D32: 3.8 - Community Parks (including Nurseries) | E32: 3.8 - Community Parks (including Nurseries)
B33: 3.9 | C33: Recreational Facilities | D33: 3.9 - Recreational Facilities | E33: 3.9 - Recreational Facilities
B34: 3.10 | C34: Sports Grounds and Stadiums | D34: 3.10 - Sports Grounds and Stadiums | E34: 3.10 - Sports Grounds and Stadiums
B35: Vote 4 | C35: Public and Safety
B36: 4.1 | C36: Civil Defence | D36: =CONCATENATE(B36, " - ", C36) -> 4.1 - Civil Defence | E36: 4.1 - Civil Defence
B37: 4.2 | C37: Cleansing | D37: 4.2 - Cleansing | E37: 4.2 - Cleansing
B38: 4.3 | C38: Fencing and Fences | D38: 4.3 - Fencing and Fences | E38: 4.3 - Fencing and Fences
B39: 4.4 | C39: Fire Fighting and Protection | D39: 4.4 - Fire Fighting and Protection | E39: 4.4 - Fire Fighting and Protection
B40: 4.5 | C40: Licensing and Protection of Animals | D40: 4.5 - Licensing and Protection of Animals | E40: 4.5 - Licensing and Protection of Animals
B41: 4.6 | C41: [Name of sub-vote] | D41: 4.6 - [Name of sub-vote] | E41: 4.6 - [Name of sub-vote]
B42: 4.7 | C42: [Name of sub-vote] | D42: 4.7 - [Name of sub-vote] | E42: 4.7 - [Name of sub-vote]
B43: 4.8 | C43: [Name of sub-vote] | D43: 4.8 - [Name of sub-vote]
B44: 4.9 | C44: [Name of sub-vote] | D44: 4.9 - [Name of sub-vote]
B45: 4.10 | C45: [Name of sub-vote] | D45: 4.10 - [Name of sub-vote]
B46: Vote 5 | C46: Waste Management
B47: 5.1 | C47: Recycling | D47: =CONCATENATE(B47, " - ", C47) -> 5.1 - Recycling | E47: 5.1 - Recycling
B48: 5.2 | C48: Solid Waste Disposal (Landfill site) | D48: 5.2 - Solid Waste Disposal (Landfill site) | E48: 5.2 - Solid Waste Disposal (Landfill site)
B49: 5.3 | C49: Solid Waste Removal | D49: 5.3 - Solid Waste Removal | E49: 5.3 - Solid Waste Removal
B50: 5.4 | C50: Street Cleaning | D50: 5.4 - Street Cleaning | E50: 5.4 - Street Cleaning
B51: 5.5 | C51: [Name of sub-vote] | D51: 5.5 - [Name of sub-vote]
B52: 5.6 | C52: [Name of sub-vote] | D52: 5.6 - [Name of sub-vote]
B53: 5.7 | C53: [Name of sub-vote] | D53: 5.7 - [Name of sub-vote]
B54: 5.8 | C54: [Name of sub-vote] | D54: 5.8 - [Name of sub-vote]
B55: 5.9 | C55: [Name of sub-vote] | D55: 5.9 - [Name of sub-vote]
B56: 5.10 | C56: [Name of sub-vote] | D56: 5.10 - [Name of sub-vote]
B57: Vote 6 | C57: Technical administration and Trading services
B58: 6.1 | C58: Electricity | D58: =CONCATENATE(B58, " - ", C58) -> 6.1 - Electricity | E58: 6.1 - Electricity
B59: 6.2 | C59: Street Lightining and Signal Systems | D59: 6.2 - Street Lightining and Signal Systems | E59: 6.2 - Street Lightining and Signal Systems
B60: 6.3 | C60: Electricity reticulation Network | D60: 6.3 - Electricity reticulation Network | E60: 6.3 - Electricity reticulation Network
B61: 6.4 | C61: [Name of sub-vote] | D61: 6.4 - [Name of sub-vote]
B62: 6.5 | C62: [Name of sub-vote] | D62: 6.5 - [Name of sub-vote]
B63: 6.6 | C63: [Name of sub-vote] | D63: 6.6 - [Name of sub-vote]
B64: 6.7 | C64: [Name of sub-vote] | D64: 6.7 - [Name of sub-vote]
B65: 6.8 | C65: [Name of sub-vote] | D65: 6.8 - [Name of sub-vote]
B66: 6.9 | C66: [Name of sub-vote] | D66: 6.9 - [Name of sub-vote]
B67: 6.10 | C67: [Name of sub-vote] | D67: 6.10 - [Name of sub-vote]
B68: Vote 7 | C68: Roads and Transport
B69: 7.1 | C69: Police Forces, Traffic and Street Parking Control | D69: =CONCATENATE(B69, " - ", C69) -> 7.1 - Police Forces, Traffic and Street Parking Control | E69: 7.1 - Police Forces, Traffic and Street Parking Control
B70: 7.2 | C70: Pounds | D70: 7.2 - Pounds | E70: 7.2 - Pounds
B71: 7.3 | C71: Public Transport | D71: 7.3 - Public Transport | E71: 7.3 - Public Transport
B72: 7.4 | C72: Roads | D72: 7.4 - Roads | E72: 7.4 - Roads
B73: 7.5 | C73: Taxi Ranks | D73: 7.5 - Taxi Ranks | E73: 7.5 - Taxi Ranks
B74: 7.6 | C74: [Name of sub-vote] | D74: 7.6 - [Name of sub-vote]
B75: 7.7 | C75: [Name of sub-vote] | D75: 7.7 - [Name of sub-vote]
B76: 7.8 | C76: [Name of sub-vote] | D76: 7.8 - [Name of sub-vote]
B77: 7.9 | C77: [Name of sub-vote] | D77: 7.9 - [Name of sub-vote]
B78: 7.10 | C78: [Name of sub-vote] | D78: 7.10 - [Name of sub-vote]
B79: Vote 8 | C79: Planning and development
B80: 8.1 | C80: Billboards | D80: =CONCATENATE(B80, " - ", C80) -> 8.1 - Billboards | E80: 8.1 - Billboards
B81: 8.2 | C81: Corporate Wide Strategic Planning (IDPs, LEDs) | D81: 8.2 - Corporate Wide Strategic Planning (IDPs, LEDs) | E81: 8.2 - Corporate Wide Strategic Planning (IDPs, LEDs)
B82: 8.3 | C82: Central City Improvement District | D82: 8.3 - Central City Improvement District | E82: 8.3 - Central City Improvement District
B83: 8.4 | C83: Development Facilitation | D83: 8.4 - Development Facilitation | E83: 8.4 - Development Facilitation
B84: 8.5 | C84: Economic Development Planning | D84: 8.5 - Economic Development Planning | E84: 8.5 - Economic Development Planning
B85: 8.6 | C85: Regional Development and Development | D85: 8.6 - Regional Development and Development | E85: 8.6 - Regional Development and Development
B86: 8.7 | C86: Town Planning, Building Regulations and Enforcement and City Engineer | D86: 8.7 - Town Planning, Building Regulations and Enforcement and City Engineer | E86: 8.7 - Town Planning, Building Regulations and Enforcement and City Engineer
B87: 8.8 | C87: Project Management Unit | D87: 8.8 - Project Management Unit | E87: 8.8 - Project Management Unit
B88: 8.9 | C88: [Name of sub-vote] | D88: 8.9 - [Name of sub-vote]
B89: 8.10 | C89: [Name of sub-vote] | D89: 8.10 - [Name of sub-vote]
B90: Vote 9 | C90: [NAME OF VOTE 9]
B91: 9.1 | C91: [Name of sub-vote] | D91: =CONCATENATE(B91, " - ", C91) -> 9.1 - [Name of sub-vote] | E91: 9.1 - [Name of sub-vote]
B92: 9.2 | C92: [Name of sub-vote] | D92: 9.2 - [Name of sub-vote]
B93: 9.3 | C93: [Name of sub-vote] | D93: 9.3 - [Name of sub-vote]
B94: 9.4 | C94: [Name of sub-vote] | D94: 9.4 - [Name of sub-vote]
B95: 9.5 | C95: [Name of sub-vote] | D95: 9.5 - [Name of sub-vote]
B96: 9.6 | C96: [Name of sub-vote] | D96: 9.6 - [Name of sub-vote]
B97: 9.7 | C97: [Name of sub-vote] | D97: 9.7 - [Name of sub-vote]
B98: 9.8 | C98: [Name of sub-vote] | D98: 9.8 - [Name of sub-vote]
B99: 9.9 | C99: [Name of sub-vote] | D99: 9.9 - [Name of sub-vote]
B100: 9.10 | C100: [Name of sub-vote] | D100: 9.10 - [Name of sub-vote]
B101: Vote 10 | C101: [NAME OF VOTE 10]
B102: 10.1 | C102: [Name of sub-vote] | D102: =CONCATENATE(B102, " - ", C102) -> 10.1 - [Name of sub-vote] | E102: 10.1 - [Name of sub-vote]
B103: 10.2 | C103: [Name of sub-vote] | D103: 10.2 - [Name of sub-vote]
B104: 10.3 | C104: [Name of sub-vote] | D104: 10.3 - [Name of sub-vote]
B105: 10.4 | C105: [Name of sub-vote] | D105: 10.4 - [Name of sub-vote]
B106: 10.5 | C106: [Name of sub-vote] | D106: 10.5 - [Name of sub-vote]
B107: 10.6 | C107: [Name of sub-vote] | D107: 10.6 - [Name of sub-vote]
B108: 10.7 | C108: [Name of sub-vote] | D108: 10.7 - [Name of sub-vote]
B109: 10.8 | C109: [Name of sub-vote] | D109: 10.8 - [Name of sub-vote]
B110: 10.9 | C110: [Name of sub-vote] | D110: 10.9 - [Name of sub-vote]
B111: 10.10 | C111: [Name of sub-vote] | D111: 10.10 - [Name of sub-vote]
B112: Vote 11 | C112: [NAME OF VOTE 11]
B113: 11.1 | C113: [Name of sub-vote] | D113: =CONCATENATE(B113, " - ", C113) -> 11.1 - [Name of sub-vote] | E113: 11.1 - [Name of sub-vote]
B114: 11.2 | C114: [Name of sub-vote] | D114: 11.2 - [Name of sub-vote]
B115: 11.3 | C115: [Name of sub-vote] | D115: 11.3 - [Name of sub-vote]
B116: 11.4 | C116: [Name of sub-vote] | D116: 11.4 - [Name of sub-vote]
B117: 11.5 | C117: [Name of sub-vote] | D117: 11.5 - [Name of sub-vote]
B118: 11.6 | C118: [Name of sub-vote] | D118: 11.6 - [Name of sub-vote]
B119: 11.7 | C119: [Name of sub-vote] | D119: 11.7 - [Name of sub-vote]
B120: 11.8 | C120: [Name of sub-vote] | D120: 11.8 - [Name of sub-vote]
B121: 11.9 | C121: [Name of sub-vote] | D121: 11.9 - [Name of sub-vote]
B122: 11.10 | C122: [Name of sub-vote] | D122: 11.10 - [Name of sub-vote]
B123: Vote 12 | C123: [NAME OF VOTE 12]
B124: 12.1 | C124: [Name of sub-vote] | D124: =CONCATENATE(B124, " - ", C124) -> 12.1 - [Name of sub-vote] | E124: 12.1 - [Name of sub-vote]
B125: 12.2 | C125: [Name of sub-vote] | D125: 12.2 - [Name of sub-vote]
B126: 12.3 | C126: [Name of sub-vote] | D126: 12.3 - [Name of sub-vote]
B127: 12.4 | C127: [Name of sub-vote] | D127: 12.4 - [Name of sub-vote]
B128: 12.5 | C128: [Name of sub-vote] | D128: 12.5 - [Name of sub-vote]
B129: 12.6 | C129: [Name of sub-vote] | D129: 12.6 - [Name of sub-vote]
B130: 12.7 | C130: [Name of sub-vote] | D130: 12.7 - [Name of sub-vote]
B131: 12.8 | C131: [Name of sub-vote] | D131: 12.8 - [Name of sub-vote]
B132: 12.9 | C132: [Name of sub-vote] | D132: 12.9 - [Name of sub-vote]
B133: 12.10 | C133: [Name of sub-vote] | D133: 12.10 - [Name of sub-vote]
B134: Vote 13 | C134: [NAME OF VOTE 13]
B135: 13.1 | C135: [Name of sub-vote] | D135: =CONCATENATE(B135, " - ", C135) -> 13.1 - [Name of sub-vote] | E135: 13.1 - [Name of sub-vote]
B136: 13.2 | C136: [Name of sub-vote] | D136: 13.2 - [Name of sub-vote]
B137: 13.3 | C137: [Name of sub-vote] | D137: 13.3 - [Name of sub-vote]
B138: 13.4 | C138: [Name of sub-vote] | D138: 13.4 - [Name of sub-vote]
B139: 13.5 | C139: [Name of sub-vote] | D139: 13.5 - [Name of sub-vote]
B140: 13.6 | C140: [Name of sub-vote] | D140: 13.6 - [Name of sub-vote]
B141: 13.7 | C141: [Name of sub-vote] | D141: 13.7 - [Name of sub-vote]
B142: 13.8 | C142: [Name of sub-vote] | D142: 13.8 - [Name of sub-vote]
B143: 13.9 | C143: [Name of sub-vote] | D143: 13.9 - [Name of sub-vote]
B144: 13.10 | C144: [Name of sub-vote] | D144: 13.10 - [Name of sub-vote]
B145: Vote 14 | C145: [NAME OF VOTE 14]
B146: 14.1 | C146: [Name of sub-vote] | D146: =CONCATENATE(B146, " - ", C146) -> 14.1 - [Name of sub-vote] | E146: 14.1 - [Name of sub-vote]
B147: 14.2 | C147: [Name of sub-vote] | D147: 14.2 - [Name of sub-vote]
B148: 14.3 | C148: [Name of sub-vote] | D148: 14.3 - [Name of sub-vote]
B149: 14.4 | C149: [Name of sub-vote] | D149: 14.4 - [Name of sub-vote]
B150: 14.5 | C150: [Name of sub-vote] | D150: 14.5 - [Name of sub-vote]
B151: 14.6 | C151: [Name of sub-vote] | D151: 14.6 - [Name of sub-vote]
B152: 14.7 | C152: [Name of sub-vote] | D152: 14.7 - [Name of sub-vote]
B153: 14.8 | C153: [Name of sub-vote] | D153: 14.8 - [Name of sub-vote]
B154: 14.9 | C154: [Name of sub-vote] | D154: 14.9 - [Name of sub-vote]
B155: 14.10 | C155: [Name of sub-vote] | D155: 14.10 - [Name of sub-vote]
B156: Vote 15 | C156: [NAME OF VOTE 15]
B157: 15.1 | C157: [Name of sub-vote] | D157: =CONCATENATE(B157, " - ", C157) -> 15.1 - [Name of sub-vote] | E157: 15.1 - [Name of sub-vote]
B158: 15.2 | C158: [Name of sub-vote] | D158: 15.2 - [Name of sub-vote]
B159: 15.3 | C159: [Name of sub-vote] | D159: 15.3 - [Name of sub-vote]
B160: 15.4 | C160: [Name of sub-vote] | D160: 15.4 - [Name of sub-vote]
B161: 15.5 | C161: [Name of sub-vote] | D161: 15.5 - [Name of sub-vote]
B162: 15.6 | C162: [Name of sub-vote] | D162: 15.6 - [Name of sub-vote]
B163: 15.7 | C163: [Name of sub-vote] | D163: 15.7 - [Name of sub-vote]
B164: 15.8 | C164: [Name of sub-vote] | D164: 15.8 - [Name of sub-vote]
B165: 15.9 | C165: [Name of sub-vote] | D165: 15.9 - [Name of sub-vote]
B166: 15.10 | C166: [Name of sub-vote] | D166: 15.10 - [Name of sub-vote]

Sheet Contacts
A1: =muni&" - "&" Contact Information" -> LIM351 Blouberg - Contact Information
A3: A. GENERAL INFORMATION
A4: Municipality | B4: =muni -> LIM351 Blouberg | C4: Set name on 'Instructions' sheet
A6: Grade | C6: 1 Grade in terms of the Remuneration of Public Office Bearers Act.
A8: Province | B8: =IF(B4>" ",VLOOKUP(B4,'Lookup and lists'!B28:C311,2, FALSE)," ") -> Limpopo
A10: Web Address | B10: www.blouberg.gov.za
A12: e-mail Address | B12: blou@blouberg.gov.za
A14: B. CONTACT INFORMATION
A15: Postal address:
A16: P.O. Box | B16: Box 1593
A17: City / Town | B17: Senwabarwana
A18: Postal Code | B18: 790
A20: Street address
A21: Building | B21: 2nd Building
A22: Street No. & Name | B22: Senwabarwana/Dendron Road
A23: City / Town | B23: Senwabarwana
A24: Postal Code | B24: 790
A26: General Contacts
A27: Telephone number | B27: 015 505 7100
A28: Fax number | B28: 015 505 0296
A30: C. POLITICAL LEADERSHIP
A31: Speaker: | C31: Secretary/PA to the Speaker:
A32: ID Number | C32: ID Number
A33: Title | B33: Mrs | C33: Title | D33: Mrs
A34: Name | B34: Thamaga MN | C34: Name | D34: Malatji PJ
A35: Telephone number | B35: 015 505 7117 | C35: Telephone number | D35: 015 505 7189
A36: Cell number | B36: 071 234 4190 | C36: Cell number | D36: 076 654 3873
A37: Fax number | B37: 015 505 0296 | C37: Fax number | D37: 015 505 0296
A38: E-mail address | B38: Malatjip@blouberg.gov.za | C38: E-mail address | D38: Malatjip@blouberg.gov.za
A40: Mayor/Executive Mayor: | C40: Secretary/PA to the Mayor/Executive Mayor:
A41: ID Number | B41: Mr | C41: ID Number
A42: Title | B42: Pheedi S | C42: Title | D42: Ms
A43: Name | B43: 015 505 7191 | C43: Name | D43: Matlapu M
A44: Telephone number | B44: 082 515 7596 | C44: Telephone number | D44: 015 505 7191
A45: Cell number | B45: 015 505 0296 | C45: Cell number | D45: 082 515 7596
A46: Fax number | B46: 015 505 0296 | C46: Fax number | D46: 015 505 0296
A47: E-mail address | C47: E-mail address | D47: matlapum@blouberg.gov.za
A49: Deputy Mayor/Executive Mayor: | C49: Secretary/PA to the Deputy Mayor/Executive Mayor:
A50: ID Number | C50: ID Number
A51: Title | C51: Title
A52: Name | C52: Name
A53: Telephone number | C53: Telephone number
A54: Cell number | C54: Cell number
A55: Fax number | C55: Fax number
A56: E-mail address | C56: E-mail address
A58: D. MANAGEMENT LEADERSHIP
A59: Municipal Manager: | C59: Secretary/PA to the Municipal Manager:
A60: ID Number | C60: ID Number
A61: Title | B61: Mr | C61: Title
A62: Name | B62: Machaba M.J | C62: Name
A63: Telephone number | B63: 015 505 7100 | C63: Telephone number
A64: Cell number | B64: 0825234435 | C64: Cell number
A65: Fax number | B65: 015 505 0296 | C65: Fax number
A66: E-mail address | B66: machabaj@blouberg.gov.za | C66: E-mail address
A68: Chief Financial Officer | C68: Secretary/PA to the Chief Financial Officer
A69: ID Number | C69: ID Number
A70: Title | B70: Mr | C70: Title | D70: Mrs
A71: Name | B71: Mabote J | C71: Name | D71: Lehong KA
A72: Telephone number | B72: 015 505 7156 | C72: Telephone number | D72: 015 505 7157
A73: Cell number | B73: 083 561 9472 | C73: Cell number | D73: 084 923 4608
A74: Fax number | B74: 015 505 0296 | C74: Fax number | D74: 015 505 0296
A75: E-mail address | B75: Mabotej@blouberg.gov.za | C75: E-mail address | D75: LehongK@blouberg .gov.za
A77: Official responsible for submitting financial information | C77: Official responsible for submitting financial information
A78: ID Number | C78: ID Number
A79: Title | B79: Ms | C79: Title
A80: Name | B80: Riba M | C80: Name
A81: Telephone number | B81: 015 505 7156 | C81: Telephone number
A82: Cell number | B82: 083 561 9472 | C82: Cell number
A83: Fax number | B83: 015 505 0296 | C83: Fax number
A84: E-mail address | B84: Ribam@blouberg.gov.za | C84: E-mail address
A85: Official responsible for submitting financial information | C85: Official responsible for submitting financial information
A86: ID Number | C86: ID Number
A87: Title | C87: Title
A88: Name | C88: Name
A89: Telephone number | C89: Telephone number
A90: Cell number | C90: Cell number
A91: Fax number | C91: Fax number
A92: E-mail address | C92: E-mail address
A93: Official responsible for submitting financial information | C93: Official responsible for submitting financial information
A94: ID Number | C94: ID Number
A95: Title | C95: Title
A96: Name | C96: Name
A97: Telephone number | C97: Telephone number
A98: Cell number | C98: Cell number
A99: Fax number | C99: Fax number
A100: E-mail address | C100: E-mail address
A101: Official responsible for submitting financial information | C101: Official responsible for submitting financial information
A102: ID Number | C102: ID Number
A103: Title | C103: Title
A104: Name | C104: Name
A105: Telephone number | C105: Telephone number
A106: Cell number | C106: Cell number
A107: Fax number | C107: Fax number
A108: E-mail address | C108: E-mail address
A109: Official responsible for submitting financial information | C109: Official responsible for submitting financial information
A110: ID Number | C110: ID Number
A111: Title | C111: Title
A112: Name | C112: Name
A113: Telephone number | C113: Telephone number
A114: Cell number | C114: Cell number
A115: Fax number | C115: Fax number
A116: E-mail address | C116: E-mail address
A117: Official responsible for submitting financial information | C117: Official responsible for submitting financial information
A118: ID Number | C118: ID Number
A119: Title | C119: Title
A120: Name | C120: Name
A121: Telephone number | C121: Telephone number
A122: Cell number | C122: Cell number
A123: Fax number | C123: Fax number
A124: E-mail address | C124: E-mail address
A125: Official responsible for submitting financial information | C125: Official responsible for submitting financial information
A126: ID Number | C126: ID Number
A127: Title | C127: Title
A128: Name | C128: Name
A129: Telephone number | C129: Telephone number
A130: Cell number | C130: Cell number
A131: Fax number | C131: Fax number
A132: E-mail address | C132: E-mail address
A133: Official responsible for submitting financial information
A134: ID Number
A135: Title
A136: Name
A137: Telephone number
A138: Cell number
A139: Fax number
A140: E-mail address

Sheet C1-Sum
A1: =muni& " - "&s71sum& " - "&date -> LIM351 Blouberg - Table C1 Monthly Budget Statement Summary - M07 January
A2: =desc -> Description | B2: =Head1 -> 2018/19 | C2: =Head2 -> Budget Year 2019/20
B3: =Head5 -> Audited Outcome | C3: =Head6 -> Original Budget | D3: =Head7 -> Adjusted Budget | E3: =Head38 -> Monthly actual | F3: =Head39 -> YearTD actual | G3: =Head40 -> YearTD budget | H3: =Head41 -> YTD variance | I3: =Head41 -> YTD variance | J3: =Head8 -> Full Year Forecast
A4: R thousands | I4: %
A5: Financial Performance
A6: Property rates | B6: =SUM('C4-FinPerf RE'!C6:C6) -> 25289619 | C6: =SUM('C4-FinPerf RE'!D6:D6) -> 27000000 | D6: =SUM('C4-FinPerf RE'!E6:E6) -> 0 | E6: =SUM('C4-FinPerf RE'!F6:F6) -> 301094 | F6: =SUM('C4-FinPerf RE'!G6:G6) -> 22659772 | G6: =SUM('C4-FinPerf RE'!H6:H6) -> 23476415.87 | H6: =F6-G6 -> -816643.87 | I6: =IF(H6=0,"",H6/G6) -> -0.03478571322 | J6: =SUM('C4-FinPerf RE'!K6:K6) -> 27000000
A7: Service charges | B7: =SUM('C4-FinPerf RE'!C7:C11) -> 23158623 | C7: =SUM('C4-FinPerf RE'!D7:D11) -> 29666000 | D7: =SUM('C4-FinPerf RE'!E7:E11) -> 0 | E7: =SUM('C4-FinPerf RE'!F7:F11) -> 1521778 | F7: =SUM('C4-FinPerf RE'!G7:G11) -> 10737254.4 | G7: =SUM('C4-FinPerf RE'!H7:H11) -> 14667647.44 | H7: =F7-G7 -> -3930393.04 | I7: =IF(H7=0,"",H7/G7) -> -0.2679634247 | J7: =SUM('C4-FinPerf RE'!K7:K11) -> 29666000
A8: Investment revenue | B8: ='C4-FinPerf RE'!C13 -> 2475497 | C8: ='C4-FinPerf RE'!D13 -> 1700000 | D8: ='C4-FinPerf RE'!E13 -> 0 | E8: ='C4-FinPerf RE'!F13 -> 78607 | F8: ='C4-FinPerf RE'!G13 -> 549356 | G8: ='C4-FinPerf RE'!H13 -> 460000 | H8: =F8-G8 -> 89356 | I8: =IF(H8=0,"",H8/G8) -> 0.1942521739 | J8: ='C4-FinPerf RE'!K13 -> 1700000
A9: Transfers and subsidies | B9: ='C4-FinPerf RE'!C19 -> 256301916 | C9: ='C4-FinPerf RE'!D19 -> 242394726 | D9: ='C4-FinPerf RE'!E19 -> 0 | E9: ='C4-FinPerf RE'!F19 -> 0 | F9: ='C4-FinPerf RE'!G19 -> 153629468 | G9: ='C4-FinPerf RE'!H19 -> 152905161 | H9: =F9-G9 -> 724307 | I9: =IF(H9=0,"",H9/G9) -> 0.00473696895 | J9: ='C4-FinPerf RE'!K19 -> 242394726
A10: Other own revenue | B10: ='C4-FinPerf RE'!C12+'C4-FinPerf RE'!C14+'C4-FinPerf RE'!C15+'C4-FinPerf RE'!C16+'C4-FinPerf RE'!C17+'C4-FinPerf RE'!C18+'C4-FinPerf RE'!C20+'C4-FinPerf RE'!C21 -> 11353948 | C10: ='C4-FinPerf RE'!D12+'C4-FinPerf RE'!D14+'C4-FinPerf RE'!D15+'C4-FinPerf RE'!D16+'C4-FinPerf RE'!D17+'C4-FinPerf RE'!D18+'C4-FinPerf RE'!D20+'C4-FinPerf RE'!D21 -> 13750464 | D10: ='C4-FinPerf RE'!E12+'C4-FinPerf RE'!E14+'C4-FinPerf RE'!E15+'C4-FinPerf RE'!E16+'C4-FinPerf RE'!E17+'C4-FinPerf RE'!E18+'C4-FinPerf RE'!E20+'C4-FinPerf RE'!E21 -> 0 | E10: ='C4-FinPerf RE'!F12+'C4-FinPerf RE'!F14+'C4-FinPerf RE'!F15+'C4-FinPerf RE'!F16+'C4-FinPerf RE'!F17+'C4-FinPerf RE'!F18+'C4-FinPerf RE'!F20+'C4-FinPerf RE'!F21 -> 1203584 | F10: ='C4-FinPerf RE'!G12+'C4-FinPerf RE'!G14+'C4-FinPerf RE'!G15+'C4-FinPerf RE'!G16+'C4-FinPerf RE'!G17+'C4-FinPerf RE'!G18+'C4-FinPerf RE'!G20+'C4-FinPerf RE'!G21 -> 7283589.29 | G10: ='C4-FinPerf RE'!H12+'C4-FinPerf RE'!H14+'C4-FinPerf RE'!H15+'C4-FinPerf RE'!H16+'C4-FinPerf RE'!H17+'C4-FinPerf RE'!H18+'C4-FinPerf RE'!H20+'C4-FinPerf RE'!H21 -> 7080162.833 | H10: =F10-G10 -> 203426.4567 | I10: =IF(H10=0,"",H10/G10) -> 0.02873188957 | J10: ='C4-FinPerf RE'!K12+'C4-FinPerf RE'!K14+'C4-FinPerf RE'!K15+'C4-FinPerf RE'!K16+'C4-FinPerf RE'!K17+'C4-FinPerf RE'!K18+'C4-FinPerf RE'!K20+'C4-FinPerf RE'!K21 -> 13750464
A11: Total Revenue (excluding capital transfers and contributions) | B11: =SUM(B6:B10) -> 318579603 | C11: 314511190 | D11: 0 | E11: 3105063 | F11: 194859439.7 | G11: 198589387.1 | H11: =F11-G11 -> -3729947.453 | I11: =IF(H11=0,"",H11/G11) -> -0.0187822094 | J11: 314511190
A12: Employee costs | B12: ='C4-FinPerf RE'!C25 -> 100240828 | C12: ='C4-FinPerf RE'!D25 -> 108264701.3 | D12: ='C4-FinPerf RE'!E25 -> 0 | E12: ='C4-FinPerf RE'!F25 -> 8905373.65 | F12: ='C4-FinPerf RE'!G25 -> 60625186.9 | G12: ='C4-FinPerf RE'!H25 -> 55140512.67 | H12: 5484674.232 | I12: 0.0994672332 | J12: ='C4-FinPerf RE'!K25 -> 108264701.3
A13: Remuneration of Councillors | B13: ='C4-FinPerf RE'!C26 -> 19645442 | C13: ='C4-FinPerf RE'!D26 -> 16756624.18 | D13: ='C4-FinPerf RE'!E26 -> 0 | E13: ='C4-FinPerf RE'!F26 -> 1460258.91 | F13: ='C4-FinPerf RE'!G26 -> 9347119.2 | G13: ='C4-FinPerf RE'!H26 -> 8329195.97 | H13: 1017923.23 | I13: 0.1222114636 | J13: ='C4-FinPerf RE'!K26 -> 16756624.18
A14: Depreciation & asset impairment | B14: ='C4-FinPerf RE'!C28 -> 35270140 | C14: ='C4-FinPerf RE'!D28 -> 39314841 | D14: ='C4-FinPerf RE'!E28 -> 0 | E14: ='C4-FinPerf RE'!F28 -> 0 | F14: ='C4-FinPerf RE'!G28 -> 0 | G14: ='C4-FinPerf RE'!H28 -> 20397914.66 | H14: -20397914.66 | I14: -1 | J14: ='C4-FinPerf RE'!K28 -> 39314841
A15: Finance charges | B15: ='C4-FinPerf RE'!C29 -> 1413022 | C15: ='C4-FinPerf RE'!D29 -> 0 | D15: ='C4-FinPerf RE'!E29 -> 0 | E15: ='C4-FinPerf RE'!F29 -> 0 | F15: ='C4-FinPerf RE'!G29 -> 0 | G15: ='C4-FinPerf RE'!H29 -> 0 | H15: 0 | J15: ='C4-FinPerf RE'!K29 -> 0
A16: Materials and bulk purchases | B16: =SUM('C4-FinPerf RE'!C30:C31) -> 32813733 | C16: =SUM('C4-FinPerf RE'!D30:D31) -> 34370000 | D16: =SUM('C4-FinPerf RE'!E30:E31) -> 0 | E16: =SUM('C4-FinPerf RE'!F30:F31) -> 3143341.45 | F16: =SUM('C4-FinPerf RE'!G30:G31) -> 15618372.06 | G16: =SUM('C4-FinPerf RE'!H30:H31) -> 17907391.72 | H16: -2289019.66 | I16: -0.1278254084 | J16: =SUM('C4-FinPerf RE'!K30:K31) -> 34370000
A17: Transfers and subsidies | B17: ='C4-FinPerf RE'!C33 -> 0 | C17: ='C4-FinPerf RE'!D33 -> 0 | D17: ='C4-FinPerf RE'!E33 -> 0 | E17: ='C4-FinPerf RE'!F33 -> 0 | F17: ='C4-FinPerf RE'!G33 -> 0 | G17: ='C4-FinPerf RE'!H33 -> 0 | H17: 0 | J17: ='C4-FinPerf RE'!K33 -> 0
A18: Other expenditure | B18: ='C4-FinPerf RE'!C36-SUM('C1-Sum'!B12:B17) -> 107233436 | C18: ='C4-FinPerf RE'!D36-SUM('C1-Sum'!C12:C17) -> 101855419.7 | D18: ='C4-FinPerf RE'!E36-SUM('C1-Sum'!D12:D17) -> 0 | E18: ='C4-FinPerf RE'!F36-SUM('C1-Sum'!E12:E17) -> 4904694.8 | F18: ='C4-FinPerf RE'!G36-SUM('C1-Sum'!F12:F17) -> 54816504.5 | G18: ='C4-FinPerf RE'!H36-SUM('C1-Sum'!G12:G17) -> 51764030.34 | H18: 3052474.16 | I18: 0.05896902038 | J18: ='C4-FinPerf RE'!K36-SUM('C1-Sum'!J12:J17) -> 101855419.7
A19: Total Expenditure | B19: =SUM(B12:B18) -> 296616601 | C19: 300561586.2 | D19: 0 | E19: 18413668.81 | F19: 140407182.7 | G19: 153539045.4 | H19: -13131862.7 | I19: -0.08552783863 | J19: =SUM(J12:J18) -> 300561586.2
A20: Surplus/(Deficit) | B20: =B11-B19 -> 21963002 | C20: 13949603.8 | D20: 0 | E20: -15308605.81 | F20: 54452257.03 | G20: 45050341.79 | H20: 9401915.242 | I20: 0.2086979781 | J20: =J11-J19 -> 13949603.8
A21: ='C4-FinPerf RE'!A39 -> Transfers and subsidies - capital (monetary allocations) (National / Provincial and District) | B21: ='C4-FinPerf RE'!C39 -> 0 | C21: ='C4-FinPerf RE'!D39 -> 0 | D21: ='C4-FinPerf RE'!E39 -> 0 | E21: ='C4-FinPerf RE'!F39 -> 0 | F21: ='C4-FinPerf RE'!G39 -> 0 | G21: ='C4-FinPerf RE'!H39 -> 0 | H21: 0 | J21: ='C4-FinPerf RE'!K39 -> 0
A22: Contributions & Contributed assets | B22: =SUM('C4-FinPerf RE'!C40:C41) -> 0 | C22: =SUM('C4-FinPerf RE'!D40:D41) -> 0 | D22: =SUM('C4-FinPerf RE'!E40:E41) -> 0 | E22: =SUM('C4-FinPerf RE'!F40:F41) -> 0 | F22: =SUM('C4-FinPerf RE'!G40:G41) -> 0 | G22: =SUM('C4-FinPerf RE'!H40:H41) -> 0 | H22: 0 | J22: =SUM('C4-FinPerf RE'!K40:K41) -> 0
A23: Surplus/(Deficit) after capital transfers & contributions | B23: =B20+B21+B22 -> 21963002 | C23: 13949603.8 | D23: 0 | E23: -15308605.81 | F23: 54452257.03 | G23: 45050341.79 | H23: 9401915.242 | I23: 0.2086979781 | J23: =J20+J21+J22 -> 13949603.8
A24: Share of surplus/ (deficit) of associate | B24: ='C4-FinPerf RE'!C47 -> 0 | C24: ='C4-FinPerf RE'!D47 -> 0 | D24: ='C4-FinPerf RE'!E47 -> 0 | E24: ='C4-FinPerf RE'!F47 -> 0 | F24: ='C4-FinPerf RE'!G47 -> 0 | G24: ='C4-FinPerf RE'!H47 -> 0 | H24: 0 | J24: ='C4-FinPerf RE'!K47 -> 0
A25: Surplus/ (Deficit) for the year | B25: =B23+B24 -> 21963002 | C25: 13949603.8 | D25: 0 | E25: -15308605.81 | F25: 54452257.03 | G25: 45050341.79 | H25: 9401915.242 | I25: 0.2086979781 | J25: =J23+J24 -> 13949603.8
A27: Capital expenditure & funds sources
A28: Capital expenditure | B28: ='C5-Capex'!C40 -> 0 | C28: ='C5-Capex'!D40 -> 60106650 | D28: ='C5-Capex'!E40 -> 0 | E28: ='C5-Capex'!F40 -> 282272.1 | F28: ='C5-Capex'!G40 -> 23200191.04 | G28: ='C5-Capex'!H40 -> 43735819.54 | H28: =F28-G28 -> -20535628.5 | I28: =IF(H28=0,"",H28/G28) -> -0.4695379832 | J28: ='C5-Capex'!K40 -> 60106650
A29: Capital transfers recognised | B29: ='C5-Capex'!C70 -> 50344007 | C29: ='C5-Capex'!D70 -> 50611450 | D29: ='C5-Capex'!E70 -> 0 | E29: ='C5-Capex'!F70 -> 0 | F29: ='C5-Capex'!G70 -> 20287532 | G29: ='C5-Capex'!H70 -> 41630843 | H29: -21343311 | I29: -0.5126802501 | J29: ='C5-Capex'!K70 -> 50611450
A30: Public contributions & donations | B30: ='C5-Capex'!C71 -> 0 | C30: ='C5-Capex'!D71 -> 0 | D30: ='C5-Capex'!E71 -> 0 | E30: ='C5-Capex'!F71 -> 0 | F30: ='C5-Capex'!G71 -> 0 | G30: ='C5-Capex'!H71 -> 0 | H30: 0 | J30: ='C5-Capex'!K71 -> 0
A31: Borrowing | B31: ='C5-Capex'!C72 -> 0 | C31: ='C5-Capex'!D72 -> 0 | D31: ='C5-Capex'!E72 -> 0 | E31: ='C5-Capex'!F72 -> 0 | F31: ='C5-Capex'!G72 -> 0 | G31: ='C5-Capex'!H72 -> 0 | H31: 0 | J31: ='C5-Capex'!K72 -> 0
A32: Internally generated funds | B32: ='C5-Capex'!C73 -> 9822180 | C32: ='C5-Capex'!D73 -> 9495200 | D32: ='C5-Capex'!E73 -> 0 | E32: ='C5-Capex'!F73 -> 282272.1 | F32: ='C5-Capex'!G73 -> 2526310 | G32: ='C5-Capex'!H73 -> 2104977 | H32: 421333 | I32: 0.2001603818 | J32: ='C5-Capex'!K73 -> 9495200
A33: Total sources of capital funds | B33: =SUM(B29:B32) -> 60166187 | C33: 60106650 | D33: 0 | E33: =SUM(E29:E32) -> 282272.1 | F33: =SUM(F29:F32) -> 22813842 | G33: =SUM(G29:G32) -> 43735820 | H33: -20921978 | I33: -0.4783716871 | J33: 60106650
A35: Financial position
A36: Total current assets | B36: ='C6-FinPos'!C13 -> 123583276 | C36: ='C6-FinPos'!D13 -> 94181937.94 | D36: ='C6-FinPos'!E13 -> 0 | F36: ='C6-FinPos'!F13 -> 47519640.25 | J36: ='C6-FinPos'!G13 -> 94181937.94
A37: Total non current assets | B37: ='C6-FinPos'!C25 -> 898016509 | C37: ='C6-FinPos'!D25 -> 1005205493 | D37: ='C6-FinPos'!E25 -> 0 | F37: ='C6-FinPos'!F25 -> 25300390.04 | J37: ='C6-FinPos'!G25 -> 1005205493
A38: Total current liabilities | B38: ='C6-FinPos'!C35 -> 69802004 | C38: ='C6-FinPos'!D35 -> 26400000 | D38: ='C6-FinPos'!E35 -> 0 | F38: ='C6-FinPos'!F35 -> 205222 | J38: ='C6-FinPos'!G35 -> 26400000
A39: Total non current liabilities | B39: ='C6-FinPos'!C40 -> 6248314 | C39: ='C6-FinPos'!D40 -> 2830056 | D39: ='C6-FinPos'!E40 -> 0 | F39: ='C6-FinPos'!F40 -> 0 | J39: ='C6-FinPos'!G40 -> 2830056
A40: Community wealth/Equity | B40: ='C6-FinPos'!C48 -> 945549467 | C40: ='C6-FinPos'!D48 -> 1070157375 | D40: ='C6-FinPos'!E48 -> 0 | F40: ='C6-FinPos'!F48 -> 72614808.29 | J40: ='C6-FinPos'!G48 -> 1070157375
A42: Cash flows
A43: Net cash from (used) operating | B43: ='C7-CFlow'!C18 -> 32110868 | C43: ='C7-CFlow'!D18 -> 58973376.8 | D43: ='C7-CFlow'!E18 -> 0 | E43: ='C7-CFlow'!F18 -> -15318272.36 | F43: ='C7-CFlow'!G18 -> -125458787.4 | G43: ='C7-CFlow'!H18 -> 60071596.14 | H43: =G43-F43 -> 185530383.6 | I43: =IF(H43=0,"",H43/G43) -> 3.088487663 | J43: ='C7-CFlow'!K18 -> 58973376.8
A44: Net cash from (used) investing | B44: ='C7-CFlow'!C28 -> -60322687 | C44: ='C7-CFlow'!D28 -> -60106650 | D44: ='C7-CFlow'!E28 -> 0 | E44: ='C7-CFlow'!F28 -> -282272 | F44: ='C7-CFlow'!G28 -> -22813842.94 | G44: ='C7-CFlow'!H28 -> -43735819 | H44: =G44-F44 -> -20921976.06 | I44: =IF(H44=0,"",H44/G44) -> 0.4783716537 | J44: ='C7-CFlow'!K28 -> 0
A45: Net cash from (used) financing | B45: ='C7-CFlow'!C37 -> 2983575 | C45: ='C7-CFlow'!D37 -> 0 | D45: ='C7-CFlow'!E37 -> 0 | E45: ='C7-CFlow'!F37 -> 0 | F45: ='C7-CFlow'!G37 -> 0 | G45: ='C7-CFlow'!H37 -> 0 | H45: =G45-F45 -> 0 | I45: =IF(H45=0,"",H45/G45) ->  | J45: ='C7-CFlow'!K37 -> 0
A46: Cash/cash equivalents at the month/year end | B46: ='C7-CFlow'!C41 -> 15884563 | C46: ='C7-CFlow'!D41 -> 50564125.8 | D46: ='C7-CFlow'!E41 -> 0 | E46: ='C7-CFlow'!F41 -> 0 | F46: ='C7-CFlow'!G41 -> -101762224.4 | G46: ='C7-CFlow'!H41 -> 68033176.14 | H46: =G46-F46 -> 169795400.5 | I46: =IF(H46=0,"",H46/G46) -> 2.495773535 | J46: ='C7-CFlow'!K41 -> 105483782.8
A48: Debtors & creditors analysis | B48: ='SC3'!C3 -> 0-30 Days | C48: ='SC3'!D3 -> 31-60 Days | D48: ='SC3'!E3 -> 61-90 Days | E48: ='SC3'!F3 -> 91-120 Days | F48: ='SC3'!G3 -> 121-150 Dys | G48: ='SC3'!H3 -> 151-180 Dys | H48: ='SC3'!I3 -> 181 Dys-1 Yr | I48: ='SC3'!J3 -> Over 1Yr | J48: Total
A49: =LEFT('SC3'!A4,20) -> Debtors Age Analysis
A50: ='SC3'!A14 -> Total By Income Source | B50: ='SC3'!C14 -> 827935.91 | C50: ='SC3'!D14 -> 1682950.4 | D50: ='SC3'!E14 -> 654658.85 | E50: ='SC3'!F14 -> 577092.48 | F50: ='SC3'!G14 -> 20134787.4 | G50: ='SC3'!H14 -> 664457.66 | H50: ='SC3'!I14 -> 3206523.15 | I50: ='SC3'!J14 -> 85462023.97 | J50: ='SC3'!K14 -> 113210429.8
A51: =LEFT('SC4'!A5,22) -> Creditors Age Analysis
A52: Total Creditors | B52: ='SC4'!C15 -> 0 | C52: ='SC4'!D15 -> 0 | D52: ='SC4'!E15 -> 0 | E52: ='SC4'!F15 -> 0 | F52: ='SC4'!G15 -> 0 | G52: ='SC4'!H15 -> 0 | H52: ='SC4'!I15 -> 0 | I52: ='SC4'!J15 -> 0 | J52: ='SC4'!K15 -> 0

Sheet C2-FinPerf SC
A1: =muni& " - "&S71A& " - "&date -> LIM351 Blouberg - Table C2 Monthly Budget Statement - Financial Performance (functional classification) - M07 January
A2: =desc -> Description | B2: =head27 -> Ref | C2: =Head1 -> 2018/19 | D2: =Head2 -> Budget Year 2019/20
C3: =Head5 -> Audited Outcome | D3: =Head6 -> Original Budget | E3: =Head7 -> Adjusted Budget | F3: =Head38 -> Monthly actual | G3: =Head39 -> YearTD actual | H3: =Head40 -> YearTD budget | I3: =Head41 -> YTD variance | J3: =Head41 -> YTD variance | K3: =Head8 -> Full Year Forecast
A4: R thousands | B4: 1 | J4: %
A5: Revenue - Functional
A6: Governance and administration | C6: =SUM(C7:C9) -> 227079583 | D6: 216607546 | E6: 0 | F6: 881762 | G6: 156703253.7 | H6: 139956736 | I6: =G6-H6 -> 16746517.69 | J6: =IF(I6=0,"",I6/H6) -> 0.1196549603 | K6: =SUM(K7:K9) -> 216466546
A7: Executive and council | C7: ='C2C'!C7 -> 25855950 | D7: ='C2C'!D7 -> 13880726 | E7: ='C2C'!E7 -> 0 | F7: ='C2C'!F7 -> 0 | G7: ='C2C'!G7 -> 6244468.69 | H7: ='C2C'!H7 -> 13872526 | I7: -7628057.31 | J7: =IF(I7=0,"",I7/H7) -> -0.5498679411 | K7: ='C2C'!K7 -> 13880726
A8: Finance and administration | C8: ='C2C'!C10 -> 201223633 | D8: ='C2C'!D10 -> 202726820 | E8: ='C2C'!E10 -> 0 | F8: ='C2C'!F10 -> 881762 | G8: ='C2C'!G10 -> 150458785 | H8: ='C2C'!H10 -> 126084210 | I8: 24374575 | J8: 0.1933198059 | K8: ='C2C'!K10 -> 202585820
A9: Internal audit | C9: ='C2C'!C25 -> 0 | D9: ='C2C'!D25 -> 0 | E9: ='C2C'!E25 -> 0 | F9: ='C2C'!F25 -> 0 | G9: ='C2C'!G25 -> 0 | H9: ='C2C'!H25 -> 0 | I9: 0 | K9: ='C2C'!K25 -> 0
A10: Community and public safety | C10: =SUM(C11:C15) -> 10882975 | D10: 11854000 | E10: 0 | F10: 169369 | G10: 2250184 | H10: 4541119 | I10: -2290935 | J10: -0.5044868897 | K10: =SUM(K11:K15) -> 11854000
A11: Community and social services | C11: ='C2C'!C28 -> 5830000 | D11: ='C2C'!D28 -> 4504000 | E11: ='C2C'!E28 -> 0 | F11: ='C2C'!F28 -> 0 | G11: ='C2C'!G28 -> 763000 | H11: ='C2C'!H28 -> 1589000 | I11: -826000 | J11: -0.5198237885 | K11: ='C2C'!K28 -> 4504000
A12: Sport and recreation | C12: ='C2C'!C50 -> 0 | D12: ='C2C'!D50 -> 0 | E12: ='C2C'!E50 -> 0 | F12: ='C2C'!F50 -> 0 | G12: ='C2C'!G50 -> 0 | H12: ='C2C'!H50 -> 0 | I12: 0 | K12: ='C2C'!K50 -> 0
A13: Public safety | C13: ='C2C'!C56 -> 5052975 | D13: ='C2C'!D56 -> 7350000 | E13: ='C2C'!E56 -> 0 | F13: ='C2C'!F56 -> 169369 | G13: ='C2C'!G56 -> 1487184 | H13: ='C2C'!H56 -> 2952119 | I13: -1464935 | J13: -0.4962316898 | K13: ='C2C'!K56 -> 7350000
A14: Housing | C14: ='C2C'!C63 -> 0 | D14: ='C2C'!D63 -> 0 | E14: ='C2C'!E63 -> 0 | F14: ='C2C'!F63 -> 0 | G14: ='C2C'!G63 -> 0 | H14: ='C2C'!H63 -> 0 | I14: =G14-H14 -> 0 | J14: =IF(I14=0,"",I14/H14) ->  | K14: ='C2C'!K63 -> 0
A15: Health | C15: ='C2C'!C66 -> 0 | D15: ='C2C'!D66 -> 0 | E15: ='C2C'!E66 -> 0 | F15: ='C2C'!F66 -> 0 | G15: ='C2C'!G66 -> 0 | H15: ='C2C'!H66 -> 0 | I15: 0 | K15: ='C2C'!K66 -> 0
A16: Economic and environmental services | C16: =SUM(C17:C19) -> 47045997 | D16: 46925899 | E16: 0 | F16: 14836 | G16: 18977742 | H16: 42833000 | I16: -23855258 | J16: -0.5569364275 | K16: =SUM(K17:K19) -> 46925899
A17: Planning and development | C17: ='C2C'!C75 -> 491482 | D17: ='C2C'!D75 -> 3434899 | E17: ='C2C'!E75 -> 0 | F17: ='C2C'!F75 -> 14836 | G17: ='C2C'!G75 -> 153742 | H17: ='C2C'!H75 -> 2220000 | I17: -2066258 | J17: -0.9307468468 | K17: ='C2C'!K75 -> 3434899
A18: Road transport | C18: ='C2C'!C86 -> 46554515 | D18: ='C2C'!D86 -> 43491000 | E18: ='C2C'!E86 -> 0 | F18: ='C2C'!F86 -> 0 | G18: ='C2C'!G86 -> 18824000 | H18: ='C2C'!H86 -> 40613000 | I18: -21789000 | J18: -0.5365030901 | K18: ='C2C'!K86 -> 43491000
A19: Environmental protection | C19: ='C2C'!C93 -> 0 | D19: ='C2C'!D93 -> 0 | E19: ='C2C'!E93 -> 0 | F19: ='C2C'!F93 -> 0 | G19: ='C2C'!G93 -> 0 | H19: ='C2C'!H93 -> 0 | I19: 0 | K19: ='C2C'!K93 -> 0
A20: Trading services | C20: =SUM(C21:C24) -> 33571046 | D20: =SUM(D21:D24) -> 39123745 | E20: 0 | F20: 2039096 | G20: 16928260 | H20: 11989090 | I20: 4939170 | J20: 0.4119720513 | K20: =SUM(K21:K24) -> 39123745
A21: Energy sources | C21: ='C2C'!C101 -> 33113182 | D21: ='C2C'!D101 -> 38063745 | E21: ='C2C'!E101 -> 0 | F21: ='C2C'!F101 -> 1992943 | G21: ='C2C'!G101 -> 16612157 | H21: ='C2C'!H101 -> 11529090 | I21: =G21-H21 -> 5083067 | J21: 0.4408905646 | K21: ='C2C'!K101 -> 38063745
A22: Water management | C22: ='C2C'!C105 -> 0 | D22: ='C2C'!D105 -> 0 | E22: ='C2C'!E105 -> 0 | F22: ='C2C'!F105 -> 0 | G22: ='C2C'!G105 -> 0 | H22: ='C2C'!H105 -> 0 | I22: =G22-H22 -> 0 | K22: ='C2C'!K105 -> 0
A23: Waste water management | C23: ='C2C'!C109 -> 0 | D23: ='C2C'!D109 -> 0 | E23: ='C2C'!E109 -> 0 | F23: ='C2C'!F109 -> 0 | G23: ='C2C'!G109 -> 0 | H23: ='C2C'!H109 -> 0 | I23: =G23-H23 -> 0 | K23: ='C2C'!K109 -> 0
A24: Waste management | C24: ='C2C'!C114 -> 457864 | D24: ='C2C'!D114 -> 1060000 | E24: ='C2C'!E114 -> 0 | F24: ='C2C'!F114 -> 46153 | G24: ='C2C'!G114 -> 316103 | H24: ='C2C'!H114 -> 460000 | I24: =G24-H24 -> -143897 | J24: -0.3128195652 | K24: ='C2C'!K114 -> 1060000
A25: Other | B25: 4 | C25: ='C2C'!C119 -> 0 | D25: ='C2C'!D119 -> 0 | E25: ='C2C'!E119 -> 0 | F25: ='C2C'!F119 -> 0 | G25: ='C2C'!G119 -> 0 | H25: ='C2C'!H119 -> 0 | I25: =G25-H25 -> 0 | K25: ='C2C'!K119 -> 0
A26: Total Revenue - Functional | B26: 2 | C26: =C6+C10+C16+C20+C25 -> 318579601 | D26: =D6+D10+D16+D20+D25 -> 314511190 | E26: 0 | F26: 3105063 | G26: 194859439.7 | H26: 199319945 | I26: -4460505.31 | J26: -0.02237862001 | K26: =K6+K10+K16+K20+K25 -> 314370190
A28: Expenditure - Functional
A29: Governance and administration | C29: =SUM(C30:C32) -> 201978634 | D29: 201230986.5 | E29: 0 | F29: 10109107.97 | G29: 86752632.28 | H29: 99424412 | I29: =G29-H29 -> -12671779.72 | J29: =IF(I29=0,"",I29/H29) -> -0.1274513921 | K29: =SUM(K30:K32) -> 201230986.5
A30: Executive and council | C30: ='C2C'!C130 -> 80862852 | D30: ='C2C'!D130 -> 68304369.07 | E30: ='C2C'!E130 -> 0 | F30: ='C2C'!F130 -> 4169565.45 | G30: ='C2C'!G130 -> 40265531.37 | H30: ='C2C'!H130 -> 39580358 | I30: 685173.37 | J30: =IF(I30=0,"",I30/H30) -> 0.01731094423 | K30: ='C2C'!K130 -> 68304369.07
A31: Finance and administration | C31: ='C2C'!C133 -> 121115782 | D31: ='C2C'!D133 -> 132926617.5 | E31: ='C2C'!E133 -> 0 | F31: ='C2C'!F133 -> 5939542.52 | G31: ='C2C'!G133 -> 46487100.91 | H31: ='C2C'!H133 -> 59844054 | I31: -13356953.09 | J31: -0.2231959935 | K31: ='C2C'!K133 -> 132926617.5
A32: Internal audit | C32: ='C2C'!C148 -> 0 | D32: ='C2C'!D148 -> 0 | E32: ='C2C'!E148 -> 0 | F32: ='C2C'!F148 -> 0 | G32: ='C2C'!G148 -> 0 | H32: ='C2C'!H148 -> 0 | I32: 0 | K32: ='C2C'!K148 -> 0
A33: Community and public safety | C33: =SUM(C34:C38) -> 34598456 | D33: 33810890.75 | E33: 0 | F33: 3015342.83 | G33: 20770918.87 | H33: 19655445.38 | I33: 1115473.493 | J33: 0.05675137202 | K33: =SUM(K34:K38) -> 33810890.75
A34: Community and social services | C34: ='C2C'!C151 -> 21549559 | D34: ='C2C'!D151 -> 19173620.05 | E34: ='C2C'!E151 -> 0 | F34: ='C2C'!F151 -> 1626745.18 | G34: ='C2C'!G151 -> 12160938.39 | H34: ='C2C'!H151 -> 11336810.03 | I34: 824128.3628 | J34: 0.07269490807 | K34: ='C2C'!K151 -> 19173620.05
A35: Sport and recreation | C35: ='C2C'!C173 -> 0 | D35: ='C2C'!D173 -> 0 | E35: ='C2C'!E173 -> 0 | F35: ='C2C'!F173 -> 0 | G35: ='C2C'!G173 -> 0 | H35: ='C2C'!H173 -> 0 | I35: 0 | K35: ='C2C'!K173 -> 0
A36: Public safety | C36: ='C2C'!C179 -> 13048897 | D36: ='C2C'!D179 -> 14637270.7 | E36: ='C2C'!E179 -> 0 | F36: ='C2C'!F179 -> 1388597.65 | G36: ='C2C'!G179 -> 8609980.48 | H36: ='C2C'!H179 -> 8318635.35 | I36: 291345.13 | J36: 0.03502318803 | K36: ='C2C'!K179 -> 14637270.7
A37: Housing | C37: ='C2C'!C186 -> 0 | D37: ='C2C'!D186 -> 0 | E37: ='C2C'!E186 -> 0 | F37: ='C2C'!F186 -> 0 | G37: ='C2C'!G186 -> 0 | H37: ='C2C'!H186 -> 0 | I37: 0 | K37: ='C2C'!K186 -> 0
A38: Health | C38: ='C2C'!C189 -> 0 | D38: ='C2C'!D189 -> 0 | E38: ='C2C'!E189 -> 0 | F38: ='C2C'!F189 -> 0 | G38: ='C2C'!G189 -> 0 | H38: ='C2C'!H189 -> 0 | I38: 0 | K38: ='C2C'!K189 -> 0
A39: Economic and environmental services | C39: =SUM(C40:C42) -> 19014793 | D39: 19604423.53 | E39: 0 | F39: 1620115.49 | G39: 10607413.76 | H39: 11812211.77 | I39: -1204798.007 | J39: -0.1019959709 | K39: =SUM(K40:K42) -> 19604423.53
A40: Planning and development | C40: ='C2C'!C198 -> 9661257 | D40: ='C2C'!D198 -> 11227916.03 | E40: ='C2C'!E198 -> 0 | F40: ='C2C'!F198 -> 784784.96 | G40: ='C2C'!G198 -> 4958052.72 | H40: ='C2C'!H198 -> 5643958.017 | I40: -685905.2972 | J40: -0.1215291282 | K40: ='C2C'!K198 -> 11227916.03
A41: Road transport | C41: ='C2C'!C209 -> 9353536 | D41: ='C2C'!D209 -> 8376507.5 | E41: ='C2C'!E209 -> 0 | F41: ='C2C'!F209 -> 835330.53 | G41: ='C2C'!G209 -> 5649361.04 | H41: ='C2C'!H209 -> 6168253.75 | I41: -518892.71 | J41: -0.08412311345 | K41: ='C2C'!K209 -> 8376507.5
A42: Environmental protection | C42: ='C2C'!C216 -> 0 | D42: ='C2C'!D216 -> 0 | E42: ='C2C'!E216 -> 0 | F42: ='C2C'!F216 -> 0 | G42: ='C2C'!G216 -> 0 | H42: ='C2C'!H216 -> 0 | I42: 0 | K42: ='C2C'!K216 -> 0
A43: Trading services | C43: =SUM(C44:C47) -> 41024714 | D43: =SUM(D44:D47) -> 45915285.75 | E43: 0 | F43: 3669101 | G43: 22276217 | H43: 22646976.21 | I43: -370759.2106 | J43: -0.01637124564 | K43: =SUM(K44:K47) -> 45915285.75
A44: Energy sources | C44: ='C2C'!C224 -> 41030814 | D44: ='C2C'!D224 -> 43955285.75 | E44: ='C2C'!E224 -> 0 | F44: ='C2C'!F224 -> 3669101 | G44: ='C2C'!G224 -> 22197467 | H44: ='C2C'!H224 -> 21762642.88 | I44: 434824.1228 | J44: 0.01998029951 | K44: ='C2C'!K224 -> 43955285.75
A45: Water management | C45: ='C2C'!C228 -> 0 | D45: ='C2C'!D228 -> 0 | E45: ='C2C'!E228 -> 0 | F45: ='C2C'!F228 -> 0 | G45: ='C2C'!G228 -> 0 | H45: ='C2C'!H228 -> 0 | I45: 0 | K45: ='C2C'!K228 -> 0
A46: Waste water management | C46: ='C2C'!C232 -> 0 | D46: ='C2C'!D232 -> 0 | E46: ='C2C'!E232 -> 0 | F46: ='C2C'!F232 -> 0 | G46: ='C2C'!G232 -> 0 | H46: ='C2C'!H232 -> 0 | I46: 0 | K46: ='C2C'!K232 -> 0
A47: Waste management | C47: ='C2C'!C237 -> -6100 | D47: ='C2C'!D237 -> 1960000 | E47: ='C2C'!E237 -> 0 | F47: ='C2C'!F237 -> 0 | G47: ='C2C'!G237 -> 78750 | H47: ='C2C'!H237 -> 884333.3333 | I47: -805583.3333 | J47: -0.9109498681 | K47: ='C2C'!K237 -> 1960000
A48: Other | C48: ='C2C'!C242 -> 0 | D48: ='C2C'!D242 -> 0 | E48: ='C2C'!E242 -> 0 | F48: ='C2C'!F242 -> 0 | G48: ='C2C'!G242 -> 0 | H48: ='C2C'!H242 -> 0 | I48: 0 | K48: ='C2C'!K242 -> 0
A49: Total Expenditure - Functional | B49: 3 | C49: =C29+C33+C39+C43+C48 -> 296616597 | D49: =D29+D33+D39+D43+D48 -> 300561586.6 | E49: 0 | F49: 18413667.29 | G49: 140407181.9 | H49: 153539045.4 | I49: -13131863.45 | J49: -0.08552784352 | K49: =K29+K33+K39+K43+K48 -> 300561586.6
A50: Surplus/ (Deficit) for the year | C50: =C26-C49 -> 21963004 | D50: 13949603.44 | E50: 0 | F50: -15308604.29 | G50: 54452257.78 | H50: 45780899.64 | I50: =I26-I49 -> 8671358.135 | J50: =IF(I50=0,"",I50/H50) -> 0.1894099549 | K50: =K26-K49 -> 13808603.44
A51: =head27a -> References
A52: 1. Government Finance Statistics Functions and Sub-functions are standardised to assist the compilation of national and international accounts for comparison purposes
A53: 2. Total Revenue by functional classification must reconcile to Total Operating Revenue shown in the Financial Performance Statement
A54: 3. Total Expenditure by functional classification must reconcile to total operating expenditure shown in 'Financial Performance Statement'
A55: 4. All amounts must be classified under a functional classification (modified GFS). The GFS function 'Other' is only for Abbatoirs, Air Transport, Licensing and Regulation, Markets and Tourism - and if used must be supported by footnotes. Nothing else may be placed under 'Other'. Assign associate share to relevant classification

Sheet C2C
A1: =muni& " - "&S71A& " - "&date -> LIM351 Blouberg - Table C2 Monthly Budget Statement - Financial Performance (functional classification) - M07 January
A2: =desc -> Description | B2: =head27 -> Ref | C2: =Head1 -> 2018/19 | D2: =Head2 -> Budget Year 2019/20
C3: =Head5 -> Audited Outcome | D3: =Head6 -> Original Budget | E3: =Head7 -> Adjusted Budget | F3: =Head38 -> Monthly actual | G3: =Head39 -> YearTD actual | H3: =Head40 -> YearTD budget | I3: =Head41 -> YTD variance | J3: =Head41 -> YTD variance | K3: =Head8 -> Full Year Forecast
A4: R thousands | B4: 1 | J4: %
A5: Revenue - Functional
A6: Municipal governance and administration | C6: =C7+C10+C25 -> 227079583 | D6: =D7+D10+D25 -> 216607546 | E6: 0 | F6: 881762 | G6: 156703253.7 | H6: 139956736 | I6: =G6-H6 -> 16746517.69 | J6: =IF(I6=0,"",I6/H6) -> 0.1196549603 | K6: 216466546
A7: Executive and council | C7: =SUM(C8:C9) -> 25855950 | D7: =SUM(D8:D9) -> 13880726 | E7: 0 | F7: 0 | G7: 6244468.69 | H7: 13872526 | I7: =G7-H7 -> -7628057.31 | J7: =IF(I7=0,"",I7/H7) -> -0.5498679411 | K7: 13880726
A8: Mayor and Council | C8: 0 | D8: 0 | E8: 0 | F8: 0 | G8: 0 | H8: 0 | I8: 0
A9: Municipal Manager, Town Secretary and Chief Executive | C9: 25855950 | D9: 13880726 | F9: 0 | G9: 6244468.69 | H9: 13872526 | I9: -7628057.31 | J9: -0.5498679411 | K9: 13880726
A10: Finance and administration | C10: =SUM(C11:C24) -> 201223633 | D10: 202726820 | E10: 0 | F10: 881762 | G10: 150458785 | H10: 126084210 | I10: =G10-H10 -> 24374575 | J10: =IF(I10=0,"",I10/H10) -> 0.1933198059 | K10: =SUM(K11:K24) -> 202585820
A11: Administrative and Corporate Support | C11: 167009 | D11: 141000 | F11: 16862 | G11: 35604 | H11: 24666 | I11: =G11-H11 -> 10938 | J11: =IF(I11=0,"",I11/H11) -> 0.4434444174
A12: Asset Management | C12: 0 | D12: 0 | E12: 0 | F12: 0 | G12: 0 | H12: 0 | I12: 0
A13: Budget and Treasury Office | C13: =191191212+9865412 -> 201056624 | D13: 202585820 | F13: 864900 | G13: 150423181 | H13: =126084210-24666 -> 126059544 | I13: 24363637 | J13: 0.1932708641 | K13: 202585820
A14: Finance | I14: 0
A15: Fleet Management | I15: 0
A16: Human Resources | I16: 0
A17: Information Technology | I17: =G17-H17 -> 0 | J17: =IF(I17=0,"",I17/H17) -> 
A18: Legal Services | I18: 0
A19: Marketing, Customer Relations, Publicity and Media Co-ordination | I19: 0
A20: Property Services | I20: 0
A21: Risk Management | I21: 0
A22: Security Services | I22: 0
A23: Supply Chain Management | I23: 0
A24: Valuation Service | I24: 0
A25: Internal audit | C25: =SUM(C26:C26) -> 0 | D25: 0 | E25: 0 | F25: 0 | G25: 0 | H25: 0 | I25: 0 | K25: =SUM(K26:K26) -> 0
A26: Governance Function | I26: 0
A27: Community and public safety | C27: =C28+C50+C56+C63+C66 -> 10882975 | D27: =D28+D50+D56+D63+D66 -> 11854000 | E27: 0 | F27: 169369 | G27: 2250184 | H27: 4541119 | I27: -2290935 | J27: -0.5044868897 | K27: 11854000
A28: Community and social services | C28: =SUM(C29:C49) -> 5830000 | D28: 4504000 | E28: 0 | F28: 0 | G28: 763000 | H28: 1589000 | I28: -826000 | J28: -0.5198237885 | K28: =SUM(K29:K49) -> 4504000
A29: Aged Care | I29: =G29-H29 -> 0 | J29: =IF(I29=0,"",I29/H29) -> 
A30: Agricultural | I30: 0
A31: Animal Care and Diseases | I31: 0
A32: Cemeteries, Funeral Parlours and Crematoriums | I32: 0
A33: Child Care Facilities | I33: 0
A34: Community Halls and Facilities | C34: 5830000 | D34: 4504000 | F34: 0 | G34: 763000 | H34: 1589000 | I34: -826000 | J34: -0.5198237885 | K34: 4504000
A35: Consumer Protection | I35: 0
A36: Cultural Matters | I36: =G36-H36 -> 0 | J36: =IF(I36=0,"",I36/H36) -> 
A37: Disaster Management | I37: 0
A38: Education | I38: 0
A39: Indigenous and Customary Law | I39: 0
A40: Industrial Promotion | I40: 0
A41: Language Policy | I41: 0
A42: Libraries and Archives | I42: 0
A43: Literacy Programmes | I43: 0
A44: Media Services | I44: 0
A45: Museums and Art Galleries | I45: 0
A46: Population Development | I46: 0
A47: Provincial Cultural Matters | I47: 0
A48: Theatres | I48: 0
A49: Zoo's | I49: 0
A50: Sport and recreation | C50: =SUM(C51:C55) -> 0 | D50: =SUM(D51:D55) -> 0 | E50: 0 | F50: 0 | G50: 0 | H50: 0 | I50: =G50-H50 -> 0 | J50: =IF(I50=0,"",I50/H50) ->  | K50: 0
A51: Beaches and Jetties | I51: 0
A52: Casinos, Racing, Gambling, Wagering | I52: 0
A53: Community Parks (including Nurseries) | I53: 0
A54: Recreational Facilities | I54: 0
A55: Sports Grounds and Stadiums | I55: 0
A56: Public safety | C56: =SUM(C57:C62) -> 5052975 | D56: =SUM(D57:D62) -> 7350000 | E56: 0 | F56: 169369 | G56: 1487184 | H56: 2952119 | I56: -1464935 | J56: -0.4962316898 | K56: 7350000
A57: Civil Defence | I57: 0
A58: Cleansing | I58: 0
A59: Control of Public Nuisances | I59: =G59-H59 -> 0 | J59: =IF(I59=0,"",I59/H59) -> 
A60: Fencing and Fences | I60: 0
A61: Fire Fighting and Protection | I61: 0
A62: Licensing and Control of Animals | C62: 5052975 | D62: 7350000 | F62: 169369 | G62: 1487184 | H62: 2952119 | I62: -1464935 | J62: -0.4962316898 | K62: 7350000
A63: Housing | C63: =SUM(C64:C65) -> 0 | D63: 0 | E63: 0 | F63: 0 | G63: 0 | H63: 0 | I63: =G63-H63 -> 0 | J63: =IF(I63=0,"",I63/H63) ->  | K63: =SUM(K64:K65) -> 0
A64: Housing | I64: =G64-H64 -> 0 | J64: =IF(I64=0,"",I64/H64) -> 
A65: Informal Settlements | I65: =G65-H65 -> 0 | J65: =IF(I65=0,"",I65/H65) -> 
A66: Health | C66: =SUM(C67:C73) -> 0 | D66: 0 | E66: 0 | F66: 0 | G66: 0 | H66: 0 | I66: 0 | K66: =SUM(K67:K73) -> 0
A67: Ambulance | I67: 0
A68: Health Services | I68: 0
A69: Laboratory Services | I69: =G69-H69 -> 0 | J69: =IF(I69=0,"",I69/H69) -> 
A70: Food Control | I70: =G70-H70 -> 0 | J70: =IF(I70=0,"",I70/H70) -> 
A71: Health Surveillance and Prevention of Communicable Diseases including immunizations | I71: 0
A72: Vector Control | I72: 0
A73: Chemical Safety | I73: 0
A74: Economic and environmental services | C74: =C75+C86+C93 -> 47045997 | D74: =D75+D86+D93 -> 46925899 | E74: 0 | F74: 14836 | G74: 18977742 | H74: 42833000 | I74: -23855258 | J74: -0.5569364275 | K74: 46925899
A75: Planning and development | C75: =SUM(C76:C85) -> 491482 | D75: 3434899 | E75: 0 | F75: 14836 | G75: 153742 | H75: 2220000 | I75: -2066258 | J75: -0.9307468468 | K75: =SUM(K76:K85) -> 3434899
A76: Billboards | I76: =G76-H76 -> 0 | J76: =IF(I76=0,"",I76/H76) -> 
A77: Corporate Wide Strategic Planning (IDPs, LEDs) | I77: 0
A78: Central City Improvement District | I78: 0
A79: Development Facilitation | I79: =G79-H79 -> 0 | J79: =IF(I79=0,"",I79/H79) -> 
A80: Economic Development/Planning | C80: 491482 | D80: 3434899 | F80: 14836 | G80: 153742 | H80: 2220000 | I80: =G80-H80 -> -2066258 | J80: =IF(I80=0,"",I80/H80) -> -0.9307468468 | K80: 3434899
A81: Regional Planning and Development | I81: =G81-H81 -> 0 | J81: =IF(I81=0,"",I81/H81) -> 
A82: Town Planning, Building Regulations and Enforcement, and City Engineer | I82: =G82-H82 -> 0 | J82: =IF(I82=0,"",I82/H82) -> 
A83: Project Management Unit | I83: 0
A84: Provincial Planning | I84: 0
A85: Support to Local Municipalities | I85: 0
A86: Road transport | C86: =SUM(C87:C92) -> 46554515 | D86: =SUM(D87:D92) -> 43491000 | E86: 0 | F86: 0 | G86: 18824000 | H86: 40613000 | I86: -21789000 | J86: -0.5365030901 | K86: 43491000
A87: Police Forces, Traffic and Street Parking Control | I87: 0
A88: Pounds | I88: =G88-H88 -> 0 | J88: =IF(I88=0,"",I88/H88) -> 
A89: Public Transport | I89: 0
A90: Road and Traffic Regulation | I90: 0
A91: Roads | C91: 46554515 | D91: 43491000 | F91: 0 | G91: 18824000 | H91: 40613000 | I91: -21789000 | J91: -0.5365030901 | K91: 43491000
A92: Taxi Ranks | I92: 0
A93: Environmental protection | C93: =SUM(C94:C99) -> 0 | D93: =SUM(D94:D99) -> 0 | E93: 0 | F93: 0 | G93: 0 | H93: 0 | I93: 0 | K93: 0
A94: Biodiversity and Landscape | I94: 0
A95: Coastal Protection | I95: 0
A96: Indigenous Forests | I96: =G96-H96 -> 0 | J96: =IF(I96=0,"",I96/H96) -> 
A97: Nature Conservation | I97: =G97-H97 -> 0 | J97: =IF(I97=0,"",I97/H97) -> 
A98: Pollution Control | I98: 0
A99: Soil Conservation | I99: 0
A100: Trading services | C100: =C101+C105+C109+C114 -> 33571046 | D100: =D101+D105+D109+D114 -> 39123745 | E100: 0 | F100: 2039096 | G100: 16928260 | H100: 11989090 | I100: 4939170 | J100: 0.4119720513 | K100: =K101+K105+K109+K114 -> 39123745
A101: Energy sources | C101: =SUM(C102:C104) -> 33113182 | D101: =SUM(D102:D104) -> 38063745 | E101: 0 | F101: 1992943 | G101: 16612157 | H101: 11529090 | I101: 5083067 | J101: 0.4408905646 | K101: 38063745
A102: Electricity | C102: 33113182 | D102: 38063745 | F102: =1675922+256358+60663 -> 1992943 | G102: =32638966-18824000+2381799+415392 -> 16612157 | H102: 11529090 | I102: 5083067 | J102: 0.4408905646 | K102: 38063745
A103: Street Lighting and Signal Systems | I103: =G103-H103 -> 0 | J103: =IF(I103=0,"",I103/H103) -> 
A104: Nonelectric Energy | I104: 0
A105: Water management | C105: =SUM(C106:C108) -> 0 | D105: =SUM(D106:D108) -> 0 | E105: 0 | F105: 0 | G105: 0 | H105: 0 | I105: 0 | K105: 0
A106: Water Treatment | I106: 0
A107: Water Distribution | I107: =G107-H107 -> 0 | J107: =IF(I107=0,"",I107/H107) -> 
A108: Water Storage | I108: 0
A109: Waste water management | C109: =SUM(C110:C113) -> 0 | D109: =SUM(D110:D113) -> 0 | E109: 0 | F109: 0 | G109: 0 | H109: 0 | I109: 0 | K109: 0
A110: Public Toilets | I110: 0
A111: Sewerage | I111: 0
A112: Storm Water Management | I112: =G112-H112 -> 0 | J112: =IF(I112=0,"",I112/H112) -> 
A113: Waste Water Treatment | I113: 0
A114: Waste management | C114: =SUM(C115:C118) -> 457864 | D114: 1060000 | E114: 0 | F114: 46153 | G114: 316103 | H114: 460000 | I114: -143897 | J114: -0.3128195652 | K114: =SUM(K115:K118) -> 1060000
A115: Recycling | I115: =G115-H115 -> 0 | J115: =IF(I115=0,"",I115/H115) -> 
A116: Solid Waste Disposal (Landfill Sites) | I116: =G116-H116 -> 0 | J116: =IF(I116=0,"",I116/H116) -> 
A117: Solid Waste Removal | C117: 457864 | D117: 1060000 | F117: 46153 | G117: 316103 | H117: 460000 | I117: -143897 | J117: -0.3128195652 | K117: 1060000
A118: Street Cleaning | I118: =G118-H118 -> 0 | J118: =IF(I118=0,"",I118/H118) -> 
A119: Other | C119: =SUM(C120:C125) -> 0 | D119: =SUM(D120:D125) -> 0 | E119: 0 | F119: 0 | G119: 0 | H119: 0 | I119: 0 | K119: 0
A120: Abattoirs | I120: 0
A121: Air Transport | I121: 0
A122: Forestry | I122: =G122-H122 -> 0 | J122: =IF(I122=0,"",I122/H122) -> 
A123: Licensing and Regulation | I123: 0
A124: Markets | I124: 0
A125: Tourism | I125: =G125-H125 -> 0 | J125: =IF(I125=0,"",I125/H125) -> 
A126: ="Total "&A5 -> Total Revenue - Functional | B126: 2 | C126: =C6+C27+C74+C100+C119 -> 318579601 | D126: 314511190 | E126: 0 | F126: 3105063 | G126: 194859439.7 | H126: 199319945 | I126: =G126-H126 -> -4460505.31 | J126: =IF(I126=0,"",I126/H126) -> -0.02237862001 | K126: =K6+K27+K74+K100+K119 -> 314370190
A128: Expenditure - Functional
A129: =A6 -> Municipal governance and administration | C129: =C130+C133+C148 -> 201978634 | D129: 201230986.5 | E129: 0 | F129: 10109107.97 | G129: 86752632.28 | H129: 99424412 | I129: =G129-H129 -> -12671779.72 | J129: =IF(I129=0,"",I129/H129) -> -0.1274513921 | K129: 201230986.5
A130: =A7 -> Executive and council | C130: =SUM(C131:C132) -> 80862852 | D130: 68304369.07 | E130: 0 | F130: 4169565.45 | G130: 40265531.37 | H130: 39580358 | I130: 685173.37 | J130: 0.01731094423 | K130: 68304369.07
A131: =A8 -> Mayor and Council | C131: 25390234 | D131: 25676624.18 | F131: 1957501.66 | G131: 15523079.45 | H131: 15916253 | I131: -393173.55 | J131: -0.02470264515 | K131: 25676624.18
A132: =A9 -> Municipal Manager, Town Secretary and Chief Executive | C132: 55472618 | D132: 42627744.89 | F132: 2212063.79 | G132: 24742451.92 | H132: =21026233+3000000-362128 -> 23664105 | I132: 1078346.92 | J132: 0.04556888672 | K132: 42627744.89
A133: =A10 -> Finance and administration | C133: =SUM(C134:C147) -> 121115782 | D133: 132926617.5 | E133: 0 | F133: 5939542.52 | G133: 46487100.91 | H133: 59844054 | I133: -13356953.09 | J133: -0.2231959935 | K133: =SUM(K134:K147) -> 132926617.5
A134: =A11 -> Administrative and Corporate Support | C134: 48849877 | D134: 50343390.35 | F134: 3517430.79 | G134: 30006287.63 | H134: 35263830 | I134: -5257542.37 | J134: -0.1490916435 | K134: 50343390.35
A135: Asset Management | D135: 0 | F135: 0 | G135: 0 | H135: 0 | I135: 0
A136: Budget and Treasury Office | C136: =69372332+2893573 -> 72265905 | D136: 82583227.1 | F136: 2422111.73 | G136: 16480813.28 | H136: =16012003+8568221 -> 24580224 | I136: -8099410.72 | J136: -0.3295092315 | K136: 82583227.1
A137: Finance | I137: 0
A138: Fleet Management | I138: 0
A139: Human Resources | I139: 0
A140: Information Technology | I140: 0
A141: Legal Services | I141: 0
A142: Marketing, Customer Relations, Publicity and Media Co-ordination | I142: 0
A143: Property Services | I143: 0
A144: Risk Management | I144: 0
A145: Security Services | I145: 0
A146: Supply Chain Management | I146: 0
A147: Valuation Service | I147: 0
A148: =A25 -> Internal audit | C148: =SUM(C149:C149) -> 0 | D148: 0 | E148: 0 | F148: 0 | G148: 0 | H148: 0 | I148: 0 | K148: =SUM(K149:K149) -> 0
A149: =A26 -> Governance Function | I149: 0
A150: =A27 -> Community and public safety | C150: =C151+C173+C179+C186+C189 -> 34598456 | D150: 33810890.75 | E150: 0 | F150: 3015342.83 | G150: 20770918.87 | H150: 19655445.38 | I150: 1115473.493 | J150: 0.05675137202 | K150: =K151+K173+K179+K186+K189 -> 33810890.75
A151: =A28 -> Community and social services | C151: =SUM(C152:C172) -> 21549559 | D151: 19173620.05 | E151: 0 | F151: 1626745.18 | G151: 12160938.39 | H151: 11336810.03 | I151: 824128.3628 | J151: 0.07269490807 | K151: =SUM(K152:K172) -> 19173620.05
A152: =A29 -> Aged Care | I152: 0
A153: Agricultural | I153: 0
A154: Animal Care and Diseases | I154: 0
A155: Cemeteries, Funeral Parlours and Crematoriums | I155: 0
A156: Child Care Facilities | I156: 0
A157: Community Halls and Facilities | C157: 21549559 | D157: 19173620.05 | F157: 1626745.18 | G157: 12160938.39 | H157: 11336810.03 | I157: 824128.3628 | J157: 0.07269490807 | K157: 19173620.05
A158: Consumer Protection | I158: 0
A159: Cultural Matters | I159: =G159-H159 -> 0 | J159: =IF(I159=0,"",I159/H159) -> 
A160: Disaster Management | I160: =G160-H160 -> 0 | J160: =IF(I160=0,"",I160/H160) -> 
A161: Education | I161: =G161-H161 -> 0 | J161: =IF(I161=0,"",I161/H161) -> 
A162: Indigenous and Customary Law | I162: 0
A163: Industrial Promotion | I163: 0
A164: Language Policy | I164: 0
A165: Libraries and Archives | I165: 0
A166: Literacy Programmes | I166: 0
A167: Media Services | I167: 0
A168: Museums and Art Galleries | I168: 0
A169: Population Development | I169: 0
A170: Provincial Cultural Matters | I170: 0
A171: Theatres | I171: 0
A172: Zoo's | I172: 0
A173: =A50 -> Sport and recreation | C173: =SUM(C174:C178) -> 0 | D173: 0 | E173: 0 | F173: 0 | G173: 0 | H173: 0 | I173: =G173-H173 -> 0 | J173: =IF(I173=0,"",I173/H173) ->  | K173: 0
A174: Beaches and Jetties | I174: 0
A175: Casinos, Racing, Gambling, Wagering | I175: 0
A176: Community Parks (including Nurseries) | I176: 0
A177: Recreational Facilities | I177: 0
A178: Sports Grounds and Stadiums | I178: 0
A179: Public safety | C179: =SUM(C180:C185) -> 13048897 | D179: 14637270.7 | E179: 0 | F179: 1388597.65 | G179: 8609980.48 | H179: 8318635.35 | I179: 291345.13 | J179: 0.03502318803 | K179: 14637270.7
A180: Civil Defence | I180: 0
A181: Cleansing | I181: 0
A182: =A59 -> Control of Public Nuisances | I182: =G182-H182 -> 0 | J182: =IF(I182=0,"",I182/H182) -> 
A183: Fencing and Fences | I183: 0
A184: Fire Fighting and Protection | I184: 0
A185: Licensing and Control of Animals | C185: 13048897 | D185: 14637270.7 | F185: 1388597.65 | G185: 8609980.48 | H185: 8318635.35 | I185: 291345.13 | J185: 0.03502318803 | K185: 14637270.7
A186: Housing | C186: =SUM(C187:C188) -> 0 | D186: 0 | E186: 0 | F186: 0 | G186: 0 | H186: 0 | I186: =G186-H186 -> 0 | J186: =IF(I186=0,"",I186/H186) ->  | K186: =SUM(K187:K188) -> 0
A187: Housing | I187: =G187-H187 -> 0 | J187: =IF(I187=0,"",I187/H187) -> 
A188: Informal Settlements | I188: =G188-H188 -> 0 | J188: =IF(I188=0,"",I188/H188) -> 
A189: Health | C189: =SUM(C190:C196) -> 0 | D189: 0 | E189: 0 | F189: 0 | G189: 0 | H189: 0 | I189: 0 | K189: 0
A190: =A67 -> Ambulance | I190: 0
A191: Health Services | I191: 0
A192: Laboratory Services | I192: 0
A193: Food Control | I193: =G193-H193 -> 0 | J193: =IF(I193=0,"",I193/H193) -> 
A194: Health Surveillance and Prevention of Communicable Diseases including immunizations | I194: =G194-H194 -> 0 | J194: =IF(I194=0,"",I194/H194) -> 
A195: Vector Control | I195: 0
A196: Chemical Safety | I196: 0
A197: Economic and environmental services | C197: =C198+C209+C216 -> 19014793 | D197: 19604423.53 | E197: 0 | F197: 1620115.49 | G197: 10607413.76 | H197: 11812211.77 | I197: -1204798.007 | J197: -0.1019959709 | K197: 19604423.53
A198: Planning and development | C198: =SUM(C199:C208) -> 9661257 | D198: 11227916.03 | E198: 0 | F198: 784784.96 | G198: 4958052.72 | H198: 5643958.017 | I198: -685905.2972 | J198: -0.1215291282 | K198: 11227916.03
A199: Billboards | I199: 0
A200: Corporate Wide Strategic Planning (IDPs, LEDs) | I200: 0
A201: Central City Improvement District | I201: 0
... 56 more rows

Sheet C3-FinPerf V
A1: =muni& " - "&S71C& " - "&date -> LIM351 Blouberg - Table C3 Monthly Budget Statement - Financial Performance (revenue and expenditure by municipal vote) - M07 January
A2: =Vdesc -> Vote Description | B2: =head27 -> Ref | C2: =Head1 -> 2018/19 | D2: =Head2 -> Budget Year 2019/20
C3: =Head5 -> Audited Outcome | D3: =Head6 -> Original Budget | E3: =Head7 -> Adjusted Budget | F3: =Head38 -> Monthly actual | G3: =Head39 -> YearTD actual | H3: =Head40 -> YearTD budget | I3: =Head41 -> YTD variance | J3: =Head41 -> YTD variance | K3: =Head8 -> Full Year Forecast
A4: R thousands | J4: %
A5: Revenue by Vote | B5: 1
A6: ='Org structure'!A2 -> Vote 1 - Executive and council | C6: ='C3C'!C6 -> 25855950 | D6: ='C3C'!D6 -> 13880726 | E6: ='C3C'!E6 -> 0 | F6: ='C3C'!F6 -> 0 | G6: ='C3C'!G6 -> 6244468.69 | H6: ='C3C'!H6 -> 13872526 | I6: =G6-H6 -> -7628057.31 | J6: =IF(I6=0,"",I6/H6) -> -0.5498679411 | K6: ='C3C'!K6 -> 13880726
A7: ='Org structure'!A3 -> Vote 2 - Finance and Administration | C7: ='C3C'!C17 -> 201223633 | D7: ='C3C'!D17 -> 202726820 | E7: ='C3C'!E17 -> 0 | F7: ='C3C'!F17 -> 881762 | G7: ='C3C'!G17 -> 150458785 | H7: ='C3C'!H17 -> 126084210 | I7: =G7-H7 -> 24374575 | J7: =IF(I7=0,"",I7/H7) -> 0.1933198059 | K7: ='C3C'!K17 -> 202726820
A8: ='Org structure'!A4 -> Vote 3 - Community Services | C8: ='C3C'!C28 -> 5830000 | D8: ='C3C'!D28 -> 4504000 | E8: ='C3C'!E28 -> 0 | F8: ='C3C'!F28 -> 0 | G8: ='C3C'!G28 -> 763000 | H8: ='C3C'!H28 -> 1589000 | I8: -826000 | J8: -0.5198237885 | K8: ='C3C'!K28 -> 4504000
A9: ='Org structure'!A5 -> Vote 4 - Public and Safety | C9: ='C3C'!C39 -> 5052975 | D9: ='C3C'!D39 -> 7350000 | E9: ='C3C'!E39 -> 0 | F9: ='C3C'!F39 -> 169369 | G9: ='C3C'!G39 -> 1487184 | H9: ='C3C'!H39 -> 2952119 | I9: -1464935 | J9: -0.4962316898 | K9: ='C3C'!K39 -> 7350000
A10: ='Org structure'!A6 -> Vote 5 - Waste Management | C10: ='C3C'!C50 -> 457864 | D10: ='C3C'!D50 -> 1060000 | E10: ='C3C'!E50 -> 0 | F10: ='C3C'!F50 -> 46153 | G10: ='C3C'!G50 -> 316103 | H10: ='C3C'!H50 -> 460000 | I10: -143897 | J10: -0.3128195652 | K10: ='C3C'!K50 -> 1060000
A11: ='Org structure'!A7 -> Vote 6 - Technical administration and Trading services | C11: ='C3C'!C61 -> 33113182 | D11: ='C3C'!D61 -> 38063745 | E11: ='C3C'!E61 -> 0 | F11: ='C3C'!F61 -> 1992943 | G11: ='C3C'!G61 -> 16612157 | H11: ='C3C'!H61 -> 11529090 | I11: 5083067 | J11: 0.4408905646 | K11: ='C3C'!K61 -> 38063745
A12: ='Org structure'!A8 -> Vote 7 - Roads and Transport | C12: ='C3C'!C72 -> 46554515 | D12: ='C3C'!D72 -> 43491000 | E12: ='C3C'!E72 -> 0 | F12: ='C3C'!F72 -> 0 | G12: ='C3C'!G72 -> 18824000 | H12: ='C3C'!H72 -> 40613000 | I12: -21789000 | J12: -0.5365030901 | K12: ='C3C'!K72 -> 43491000
A13: ='Org structure'!A9 -> Vote 8 - Planning and development | C13: ='C3C'!C83 -> 491482 | D13: ='C3C'!D83 -> 3434899 | E13: ='C3C'!E83 -> 0 | F13: ='C3C'!F83 -> 14836 | G13: ='C3C'!G83 -> 153742 | H13: ='C3C'!H83 -> 2220000 | I13: -2066258 | J13: -0.9307468468 | K13: ='C3C'!K83 -> 3434899
A14: ='Org structure'!A10 -> Vote 9 - [NAME OF VOTE 9] | C14: ='C3C'!C94 -> 0 | D14: ='C3C'!D94 -> 0 | E14: ='C3C'!E94 -> 0 | F14: ='C3C'!F94 -> 0 | G14: ='C3C'!G94 -> 0 | H14: ='C3C'!H94 -> 0 | I14: 0 | K14: ='C3C'!K94 -> 0
A15: ='Org structure'!A11 -> Vote 10 - [NAME OF VOTE 10] | C15: ='C3C'!C105 -> 0 | D15: ='C3C'!D105 -> 0 | E15: ='C3C'!E105 -> 0 | F15: ='C3C'!F105 -> 0 | G15: ='C3C'!G105 -> 0 | H15: ='C3C'!H105 -> 0 | I15: 0 | K15: ='C3C'!K105 -> 0
A16: ='Org structure'!A12 -> Vote 11 - [NAME OF VOTE 11] | C16: ='C3C'!C116 -> 0 | D16: ='C3C'!D116 -> 0 | E16: ='C3C'!E116 -> 0 | F16: ='C3C'!F116 -> 0 | G16: ='C3C'!G116 -> 0 | H16: ='C3C'!H116 -> 0 | I16: 0 | K16: ='C3C'!K116 -> 0
A17: ='Org structure'!A13 -> Vote 12 - [NAME OF VOTE 12] | C17: ='C3C'!C127 -> 0 | D17: ='C3C'!D127 -> 0 | E17: ='C3C'!E127 -> 0 | F17: ='C3C'!F127 -> 0 | G17: ='C3C'!G127 -> 0 | H17: ='C3C'!H127 -> 0 | I17: 0 | K17: ='C3C'!K127 -> 0
A18: ='Org structure'!A14 -> Vote 13 - [NAME OF VOTE 13] | C18: ='C3C'!C138 -> 0 | D18: ='C3C'!D138 -> 0 | E18: ='C3C'!E138 -> 0 | F18: ='C3C'!F138 -> 0 | G18: ='C3C'!G138 -> 0 | H18: ='C3C'!H138 -> 0 | I18: 0 | K18: ='C3C'!K138 -> 0
A19: ='Org structure'!A15 -> Vote 14 - [NAME OF VOTE 14] | C19: ='C3C'!C149 -> 0 | D19: ='C3C'!D149 -> 0 | E19: ='C3C'!E149 -> 0 | F19: ='C3C'!F149 -> 0 | G19: ='C3C'!G149 -> 0 | H19: ='C3C'!H149 -> 0 | I19: 0 | K19: ='C3C'!K149 -> 0
A20: ='Org structure'!A16 -> Vote 15 - [NAME OF VOTE 15] | C20: ='C3C'!C160 -> 0 | D20: ='C3C'!D160 -> 0 | E20: ='C3C'!E160 -> 0 | F20: ='C3C'!F160 -> 0 | G20: ='C3C'!G160 -> 0 | H20: ='C3C'!H160 -> 0 | I20: 0 | K20: ='C3C'!K160 -> 0
A21: Total Revenue by Vote | B21: 2 | C21: =SUM(C6:C20) -> 318579601 | D21: =SUM(D6:D20) -> 314511190 | E21: 0 | F21: 3105063 | G21: 194859439.7 | H21: 199319945 | I21: -4460505.31 | J21: -0.02237862001 | K21: =SUM(K6:K20) -> 314511190
A23: Expenditure by Vote | B23: 1
A24: ='Org structure'!A2 -> Vote 1 - Executive and council | C24: ='C3C'!C174 -> 80862852 | D24: ='C3C'!D174 -> 68304369.07 | E24: ='C3C'!E174 -> 0 | F24: ='C3C'!F174 -> 4169565.45 | G24: ='C3C'!G174 -> 40265531.37 | H24: ='C3C'!H174 -> 39580358 | I24: =G24-H24 -> 685173.37 | J24: =IF(I24=0,"",I24/H24) -> 0.01731094423 | K24: ='C3C'!K174 -> 68304369.07
A25: ='Org structure'!A3 -> Vote 2 - Finance and Administration | C25: ='C3C'!C185 -> 121115782 | D25: ='C3C'!D185 -> 132926617.5 | E25: ='C3C'!E185 -> 0 | F25: ='C3C'!F185 -> 5939542.52 | G25: ='C3C'!G185 -> 46487100.91 | H25: ='C3C'!H185 -> 59844054 | I25: -13356953.09 | J25: -0.2231959935 | K25: ='C3C'!K185 -> 132926617.5
A26: ='Org structure'!A4 -> Vote 3 - Community Services | C26: ='C3C'!C196 -> 21549559 | D26: ='C3C'!D196 -> 19173620.05 | E26: ='C3C'!E196 -> 0 | F26: ='C3C'!F196 -> 1626745.18 | G26: ='C3C'!G196 -> 12160938.39 | H26: ='C3C'!H196 -> 11336810.03 | I26: 824128.3628 | J26: 0.07269490807 | K26: ='C3C'!K196 -> 19173620.05
A27: ='Org structure'!A5 -> Vote 4 - Public and Safety | C27: ='C3C'!C207 -> 13048897 | D27: ='C3C'!D207 -> 14637270.7 | E27: ='C3C'!E207 -> 0 | F27: ='C3C'!F207 -> 1388597.65 | G27: ='C3C'!G207 -> 8609980.48 | H27: ='C3C'!H207 -> 8318635.35 | I27: 291345.13 | J27: 0.03502318803 | K27: ='C3C'!K207 -> 14637270.7
A28: ='Org structure'!A6 -> Vote 5 - Waste Management | C28: ='C3C'!C218 -> -6100 | D28: ='C3C'!D218 -> 1960000 | E28: ='C3C'!E218 -> 0 | F28: ='C3C'!F218 -> 0 | G28: ='C3C'!G218 -> 78750 | H28: ='C3C'!H218 -> 884333.3333 | I28: -805583.3333 | J28: -0.9109498681 | K28: ='C3C'!K218 -> 1960000
A29: ='Org structure'!A7 -> Vote 6 - Technical administration and Trading services | C29: ='C3C'!C229 -> 41030814 | D29: ='C3C'!D229 -> 43955285.75 | E29: ='C3C'!E229 -> 0 | F29: ='C3C'!F229 -> 3669101 | G29: ='C3C'!G229 -> 22197467 | H29: ='C3C'!H229 -> 21762642.88 | I29: 434824.1228 | J29: 0.01998029951 | K29: ='C3C'!K229 -> 43955285.75
A30: ='Org structure'!A8 -> Vote 7 - Roads and Transport | C30: ='C3C'!C240 -> 9353536 | D30: ='C3C'!D240 -> 8376507.5 | E30: ='C3C'!E240 -> 0 | F30: ='C3C'!F240 -> 835330.53 | G30: ='C3C'!G240 -> 5649361.04 | H30: ='C3C'!H240 -> 6168253.75 | I30: -518892.71 | J30: =IF(I30=0,"",I30/H30) -> -0.08412311345 | K30: ='C3C'!K240 -> 8376507.5
A31: ='Org structure'!A9 -> Vote 8 - Planning and development | C31: ='C3C'!C251 -> 9661257 | D31: ='C3C'!D251 -> 11227916.03 | E31: ='C3C'!E251 -> 0 | F31: ='C3C'!F251 -> 784784.96 | G31: ='C3C'!G251 -> 4958052.72 | H31: ='C3C'!H251 -> 5643958.017 | I31: -685905.2972 | J31: -0.1215291282 | K31: ='C3C'!K251 -> 11227916.03
A32: ='Org structure'!A10 -> Vote 9 - [NAME OF VOTE 9] | C32: ='C3C'!C262 -> 0 | D32: ='C3C'!D262 -> 0 | E32: ='C3C'!E262 -> 0 | F32: ='C3C'!F262 -> 0 | G32: ='C3C'!G262 -> 0 | H32: ='C3C'!H262 -> 0 | I32: 0 | K32: ='C3C'!K262 -> 0
A33: ='Org structure'!A11 -> Vote 10 - [NAME OF VOTE 10] | C33: ='C3C'!C273 -> 0 | D33: ='C3C'!D273 -> 0 | E33: ='C3C'!E273 -> 0 | F33: ='C3C'!F273 -> 0 | G33: ='C3C'!G273 -> 0 | H33: ='C3C'!H273 -> 0 | I33: 0 | J33: =IF(I33=0,"",I33/H33) ->  | K33: ='C3C'!K273 -> 0
A34: ='Org structure'!A12 -> Vote 11 - [NAME OF VOTE 11] | C34: ='C3C'!C284 -> 0 | D34: ='C3C'!D284 -> 0 | E34: ='C3C'!E284 -> 0 | F34: ='C3C'!F284 -> 0 | G34: ='C3C'!G284 -> 0 | H34: ='C3C'!H284 -> 0 | I34: 0 | J34: =IF(I34=0,"",I34/H34) ->  | K34: ='C3C'!K284 -> 0
A35: ='Org structure'!A13 -> Vote 12 - [NAME OF VOTE 12] | C35: ='C3C'!C295 -> 0 | D35: ='C3C'!D295 -> 0 | E35: ='C3C'!E295 -> 0 | F35: ='C3C'!F295 -> 0 | G35: ='C3C'!G295 -> 0 | H35: ='C3C'!H295 -> 0 | I35: 0 | J35: =IF(I35=0,"",I35/H35) ->  | K35: ='C3C'!K295 -> 0
A36: ='Org structure'!A14 -> Vote 13 - [NAME OF VOTE 13] | C36: ='C3C'!C306 -> 0 | D36: ='C3C'!D306 -> 0 | E36: ='C3C'!E306 -> 0 | F36: ='C3C'!F306 -> 0 | G36: ='C3C'!G306 -> 0 | H36: ='C3C'!H306 -> 0 | I36: 0 | J36: =IF(I36=0,"",I36/H36) ->  | K36: ='C3C'!K306 -> 0
A37: ='Org structure'!A15 -> Vote 14 - [NAME OF VOTE 14] | C37: ='C3C'!C317 -> 0 | D37: ='C3C'!D317 -> 0 | E37: ='C3C'!E317 -> 0 | F37: ='C3C'!F317 -> 0 | G37: ='C3C'!G317 -> 0 | H37: ='C3C'!H317 -> 0 | I37: 0 | J37: =IF(I37=0,"",I37/H37) ->  | K37: ='C3C'!K317 -> 0
A38: ='Org structure'!A16 -> Vote 15 - [NAME OF VOTE 15] | C38: ='C3C'!C328 -> 0 | D38: ='C3C'!D328 -> 0 | E38: ='C3C'!E328 -> 0 | F38: ='C3C'!F328 -> 0 | G38: ='C3C'!G328 -> 0 | H38: ='C3C'!H328 -> 0 | I38: 0 | K38: ='C3C'!K328 -> 0
A39: Total Expenditure by Vote | B39: 2 | C39: =SUM(C24:C38) -> 296616597 | D39: =SUM(D24:D38) -> 300561586.6 | E39: 0 | F39: 18413667.29 | G39: 140407181.9 | H39: 153539045.4 | I39: -13131863.45 | J39: =IF(I39=0,"",I39/H39) -> -0.08552784352 | K39: =SUM(K24:K38) -> 300561586.6
A40: =result -> Surplus/ (Deficit) for the year | B40: 2 | C40: =C21-C39 -> 21963004 | D40: 13949603.44 | E40: 0 | F40: -15308604.29 | G40: 54452257.78 | H40: 45780899.64 | I40: =I21-I39 -> 8671358.135 | J40: =IF(I40=0,"",I40/H40) -> 0.1894099549 | K40: =K21-K39 -> 13949603.44
A41: =head27a -> References
A42: 1. Insert 'Vote'; e.g. Department, if different to standard classification structure
A43: 2. Must reconcile to Monthly Budget Statement - Financial Performance Statement (standard classification)

Sheet C3C
A1: =muni& " - "&S71C& " - "&"A"& " - "&date -> LIM351 Blouberg - Table C3 Monthly Budget Statement - Financial Performance (revenue and expenditure by municipal vote) - A - M07 January
A2: =Vdesc -> Vote Description | B2: =head27 -> Ref | C2: =Head1 -> 2018/19 | D2: =Head2 -> Budget Year 2019/20 | L2: =Head4 -> 
A3: R thousand | C3: =Head5 -> Audited Outcome | D3: =Head6 -> Original Budget | E3: =Head7 -> Adjusted Budget | F3: =Head38 -> Monthly actual | G3: =Head39 -> YearTD actual | H3: =Head40 -> YearTD budget | I3: =Head41 -> YTD variance | J3: =Head41 -> YTD variance | K3: =Head8 -> Full Year Forecast | L3: =Head12 -> Forecast 2010/11 | M3: =Head13 -> Forecast 2011/12 | N3: =Head14 -> Forecast 2012/13 | O3: =Head15 -> Forecast 2013/14 | P3: =Head16 -> Forecast 2014/15 | Q3: =Head17 -> Forecast 2015/16 | R3: =Head18 -> Forecast 2016/17 | S3: =Head19 -> Forecast 2017/18 | T3: =Head20 -> Forecast 2018/19 | U3: =Head21 -> Forecast 2019/20 | V3: =Head22 -> Forecast 2020/21 | W3: =Head23 -> Forecast 2021/22
J4: %
A5: Revenue by Vote | B5: 1
A6: ='Org structure'!A2 -> Vote 1 - Executive and council | C6: =SUM(C7:C16) -> 25855950 | D6: =SUM(D7:D16) -> 13880726 | E6: 0 | F6: 0 | G6: 6244468.69 | H6: 13872526 | I6: =G6-H6 -> -7628057.31 | J6: =IF(I6=0,"",I6/H6) -> -0.5498679411 | K6: 13880726
A7: ='Org structure'!E3 -> 1.1 - Mayor and council | D7: 0 | E7: 0 | F7: 0 | G7: 0 | H7: 0 | I7: 0
A8: ='Org structure'!E4 -> 1.2 - Municipal Manager | C8: 25855950 | D8: 13880726 | F8: 0 | G8: 6244468.69 | H8: 13872526 | I8: -7628057.31 | J8: -0.5498679411 | K8: 13880726
A9: ='Org structure'!E5 -> 0 | I9: 0
A10: ='Org structure'!E6 -> 0 | I10: 0
A11: ='Org structure'!E7 -> 0 | I11: 0
A12: ='Org structure'!E8 -> 0 | I12: 0
A13: ='Org structure'!E9 -> 0 | I13: 0
A14: ='Org structure'!E10 -> 0 | I14: 0
A15: ='Org structure'!E11 -> 0 | I15: 0
A16: ='Org structure'!E12 -> 0 | I16: 0
A17: ='Org structure'!A3 -> Vote 2 - Finance and Administration | C17: =SUM(C18:C27) -> 201223633 | D17: =SUM(D18:D27) -> 202726820 | E17: 0 | F17: 881762 | G17: 150458785 | H17: 126084210 | I17: 24374575 | J17: 0.1933198059 | K17: 202726820
A18: ='Org structure'!E14 -> 2.1 - Admistartive and Corporate Support | C18: 167009 | D18: 141000 | F18: 16862 | G18: 35604 | H18: 24666 | I18: 10938 | J18: 0.4434444174 | K18: 141000
A19: ='Org structure'!E15 -> 2.2 - Asset Management | C19: 0 | D19: 0 | E19: 0 | F19: 0 | G19: 0 | H19: 0 | I19: 0
A20: ='Org structure'!E16 -> 2.3 - Budget and Treasury offices | C20: 201056624 | D20: 202585820 | F20: 864900 | G20: 150423181 | H20: 126059544 | I20: 24363637 | J20: 0.1932708641 | K20: 202585820
A21: ='Org structure'!E17 -> 2.4 - Finance | I21: 0
A22: ='Org structure'!E18 -> 2.5 - Fleet Management | I22: 0
A23: ='Org structure'!E19 -> 2.6 - Human Resources | I23: 0
A24: ='Org structure'!E20 -> 2.7 - Information Technology | I24: 0
A25: ='Org structure'!E21 -> 2.8 - Legal Services | I25: 0
A26: ='Org structure'!E22 -> 0 | I26: 0
A27: ='Org structure'!E23 -> 0 | I27: 0
A28: ='Org structure'!A4 -> Vote 3 - Community Services | C28: =SUM(C29:C38) -> 5830000 | D28: 4504000 | E28: 0 | F28: 0 | G28: 763000 | H28: 1589000 | I28: -826000 | J28: -0.5198237885 | K28: 4504000
A29: ='Org structure'!E25 -> 3.1 - Community and other social services | C29: 5830000 | D29: 4504000 | F29: 0 | G29: 763000 | H29: 1589000 | I29: -826000 | J29: -0.5198237885 | K29: 4504000
A30: ='Org structure'!E26 -> 3.2 - Community Halls and Facilities | I30: 0
A31: ='Org structure'!E27 -> 3.3 - Disaster Management | I31: 0
A32: ='Org structure'!E28 -> 3.4 - Animal Care and Diseases | I32: 0
A33: ='Org structure'!E29 -> 3.5 - Cementeries, Funeral Parlours and Crematoriums | I33: 0
A34: ='Org structure'!E30 -> 3.6 - Libraries and Archives | I34: 0
A35: ='Org structure'!E31 -> 3.7 - Literacy Programmes | I35: 0
A36: ='Org structure'!E32 -> 3.8 - Community Parks (including Nurseries) | I36: 0
A37: ='Org structure'!E33 -> 3.9 - Recreational Facilities | I37: 0
A38: ='Org structure'!E34 -> 3.10 - Sports Grounds and Stadiums | I38: 0
A39: ='Org structure'!A5 -> Vote 4 - Public and Safety | C39: =SUM(C40:C49) -> 5052975 | D39: 7350000 | E39: 0 | F39: 169369 | G39: 1487184 | H39: 2952119 | I39: -1464935 | J39: -0.4962316898 | K39: 7350000
A40: ='Org structure'!E36 -> 4.1 - Civil Defence | I40: 0
A41: ='Org structure'!E37 -> 4.2 - Cleansing | I41: 0
A42: ='Org structure'!E38 -> 4.3 - Fencing and Fences | I42: 0
A43: ='Org structure'!E39 -> 4.4 - Fire Fighting and Protection | I43: 0
A44: ='Org structure'!E40 -> 4.5 - Licensing and Protection of Animals | C44: 5052975 | D44: 7350000 | F44: 169369 | G44: 1487184 | H44: 2952119 | I44: -1464935 | J44: -0.4962316898 | K44: 7350000
A45: ='Org structure'!E41 -> 4.6 - [Name of sub-vote] | I45: 0
A46: ='Org structure'!E42 -> 4.7 - [Name of sub-vote] | I46: 0
A47: ='Org structure'!E43 -> 0 | I47: 0
A48: ='Org structure'!E44 -> 0 | I48: 0
A49: ='Org structure'!E45 -> 0 | I49: 0
A50: ='Org structure'!A6 -> Vote 5 - Waste Management | C50: =SUM(C51:C60) -> 457864 | D50: =SUM(D51:D60) -> 1060000 | E50: 0 | F50: 46153 | G50: 316103 | H50: 460000 | I50: -143897 | J50: -0.3128195652 | K50: 1060000
A51: ='Org structure'!E47 -> 5.1 - Recycling | I51: 0
A52: ='Org structure'!E48 -> 5.2 - Solid Waste Disposal (Landfill site) | I52: 0
A53: ='Org structure'!E49 -> 5.3 - Solid Waste Removal | C53: 457864 | D53: 1060000 | F53: 46153 | G53: 316103 | H53: 460000 | I53: -143897 | J53: -0.3128195652 | K53: 1060000
A54: ='Org structure'!E50 -> 5.4 - Street Cleaning | I54: 0
A55: ='Org structure'!E51 -> 0 | I55: 0
A56: ='Org structure'!E52 -> 0 | I56: 0
A57: ='Org structure'!E53 -> 0 | I57: 0
A58: ='Org structure'!E54 -> 0 | I58: 0
A59: ='Org structure'!E55 -> 0 | I59: 0
A60: ='Org structure'!E56 -> 0 | I60: 0
A61: ='Org structure'!A7 -> Vote 6 - Technical administration and Trading services | C61: =SUM(C62:C71) -> 33113182 | D61: =SUM(D62:D71) -> 38063745 | E61: 0 | F61: 1992943 | G61: 16612157 | H61: 11529090 | I61: 5083067 | J61: 0.4408905646 | K61: 38063745
A62: ='Org structure'!E58 -> 6.1 - Electricity | C62: 33113182 | D62: 38063745 | F62: 1992943 | G62: 16612157 | H62: 11529090 | I62: 5083067 | J62: 0.4408905646 | K62: 38063745
A63: ='Org structure'!E59 -> 6.2 - Street Lightining and Signal Systems | I63: 0
A64: ='Org structure'!E60 -> 6.3 - Electricity reticulation Network | I64: 0
A65: ='Org structure'!E61 -> 0 | I65: 0
A66: ='Org structure'!E62 -> 0 | I66: 0
A67: ='Org structure'!E63 -> 0 | I67: 0
A68: ='Org structure'!E64 -> 0 | I68: 0
A69: ='Org structure'!E65 -> 0 | I69: 0
A70: ='Org structure'!E66 -> 0 | I70: =G70-H70 -> 0 | J70: =IF(I70=0,"",I70/H70) -> 
A71: ='Org structure'!E67 -> 0 | I71: 0
A72: ='Org structure'!A8 -> Vote 7 - Roads and Transport | C72: =SUM(C73:C82) -> 46554515 | D72: 43491000 | E72: 0 | F72: 0 | G72: 18824000 | H72: 40613000 | I72: -21789000 | J72: -0.5365030901 | K72: 43491000
A73: ='Org structure'!E69 -> 7.1 - Police Forces, Traffic and Street Parking Control | F73: 0 | I73: 0
A74: ='Org structure'!E70 -> 7.2 - Pounds | I74: 0
A75: ='Org structure'!E71 -> 7.3 - Public Transport | I75: 0
A76: ='Org structure'!E72 -> 7.4 - Roads | C76: 46554515 | D76: 43491000 | F76: 0 | G76: 18824000 | H76: 40613000 | I76: -21789000 | J76: -0.5365030901 | K76: 43491000
A77: ='Org structure'!E73 -> 7.5 - Taxi Ranks | I77: 0
A78: ='Org structure'!E74 -> 0 | I78: 0
A79: ='Org structure'!E75 -> 0 | I79: 0
A80: ='Org structure'!E76 -> 0 | I80: 0
A81: ='Org structure'!E77 -> 0 | I81: 0
A82: ='Org structure'!E78 -> 0 | I82: 0
A83: ='Org structure'!A9 -> Vote 8 - Planning and development | C83: =SUM(C84:C93) -> 491482 | D83: =SUM(D84:D93) -> 3434899 | E83: 0 | F83: 14836 | G83: 153742 | H83: 2220000 | I83: -2066258 | J83: -0.9307468468 | K83: 3434899
A84: ='Org structure'!E80 -> 8.1 - Billboards | I84: 0
A85: ='Org structure'!E81 -> 8.2 - Corporate Wide Strategic Planning (IDPs, LEDs) | I85: 0
A86: ='Org structure'!E82 -> 8.3 - Central City Improvement District | I86: 0
A87: ='Org structure'!E83 -> 8.4 - Development Facilitation | I87: 0
A88: ='Org structure'!E84 -> 8.5 - Economic Development Planning | C88: 491482 | D88: 3434899 | F88: 14836 | G88: 153742 | H88: 2220000 | I88: -2066258 | J88: -0.9307468468 | K88: 3434899
A89: ='Org structure'!E85 -> 8.6 - Regional Development and Development | I89: 0
A90: ='Org structure'!E86 -> 8.7 - Town Planning, Building Regulations and Enforcement and City Engineer | I90: 0
A91: ='Org structure'!E87 -> 8.8 - Project Management Unit | I91: 0
A92: ='Org structure'!E88 -> 0 | I92: 0
A93: ='Org structure'!E89 -> 0 | I93: 0
A94: ='Org structure'!A10 -> Vote 9 - [NAME OF VOTE 9] | C94: =SUM(C95:C104) -> 0 | D94: =SUM(D95:D104) -> 0 | E94: 0 | F94: 0 | G94: 0 | H94: 0 | I94: 0 | K94: 0
A95: ='Org structure'!E91 -> 9.1 - [Name of sub-vote] | I95: 0
A96: ='Org structure'!E92 -> 0 | I96: 0
A97: ='Org structure'!E93 -> 0 | I97: 0
A98: ='Org structure'!E94 -> 0 | I98: 0
A99: ='Org structure'!E95 -> 0 | I99: 0
A100: ='Org structure'!E96 -> 0 | I100: 0
A101: ='Org structure'!E97 -> 0 | I101: 0
A102: ='Org structure'!E98 -> 0 | I102: 0
A103: ='Org structure'!E99 -> 0 | I103: 0
A104: ='Org structure'!E100 -> 0 | I104: 0
A105: ='Org structure'!A11 -> Vote 10 - [NAME OF VOTE 10] | C105: =SUM(C106:C115) -> 0 | D105: =SUM(D106:D115) -> 0 | E105: 0 | F105: 0 | G105: 0 | H105: 0 | I105: 0 | K105: 0
A106: ='Org structure'!E102 -> 10.1 - [Name of sub-vote] | I106: 0
A107: ='Org structure'!E103 -> 0 | I107: 0
A108: ='Org structure'!E104 -> 0 | I108: 0
A109: ='Org structure'!E105 -> 0 | I109: 0
A110: ='Org structure'!E106 -> 0 | I110: 0
A111: ='Org structure'!E107 -> 0 | I111: 0
A112: ='Org structure'!E108 -> 0 | I112: 0
A113: ='Org structure'!E109 -> 0 | I113: 0
A114: ='Org structure'!E110 -> 0 | I114: 0
A115: ='Org structure'!E111 -> 0 | I115: 0
A116: ='Org structure'!A12 -> Vote 11 - [NAME OF VOTE 11] | C116: =SUM(C117:C126) -> 0 | D116: =SUM(D117:D126) -> 0 | E116: 0 | F116: 0 | G116: 0 | H116: 0 | I116: 0 | K116: 0
A117: ='Org structure'!E113 -> 11.1 - [Name of sub-vote] | I117: 0
A118: ='Org structure'!E114 -> 0 | I118: 0
A119: ='Org structure'!E115 -> 0 | I119: 0
A120: ='Org structure'!E116 -> 0 | I120: 0
A121: ='Org structure'!E117 -> 0 | I121: 0
A122: ='Org structure'!E118 -> 0 | I122: 0
A123: ='Org structure'!E119 -> 0 | I123: 0
A124: ='Org structure'!E120 -> 0 | I124: 0
A125: ='Org structure'!E121 -> 0 | I125: 0
A126: ='Org structure'!E122 -> 0 | I126: 0
A127: ='Org structure'!A13 -> Vote 12 - [NAME OF VOTE 12] | C127: =SUM(C128:C137) -> 0 | D127: =SUM(D128:D137) -> 0 | E127: 0 | F127: 0 | G127: 0 | H127: 0 | I127: 0 | K127: 0
A128: ='Org structure'!E124 -> 12.1 - [Name of sub-vote] | I128: 0
A129: ='Org structure'!E125 -> 0 | I129: 0
A130: ='Org structure'!E126 -> 0 | I130: 0
A131: ='Org structure'!E127 -> 0 | I131: 0
A132: ='Org structure'!E128 -> 0 | I132: 0
A133: ='Org structure'!E129 -> 0 | I133: 0
A134: ='Org structure'!E130 -> 0 | I134: =G134-H134 -> 0 | J134: =IF(I134=0,"",I134/H134) -> 
A135: ='Org structure'!E131 -> 0 | I135: 0
A136: ='Org structure'!E132 -> 0 | I136: 0
A137: ='Org structure'!E133 -> 0 | I137: 0
A138: ='Org structure'!A14 -> Vote 13 - [NAME OF VOTE 13] | C138: =SUM(C139:C148) -> 0 | D138: =SUM(D139:D148) -> 0 | E138: 0 | F138: 0 | G138: 0 | H138: 0 | I138: 0 | K138: 0
A139: ='Org structure'!E135 -> 13.1 - [Name of sub-vote] | I139: 0
A140: ='Org structure'!E136 -> 0 | I140: 0
A141: ='Org structure'!E137 -> 0 | I141: 0
A142: ='Org structure'!E138 -> 0 | I142: 0
A143: ='Org structure'!E139 -> 0 | I143: 0
A144: ='Org structure'!E140 -> 0 | I144: 0
A145: ='Org structure'!E141 -> 0 | I145: 0
A146: ='Org structure'!E142 -> 0 | I146: 0
A147: ='Org structure'!E143 -> 0 | I147: 0
A148: ='Org structure'!E144 -> 0 | I148: 0
A149: ='Org structure'!A15 -> Vote 14 - [NAME OF VOTE 14] | C149: =SUM(C150:C159) -> 0 | D149: =SUM(D150:D159) -> 0 | E149: 0 | F149: 0 | G149: 0 | H149: 0 | I149: 0 | K149: 0
A150: ='Org structure'!E146 -> 14.1 - [Name of sub-vote] | I150: 0
A151: ='Org structure'!E147 -> 0 | I151: 0
A152: ='Org structure'!E148 -> 0 | I152: 0
A153: ='Org structure'!E149 -> 0 | I153: 0
A154: ='Org structure'!E150 -> 0 | I154: 0
A155: ='Org structure'!E151 -> 0 | I155: 0
A156: ='Org structure'!E152 -> 0 | I156: 0
A157: ='Org structure'!E153 -> 0 | I157: 0
A158: ='Org structure'!E154 -> 0 | I158: 0
A159: ='Org structure'!E155 -> 0 | I159: 0
A160: ='Org structure'!A16 -> Vote 15 - [NAME OF VOTE 15] | C160: =SUM(C161:C170) -> 0 | D160: =SUM(D161:D170) -> 0 | E160: 0 | F160: 0 | G160: 0 | H160: 0 | I160: 0 | K160: 0
A161: ='Org structure'!E157 -> 15.1 - [Name of sub-vote] | I161: 0
A162: ='Org structure'!E158 -> 0 | I162: 0
A163: ='Org structure'!E159 -> 0 | I163: 0
A164: ='Org structure'!E160 -> 0 | I164: 0
A165: ='Org structure'!E161 -> 0 | I165: 0
A166: ='Org structure'!E162 -> 0 | I166: 0
A167: ='Org structure'!E163 -> 0 | I167: 0
A168: ='Org structure'!E164 -> 0 | I168: 0
A169: ='Org structure'!E165 -> 0 | I169: 0
A170: ='Org structure'!E166 -> 0 | I170: 0 | L170: =SUM(L78:L81) -> 0 | M170: 0 | N170: 0 | O170: 0 | P170: 0 | Q170: 0 | R170: 0 | S170: 0 | T170: 0 | U170: 0 | V170: 0 | W170: 0
A171: Total Revenue by Vote | B171: 2 | C171: =C6+C17+C28+C39+C50+C61+C72+C83+C94+C105+C116+C127+C138+C149+C160 -> 318579601 | D171: =D6+D17+D28+D39+D50+D61+D72+D83+D94+D105+D116+D127+D138+D149+D160 -> 314511190 | E171: 0 | F171: 3105063 | G171: 194859439.7 | H171: 199319945 | I171: -4460505.31 | J171: -0.02237862001 | K171: 314511190
I172: 0
A173: Expenditure by Vote | B173: 1 | I173: 0
A174: ='Org structure'!A2 -> Vote 1 - Executive and council | C174: =SUM(C175:C184) -> 80862852 | D174: 68304369.07 | E174: 0 | F174: 4169565.45 | G174: 40265531.37 | H174: 39580358 | I174: 685173.37 | J174: 0.01731094423 | K174: 68304369.07
A175: ='Org structure'!E3 -> 1.1 - Mayor and council | C175: 25390234 | D175: 25676624.18 | F175: 1957501.66 | G175: 15523079.45 | H175: 15916253 | I175: -393173.55 | J175: -0.02470264515 | K175: 25676624.18
A176: ='Org structure'!E4 -> 1.2 - Municipal Manager | C176: 55472618 | D176: 42627744.89 | F176: 2212063.79 | G176: 24742451.92 | H176: 23664105 | I176: 1078346.92 | J176: 0.04556888672 | K176: 42627744.89
A177: ='Org structure'!E5 -> 0 | I177: 0
A178: ='Org structure'!E6 -> 0 | I178: 0
A179: ='Org structure'!E7 -> 0 | I179: 0
A180: ='Org structure'!E8 -> 0 | I180: 0
A181: ='Org structure'!E9 -> 0 | I181: 0
A182: ='Org structure'!E10 -> 0 | I182: 0
A183: ='Org structure'!E11 -> 0 | I183: 0
A184: ='Org structure'!E12 -> 0 | I184: 0
A185: ='Org structure'!A3 -> Vote 2 - Finance and Administration | C185: =SUM(C186:C195) -> 121115782 | D185: =SUM(D186:D195) -> 132926617.5 | E185: =SUM(E186:E195) -> 0 | F185: 5939542.52 | G185: 46487100.91 | H185: 59844054 | I185: -13356953.09 | J185: -0.2231959935 | K185: 132926617.5
A186: ='Org structure'!E14 -> 2.1 - Admistartive and Corporate Support | C186: 48849877 | D186: 50343390.35 | F186: 3517430.79 | G186: 30006287.63 | H186: 35263830 | I186: -5257542.37 | J186: -0.1490916435 | K186: 50343390.35
A187: ='Org structure'!E15 -> 2.2 - Asset Management | C187: 0 | D187: 0 | E187: 0 | F187: 0 | G187: 0 | H187: 0 | I187: 0
A188: ='Org structure'!E16 -> 2.3 - Budget and Treasury offices | C188: 72265905 | D188: 82583227.1 | F188: 2422111.73 | G188: 16480813.28 | H188: 24580224 | I188: -8099410.72 | J188: -0.3295092315 | K188: 82583227.1
A189: ='Org structure'!E17 -> 2.4 - Finance | I189: 0
A190: ='Org structure'!E18 -> 2.5 - Fleet Management | I190: 0
A191: ='Org structure'!E19 -> 2.6 - Human Resources | I191: 0
A192: ='Org structure'!E20 -> 2.7 - Information Technology | I192: 0
A193: ='Org structure'!E21 -> 2.8 - Legal Services | I193: 0
A194: ='Org structure'!E22 -> 0 | I194: 0
A195: ='Org structure'!E23 -> 0 | I195: 0
A196: ='Org structure'!A4 -> Vote 3 - Community Services | C196: =SUM(C197:C206) -> 21549559 | D196: 19173620.05 | E196: 0 | F196: 1626745.18 | G196: 12160938.39 | H196: 11336810.03 | I196: 824128.3628 | J196: 0.07269490807 | K196: 19173620.05
A197: ='Org structure'!E25 -> 3.1 - Community and other social services | I197: 0
A198: ='Org structure'!E26 -> 3.2 - Community Halls and Facilities | C198: 21549559 | D198: 19173620.05 | F198: 1626745.18 | G198: 12160938.39 | H198: 11336810.03 | I198: =G198-H198 -> 824128.3628 | J198: =IF(I198=0,"",I198/H198) -> 0.07269490807 | K198: 19173620.05
A199: ='Org structure'!E27 -> 3.3 - Disaster Management | I199: 0
A200: ='Org structure'!E28 -> 3.4 - Animal Care and Diseases | I200: 0
... 147 more rows

Sheet C4-FinPerf RE
A1: =muni& " - "&S71B& " - "&date -> LIM351 Blouberg - Table C4 Monthly Budget Statement - Financial Performance (revenue and expenditure) - M07 January
A2: =desc -> Description | B2: =head27 -> Ref | C2: =Head1 -> 2018/19 | D2: =Head2 -> Budget Year 2019/20
C3: =Head5 -> Audited Outcome | D3: =Head6 -> Original Budget | E3: =Head7 -> Adjusted Budget | F3: =Head38 -> Monthly actual | G3: =Head39 -> YearTD actual | H3: =Head40 -> YearTD budget | I3: =Head41 -> YTD variance | J3: =Head41 -> YTD variance | K3: =Head8 -> Full Year Forecast
A4: R thousands | J4: %
A5: Revenue By Source
A6: Property rates | C6: 25289619 | D6: 27000000 | F6: 301094 | G6: 22659772 | H6: 23476415.87 | I6: =G6-H6 -> -816643.87 | J6: =IF(I6=0,"",I6/H6) -> -0.03478571322 | K6: 27000000
A7: Service charges - electricity revenue | C7: 22909644 | D7: 28666000 | F7: 1479316 | G7: 10439582 | H7: 14225647.44 | I7: -3786065.44 | J7: -0.2661436294 | K7: 28666000
A8: Service charges - water revenue | C8: 0 | D8: 0 | F8: 0 | G8: 0 | H8: 0 | I8: 0
A9: Service charges - sanitation revenue | C9: 0 | D9: 0 | H9: 0 | I9: 0
A10: Service charges - refuse revenue | C10: 248979 | D10: 1000000 | F10: 42462 | G10: 297672.4 | H10: 442000 | I10: -144327.6 | J10: -0.3265330317 | K10: 1000000
A11: Service charges - other | C11: 0 | D11: 0 | F11: 0 | G11: 0 | H11: 0 | I11: 0
A12: Rental of facilities and equipment | C12: 851274 | D12: 315000 | F12: 50821 | G12: 433683 | H12: 157500 | I12: 276183 | J12: 1.753542857 | K12: 315000
A13: Interest earned - external investments | C13: 2475497 | D13: 1700000 | F13: 78607 | G13: 549356 | H13: 460000 | I13: 89356 | J13: 0.1942521739 | K13: 1700000
A14: Interest earned - outstanding debtors | C14: 1860348 | D14: 630700 | F14: 40034 | G14: 151062 | H14: 270558.3333 | I14: -119496.3333 | J14: -0.4416656913 | K14: 630700
A15: Dividends received | C15: 0 | D15: 0 | F15: 0 | G15: 0 | H15: 0 | I15: 0 | K15: 0
A16: Fines, penalties and forfeits | C16: 3282760 | D16: 3440343 | F16: 28139 | G16: 244296 | H16: 1790171.5 | I16: -1545875.5 | J16: -0.8635348624 | K16: 3440343
A17: Licences and permits | C17: 3999118 | D17: 4000000 | F17: 141230 | G17: 1251444 | H17: 1835923.5 | I17: -584479.5 | J17: -0.3183572191 | K17: 4000000
A18: Agency services | C18: =1860348-904171 -> 956177 | D18: 150000 | F18: =256358+60663 -> 317021 | G18: =415392+2381798 -> 2797190 | H18: 75000 | I18: 2722190 | J18: 36.29586667 | K18: 150000
A19: Transfers and subsidies | C19: 256301916 | D19: 242394726 | F19: 0 | G19: 153629468 | H19: 152905161 | I19: 724307 | J19: 0.00473696895 | K19: 242394726
A20: Other revenue | C20: =404271 -> 404271 | D20: 5214421 | F20: 626339 | G20: 2405914.29 | H20: 2951009.5 | I20: -545095.21 | J20: -0.1847148272 | K20: 5214421
A21: Gains on disposal of PPE | D21: 0 | E21: 0 | F21: 0 | G21: 0 | H21: 0 | I21: 0
A22: Total Revenue (excluding capital transfers and contributions) | C22: =SUM(C6:C21) -> 318579603 | D22: 314511190 | E22: 0 | F22: 3105063 | G22: 194859439.7 | H22: 198589387.1 | I22: -3729947.453 | J22: -0.0187822094 | K22: =SUM(K6:K21) -> 314511190
A24: Expenditure By Type
A25: Employee related costs | C25: 100240828 | D25: 108264701.3 | F25: 8905373.65 | G25: 60625186.9 | H25: 55140512.67 | I25: =G25-H25 -> 5484674.232 | J25: =IF(I25=0,"",I25/H25) -> 0.0994672332 | K25: 108264701.3
A26: Remuneration of councillors | C26: 19645442 | D26: 16756624.18 | F26: 1460258.91 | G26: 9347119.2 | H26: 8329195.97 | I26: 1017923.23 | J26: 0.1222114636 | K26: 16756624.18
A27: Debt impairment | C27: 2308637 | D27: 7558875 | F27: 0 | G27: 0 | H27: 0 | I27: 0 | K27: 7558875
A28: Depreciation & asset impairment | C28: 35270140 | D28: 39314841 | F28: 0 | G28: 0 | H28: 20397914.66 | I28: -20397914.66 | J28: -1 | K28: 39314841
A29: Finance charges | C29: 1413022 | D29: 0 | F29: 0 | G29: 0 | I29: 0 | K29: 0
A30: Bulk purchases | C30: 30319038 | D30: 30000000 | F30: 2921841.93 | G30: 14378363.68 | H30: 16216381.91 | I30: -1838018.23 | J30: -0.1133432994 | K30: 30000000
A31: Other materials | C31: 2494695 | D31: 4370000 | F31: 221499.52 | G31: 1240008.38 | H31: 1691009.81 | I31: -451001.43 | J31: -0.2667053895 | K31: 4370000
A32: Contracted services | C32: 11753062 | D32: 12705000 | F32: 497280.57 | G32: 5759217.5 | H32: 6352500 | I32: -593282.5 | J32: -0.09339354585 | K32: 12705000
A33: Transfers and subsidies | C33: 0 | D33: 0 | F33: 0 | G33: 0 | I33: 0 | K33: 0
A34: Other expenditure | C34: =94911586-2494695 -> 92416891 | D34: 81591544.68 | F34: 4407414.23 | G34: 49057287 | H34: 45411530.34 | I34: 3645756.66 | J34: 0.08028262057 | K34: 81591544.68
A35: Loss on disposal of PPE | C35: 754846 | D35: 0 | I35: 0 | K35: 0
A36: Total Expenditure | C36: =SUM(C25:C35) -> 296616601 | D36: =SUM(D25:D35) -> 300561586.2 | E36: =SUM(E25:E35) -> 0 | F36: 18413668.81 | G36: 140407182.7 | H36: 153539045.4 | I36: -13131862.7 | J36: -0.08552783863 | K36: 300561586.2
A38: Surplus/(Deficit) | C38: =C22-C36 -> 21963002 | D38: 13949603.8 | E38: 0 | F38: -15308605.81 | G38: 54452257.03 | H38: 45050341.79 | I38: =I22-I36 -> 9401915.242 | J38: 0.2086979781 | K38: =K22-K36 -> 13949603.8
A39: Transfers and subsidies - capital (monetary allocations) (National / Provincial and District) | I39: =G39-H39 -> 0
A40: Transfers and subsidies - capital (monetary allocations) (National / Provincial Departmental Agencies, Households, Non-profit Institutions, Private Enterprises, Public Corporatons, Higher Educational Institutions) | I40: =G40-H40 -> 0
A41: Transfers and subsidies - capital (in-kind - all) | I41: =G41-H41 -> 0
A42: Surplus/(Deficit) after capital transfers & contributions | C42: =C38+SUM(C39:C41) -> 21963002 | D42: 13949603.8 | E42: 0 | F42: -15308605.81 | G42: 54452257.03 | H42: 45050341.79 | K42: =K38+SUM(K39:K41) -> 13949603.8
A43: Taxation | I43: =G43-H43 -> 0 | J43: =IF(I43=0,"",I43/H43) -> 
A44: Surplus/(Deficit) after taxation | C44: =C42-C43 -> 21963002 | D44: 13949603.8 | E44: 0 | F44: -15308605.81 | G44: 54452257.03 | H44: 45050341.79 | K44: =K42-K43 -> 13949603.8
A45: Attributable to minorities
A46: Surplus/(Deficit) attributable to municipality | C46: =SUM(C44:C45) -> 21963002 | D46: 13949603.8 | E46: 0 | F46: -15308605.81 | G46: 54452257.03 | H46: 45050341.79 | K46: =SUM(K44:K45) -> 13949603.8
A47: Share of surplus/ (deficit) of associate
A48: Surplus/ (Deficit) for the year | C48: =C46+C47 -> 21963002 | D48: 13949603.8 | E48: 0 | F48: -15308605.81 | G48: 54452257.03 | H48: 45050341.79 | K48: =K46+K47 -> 13949603.8
A49: =head27a -> References
A50: 1. Material variances to be explained on Table SC1
A53: =A22&" including capital transfers/contributions etc" -> Total Revenue (excluding capital transfers and contributions) including capital transfers/contributions etc | C53: =C22+SUM(C39:C41) -> 318579603 | D53: 314511190 | E53: 0 | F53: 3105063 | G53: 194859439.7 | H53: 198589387.1 | K53: =K22+SUM(K39:K41) -> 314511190

Sheet C5-Capex
A1: =muni& " - "&S71D& " - "&date -> LIM351 Blouberg - Table C5 Monthly Budget Statement - Capital Expenditure (municipal vote, functional classification and funding) - M07 January
A2: =Vdesc -> Vote Description | B2: =head27 -> Ref | C2: =Head1 -> 2018/19 | D2: =Head2 -> Budget Year 2019/20
C3: =Head5 -> Audited Outcome | D3: =Head6 -> Original Budget | E3: =Head7 -> Adjusted Budget | F3: =Head38 -> Monthly actual | G3: =Head39 -> YearTD actual | H3: =Head40 -> YearTD budget | I3: =Head41 -> YTD variance | J3: =Head41 -> YTD variance | K3: =Head8 -> Full Year Forecast
A4: R thousands | B4: 1 | J4: %
A5: Multi-Year expenditure appropriation | B5: 2
A6: ='Org structure'!A2 -> Vote 1 - Executive and council | C6: ='C5C'!C7 -> 0 | D6: ='C5C'!D7 -> 0 | E6: ='C5C'!E7 -> 0 | F6: ='C5C'!F7 -> 0 | G6: ='C5C'!G7 -> 0 | H6: ='C5C'!H7 -> 0 | I6: =G6-H6 -> 0 | J6: =IF(I6=0,"",I6/H6) ->  | K6: ='C5C'!K7 -> 0
A7: ='Org structure'!A3 -> Vote 2 - Finance and Administration | C7: ='C5C'!C18 -> 0 | D7: ='C5C'!D18 -> 0 | E7: ='C5C'!E18 -> 0 | F7: ='C5C'!F18 -> 0 | G7: ='C5C'!G18 -> 0 | H7: ='C5C'!H18 -> 0 | I7: =G7-H7 -> 0 | J7: =IF(I7=0,"",I7/H7) ->  | K7: ='C5C'!K18 -> 0
A8: ='Org structure'!A4 -> Vote 3 - Community Services | C8: ='C5C'!C29 -> 0 | D8: ='C5C'!D29 -> 0 | E8: ='C5C'!E29 -> 0 | F8: ='C5C'!F29 -> 0 | G8: ='C5C'!G29 -> 0 | H8: ='C5C'!H29 -> 0 | I8: =G8-H8 -> 0 | J8: =IF(I8=0,"",I8/H8) ->  | K8: ='C5C'!K29 -> 0
A9: ='Org structure'!A5 -> Vote 4 - Public and Safety | C9: ='C5C'!C40 -> 0 | D9: ='C5C'!D40 -> 0 | E9: ='C5C'!E40 -> 0 | F9: ='C5C'!F40 -> 0 | G9: ='C5C'!G40 -> 0 | H9: ='C5C'!H40 -> 0 | I9: 0 | K9: ='C5C'!K40 -> 0
A10: ='Org structure'!A6 -> Vote 5 - Waste Management | C10: ='C5C'!C51 -> 0 | D10: ='C5C'!D51 -> 0 | E10: ='C5C'!E51 -> 0 | F10: ='C5C'!F51 -> 0 | G10: ='C5C'!G51 -> 0 | H10: ='C5C'!H51 -> 0 | I10: 0 | K10: ='C5C'!K51 -> 0
A11: ='Org structure'!A7 -> Vote 6 - Technical administration and Trading services | C11: ='C5C'!C62 -> 0 | D11: ='C5C'!D62 -> 0 | E11: ='C5C'!E62 -> 0 | F11: ='C5C'!F62 -> 0 | G11: ='C5C'!G62 -> 0 | H11: ='C5C'!H62 -> 0 | I11: 0 | K11: ='C5C'!K62 -> 0
A12: ='Org structure'!A8 -> Vote 7 - Roads and Transport | C12: ='C5C'!C73 -> 0 | D12: ='C5C'!D73 -> 0 | E12: ='C5C'!E73 -> 0 | F12: ='C5C'!F73 -> 0 | G12: ='C5C'!G73 -> 0 | H12: ='C5C'!H73 -> 0 | I12: 0 | K12: ='C5C'!K73 -> 0
A13: ='Org structure'!A9 -> Vote 8 - Planning and development | C13: ='C5C'!C84 -> 0 | D13: ='C5C'!D84 -> 0 | E13: ='C5C'!E84 -> 0 | F13: ='C5C'!F84 -> 0 | G13: ='C5C'!G84 -> 0 | H13: ='C5C'!H84 -> 0 | I13: 0 | K13: ='C5C'!K84 -> 0
A14: ='Org structure'!A10 -> Vote 9 - [NAME OF VOTE 9] | C14: ='C5C'!C95 -> 0 | D14: ='C5C'!D95 -> 0 | E14: ='C5C'!E95 -> 0 | F14: ='C5C'!F95 -> 0 | G14: ='C5C'!G95 -> 0 | H14: ='C5C'!H95 -> 0 | I14: 0 | K14: ='C5C'!K95 -> 0
A15: ='Org structure'!A11 -> Vote 10 - [NAME OF VOTE 10] | C15: ='C5C'!C106 -> 0 | D15: ='C5C'!D106 -> 0 | E15: ='C5C'!E106 -> 0 | F15: ='C5C'!F106 -> 0 | G15: ='C5C'!G106 -> 0 | H15: ='C5C'!H106 -> 0 | I15: 0 | K15: ='C5C'!K106 -> 0
A16: ='Org structure'!A12 -> Vote 11 - [NAME OF VOTE 11] | C16: ='C5C'!C117 -> 0 | D16: ='C5C'!D117 -> 0 | E16: ='C5C'!E117 -> 0 | F16: ='C5C'!F117 -> 0 | G16: ='C5C'!G117 -> 0 | H16: ='C5C'!H117 -> 0 | I16: 0 | K16: ='C5C'!K117 -> 0
A17: ='Org structure'!A13 -> Vote 12 - [NAME OF VOTE 12] | C17: ='C5C'!C128 -> 0 | D17: ='C5C'!D128 -> 0 | E17: ='C5C'!E128 -> 0 | F17: ='C5C'!F128 -> 0 | G17: ='C5C'!G128 -> 0 | H17: ='C5C'!H128 -> 0 | I17: 0 | K17: ='C5C'!K128 -> 0
A18: ='Org structure'!A14 -> Vote 13 - [NAME OF VOTE 13] | C18: ='C5C'!C139 -> 0 | D18: ='C5C'!D139 -> 0 | E18: ='C5C'!E139 -> 0 | F18: ='C5C'!F139 -> 0 | G18: ='C5C'!G139 -> 0 | H18: ='C5C'!H139 -> 0 | I18: =G18-H18 -> 0 | J18: =IF(I18=0,"",I18/H18) ->  | K18: ='C5C'!K139 -> 0
A19: ='Org structure'!A15 -> Vote 14 - [NAME OF VOTE 14] | C19: ='C5C'!C150 -> 0 | D19: ='C5C'!D150 -> 0 | E19: ='C5C'!E150 -> 0 | F19: ='C5C'!F150 -> 0 | G19: ='C5C'!G150 -> 0 | H19: ='C5C'!H150 -> 0 | I19: =G19-H19 -> 0 | J19: =IF(I19=0,"",I19/H19) ->  | K19: ='C5C'!K150 -> 0
A20: ='Org structure'!A16 -> Vote 15 - [NAME OF VOTE 15] | C20: ='C5C'!C161 -> 0 | D20: ='C5C'!D161 -> 0 | E20: ='C5C'!E161 -> 0 | F20: ='C5C'!F161 -> 0 | G20: ='C5C'!G161 -> 0 | H20: ='C5C'!H161 -> 0 | I20: =G20-H20 -> 0 | J20: =IF(I20=0,"",I20/H20) ->  | K20: ='C5C'!K161 -> 0
A21: Total Capital Multi-year expenditure | B21: 4,7 | C21: =SUM(C6:C20) -> 0 | D21: =SUM(D6:D20) -> 0 | E21: 0 | F21: 0 | G21: 0 | H21: 0 | I21: 0 | J21: =IF(I21=0,"",I21/H21) ->  | K21: =SUM(K6:K20) -> 0
A23: Single Year expenditure appropriation | B23: 2
A24: ='Org structure'!A2 -> Vote 1 - Executive and council | C24: ='C5C'!C176 -> 0 | D24: ='C5C'!D176 -> 0 | E24: ='C5C'!E176 -> 0 | F24: ='C5C'!F176 -> 0 | G24: ='C5C'!G176 -> 0 | H24: ='C5C'!H176 -> 0 | I24: ='C5C'!I176 -> 0 | J24: =IF(I24=0,"",I24/H24) ->  | K24: ='C5C'!K176 -> 0
A25: ='Org structure'!A3 -> Vote 2 - Finance and Administration | C25: ='C5C'!C187 -> 0 | D25: ='C5C'!D187 -> 3115000 | E25: ='C5C'!E187 -> 0 | F25: ='C5C'!F187 -> 282272.1 | G25: ='C5C'!G187 -> 767102.88 | H25: ='C5C'!H187 -> 2255000 | I25: ='C5C'!I187 -> -1487897.12 | J25: =IF(I25=0,"",I25/H25) -> -0.6598213392 | K25: ='C5C'!K187 -> 3115000
A26: ='Org structure'!A4 -> Vote 3 - Community Services | C26: ='C5C'!C198 -> 0 | D26: ='C5C'!D198 -> 9320200 | E26: ='C5C'!E198 -> 0 | F26: ='C5C'!F198 -> 0 | G26: ='C5C'!G198 -> 3886005.79 | H26: ='C5C'!H198 -> 6135900.66 | I26: ='C5C'!I198 -> -2249894.87 | J26: -0.3666771994 | K26: ='C5C'!K198 -> 9320200
A27: ='Org structure'!A5 -> Vote 4 - Public and Safety | C27: ='C5C'!C209 -> 0 | D27: ='C5C'!D209 -> 250000 | E27: ='C5C'!E209 -> 0 | F27: ='C5C'!F209 -> 0 | G27: ='C5C'!G209 -> 0 | H27: ='C5C'!H209 -> 250000 | I27: ='C5C'!I209 -> -250000 | J27: -1 | K27: ='C5C'!K209 -> 250000
A28: ='Org structure'!A6 -> Vote 5 - Waste Management | C28: ='C5C'!C220 -> 0 | D28: ='C5C'!D220 -> 250000 | E28: ='C5C'!E220 -> 0 | F28: ='C5C'!F220 -> 0 | G28: ='C5C'!G220 -> 0 | H28: ='C5C'!H220 -> 250000 | I28: ='C5C'!I220 -> -250000 | J28: -1 | K28: ='C5C'!K220 -> 250000
A29: ='Org structure'!A7 -> Vote 6 - Technical administration and Trading services | C29: ='C5C'!C231 -> 0 | D29: ='C5C'!D231 -> 12175000 | E29: ='C5C'!E231 -> 0 | F29: ='C5C'!F231 -> 0 | G29: ='C5C'!G231 -> 1474301.49 | H29: ='C5C'!H231 -> 6512226 | I29: ='C5C'!I231 -> -5037924.51 | J29: -0.7736102079 | K29: ='C5C'!K231 -> 12175000
A30: ='Org structure'!A8 -> Vote 7 - Roads and Transport | C30: ='C5C'!C242 -> 0 | D30: ='C5C'!D242 -> 34996450 | E30: ='C5C'!E242 -> 0 | F30: ='C5C'!F242 -> 0 | G30: ='C5C'!G242 -> 17072780.88 | H30: ='C5C'!H242 -> 28332692.88 | I30: ='C5C'!I242 -> -11259912 | J30: -0.3974176421 | K30: ='C5C'!K242 -> 34996450
A31: ='Org structure'!A9 -> Vote 8 - Planning and development | C31: ='C5C'!C253 -> 0 | D31: ='C5C'!D253 -> 0 | E31: ='C5C'!E253 -> 0 | F31: ='C5C'!F253 -> 0 | G31: ='C5C'!G253 -> 0 | H31: ='C5C'!H253 -> 0 | I31: ='C5C'!I253 -> 0 | K31: ='C5C'!K253 -> 0
A32: ='Org structure'!A10 -> Vote 9 - [NAME OF VOTE 9] | C32: ='C5C'!C264 -> 0 | D32: ='C5C'!D264 -> 0 | E32: ='C5C'!E264 -> 0 | F32: ='C5C'!F264 -> 0 | G32: ='C5C'!G264 -> 0 | H32: ='C5C'!H264 -> 0 | I32: ='C5C'!I264 -> 0 | K32: ='C5C'!K264 -> 0
A33: ='Org structure'!A11 -> Vote 10 - [NAME OF VOTE 10] | C33: ='C5C'!C275 -> 0 | D33: ='C5C'!D275 -> 0 | E33: ='C5C'!E275 -> 0 | F33: ='C5C'!F275 -> 0 | G33: ='C5C'!G275 -> 0 | H33: ='C5C'!H275 -> 0 | I33: ='C5C'!I275 -> 0 | K33: ='C5C'!K275 -> 0
A34: ='Org structure'!A12 -> Vote 11 - [NAME OF VOTE 11] | C34: ='C5C'!C286 -> 0 | D34: ='C5C'!D286 -> 0 | E34: ='C5C'!E286 -> 0 | F34: ='C5C'!F286 -> 0 | G34: ='C5C'!G286 -> 0 | H34: ='C5C'!H286 -> 0 | I34: ='C5C'!I286 -> 0 | K34: ='C5C'!K286 -> 0
A35: ='Org structure'!A13 -> Vote 12 - [NAME OF VOTE 12] | C35: ='C5C'!C297 -> 0 | D35: ='C5C'!D297 -> 0 | E35: ='C5C'!E297 -> 0 | F35: ='C5C'!F297 -> 0 | G35: ='C5C'!G297 -> 0 | H35: ='C5C'!H297 -> 0 | I35: ='C5C'!I297 -> 0 | K35: ='C5C'!K297 -> 0
A36: ='Org structure'!A14 -> Vote 13 - [NAME OF VOTE 13] | C36: ='C5C'!C308 -> 0 | D36: ='C5C'!D308 -> 0 | E36: ='C5C'!E308 -> 0 | F36: ='C5C'!F308 -> 0 | G36: ='C5C'!G308 -> 0 | H36: ='C5C'!H308 -> 0 | I36: ='C5C'!I308 -> 0 | K36: ='C5C'!K308 -> 0
A37: ='Org structure'!A15 -> Vote 14 - [NAME OF VOTE 14] | C37: ='C5C'!C319 -> 0 | D37: ='C5C'!D319 -> 0 | E37: ='C5C'!E319 -> 0 | F37: ='C5C'!F319 -> 0 | G37: ='C5C'!G319 -> 0 | H37: ='C5C'!H319 -> 0 | I37: ='C5C'!I319 -> 0 | K37: ='C5C'!K319 -> 0
A38: ='Org structure'!A16 -> Vote 15 - [NAME OF VOTE 15] | C38: ='C5C'!C330 -> 0 | D38: ='C5C'!D330 -> 0 | E38: ='C5C'!E330 -> 0 | F38: ='C5C'!F330 -> 0 | G38: ='C5C'!G330 -> 0 | H38: ='C5C'!H330 -> 0 | I38: ='C5C'!I330 -> 0 | K38: ='C5C'!K330 -> 0
A39: Total Capital single-year expenditure | B39: 4 | C39: =SUM(C24:C38) -> 0 | D39: 60106650 | E39: 0 | F39: 282272.1 | G39: 23200191.04 | H39: 43735819.54 | I39: -20535628.5 | J39: -0.4695379832 | K39: =SUM(K24:K38) -> 60106650
A40: Total Capital Expenditure | C40: =C39+C21 -> 0 | D40: 60106650 | E40: 0 | F40: 282272.1 | G40: 23200191.04 | H40: 43735819.54 | I40: -20535628.5 | J40: =IF(I40=0,"",I40/H40) -> -0.4695379832 | K40: =K39+K21 -> 60106650
A42: Capital Expenditure - Functional Classification
A43: Governance and administration | C43: =SUM(C44:C46) -> 6822180 | D43: 3115000 | E43: 0 | F43: 282272.1 | G43: 767102.88 | H43: 2255000 | I43: =G43-H43 -> -1487897.12 | J43: =IF(I43=0,"",I43/H43) -> -0.6598213392 | K43: =SUM(K44:K46) -> 3115000
A44: Executive and council | D44: 0 | F44: 0 | G44: 0 | I44: 0 | J44: =IF(I44=0,"",I44/H44) -> 
A45: Finance and administration | C45: =1362837+1589767+633660+552136+2683780 -> 6822180 | D45: 3115000 | F45: 282272.1 | G45: =484830.88+282272 -> 767102.88 | H45: 2255000 | I45: -1487897.12 | J45: -0.6598213392 | K45: 3115000
A46: Internal audit | D46: 0 | E46: 0 | I46: 0
A47: Community and public safety | C47: =SUM(C48:C52) -> 20046663 | D47: 9570200 | E47: 0 | F47: 0 | G47: 3886005.79 | H47: 6385900.66 | I47: -2499894.87 | J47: -0.3914709926 | K47: =SUM(K48:K52) -> 9570200
A48: Community and social services | C48: 7745825 | D48: 2500000 | F48: 0 | G48: 1777743.01 | H48: 2000000 | I48: -222256.99 | J48: -0.111128495 | K48: 2500000
A49: Sport and recreation | C49: 12300838 | D49: 6820200 | F49: 0 | G49: 2108262.78 | H49: =6135900.66-2000000 -> 4135900.66 | I49: -2027637.88 | J49: -0.490253042 | K49: 6820200
A50: Public safety | C50: 0 | D50: 250000 | F50: 0 | H50: 250000 | I50: -250000 | J50: -1 | K50: 250000
A51: Housing | D51: 0 | F51: 0 | G51: 0 | H51: 0 | I51: 0
A52: Health | D52: 0 | E52: 0 | F52: 0 | G52: 0 | H52: 0 | I52: 0
A53: Economic and environmental services | C53: =SUM(C54:C56) -> 24849088 | D53: 34996450 | E53: 0 | F53: 0 | G53: 17072780.88 | H53: 28332692.88 | I53: -11259912 | J53: -0.3974176421 | K53: =SUM(K54:K56) -> 34996450
A54: Planning and development | D54: 0 | F54: 0 | I54: 0
A55: Road transport | C55: 24849088 | D55: 34996450 | F55: 0 | G55: 17072780.88 | H55: 28332692.88 | I55: -11259912 | J55: -0.3974176421 | K55: 34996450
A56: Environmental protection | D56: 0 | I56: 0
A57: Trading services | C57: =SUM(C58:C61) -> 8448256 | D57: 12425000 | E57: 0 | F57: 0 | G57: 1474300.55 | H57: 6762226 | I57: -5287925.45 | J57: -0.7819799945 | K57: =SUM(K58:K61) -> 12425000
A58: Energy sources | C58: =1278856+7169400 -> 8448256 | D58: 12175000 | F58: 0 | G58: 1474300.55 | H58: 6512226 | I58: -5037925.45 | J58: -0.7736103523 | K58: 12175000
A59: Water management | D59: 0 | I59: 0
A60: Waste water management | D60: 0 | I60: 0
A61: Waste management | C61: 0 | D61: 250000 | F61: 0 | G61: 0 | H61: 250000 | I61: -250000 | J61: -1 | K61: 250000
A62: Other | D62: 0 | I62: 0
A63: Total Capital Expenditure - Functional Classification | B63: 3 | C63: =C43+C47+C53+C57+C62 -> 60166187 | D63: =D43+D47+D53+D57+D62 -> 60106650 | E63: 0 | F63: 282272.1 | G63: 23200190.1 | H63: 43735819.54 | I63: -20535629.44 | J63: -0.4695380047 | K63: =K43+K47+K53+K57+K62 -> 60106650
A65: Funded by:
A66: National Government | C66: 50344007 | D66: 45611450 | F66: 0 | G66: =20287532-451000 -> 19836532 | H66: =42563500-5000000-932657 -> 36630843 | I66: =G66-H66 -> -16794311 | J66: =IF(I66=0,"",I66/H66) -> -0.4584745975 | K66: 45611450
A67: Provincial Government | D67: 0 | I67: 0 | K67: 0
A68: District Municipality | D68: 0 | I68: 0 | K68: 0
A69: Other transfers and grants | D69: 5000000 | F69: 0 | G69: 451000 | H69: 5000000 | I69: -4549000 | J69: -0.9098 | K69: 5000000
A70: Transfers recognised - capital | C70: =SUM(C66:C69) -> 50344007 | D70: 50611450 | E70: 0 | F70: 0 | G70: 20287532 | H70: 41630843 | I70: -21343311 | J70: -0.5126802501 | K70: =SUM(K66:K69) -> 50611450
A71: Public contributions & donations | B71: 5 | D71: 0 | I71: 0 | K71: 0
A72: Borrowing | B72: 6 | D72: 0 | I72: 0 | K72: 0
A73: Internally generated funds | C73: 9822180 | D73: 9495200 | F73: 282272.1 | G73: 2526310 | H73: 2104977 | I73: 421333 | J73: 0.2001603818 | K73: 9495200
A74: Total Capital Funding | C74: =SUM(C70:C73) -> 60166187 | D74: 60106650 | E74: 0 | F74: =SUM(F70:F73) -> 282272.1 | G74: =SUM(G70:G73) -> 22813842 | H74: =SUM(H70:H73) -> 43735820 | I74: -20921978 | J74: -0.4783716871 | K74: 60106650
A75: =head27a -> References
A76: 1. Municipalities may choose to appropriate for capital expenditure for three years or for one year (if one year appropriation projected expenditure required for yr2 and yr3).
A77: 2. Include capital component of PPP unitary payment
A78: 3. Capital expenditure by functional classification must reconcile to the total of multi-year and single year appropriations
A79: 4. Include expenditure on investment property, intangible and biological assets
A80: 5. Must reconcile to Monthly Budget Statement Financial Performance (revenue and expenditure)
A81: 6. Include finance leases and PPP capital funding component of unitary payment - total borrowing/repayments to reconcile to changes in Table SA17
A86: check balance | C86: =C40-C74 -> -60166187 | D86: =D40-D74 -> 0 | E86: 0 | F86: 0 | G86: 386349.04 | H86: -0.4600000009 | K86: 0

Sheet C5C
A1: =muni& " - "&S71D& " - "&"A"& " - "&date -> LIM351 Blouberg - Table C5 Monthly Budget Statement - Capital Expenditure (municipal vote, functional classification and funding) - A - M07 January
A2: =Vdesc -> Vote Description | B2: =head27 -> Ref | C2: =Head1 -> 2018/19 | D2: =Head2 -> Budget Year 2019/20 | L2: =Head4 -> 
A3: R thousand | C3: =Head5 -> Audited Outcome | D3: =Head6 -> Original Budget | E3: =Head7 -> Adjusted Budget | F3: =Head38 -> Monthly actual | G3: =Head39 -> YearTD actual | H3: =Head40 -> YearTD budget | I3: =Head41 -> YTD variance | J3: =Head41 -> YTD variance | K3: =Head8 -> Full Year Forecast | L3: =Head12 -> Forecast 2010/11 | M3: =Head13 -> Forecast 2011/12 | N3: =Head14 -> Forecast 2012/13 | O3: =Head15 -> Forecast 2013/14 | P3: =Head16 -> Forecast 2014/15 | Q3: =Head17 -> Forecast 2015/16 | R3: =Head18 -> Forecast 2016/17 | S3: =Head19 -> Forecast 2017/18 | T3: =Head20 -> Forecast 2018/19 | U3: =Head21 -> Forecast 2019/20 | V3: =Head22 -> Forecast 2020/21 | W3: =Head23 -> Forecast 2021/22
J4: %
A5: Capital expenditure - Municipal Vote
A6: Expenditure of multi-year capital appropriation | B6: 1
A7: ='Org structure'!A2 -> Vote 1 - Executive and council | C7: =SUM(C8:C17) -> 0 | D7: =SUM(D8:D17) -> 0 | E7: 0 | F7: 0 | G7: 0 | H7: 0 | I7: =G7-H7 -> 0 | J7: =IF(I7=0,"",I7/H7) ->  | K7: 0
A8: ='Org structure'!E3 -> 1.1 - Mayor and council | I8: 0
A9: ='Org structure'!E4 -> 1.2 - Municipal Manager | I9: 0
A10: ='Org structure'!E5 -> 0 | I10: 0
A11: ='Org structure'!E6 -> 0 | I11: 0
A12: ='Org structure'!E7 -> 0 | I12: 0
A13: ='Org structure'!E8 -> 0 | I13: 0
A14: ='Org structure'!E9 -> 0 | I14: 0
A15: ='Org structure'!E10 -> 0 | I15: 0
A16: ='Org structure'!E11 -> 0 | I16: 0
A17: ='Org structure'!E12 -> 0 | I17: 0
A18: ='Org structure'!A3 -> Vote 2 - Finance and Administration | C18: =SUM(C19:C28) -> 0 | D18: =SUM(D19:D28) -> 0 | E18: 0 | F18: 0 | G18: 0 | H18: 0 | I18: 0 | K18: 0
A19: ='Org structure'!E14 -> 2.1 - Admistartive and Corporate Support | I19: 0
A20: ='Org structure'!E15 -> 2.2 - Asset Management | I20: 0
A21: ='Org structure'!E16 -> 2.3 - Budget and Treasury offices | I21: 0
A22: ='Org structure'!E17 -> 2.4 - Finance | I22: 0
A23: ='Org structure'!E18 -> 2.5 - Fleet Management | I23: 0
A24: ='Org structure'!E19 -> 2.6 - Human Resources | I24: 0
A25: ='Org structure'!E20 -> 2.7 - Information Technology | I25: 0
A26: ='Org structure'!E21 -> 2.8 - Legal Services | I26: 0
A27: ='Org structure'!E22 -> 0 | I27: 0
A28: ='Org structure'!E23 -> 0 | I28: 0
A29: ='Org structure'!A4 -> Vote 3 - Community Services | C29: =SUM(C30:C39) -> 0 | D29: 0 | E29: 0 | F29: 0 | G29: 0 | H29: 0 | I29: 0 | K29: 0
A30: ='Org structure'!E25 -> 3.1 - Community and other social services | I30: 0
A31: ='Org structure'!E26 -> 3.2 - Community Halls and Facilities | I31: 0
A32: ='Org structure'!E27 -> 3.3 - Disaster Management | I32: 0
A33: ='Org structure'!E28 -> 3.4 - Animal Care and Diseases | I33: 0
A34: ='Org structure'!E29 -> 3.5 - Cementeries, Funeral Parlours and Crematoriums | I34: 0
A35: ='Org structure'!E30 -> 3.6 - Libraries and Archives | I35: 0
A36: ='Org structure'!E31 -> 3.7 - Literacy Programmes | I36: 0
A37: ='Org structure'!E32 -> 3.8 - Community Parks (including Nurseries) | I37: 0
A38: ='Org structure'!E33 -> 3.9 - Recreational Facilities | I38: 0
A39: ='Org structure'!E34 -> 3.10 - Sports Grounds and Stadiums | I39: 0
A40: ='Org structure'!A5 -> Vote 4 - Public and Safety | C40: =SUM(C41:C50) -> 0 | D40: 0 | E40: 0 | F40: 0 | G40: 0 | H40: 0 | I40: 0 | K40: 0
A41: ='Org structure'!E36 -> 4.1 - Civil Defence | I41: 0
A42: ='Org structure'!E37 -> 4.2 - Cleansing | I42: 0
A43: ='Org structure'!E38 -> 4.3 - Fencing and Fences | I43: 0
A44: ='Org structure'!E39 -> 4.4 - Fire Fighting and Protection | I44: 0
A45: ='Org structure'!E40 -> 4.5 - Licensing and Protection of Animals | I45: 0
A46: ='Org structure'!E41 -> 4.6 - [Name of sub-vote] | I46: 0
A47: ='Org structure'!E42 -> 4.7 - [Name of sub-vote] | I47: 0
A48: ='Org structure'!E43 -> 0 | I48: 0
A49: ='Org structure'!E44 -> 0 | I49: 0
A50: ='Org structure'!E45 -> 0 | I50: 0
A51: ='Org structure'!A6 -> Vote 5 - Waste Management | C51: =SUM(C52:C61) -> 0 | D51: =SUM(D52:D61) -> 0 | E51: 0 | F51: 0 | G51: 0 | H51: 0 | I51: 0 | K51: 0
A52: ='Org structure'!E47 -> 5.1 - Recycling | I52: 0
A53: ='Org structure'!E48 -> 5.2 - Solid Waste Disposal (Landfill site) | I53: 0
A54: ='Org structure'!E49 -> 5.3 - Solid Waste Removal | I54: 0
A55: ='Org structure'!E50 -> 5.4 - Street Cleaning | I55: 0
A56: ='Org structure'!E51 -> 0 | I56: 0
A57: ='Org structure'!E52 -> 0 | I57: 0
A58: ='Org structure'!E53 -> 0 | I58: 0
A59: ='Org structure'!E54 -> 0 | I59: 0
A60: ='Org structure'!E55 -> 0 | I60: 0
A61: ='Org structure'!E56 -> 0 | I61: 0
A62: ='Org structure'!A7 -> Vote 6 - Technical administration and Trading services | C62: =SUM(C63:C72) -> 0 | D62: =SUM(D63:D72) -> 0 | E62: 0 | F62: 0 | G62: 0 | H62: 0 | I62: 0 | K62: 0
A63: ='Org structure'!E58 -> 6.1 - Electricity | I63: 0
A64: ='Org structure'!E59 -> 6.2 - Street Lightining and Signal Systems | I64: 0
A65: ='Org structure'!E60 -> 6.3 - Electricity reticulation Network | I65: 0
A66: ='Org structure'!E61 -> 0 | I66: 0
A67: ='Org structure'!E62 -> 0 | I67: 0
A68: ='Org structure'!E63 -> 0 | I68: 0
A69: ='Org structure'!E64 -> 0 | I69: 0
A70: ='Org structure'!E65 -> 0 | I70: 0
A71: ='Org structure'!E66 -> 0 | I71: =G71-H71 -> 0 | J71: =IF(I71=0,"",I71/H71) -> 
A72: ='Org structure'!E67 -> 0 | I72: 0
A73: ='Org structure'!A8 -> Vote 7 - Roads and Transport | C73: =SUM(C74:C83) -> 0 | D73: 0 | E73: 0 | F73: 0 | G73: 0 | H73: 0 | I73: 0 | K73: 0
A74: ='Org structure'!E69 -> 7.1 - Police Forces, Traffic and Street Parking Control | I74: 0
A75: ='Org structure'!E70 -> 7.2 - Pounds | I75: 0
A76: ='Org structure'!E71 -> 7.3 - Public Transport | I76: 0
A77: ='Org structure'!E72 -> 7.4 - Roads | I77: 0
A78: ='Org structure'!E73 -> 7.5 - Taxi Ranks | I78: 0
A79: ='Org structure'!E74 -> 0 | I79: 0
A80: ='Org structure'!E75 -> 0 | I80: 0
A81: ='Org structure'!E76 -> 0 | I81: 0
A82: ='Org structure'!E77 -> 0 | I82: 0
A83: ='Org structure'!E78 -> 0 | I83: 0
A84: ='Org structure'!A9 -> Vote 8 - Planning and development | C84: =SUM(C85:C94) -> 0 | D84: =SUM(D85:D94) -> 0 | E84: 0 | F84: 0 | G84: 0 | H84: 0 | I84: 0 | K84: 0
A85: ='Org structure'!E80 -> 8.1 - Billboards | I85: 0
A86: ='Org structure'!E81 -> 8.2 - Corporate Wide Strategic Planning (IDPs, LEDs) | I86: 0
A87: ='Org structure'!E82 -> 8.3 - Central City Improvement District | I87: 0
A88: ='Org structure'!E83 -> 8.4 - Development Facilitation | I88: 0
A89: ='Org structure'!E84 -> 8.5 - Economic Development Planning | I89: 0
A90: ='Org structure'!E85 -> 8.6 - Regional Development and Development | I90: 0
A91: ='Org structure'!E86 -> 8.7 - Town Planning, Building Regulations and Enforcement and City Engineer | I91: 0
A92: ='Org structure'!E87 -> 8.8 - Project Management Unit | I92: 0
A93: ='Org structure'!E88 -> 0 | I93: 0
A94: ='Org structure'!E89 -> 0 | I94: 0
A95: ='Org structure'!A10 -> Vote 9 - [NAME OF VOTE 9] | C95: =SUM(C96:C105) -> 0 | D95: =SUM(D96:D105) -> 0 | E95: 0 | F95: 0 | G95: 0 | H95: 0 | I95: 0 | K95: 0
A96: ='Org structure'!E91 -> 9.1 - [Name of sub-vote] | I96: 0
A97: ='Org structure'!E92 -> 0 | I97: 0
A98: ='Org structure'!E93 -> 0 | I98: 0
A99: ='Org structure'!E94 -> 0 | I99: 0
A100: ='Org structure'!E95 -> 0 | I100: 0
A101: ='Org structure'!E96 -> 0 | I101: 0
A102: ='Org structure'!E97 -> 0 | I102: 0
A103: ='Org structure'!E98 -> 0 | I103: 0
A104: ='Org structure'!E99 -> 0 | I104: 0
A105: ='Org structure'!E100 -> 0 | I105: 0
A106: ='Org structure'!A11 -> Vote 10 - [NAME OF VOTE 10] | C106: =SUM(C107:C116) -> 0 | D106: =SUM(D107:D116) -> 0 | E106: 0 | F106: 0 | G106: 0 | H106: 0 | I106: 0 | K106: 0
A107: ='Org structure'!E102 -> 10.1 - [Name of sub-vote] | I107: 0
A108: ='Org structure'!E103 -> 0 | I108: 0
A109: ='Org structure'!E104 -> 0 | I109: 0
A110: ='Org structure'!E105 -> 0 | I110: 0
A111: ='Org structure'!E106 -> 0 | I111: 0
A112: ='Org structure'!E107 -> 0 | I112: 0
A113: ='Org structure'!E108 -> 0 | I113: 0
A114: ='Org structure'!E109 -> 0 | I114: 0
A115: ='Org structure'!E110 -> 0 | I115: 0
A116: ='Org structure'!E111 -> 0 | I116: 0
A117: ='Org structure'!A12 -> Vote 11 - [NAME OF VOTE 11] | C117: =SUM(C118:C127) -> 0 | D117: =SUM(D118:D127) -> 0 | E117: 0 | F117: 0 | G117: 0 | H117: 0 | I117: 0 | K117: 0
A118: ='Org structure'!E113 -> 11.1 - [Name of sub-vote] | I118: 0
A119: ='Org structure'!E114 -> 0 | I119: 0
A120: ='Org structure'!E115 -> 0 | I120: 0
A121: ='Org structure'!E116 -> 0 | I121: 0
A122: ='Org structure'!E117 -> 0 | I122: 0
A123: ='Org structure'!E118 -> 0 | I123: 0
A124: ='Org structure'!E119 -> 0 | I124: 0
A125: ='Org structure'!E120 -> 0 | I125: 0
A126: ='Org structure'!E121 -> 0 | I126: 0
A127: ='Org structure'!E122 -> 0 | I127: 0
A128: ='Org structure'!A13 -> Vote 12 - [NAME OF VOTE 12] | C128: =SUM(C129:C138) -> 0 | D128: =SUM(D129:D138) -> 0 | E128: 0 | F128: 0 | G128: 0 | H128: 0 | I128: 0 | K128: 0
A129: ='Org structure'!E124 -> 12.1 - [Name of sub-vote] | I129: 0
A130: ='Org structure'!E125 -> 0 | I130: 0
A131: ='Org structure'!E126 -> 0 | I131: 0
A132: ='Org structure'!E127 -> 0 | I132: 0
A133: ='Org structure'!E128 -> 0 | I133: 0
A134: ='Org structure'!E129 -> 0 | I134: 0
A135: ='Org structure'!E130 -> 0 | I135: =G135-H135 -> 0 | J135: =IF(I135=0,"",I135/H135) -> 
A136: ='Org structure'!E131 -> 0 | I136: 0
A137: ='Org structure'!E132 -> 0 | I137: 0
A138: ='Org structure'!E133 -> 0 | I138: 0
A139: ='Org structure'!A14 -> Vote 13 - [NAME OF VOTE 13] | C139: =SUM(C140:C149) -> 0 | D139: =SUM(D140:D149) -> 0 | E139: 0 | F139: 0 | G139: 0 | H139: 0 | I139: 0 | K139: 0
A140: ='Org structure'!E135 -> 13.1 - [Name of sub-vote] | I140: 0
A141: ='Org structure'!E136 -> 0 | I141: 0
A142: ='Org structure'!E137 -> 0 | I142: 0
A143: ='Org structure'!E138 -> 0 | I143: 0
A144: ='Org structure'!E139 -> 0 | I144: 0
A145: ='Org structure'!E140 -> 0 | I145: 0
A146: ='Org structure'!E141 -> 0 | I146: 0
A147: ='Org structure'!E142 -> 0 | I147: 0
A148: ='Org structure'!E143 -> 0 | I148: 0
A149: ='Org structure'!E144 -> 0 | I149: 0
A150: ='Org structure'!A15 -> Vote 14 - [NAME OF VOTE 14] | C150: =SUM(C151:C160) -> 0 | D150: =SUM(D151:D160) -> 0 | E150: 0 | F150: 0 | G150: 0 | H150: 0 | I150: 0 | K150: 0
A151: ='Org structure'!E146 -> 14.1 - [Name of sub-vote] | I151: 0
A152: ='Org structure'!E147 -> 0 | I152: 0
A153: ='Org structure'!E148 -> 0 | I153: 0
A154: ='Org structure'!E149 -> 0 | I154: 0
A155: ='Org structure'!E150 -> 0 | I155: 0
A156: ='Org structure'!E151 -> 0 | I156: 0
A157: ='Org structure'!E152 -> 0 | I157: 0
A158: ='Org structure'!E153 -> 0 | I158: 0
A159: ='Org structure'!E154 -> 0 | I159: 0
A160: ='Org structure'!E155 -> 0 | I160: 0
A161: ='Org structure'!A16 -> Vote 15 - [NAME OF VOTE 15] | C161: =SUM(C162:C171) -> 0 | D161: =SUM(D162:D171) -> 0 | E161: 0 | F161: 0 | G161: 0 | H161: 0 | I161: 0 | K161: 0
A162: ='Org structure'!E157 -> 15.1 - [Name of sub-vote] | I162: 0
A163: ='Org structure'!E158 -> 0 | I163: 0
A164: ='Org structure'!E159 -> 0 | I164: 0
A165: ='Org structure'!E160 -> 0 | I165: 0
A166: ='Org structure'!E161 -> 0 | I166: 0
A167: ='Org structure'!E162 -> 0 | I167: 0
A168: ='Org structure'!E163 -> 0 | I168: 0
A169: ='Org structure'!E164 -> 0 | I169: 0
A170: ='Org structure'!E165 -> 0 | I170: 0
A171: ='Org structure'!E166 -> 0 | I171: 0 | L171: =SUM(L79:L82) -> 0 | M171: 0 | N171: 0 | O171: 0 | P171: 0 | Q171: 0 | R171: 0 | S171: 0 | T171: 0 | U171: 0 | V171: 0 | W171: 0
A172: Total multi-year capital expenditure | C172: =C7+C18+C29+C40+C51+C62+C73+C84+C95+C106+C117+C128+C139+C150+C161 -> 0 | D172: =D7+D18+D29+D40+D51+D62+D73+D84+D95+D106+D117+D128+D139+D150+D161 -> 0 | E172: 0 | F172: 0 | G172: 0 | H172: 0 | I172: 0 | K172: 0
I173: 0
A174: Capital expenditure - Municipal Vote
A175: Expenditue of single-year capital appropriation | B175: 1 | I175: 0
A176: ='Org structure'!A2 -> Vote 1 - Executive and council | C176: =SUM(C177:C186) -> 0 | D176: 0 | E176: 0 | F176: 0 | G176: 0 | H176: 0 | I176: 0 | K176: 0
A177: ='Org structure'!E3 -> 1.1 - Mayor and council | I177: 0
A178: ='Org structure'!E4 -> 1.2 - Municipal Manager | I178: 0
A179: ='Org structure'!E5 -> 0 | I179: 0
A180: ='Org structure'!E6 -> 0 | I180: 0
A181: ='Org structure'!E7 -> 0 | I181: 0
A182: ='Org structure'!E8 -> 0 | I182: 0
A183: ='Org structure'!E9 -> 0 | I183: 0
A184: ='Org structure'!E10 -> 0 | I184: 0
A185: ='Org structure'!E11 -> 0 | I185: 0
A186: ='Org structure'!E12 -> 0 | I186: 0
A187: ='Org structure'!A3 -> Vote 2 - Finance and Administration | C187: =SUM(C188:C197) -> 0 | D187: =SUM(D188:D197) -> 3115000 | E187: =SUM(E188:E197) -> 0 | F187: 282272.1 | G187: 767102.88 | H187: 2255000 | I187: -1487897.12 | J187: -0.6598213392 | K187: 3115000
A188: ='Org structure'!E14 -> 2.1 - Admistartive and Corporate Support | D188: 3115000 | F188: 282272.1 | G188: 767102.88 | H188: 2255000 | I188: -1487897.12 | J188: -0.6598213392 | K188: 3115000
A189: ='Org structure'!E15 -> 2.2 - Asset Management | D189: 0 | I189: 0
A190: ='Org structure'!E16 -> 2.3 - Budget and Treasury offices | D190: 0 | I190: 0
A191: ='Org structure'!E17 -> 2.4 - Finance | D191: 0 | I191: 0
A192: ='Org structure'!E18 -> 2.5 - Fleet Management | D192: 0 | F192: 0 | G192: 0 | H192: 0 | I192: 0
A193: ='Org structure'!E19 -> 2.6 - Human Resources | D193: 0 | F193: 0 | G193: 0 | H193: 0 | I193: 0
A194: ='Org structure'!E20 -> 2.7 - Information Technology | D194: 0 | I194: 0
A195: ='Org structure'!E21 -> 2.8 - Legal Services | D195: 0 | I195: 0
A196: ='Org structure'!E22 -> 0 | D196: 0 | I196: 0
A197: ='Org structure'!E23 -> 0 | D197: 0 | I197: 0
A198: ='Org structure'!A4 -> Vote 3 - Community Services | C198: =SUM(C199:C208) -> 0 | D198: 9320200 | E198: 0 | F198: 0 | G198: 3886005.79 | H198: 6135900.66 | I198: -2249894.87 | J198: -0.3666771994 | K198: 9320200
A199: ='Org structure'!E25 -> 3.1 - Community and other social services | D199: 2500000 | F199: 0 | G199: 1777743.01 | H199: 2000000 | I199: -222256.99 | J199: -0.111128495 | K199: 2500000
A200: ='Org structure'!E26 -> 3.2 - Community Halls and Facilities | D200: 0 | I200: =G200-H200 -> 0 | J200: =IF(I200=0,"",I200/H200) -> 
... 145 more rows

Sheet C6-FinPos
A1: =muni& " - "&S71E& " - "&date -> LIM351 Blouberg - Table C6 Monthly Budget Statement - Financial Position - M07 January
A2: =desc -> Description | B2: =head27 -> Ref | C2: =Head1 -> 2018/19 | D2: =Head2 -> Budget Year 2019/20
C3: =Head5 -> Audited Outcome | D3: =Head6 -> Original Budget | E3: =Head7 -> Adjusted Budget | F3: =Head39 -> YearTD actual | G3: =Head8 -> Full Year Forecast
A4: R thousands | B4: 1
A5: ASSETS
A6: Current assets
A7: Cash | C7: 15884563 | D7: 51697399 | F7: =46510406-20000000 -> 26510406 | G7: 51697399
A8: Call investment deposits | C8: 0 | D8: 10000000 | F8: 20000000 | G8: 10000000
A9: Consumer debtors | C9: 8627777 | D9: 9230905.96 | F9: 0 | G9: 9230905.96
A10: Other debtors | C10: =3694969+85780410 -> 89475379 | D10: 4691947.186 | F10: 0 | G10: 4691947.186
A11: Current portion of long-term receivables | C11: 2670202 | D11: 16846806.13 | F11: 0 | G11: 16846806.13
A12: Inventory | C12: 6925355 | D12: 1714879.66 | F12: 1009234.25 | G12: 1714879.66
A13: Total current assets | C13: =SUM(C7:C12) -> 123583276 | D13: =SUM(D7:D12) -> 94181937.94 | E13: =SUM(E7:E12) -> 0 | F13: =SUM(F7:F12) -> 47519640.25 | G13: =SUM(G7:G12) -> 94181937.94
A15: Non current assets
A16: Long-term receivables | D16: 0 | E16: 0 | F16: 0 | G16: 0
A17: Investments | C17: 3767074 | D17: 3097326 | F17: 2100199 | G17: 3097326
A18: Investment property | C18: 0 | D18: 0 | F18: 0 | G18: 0
A19: Investments in Associate | C19: 205000 | D19: 0 | F19: 0 | G19: 0
A20: Property, plant and equipment | C20: 893811968 | D20: 1002108167 | F20: 23200191.04 | G20: 1002108167
A21: Agricultural | D21: 0 | F21: 0 | G21: 0
A22: Biological | D22: 0 | F22: 0 | G22: 0
A23: Intangible | C23: 232467 | D23: 0 | F23: 0 | G23: 0
A24: Other non-current assets | D24: 0 | F24: 0 | G24: 0
A25: Total non current assets | C25: =SUM(C16:C24) -> 898016509 | D25: =SUM(D16:D24) -> 1005205493 | E25: =SUM(E16:E24) -> 0 | F25: =SUM(F16:F24) -> 25300390.04 | G25: =SUM(G16:G24) -> 1005205493
A26: TOTAL ASSETS | C26: =C13+C25 -> 1021599785 | D26: =D13+D25 -> 1099387431 | E26: =E13+E25 -> 0 | F26: =F13+F25 -> 72820030.29 | G26: =G13+G25 -> 1099387431
A28: LIABILITIES
A29: Current liabilities
A30: Bank overdraft | D30: 0 | F30: 0 | G30: 0
A31: Borrowing | D31: 0 | F31: 0 | G31: 0
A32: Consumer deposits | C32: 0 | D32: 0 | F32: 0 | G32: 0
A33: Trade and other payables | C33: 46104567 | D33: 26400000 | F33: 205222 | G33: 26400000
A34: Provisions | C34: =17780945+699785+468546+4748161 -> 23697437 | D34: 0
A35: Total current liabilities | C35: =SUM(C30:C34) -> 69802004 | D35: =SUM(D30:D34) -> 26400000 | E35: =SUM(E30:E34) -> 0 | F35: =SUM(F30:F34) -> 205222 | G35: =SUM(G30:G34) -> 26400000
A37: Non current liabilities
A38: Borrowing | D38: 0 | F38: 0 | G38: 0
A39: Provisions | C39: =820102+5428212 -> 6248314 | D39: 2830056 | F39: 0 | G39: 2830056
A40: Total non current liabilities | C40: =SUM(C38:C39) -> 6248314 | D40: =SUM(D38:D39) -> 2830056 | E40: =SUM(E38:E39) -> 0 | F40: =SUM(F38:F39) -> 0 | G40: =SUM(G38:G39) -> 2830056
A41: TOTAL LIABILITIES | C41: =C35+C40 -> 76050318 | D41: =D35+D40 -> 29230056 | E41: =E35+E40 -> 0 | F41: =F35+F40 -> 205222 | G41: =G35+G40 -> 29230056
A43: NET ASSETS | B43: 2 | C43: =C26-C41 -> 945549467 | D43: =D26-D41 -> 1070157375 | E43: =E26-E41 -> 0 | F43: =F26-F41 -> 72614808.29 | G43: =G26-G41 -> 1070157375
A45: COMMUNITY WEALTH/EQUITY
A46: Accumulated Surplus/(Deficit) | C46: 945549467 | D46: 1070157375 | F46: 72614808.29 | G46: 1070157375
A47: Reserves | D47: 0 | E47: 0 | F47: 0 | G47: 0
A48: TOTAL COMMUNITY WEALTH/EQUITY | B48: 2 | C48: =SUM(C46:C47) -> 945549467 | D48: =SUM(D46:D47) -> 1070157375 | E48: =SUM(E46:E47) -> 0 | F48: =SUM(F46:F47) -> 72614808.29 | G48: =SUM(G46:G47) -> 1070157375
A49: =head27a -> References
A50: 1. Material variances to be explained in Table SC1
A51: 2. Net assets must balance with Total Community Wealth/Equity
A54: check balance | C54: =C43-C48 -> 0 | D54: =D43-D48 -> 0 | E54: =E43-E48 -> 0 | F54: =F43-F48 -> 0 | G54: =G43-G48 -> 0

Sheet C7-CFlow
A1: =muni& " - "&S71F& " - "&date -> LIM351 Blouberg - Table C7 Monthly Budget Statement - Cash Flow - M07 January
A2: =desc -> Description | B2: =head27 -> Ref | C2: =Head1 -> 2018/19 | D2: =Head2 -> Budget Year 2019/20
C3: =Head5 -> Audited Outcome | D3: =Head6 -> Original Budget | E3: =Head7 -> Adjusted Budget | F3: =Head38 -> Monthly actual | G3: =Head39 -> YearTD actual | H3: =Head40 -> YearTD budget | I3: =Head41 -> YTD variance | J3: =Head41 -> YTD variance | K3: =Head8 -> Full Year Forecast
A4: R thousands | B4: 1 | J4: %
A5: CASH FLOW FROM OPERATING ACTIVITIES
A6: Receipts
A7: Property rates | C7: 23202185 | D7: 25500000 | F7: 1431929 | G7: 3147481.35 | H7: 23476415.87 | I7: =G7-H7 -> -20328934.52 | J7: =IF(I7=0,"",I7/H7) -> -0.8659300735 | K7: 25500000
A8: Service charges | C8: =10858755-404271 -> 10454484 | D8: 27466000 | F8: 1121804.44 | G8: 9558521.79 | H8: 14667647.44 | I8: -5109125.65 | J8: =IF(I8=0,"",I8/H8) -> -0.3483261832 | K8: 27466000
A9: Other revenue | C9: 404271 | D9: 13119764 | F9: 541662.2 | G9: 1506429.46 | H9: 6809604.5 | I9: -5303175.04 | J9: =IF(I9=0,"",I9/H9) -> -0.7787787147 | K9: 13119764
A10: Government - operating | C10: =199247400-1187213 -> 198060187 | D10: 189578726 | F10: 0 | G10: 0 | H10: 118965000 | I10: -118965000 | J10: =IF(I10=0,"",I10/H10) -> -1 | K10: 189578726
A11: Government - capital | C11: 57054516 | D11: 52786000 | F11: 0 | G11: 0 | H11: 47563500 | I11: -47563500 | J11: =IF(I11=0,"",I11/H11) -> -1 | K11: 52786000
A12: Interest | C12: 2475497 | D12: 2230700 | F12: 0 | G12: 735961.98 | H12: 730558.3333 | I12: 5403.646667 | J12: 0.007396598492 | K12: 2230700
A13: Dividends | C13: 0 | D13: 0 | F13: 0 | G13: 0 | H13: 0 | I13: 0 | K13: 0
A14: Payments
A15: Suppliers and employees | C15: -259540272 | D15: -251707813.2 | F15: -18413668 | G15: -140407182 | H15: -152141130 | I15: =H15-G15 -> -11733948 | J15: 0.07712541638 | K15: -251707813.2
A16: Finance charges | D16: 0 | F16: 0 | G16: 0 | H16: 0 | I16: =H16-G16 -> 0 | K16: 0
A17: Transfers and Grants | D17: 0 | F17: 0 | G17: 0 | H17: 0 | I17: =H17-G17 -> 0 | K17: 0
A18: NET CASH FROM/(USED) OPERATING ACTIVITIES | C18: =SUM(C7:C13)+SUM(C15:C17) -> 32110868 | D18: 58973376.8 | E18: 0 | F18: -15318272.36 | G18: -125458787.4 | H18: 60071596.14 | I18: =H18-G18 -> 185530383.6 | J18: 3.088487663 | K18: =SUM(K7:K13)+SUM(K15:K17) -> 58973376.8
A20: CASH FLOWS FROM INVESTING ACTIVITIES
A21: Receipts
A22: Proceeds on disposal of PPE | C22: 0 | D22: 0 | F22: 0 | G22: 0 | H22: 0 | I22: =G22-H22 -> 0 | J22: =IF(I22=0,"",I22/H22) ->  | K22: 0
A23: Decrease (Increase) in non-current debtors | C23: 0 | D23: 0 | F23: 0 | G23: 0 | H23: 0 | I23: =G23-H23 -> 0 | K23: 0
A24: Decrease (increase) other non-current receivables | C24: 0 | D24: 0 | F24: 0 | G24: 0 | H24: 0 | I24: =G24-H24 -> 0 | K24: 0
A25: Decrease (increase) in non-current investments | C25: 0 | D25: 0 | F25: 0 | G25: 0 | H25: 0 | I25: =G25-H25 -> 0 | K25: 0
A26: Payments
A27: Capital assets | C27: =-60166187-156500 -> -60322687 | D27: -60106650 | F27: -282272 | G27: -22813842.94 | H27: -43735819 | I27: =H27-G27 -> -20921976.06 | J27: 0.4783716537
A28: NET CASH FROM/(USED) INVESTING ACTIVITIES | C28: =SUM(C22:C25)+C27 -> -60322687 | D28: =SUM(D22:D25)+D27 -> -60106650 | E28: 0 | F28: -282272 | G28: -22813842.94 | H28: -43735819 | I28: =H28-G28 -> -20921976.06 | J28: 0.4783716537 | K28: =SUM(K22:K25)+K27 -> 0
A30: CASH FLOWS FROM FINANCING ACTIVITIES
A31: Receipts
A32: Short term loans | C32: 0 | D32: 0 | E32: 0 | F32: 0 | G32: 0 | H32: 0 | I32: =G32-H32 -> 0 | J32: =IF(I32=0,"",I32/H32) ->  | K32: 0
A33: Borrowing long term/refinancing | C33: 0 | D33: 0 | E33: 0 | F33: 0 | G33: 0 | H33: 0 | I33: =G33-H33 -> 0 | K33: 0
A34: Increase (decrease) in consumer deposits | C34: 0 | D34: 0 | E34: 0 | F34: 0 | G34: 0 | H34: 0 | I34: =G34-H34 -> 0 | K34: 0
A35: Payments
A36: Repayment of borrowing | C36: 2983575 | D36: 0 | E36: 0 | F36: 0 | G36: 0 | H36: 0 | I36: =H36-G36 -> 0 | K36: 0
A37: NET CASH FROM/(USED) FINANCING ACTIVITIES | C37: =SUM(C32:C34)+C36 -> 2983575 | D37: 0 | E37: 0 | F37: 0 | G37: 0 | H37: 0 | I37: =H37-G37 -> 0 | K37: =SUM(K32:K34)+K36 -> 0
A39: NET INCREASE/ (DECREASE) IN CASH HELD | C39: =C18+C28+C37 -> -25228244 | D39: -1133273.196 | E39: 0 | F39: -15600544.36 | G39: -148272630.4 | H39: 16335777.14 | K39: =K18+K28+K37 -> 58973376.8
A40: Cash/cash equivalents at beginning: | C40: 41112807 | D40: 51697399 | G40: 46510406 | H40: =IF(E40=0, D40, E40) -> 51697399 | K40: =G40 -> 46510406
A41: Cash/cash equivalents at month/year end: | C41: =C39+C40 -> 15884563 | D41: =D39+D40 -> 50564125.8 | E41: =E39+E40 -> 0 | G41: =G39+G40 -> -101762224.4 | H41: =H39+H40 -> 68033176.14 | K41: =K39+K40 -> 105483782.8
A42: References
A43: 1. Material variances to be explained in Table SC1

Sheet SC1
A1: =muni& " - "&S71G& " - "&date -> LIM351 Blouberg - Supporting Table SC1 Material variance explanations - M07 January
A2: =head27 -> Ref | B2: =desc -> Description
C3: Variance | D3: Reasons for material deviations | E3: Remedial or corrective steps/remarks
B4: R thousands
A5: 1 | B5: ='C4-FinPerf RE'!A5 -> Revenue By Source
B6: Property rates | D6: 1.None payment
B7: Service charges | D7: 2.Due to illegal connection | E7: Changing conventional meters to smart meters
A10: 2 | B10: ='C4-FinPerf RE'!A24 -> Expenditure By Type
B11: Employee related costs | D11: N/A | E11: N/A
B12: Other expenditure | D12: N/A | E12: N/A
A15: 3 | B15: =RIGHT('C5-Capex'!A40,19) -> Capital Expenditure
B16: Mig projects and Inep | D16: Due to late appointment of contractors | E16: Fast track the projects
B18: own projects | D18: N/A | E18: N/A
A20: 4 | B20: Financial Position
A25: 5 | B25: Cash Flow
B26: Cash and cash | D26: Municipal bank accounts have positive balances | E26: N/A
A30: 6 | B30: Measureable performance
A35: 7 | B35: Municipal Entities
A41: =head27a -> References
A42: 1. Revenue for each source, vote and standard classification
A43: 2. Expenditure for each type, vote and standard classification
A44: 3. Capital expenditure for each vote and standard classification
A45: 4. Explain any material variances between the annual budget and the expected financial position based on current trends
A46: 5. Cash receipts by source and cash payments by type where not explained under revenue and expenditure
A47: 6. For Sept, Dec, Mar and Jun statements explain any material variances in achievement of measurable performance objectives

Sheet SC2
A1: =muni& " - "&S71H& " - "&Head57 -> LIM351 Blouberg - Supporting Table SC2 Monthly Budget Statement - performance indicators - M07 January
A2: Description of financial indicator | B2: Basis of calculation | C2: =head27 -> Ref | D2: =Head1 -> 2018/19 | E2: =Head2 -> Budget Year 2019/20
D3: =Head5 -> Audited Outcome | E3: =Head6 -> Original Budget | F3: =Head7 -> Adjusted Budget | G3: =Head39 -> YearTD actual | H3: =Head8 -> Full Year Forecast
A5: Borrowing Management
A7: Capital Charges to Operating Expenditure | B7: Interest & principal paid/Operating Expenditure | D7: =IF(ISERROR((D42-D43)/D45),0,((D42-D43)/D45)) -> 0.01482249134 | E7: =IF(ISERROR((E42+E44)/E45),0,((E42+E44)/E45)) -> 0.1308046098 | F7: =IF(ISERROR((F42+F44)/F45),0,((F42+F44)/F45)) -> 0 | G7: =IF(ISERROR((G42+G44)/G45),0,((G42+G44)/G45)) -> 0 | H7: =IF(ISERROR((H42+H44)/H45),0,((H42+H44)/H45)) -> 0.05575105053
A8: Borrowed funding of 'own' capital expenditure | B8: Borrowings/Capital expenditure excl. transfers and grants | D8: =IF(ISERROR(D47/D46),0,(D47/D46)) -> 0 | E8: =IF(ISERROR(E47/E46),0,(E47/E46)) -> 0 | F8: =IF(ISERROR(F47/F46),0,(F47/F46)) -> 0 | G8: =IF(ISERROR(G47/G46),0,(G47/G46)) -> 0 | H8: =IF(ISERROR(H47/H46),0,(H47/H46)) -> 0
A9: Safety of Capital
A10: Debt to Equity | B10: Loans, Accounts Payable, Overdraft & Tax Provision/ Funds & Reserves | D10: =IF(ISERROR(D48/D49),0,(D48/D49)) -> 0.04875955051 | E10: =IF(ISERROR(E48/E49),0,(E48/E49)) -> 0.02466926886 | F10: =IF(ISERROR(F48/F49),0,(F48/F49)) -> 0 | G10: =IF(ISERROR(G48/G49),0,(G48/G49)) -> 0.002826172854 | H10: =IF(ISERROR(H48/H49),0,(H48/H49)) -> 0.02466926886
A11: Gearing | B11: Long Term Borrowing/ Funds & Reserves | D11: =IF(ISERROR(D51/D50),0,(D51/D50)) -> 0 | E11: =IF(ISERROR(E51/E50),0,(E51/E50)) -> 0 | F11: =IF(ISERROR(F51/F50),0,(F51/F50)) -> 0 | G11: =IF(ISERROR(G51/G50),0,(G51/G50)) -> 0 | H11: =IF(ISERROR(H51/H50),0,(H51/H50)) -> 0
A12: Liquidity
A13: Current Ratio | B13: Current assets/current liabilities | C13: 1 | D13: =IF(ISERROR(D52/D53),0,(D52/D53)) -> 1.770483208 | E13: =IF(ISERROR(E52/E53),0,(E52/E53)) -> 3.567497649 | F13: =IF(ISERROR(F52/F53),0,(F52/F53)) -> 0 | G13: =IF(ISERROR(G52/G53),0,(G52/G53)) -> 231.5523689 | H13: =IF(ISERROR(H52/H53),0,(H52/H53)) -> 3.567497649
A14: Liquidity Ratio | B14: Monetary Assets/Current Liabilities | D14: =IF(ISERROR(D54/D53),0,(D54/D53)) -> 0.2275660023 | E14: =IF(ISERROR(E54/E53),0,(E54/E53)) -> 2.337022689 | F14: =IF(ISERROR(F54/F53),0,(F54/F53)) -> 0 | G14: =IF(ISERROR(G54/G53),0,(G54/G53)) -> 226.6346006 | H14: =IF(ISERROR(H54/H53),0,(H54/H53)) -> 2.337022689
A15: Revenue Management
A16: Annual Debtors Collection Rate (Payment Level %) | B16: Last 12 Mths Receipts/ Last 12 Mths Billing
A17: Outstanding Debtors to Revenue | B17: Total Outstanding Debtors to Annual Revenue | D17: =IF(ISERROR(D59/D55),0,(D59/D55)) -> 0.3163208098 | E17: =IF(ISERROR(E59/E55),0,(E59/E55)) -> 0.09783327353 | F17: =IF(ISERROR(F59/F55),0,(F59/F55)) -> 0 | G17: =IF(ISERROR(G59/G55),0,(G59/G55)) -> 0 | H17: =IF(ISERROR(H59/H55),0,(H59/H55)) -> 0.09783327353
A18: Longstanding Debtors Recovered | B18: Debtors > 12 Mths Recovered/Total Debtors > 12 Months Old | D18: =IF(ISERROR(D64/D63),0,(D64/D63)) -> 0 | E18: =IF(ISERROR(E64/E63),0,(E64/E63)) -> 0 | F18: =IF(ISERROR(F64/F63),0,(F64/F63)) -> 0 | G18: =IF(ISERROR(G64/G63),0,(G64/G63)) -> 0 | H18: =IF(ISERROR(H64/H63),0,(H64/H63)) -> 0
A19: Creditors Management
A20: Creditors System Efficiency | B20: % of Creditors Paid Within Terms (within MFMA s 65(e)) | D20: 1 | E20: 1 | G20: 1 | H20: 1
A21: Funding of Provisions
A22: Percentage Of Provisions Not Funded | B22: Unfunded Provisions/Total Provisions
A23: Other Indicators
A24: Electricity Distribution Losses | B24: % Volume (units purchased and generated less units sold)/units purchased and generated | C24: 2 | D24: 0.0971 | E24: 0.091 | G24: 0.071 | H24: 0.091
A25: Water Distribution Losses | B25: % Volume (units purchased and own source less units sold)/Total units purchased and own source | C25: 2 | D25: 0 | E25: 0 | F25: 0 | G25: 0 | H25: 0
A26: Employee costs | B26: Employee costs/Total Revenue - capital revenue | D26: =IF(ISERROR(D40/D55),0,(D40/D55)) -> 0.3146492338 | E26: =IF(ISERROR(E40/E55),0,(E40/E55)) -> 0.3442316356 | F26: =IF(ISERROR(F40/F55),0,(F40/F55)) -> 0 | G26: =IF(ISERROR(G40/G55),0,(G40/G55)) -> 0.3111226584 | H26: =IF(ISERROR(H40/H55),0,(H40/H55)) -> 0.3442316356
A27: Repairs & Maintenance | B27: R&M/Total Revenue - capital revenue | D27: =IF(ISERROR(D41/D55),0,(D41/D55)) -> 0 | E27: =IF(ISERROR(E41/E55),0,(E41/E55)) -> 0 | F27: =IF(ISERROR(F41/F55),0,(F41/F55)) -> 0 | G27: =IF(ISERROR(G41/G55),0,(G41/G55)) -> 0 | H27: =IF(ISERROR(H41/H55),0,(H41/H55)) -> 0
A28: Interest & Depreciation | B28: I&D/Total Revenue - capital revenue | D28: =IF(ISERROR((D42+D44)/D55),0,((D42+D44)/D55)) -> 0.1151459844 | E28: =IF(ISERROR((E42+E44)/E55),0,((E42+E44)/E55)) -> 0.1250029959 | F28: =IF(ISERROR((F42+F44)/F55),0,((F42+F44)/F55)) -> 0 | G28: =IF(ISERROR((G42+G44)/G55),0,((G42+G44)/G55)) -> 0 | H28: =IF(ISERROR((H42+H44)/H55),0,((H42+H44)/H55)) -> 0.05327830841
A29: IDP regulation financial viability indicators
A30: i. Debt coverage | B30: (Total Operating Revenue - Operating Grants)/Debt service payments due within financial year)
A31: ii. O/S Service Debtors to Revenue | B31: Total outstanding service debtors/annual revenue received for services
A32: iii. Cost coverage | B32: (Available cash + Investments)/monthly fixed operational expenditure
A33: References
A34: 1. Consumer debtors > 12 months old are excluded from current assets.
A35: 2. Material variances to be explained.
A37: Calculations
A38: ='C6-FinPos'!A38 -> Borrowing | D38: ='C6-FinPos'!C38 -> 0 | E38: ='C6-FinPos'!D38 -> 0 | F38: ='C6-FinPos'!E38 -> 0 | G38: ='C6-FinPos'!F38 -> 0 | H38: 0
A39: Total Assets | D39: ='C6-FinPos'!C26 -> 1021599785 | E39: ='C6-FinPos'!D26 -> 1099387431 | F39: ='C6-FinPos'!E26 -> 0 | G39: ='C6-FinPos'!F26 -> 72820030.29 | H39: ='C6-FinPos'!G26 -> 1099387431
A40: ='C4-FinPerf RE'!A25 -> Employee related costs | D40: ='C4-FinPerf RE'!C25 -> 100240828 | E40: ='C4-FinPerf RE'!D25 -> 108264701.3 | F40: ='C4-FinPerf RE'!E25 -> 0 | G40: ='C4-FinPerf RE'!G25 -> 60625186.9 | H40: ='C4-FinPerf RE'!K25 -> 108264701.3
A41: =A27 -> Repairs & Maintenance
A42: Interest (finance charges) | D42: ='C4-FinPerf RE'!C29 -> 1413022 | E42: ='C4-FinPerf RE'!D29 -> 0 | F42: ='C4-FinPerf RE'!E29 -> 0 | G42: ='C4-FinPerf RE'!G29 -> 0 | H42: ='C4-FinPerf RE'!K29 -> 0
A43: Principal paid | D43: =-'C7-CFlow'!C36 -> -2983575 | E43: =-'C7-CFlow'!D36 -> 0 | F43: =-'C7-CFlow'!E36 -> 0 | G43: =-'C7-CFlow'!G36 -> 0 | H43: =-'C7-CFlow'!K36 -> 0
A44: Depreciation | D44: ='C4-FinPerf RE'!C28 -> 35270140 | E44: ='C4-FinPerf RE'!D28 -> 39314841 | F44: ='C4-FinPerf RE'!E28 -> 0 | H44: ='C4-FinPerf RE'!K26 -> 16756624.18
A45: Operating expenditure | D45: ='C4-FinPerf RE'!C36 -> 296616601 | E45: ='C4-FinPerf RE'!D36 -> 300561586.2 | F45: ='C4-FinPerf RE'!E36 -> 0 | G45: ='C4-FinPerf RE'!G36 -> 140407182.7 | H45: ='C4-FinPerf RE'!K36 -> 300561586.2
A46: ='C5-Capex'!A40 -> Total Capital Expenditure | D46: ='C5-Capex'!C40 -> 0 | E46: ='C5-Capex'!D40 -> 60106650 | F46: ='C5-Capex'!E40 -> 0 | G46: ='C5-Capex'!G40 -> 23200191.04 | H46: ='C5-Capex'!K40 -> 60106650
A47: Borrowed funding for capital | D47: ='C5-Capex'!C72 -> 0 | E47: ='C5-Capex'!D72 -> 0 | F47: ='C5-Capex'!E72 -> 0 | G47: ='C5-Capex'!G72 -> 0 | H47: ='C5-Capex'!K72 -> 0
A48: Debt | D48: ='C6-FinPos'!C30+'C6-FinPos'!C31+'C6-FinPos'!C33+'C6-FinPos'!C38 -> 46104567 | E48: ='C6-FinPos'!D30+'C6-FinPos'!D31+'C6-FinPos'!D33+'C6-FinPos'!D38 -> 26400000 | F48: ='C6-FinPos'!E30+'C6-FinPos'!E31+'C6-FinPos'!E33+'C6-FinPos'!E38 -> 0 | G48: ='C6-FinPos'!F30+'C6-FinPos'!F31+'C6-FinPos'!F33+'C6-FinPos'!F38 -> 205222 | H48: ='C6-FinPos'!G30+'C6-FinPos'!G31+'C6-FinPos'!G33+'C6-FinPos'!G38 -> 26400000
A49: Equity | D49: ='C6-FinPos'!C48 -> 945549467 | E49: ='C6-FinPos'!D48 -> 1070157375 | F49: ='C6-FinPos'!E48 -> 0 | G49: ='C6-FinPos'!F48 -> 72614808.29 | H49: ='C6-FinPos'!G48 -> 1070157375
A50: ='C6-FinPos'!A47 -> Reserves | D50: ='C6-FinPos'!C47 -> 0 | E50: ='C6-FinPos'!D47 -> 0 | F50: ='C6-FinPos'!E47 -> 0 | G50: ='C6-FinPos'!F47 -> 0 | H50: ='C6-FinPos'!G47 -> 0
A51: ='C6-FinPos'!A38 -> Borrowing | D51: ='C6-FinPos'!C38 -> 0 | E51: ='C6-FinPos'!D38 -> 0 | F51: ='C6-FinPos'!E38 -> 0 | G51: ='C6-FinPos'!F38 -> 0 | H51: ='C6-FinPos'!G38 -> 0
A52: ='C6-FinPos'!A6 -> Current assets | D52: ='C6-FinPos'!C13 -> 123583276 | E52: ='C6-FinPos'!D13 -> 94181937.94 | F52: ='C6-FinPos'!E13 -> 0 | G52: ='C6-FinPos'!F13 -> 47519640.25 | H52: ='C6-FinPos'!G13 -> 94181937.94
A53: ='C6-FinPos'!A29 -> Current liabilities | D53: ='C6-FinPos'!C35 -> 69802004 | E53: ='C6-FinPos'!D35 -> 26400000 | F53: ='C6-FinPos'!E35 -> 0 | G53: ='C6-FinPos'!F35 -> 205222 | H53: ='C6-FinPos'!G35 -> 26400000
A54: Monetary assets | D54: ='C6-FinPos'!C7+'C6-FinPos'!C8 -> 15884563 | E54: ='C6-FinPos'!D7+'C6-FinPos'!D8 -> 61697399 | F54: ='C6-FinPos'!E7+'C6-FinPos'!E8 -> 0 | G54: ='C6-FinPos'!F7+'C6-FinPos'!F8 -> 46510406 | H54: ='C6-FinPos'!G7+'C6-FinPos'!G8 -> 61697399
A55: ='C4-FinPerf RE'!A22 -> Total Revenue (excluding capital transfers and contributions) | D55: ='C4-FinPerf RE'!C22 -> 318579603 | E55: ='C4-FinPerf RE'!D22 -> 314511190 | F55: ='C4-FinPerf RE'!E22 -> 0 | G55: ='C4-FinPerf RE'!G22 -> 194859439.7 | H55: ='C4-FinPerf RE'!K22 -> 314511190
A56: ='C4-FinPerf RE'!A19 -> Transfers and subsidies | D56: ='C4-FinPerf RE'!C19 -> 256301916 | E56: ='C4-FinPerf RE'!D19 -> 242394726 | F56: ='C4-FinPerf RE'!E19 -> 0 | G56: ='C4-FinPerf RE'!G19 -> 153629468 | H56: ='C4-FinPerf RE'!K19 -> 242394726
A57: ='C4-FinPerf RE'!A39 -> Transfers and subsidies - capital (monetary allocations) (National / Provincial and District) | D57: ='C4-FinPerf RE'!C39 -> 0 | E57: ='C4-FinPerf RE'!D39 -> 0 | F57: ='C4-FinPerf RE'!E39 -> 0 | G57: ='C4-FinPerf RE'!G39 -> 0 | H57: ='C4-FinPerf RE'!K39 -> 0
A58: Debt service payments | D58: ='C7-CFlow'!C12+'C7-CFlow'!C36 -> 5459072 | E58: ='C7-CFlow'!D12+'C7-CFlow'!D36 -> 2230700 | F58: ='C7-CFlow'!E12+'C7-CFlow'!E36 -> 0 | G58: ='C7-CFlow'!G16+'C7-CFlow'!G36 -> 0 | H58: ='C7-CFlow'!K16+'C7-CFlow'!K36 -> 0
A59: Outstanding debtors (receivables) | D59: ='C6-FinPos'!C9+'C6-FinPos'!C10+'C6-FinPos'!C11+'C6-FinPos'!C16 -> 100773358 | E59: ='C6-FinPos'!D9+'C6-FinPos'!D10+'C6-FinPos'!D11+'C6-FinPos'!D16 -> 30769659.28 | F59: ='C6-FinPos'!E9+'C6-FinPos'!E10+'C6-FinPos'!E11+'C6-FinPos'!E16 -> 0 | G59: ='C6-FinPos'!F9+'C6-FinPos'!F10+'C6-FinPos'!F11+'C6-FinPos'!F16 -> 0 | H59: ='C6-FinPos'!G9+'C6-FinPos'!G10+'C6-FinPos'!G11+'C6-FinPos'!G16 -> 30769659.28
A60: Annual services revenue | D60: =SUM('C4-FinPerf RE'!C7:C11) -> 23158623 | E60: =SUM('C4-FinPerf RE'!D7:D11) -> 29666000 | F60: =SUM('C4-FinPerf RE'!E7:E11) -> 0 | G60: =SUM('C4-FinPerf RE'!G7:G11) -> 10737254.4
A61: Cash + investments | B61: Including LT investments | D61: ='C6-FinPos'!C7+'C6-FinPos'!C8+'C6-FinPos'!C17-'C6-FinPos'!C30 -> 19651637 | E61: ='C6-FinPos'!D7+'C6-FinPos'!D8+'C6-FinPos'!D17-'C6-FinPos'!D30 -> 64794725 | F61: ='C6-FinPos'!E7+'C6-FinPos'!E8+'C6-FinPos'!E17-'C6-FinPos'!E30 -> 0 | G61: ='C6-FinPos'!F7+'C6-FinPos'!F8+'C6-FinPos'!F17-'C6-FinPos'!F30 -> 48610605 | H61: ='C6-FinPos'!G7+'C6-FinPos'!G8+'C6-FinPos'!G17-'C6-FinPos'!G30 -> 64794725
A62: Fixed operational expend. (monthly)
A63: Longstanding debtors outstanding | D63: ='C6-FinPos'!C16 -> 0 | E63: ='C6-FinPos'!D16 -> 0 | F63: ='C6-FinPos'!E16 -> 0 | G63: ='C6-FinPos'!F16 -> 0 | H63: ='C6-FinPos'!G16 -> 0
A64: Longstanding debtors recovered
A65: Attorney collections

Sheet SC3
A1: =muni& " - "&S71I& " - "&Head57 -> LIM351 Blouberg - Supporting Table SC3 Monthly Budget Statement - aged debtors - M07 January
A2: =desc -> Description | C2: =Head2 -> Budget Year 2019/20
A3: R thousands | B3: NT Code | C3: 0-30 Days | D3: 31-60 Days | E3: 61-90 Days | F3: 91-120 Days | G3: 121-150 Dys | H3: 151-180 Dys | I3: 181 Dys-1 Yr | J3: Over 1Yr | K3: Total | L3: Total over 90 days | M3: Actual Bad Debts Written Off against Debtors | N3: Impairment - Bad Debts i.t.o Council Policy
A4: Debtors Age Analysis By Income Source
A5: Trade and Other Receivables from Exchange Transactions - Water | B5: 1200 | C5: 0 | D5: 0 | E5: 0 | F5: 0 | G5: 0 | H5: 0 | I5: 0 | J5: 0 | K5: =SUM(C5:J5) -> 0 | L5: =SUM(F5:J5) -> 0 | M5: 0 | N5: 0
A6: Trade and Other Receivables from Exchange Transactions - Electricity | B6: 1300 | C6: 267895.36 | D6: 300492.08 | E6: 353205.21 | F6: 296192.08 | G6: 355486.65 | H6: 324853.18 | I6: 1886705.97 | J6: 4480638.38 | K6: =SUM(C6:J6) -> 8265468.91 | L6: =SUM(F6:J6) -> 7343876.26 | M6: 0 | N6: 0
A7: Receivables from Non-exchange Transactions - Property Rates | B7: 1400 | C7: 364686.59 | D7: 1210956.58 | E7: 243300.81 | F7: 223494.54 | G7: 19722874.34 | H7: 190050.91 | I7: 1089942.85 | J7: 78307556.55 | K7: =SUM(C7:J7) -> 101352863.2 | L7: 99533919.19 | M7: 0 | N7: 0
A8: Receivables from Exchange Transactions - Waste Water Management | B8: 1500 | C8: 0 | D8: 0 | E8: 0 | F8: 0 | G8: 0 | H8: 0 | I8: 0 | J8: 0 | K8: 0 | L8: 0 | M8: 0 | N8: 0
A9: Receivables from Exchange Transactions - Waste Management | B9: 1600 | C9: 45462.49 | D9: 49045.42 | E9: 42078.76 | F9: 41331.79 | G9: 40379.54 | H9: 36099.65 | I9: 199692.53 | J9: 449213.7 | K9: 903303.88 | L9: =SUM(F9:J9) -> 766717.21 | M9: 0 | N9: 0
A10: Receivables from Exchange Transactions - Property Rental Debtors | B10: 1700 | C10: 0 | D10: 0 | E10: 0 | F10: 0 | G10: 0 | H10: 0 | I10: 0 | J10: 0 | K10: 0 | L10: =SUM(F10:J10) -> 0 | M10: 0 | N10: 0
A11: Interest on Arrear Debtor Accounts | B11: 1810 | C11: 133559.13 | D11: 106297.53 | E11: 0 | F11: 0 | G11: 0 | H11: 90046.65 | I11: 10939.65 | J11: 2044898.54 | K11: 2385741.5 | L11: 2145884.84 | M11: 0 | N11: 0
A12: Recoverable unauthorised, irregular, fruitless and wasteful expenditure | B12: 1820 | J12: 0 | K12: 0 | L12: 0 | M12: 0 | N12: 0
A13: Other | B13: 1900 | C13: 16332.34 | D13: 16158.79 | E13: 16074.07 | F13: 16074.07 | G13: 16046.87 | H13: 23407.27 | I13: 19242.15 | J13: 179716.8 | K13: 303052.36 | L13: =SUM(F13:J13) -> 254487.16 | M13: 0 | N13: 0
A14: Total By Income Source | B14: 2000 | C14: =SUM(C5:C13) -> 827935.91 | D14: 1682950.4 | E14: 654658.85 | F14: 577092.48 | G14: 20134787.4 | H14: 664457.66 | I14: 3206523.15 | J14: 85462023.97 | K14: 113210429.8 | L14: =SUM(L5:L13) -> 110044884.7 | M14: 0 | N14: 0
A15: =Head1&" - totals only" -> 2018/19 - totals only | K15: =SUM(C15:J15) -> 0 | L15: =SUM(F15:J15) -> 0
A16: Debtors Age Analysis By Customer Group
A17: Organs of State | B17: 2200 | C17: 82436.07 | D17: 89989.15 | E17: =19382.21-36 -> 19346.21 | F17: 20902.23 | G17: =14159306.77+3621750.44 -> 17781057.21 | H17: 72340.21 | I17: =84817.8+2489827.18 -> 2574644.98 | J17: =14366602.68+65438683.93 -> 79805286.61 | K17: =SUM(C17:J17) -> 100446002.7 | L17: =SUM(F17:J17) -> 100254231.2 | M17: 0 | N17: 0
A18: Commercial | B18: 2300 | C18: =267670.43-221946.39 -> 45724.04 | D18: =1166504.86-344708.93 -> 821795.93 | E18: 221184.97 | F18: 130790.57 | G18: 427689.32 | H18: 174769.4 | I18: 137015.76 | J18: 2562945.83 | K18: =SUM(C18:J18) -> 4521915.82 | L18: =SUM(F18:J18) -> 3433210.88 | M18: 0 | N18: 0
A19: Households | B19: 2400 | C19: 683443.46 | D19: 755006.53 | E19: =600757.85-202704.25 -> 398053.6 | F19: =614660.16-205334.55 -> 409325.61 | G19: 1909994 | H19: =573217.44-179276.66 -> 393940.78 | I19: 475620.26 | J19: 2914074.73 | K19: =SUM(C19:J19) -> 7939458.97 | L19: =SUM(F19:J19) -> 6102955.38 | M19: 0 | N19: 0
A20: Other | B20: 2500 | C20: 16332.34 | D20: 16158.79 | E20: 16074.07 | F20: 16074.07 | G20: 16046.87 | H20: 23407.27 | I20: 19242.15 | J20: 179716.8 | K20: =SUM(C20:J20) -> 303052.36 | L20: =SUM(F20:J20) -> 254487.16 | M20: 0 | N20: 0
A21: Total By Customer Group | B21: 2600 | C21: =SUM(C17:C20) -> 827935.91 | D21: 1682950.4 | E21: 654658.85 | F21: 577092.48 | G21: 20134787.4 | H21: 664457.66 | I21: 3206523.15 | J21: =SUM(J17:J20) -> 85462023.97 | K21: =SUM(K17:K20) -> 113210429.8 | L21: =SUM(L17:L20) -> 110044884.7 | M21: =SUM(M17:M20) -> 0 | N21: =SUM(N17:N20) -> 0
A22: Notes
A23: Material increases in value of debtors' categories compared to previous month to be explained
A24: Bad debts = amounts actually written off in the month
A25: Total by Income Source must reconcile with Total by Customer Group
C26: =C14-C21 -> 0 | D26: =D14-D21 -> 0 | E26: =E14-E21 -> 0 | F26: 0 | G26: 0 | H26: 0 | I26: 0 | J26: =J14-J21 -> 0 | K26: 0
C27: =IF(C26=0,"","MUST AGREE") ->  | D27: =IF(D26=0,"","MUST AGREE") -> 

Sheet SC4
A1: =muni& " - "&S71J& " - "&Head57 -> LIM351 Blouberg - Supporting Table SC4 Monthly Budget Statement - aged creditors - M07 January
A2: =desc -> Description | B2: NT Code | C2: =Head2 -> Budget Year 2019/20 | L2: Prior year totals for chart (same period)
C3: 0 - 30 Days | D3: 31 - 60 Days | E3: 61 - 90 Days | F3: 91 - 120 Days | G3: 121 - 150 Days | H3: 151 - 180 Days | I3: 181 Days - 1 Year | J3: Over 1 Year | K3: Total
A4: R thousands
A5: Creditors Age Analysis By Customer Type
A6: Bulk Electricity | B6: 0100 | C6: 0 | D6: 0 | E6: 0 | F6: 0 | G6: 0 | H6: 0 | I6: 0 | J6: 0 | K6: =SUM(C6:J6) -> 0 | L6: 0
A7: Bulk Water | B7: 0200 | C7: 0 | D7: 0 | E7: 0 | F7: 0 | G7: 0 | H7: 0 | I7: 0 | J7: 0 | K7: =SUM(C7:J7) -> 0 | L7: 0
A8: PAYE deductions | B8: 0300 | C8: 0 | D8: 0 | E8: 0 | F8: 0 | G8: 0 | H8: 0 | I8: 0 | J8: 0 | K8: 0 | L8: 0
A9: VAT (output less input) | B9: 0400 | C9: 0 | D9: 0 | E9: 0 | F9: 0 | G9: 0 | H9: 0 | I9: 0 | J9: 0 | K9: 0 | L9: 0
A10: Pensions / Retirement deductions | B10: 0500 | C10: 0 | D10: 0 | E10: 0 | F10: 0 | G10: 0 | H10: 0 | I10: 0 | J10: 0 | K10: 0 | L10: 0
A11: Loan repayments | B11: 0600 | C11: 0 | D11: 0 | E11: 0 | F11: 0 | G11: 0 | H11: 0 | I11: 0 | J11: 0 | K11: 0 | L11: 0
A12: Trade Creditors | B12: 0700 | C12: 0 | D12: 0 | E12: 0 | F12: 0 | G12: 0 | H12: 0 | I12: 0 | J12: 0 | K12: 0 | L12: 0
A13: Auditor General | B13: 0800 | C13: 0 | D13: 0 | E13: 0 | F13: 0 | G13: 0 | H13: 0 | I13: 0 | J13: 0 | K13: 0 | L13: 0
A14: Other | B14: 0900 | C14: 0 | D14: 0 | E14: 0 | F14: 0 | G14: 0 | H14: 0 | I14: 0 | J14: 0 | K14: =SUM(C14:J14) -> 0 | L14: 0
A15: Total By Customer Type | B15: 1000 | C15: =SUM(C6:C14) -> 0 | D15: =SUM(D6:D14) -> 0 | E15: 0 | F15: 0 | G15: 0 | H15: 0 | I15: 0 | J15: 0 | K15: =SUM(K6:K14) -> 0 | L15: =SUM(L6:L14) -> 0
A16: Notes
A17: Material increases in value of creditors' categories compared to previous month to be explained

Sheet SC5
A1: =muni& " - "&S71K& " - "&Head57 -> LIM351 Blouberg - Supporting Table SC5 Monthly Budget Statement - investment portfolio - M07 January
A2: Investments by maturity Name of institution & investment ID | B2: Ref | C2: Period of Investment | D2: Type of Investment | E2: Expiry date of investment | F2: Accrued interest for the month | G2: Yield for the month 1 (%) | H2: Market value at beginning of the month | I2: Change in market value | J2: Market value at end of the month
A3: R thousands | C3: Yrs/Months
A4: Municipality
A5: ABSA 20-7075-00-19 | C5: Months | D5: Eskom Guarantee | E5: 2019.03.12 | F5: 21199 | G5: 0.0718 | H5: 3079000 | J5: =F5+H5 -> 3100199
A6: Nedbank | C6: months | D6: Fixed | E6: 2019.03.10 | F6: 94630 | G6: 0.0785 | H6: 20000000 | J6: =F6+H6 -> 20094630
A12: Municipality sub-total | F12: =SUM(F5:F11) -> 115829 | H12: =SUM(H5:H11) -> 23079000 | I12: =SUM(I5:I11) -> 0 | J12: =SUM(J5:J11) -> 23194829
A14: Entities
A22: Entities sub-total | F22: =SUM(F15:F21) -> 0 | H22: =SUM(H15:H21) -> 0 | I22: =SUM(I15:I21) -> 0 | J22: =SUM(J15:J21) -> 0
A24: TOTAL INVESTMENTS AND INTEREST | B24: 2 | F24: =F12+F22 -> 115829 | H24: =H12+H22 -> 23079000 | I24: =I12+I22 -> 0 | J24: =J12+J22 -> 23194829
A25: =head27a -> References
A26: 1. Yield is calculated as the annualised equivalent
A27: 2. Total market value must reconcile with the total of investments on the 'Financial Position statement'

Sheet SC6
A1: =muni& " - "&S71L& " - "&Head57 -> LIM351 Blouberg - Supporting Table SC6 Monthly Budget Statement - transfers and grant receipts - M07 January
A2: =desc -> Description | B2: =head27 -> Ref | C2: =Head1 -> 2018/19 | D2: =Head2 -> Budget Year 2019/20
C3: =Head5 -> Audited Outcome | D3: =Head6 -> Original Budget | E3: =Head7 -> Adjusted Budget | F3: =Head38 -> Monthly actual | G3: =Head39 -> YearTD actual | H3: =Head40 -> YearTD budget | I3: =Head41 -> YTD variance | J3: =Head41 -> YTD variance | K3: =Head8 -> Full Year Forecast
A4: R thousands | J4: %
A5: RECEIPTS: | B5: 1,2
A7: Operating Transfers and Grants
A8: National Government: | C8: =SUM(C9:C19) -> 168254187 | D8: 172408000 | E8: 0 | F8: 0 | G8: 131643921 | H8: 121627000 | I8: 12038000 | J8: =IF(I8=0,"",I8/H8) -> 0.09897473423 | K8: =SUM(K9:K19) -> 172408000
A9: Local Government Equitable Share | C9: 161115187 | D9: 167730000 | F9: 0 | G9: =69888000+59100000 -> 128988000 | H9: 116950000 | I9: =G9-H9 -> 12038000 | J9: 0.1029328773 | K9: 167730000
A10: Finance Management | C10: 2533000 | D10: 2534000 | F10: 0 | G10: 1567572 | H10: 2533000 | K10: 2534000
A11: EPWP Incentive | C11: 1562000 | D11: 1089000 | F11: 0 | G11: 1088349 | H11: 1089000 | K11: 1089000
A12: Municipal Systems Improvement | C12: 0 | D12: 1055000 | E12: 0 | F12: 0 | G12: 0 | H12: 1055000 | K12: 1055000
B14: 3 | I14: 0
I15: 0
I16: 0
I17: 0
I18: 0
A19: municipal demacation transition grant | C19: 3044000 | I19: 0
A20: Provincial Government: | C20: =SUM(C21:C26) -> 0 | D20: 0 | E20: 0 | F20: 0 | G20: 0 | H20: 0 | I20: 0 | K20: =SUM(K21:K26) -> 0
I21: =G21-H21 -> 0
I23: 0
B24: 4 | I24: 0
I25: 0
A26: Other transfers and grants [insert description] | I26: 0
A27: District Municipality: | C27: =SUM(C28:C29) -> 5137263 | D27: 3300000 | E27: 0 | F27: 0 | G27: 1650000 | H27: 1500000 | I27: 150000 | J27: 0.1 | K27: =SUM(K28:K29) -> 0
A28: CDM Grant ( Landfile site grant) | C28: 5137263 | D28: 3300000 | F28: 0 | G28: 1650000 | H28: 1500000 | I28: 150000 | J28: 0.1
I29: 0
A30: Other grant providers: | C30: =SUM(C31:C37) -> 25855950 | D30: 13870726 | E30: 0 | F30: 0 | G30: 6244468.69 | H30: 13870726 | I30: -7626257.31 | J30: -0.5498095276 | K30: =SUM(K31:K37) -> 0
A31: National skills fund-grant | C31: 25855950 | D31: 13870726 | F31: 0 | G31: 6244468.69 | H31: 13870726 | I31: -7626257.31 | J31: -0.5498095276
I37: 0
A38: Total Operating Transfers and Grants | B38: 5 | C38: =C8+C20+C27+C30 -> 199247400 | D38: 189578726 | E38: 0 | F38: 0 | G38: 139538389.7 | H38: 136997726 | I38: 4561742.69 | J38: 0.0332979446 | K38: =K8+K20+K27+K30 -> 172408000
A40: Capital Transfers and Grants
A41: =A8 -> National Government: | C41: =SUM(C42:C51) -> 53554516 | D41: 47786000 | E41: 0 | F41: 0 | G41: 44384000 | H41: 46858500 | I41: -2474500 | J41: =IF(I41=0,"",I41/H41) -> -0.05280792172 | K41: 47786000
A42: Municipal Infrastructure Grant (MIG) | C42: 46554516 | D42: 43491000 | F42: 0 | G42: =21265000+18824000 -> 40089000 | H42: 42563500 | I42: =G42-H42 -> -2474500 | J42: -0.05813666639 | K42: 43491000
I47: 0
I48: 0
I49: 0
I50: 0
A51: INEP | C51: =10500000-3500000 -> 7000000 | D51: 4295000 | F51: 0 | G51: 4295000 | H51: 4295000 | I51: 0 | K51: 4295000
A52: =A20 -> Provincial Government: | C52: =SUM(C53:C58) -> 3500000 | D52: 5000000 | E52: 0 | F52: 0 | G52: 4000000 | H52: 5000000 | I52: =G52-H52 -> -1000000 | J52: =IF(I52=0,"",I52/H52) -> -0.2 | K52: =SUM(K53:K58) -> 5000000
A53: EEDG | C53: 3500000 | D53: 5000000 | F53: 0 | G53: 4000000 | H53: 5000000 | I53: -1000000 | J53: =IF(I53=0,"",I53/H53) -> -0.2 | K53: 5000000
I58: 0
A59: =A27 -> District Municipality: | C59: =SUM(C60:C61) -> 0 | D59: 0 | E59: 0 | F59: 0 | G59: 0 | H59: 0 | I59: 0 | K59: =SUM(K60:K61) -> 0
A60: [insert description] | I60: 0
I61: 0
A62: =A30 -> Other grant providers: | C62: =SUM(C63:C68) -> 0 | D62: 0 | E62: 0 | F62: 0 | G62: 0 | H62: 0 | I62: 0 | K62: =SUM(K63:K68) -> 0
A63: [insert description] | I63: 0 | J63: =IF(I63=0,"",I63/H63) -> 
I68: 0
A69: Total Capital Transfers and Grants | B69: 5 | C69: =C41+C52+C59+C62 -> 57054516 | D69: =D41+D52+D59+D62 -> 52786000 | E69: 0 | F69: 0 | G69: 48384000 | H69: 51858500 | I69: -3474500 | J69: -0.06699962398 | K69: 52786000
A71: TOTAL RECEIPTS OF TRANSFERS & GRANTS | B71: 5 | C71: =C38+C69 -> 256301916 | D71: 242364726 | E71: 0 | F71: 0 | G71: 187922389.7 | H71: 188856226 | I71: 1087242.69 | J71: 0.005756986217 | K71: 225194000
A72: =head27a -> References
A73: 1. Each grant is listed by name as gazetted together with the name of the transferring department or municipality, donor or other organisation
A74: 2. Grant expenditure must be separately listed for each grant received
A75: 3. Replacement of RSC levies
A76: 4. Housing subsidies for housing where ownership transferred
A77: 5. Total recurrent/capital grants and subsidies must reconcile to the 'Financial Performance' Statement

Sheet SC7(1)
A1: =muni& " - "&S71M& " - "&Head57 -> LIM351 Blouberg - Supporting Table SC7(1) Monthly Budget Statement - transfers and grant expenditure - M07 January
A2: =desc -> Description | B2: =head27 -> Ref | C2: =Head1 -> 2018/19 | D2: =Head2 -> Budget Year 2019/20
C3: =Head5 -> Audited Outcome | D3: =Head6 -> Original Budget | E3: =Head7 -> Adjusted Budget | F3: =Head38 -> Monthly actual | G3: =Head39 -> YearTD actual | H3: =Head40 -> YearTD budget | I3: =Head41 -> YTD variance | J3: =Head41 -> YTD variance | K3: =Head8 -> Full Year Forecast
A4: R thousands | J4: %
A5: EXPENDITURE
A7: Operating expenditure of Transfers and Grants
A8: ='SC6'!A8 -> National Government: | C8: =SUM(C9:C15) -> 168254187 | D8: 172408000 | E8: 0 | F8: 23638165 | G8: 25180807 | H8: 121627000 | I8: -96446193 | J8: =IF(I8=0,"",I8/H8) -> -0.7929669646 | K8: =SUM(K9:K15) -> 172408000
A9: ='SC6'!A9 -> Local Government Equitable Share | C9: 161115187 | D9: 167730000 | E9: 0 | F9: 23296000 | G9: 23296000 | H9: 116950000 | I9: =G9-H9 -> -93654000 | J9: -0.8008037623 | K9: 167730000
A10: ='SC6'!A10 -> Finance Management | C10: 2533000 | D10: 2534000 | F10: 79415 | G10: 929000 | H10: 2533000 | I10: -1604000 | J10: -0.6332412159 | K10: 2534000
A11: ='SC6'!A11 -> EPWP Incentive | C11: 1562000 | D11: 1089000 | E11: 0 | F11: 262750 | G11: 955807 | H11: 1089000 | I11: -133193 | J11: -0.1223076217 | K11: 1089000
A12: ='SC6'!A12 -> Municipal Systems Improvement | C12: 0 | D12: 1055000 | E12: 0 | F12: 0 | G12: 0 | H12: 1055000 | I12: -1055000 | J12: -1 | K12: 1055000
A13: ='SC6'!A13 -> 0 | I13: 0
A14: ='SC6'!A14 -> 0 | I14: 0
A15: ='SC6'!A19 -> municipal demacation transition grant | C15: 3044000 | D15: 0 | I15: 0
A16: ='SC6'!A20 -> Provincial Government: | C16: =SUM(C17:C21) -> 0 | D16: 0 | E16: 0 | F16: 0 | G16: 0 | H16: 0 | I16: 0 | K16: =SUM(K17:K21) -> 0
A17: ='SC6'!A21 -> 0 | I17: =G17-H17 -> 0
A18: ='SC6'!A23 -> 0 | I18: 0
A19: ='SC6'!A24 -> 0 | I19: 0
A20: ='SC6'!A25 -> 0 | I20: 0
A21: ='SC6'!A26 -> Other transfers and grants [insert description] | I21: 0
A22: ='SC6'!A27 -> District Municipality: | C22: =SUM(C23:C24) -> 5137263 | D22: 3300000 | E22: =SUM(E23:E24) -> 0 | F22: 234210 | G22: 468421 | H22: 1500000 | I22: -1031579 | J22: -0.6877193333 | K22: =SUM(K23:K24) -> 3300000
I23: 0
A24: ='SC6'!A28 -> CDM Grant ( Landfile site grant) | C24: 5137263 | D24: 3300000 | F24: 234210 | G24: 468421 | H24: 1500000 | I24: -1031579 | J24: -0.6877193333 | K24: 3300000
A25: ='SC6'!A30 -> Other grant providers: | C25: =SUM(C26:C27) -> 25855950 | D25: 13870726 | E25: 0 | F25: 0 | G25: 6762862 | H25: 13870726 | I25: -7107864 | J25: -0.5124363353 | K25: =SUM(K26:K27) -> 13870726
I26: 0
A27: ='SC6'!A31 -> National skills fund-grant | C27: 25855950 | D27: 13870726 | E27: 0 | F27: 0 | G27: 6762862 | H27: 13870726 | I27: -7107864 | J27: -0.5124363353 | K27: 13870726
A28: Total operating expenditure of Transfers and Grants: | C28: =C8+C16+C22+C25 -> 199247400 | D28: =D8+D16+D22+D25 -> 189578726 | E28: 0 | F28: 23872375 | G28: 32412090 | H28: 136997726 | I28: -104585636 | J28: -0.7634114744 | K28: =K8+K16+K22+K25 -> 189578726
A30: Capital expenditure of Transfers and Grants
A31: ='SC6'!A41 -> National Government: | C31: =SUM(C32:C37) -> 53554516 | D31: 47786000 | E31: 0 | F31: 0 | G31: 4467526 | H31: 46858500 | I31: -42390974 | J31: =IF(I31=0,"",I31/H31) -> -0.9046592187 | K31: 47786000
A32: ='SC6'!A42 -> Municipal Infrastructure Grant (MIG) | C32: 46554516 | D32: 43491000 | F32: 0 | G32: 2172526 | H32: 42563500 | I32: =G32-H32 -> -40390974 | J32: -0.9489580039 | K32: 43491000
A33: ='SC6'!A47 -> 0 | I33: 0
A34: ='SC6'!A48 -> 0 | I34: 0
A35: ='SC6'!A49 -> 0 | I35: 0
A36: ='SC6'!A50 -> 0 | I36: 0
A37: ='SC6'!A51 -> INEP | C37: 7000000 | D37: 4295000 | G37: 2295000 | H37: 4295000 | I37: -2000000 | J37: -0.4656577416 | K37: 4295000
A38: ='SC6'!A52 -> Provincial Government: | C38: =SUM(C39:C40) -> 3500000 | D38: 5000000 | E38: 0 | F38: 0 | G38: 4000000 | H38: 5000000 | I38: =G38-H38 -> -1000000 | J38: -0.2 | K38: =SUM(K39:K40) -> 0
C39: 3500000 | D39: 5000000 | F39: 0 | G39: 4000000 | H39: 5000000 | I39: -1000000 | J39: -0.2
A40: ='SC6'!A58 -> 0 | D40: 0 | E40: 0 | F40: 0 | G40: 0 | H40: 0 | I40: 0 | K40: 0
A41: ='SC6'!A59 -> District Municipality: | C41: =SUM(C42:C43) -> 0 | D41: 0 | E41: 0 | F41: 0 | G41: 0 | H41: 0 | I41: 0 | K41: =SUM(K42:K43) -> 0
I42: 0
A43: ='SC6'!A61 -> 0 | I43: 0
A44: ='SC6'!A62 -> Other grant providers: | C44: =SUM(C45:C46) -> 0 | D44: 0 | E44: 0 | F44: 0 | G44: 0 | H44: 0 | I44: 0 | K44: =SUM(K45:K46) -> 0
I45: 0
A46: ='SC6'!A68 -> 0 | I46: 0
A47: Total capital expenditure of Transfers and Grants | C47: =C31+C38+C41+C44 -> 57054516 | D47: =D31+D38+D41+D44 -> 52786000 | E47: 0 | F47: 0 | G47: 8467526 | H47: 51858500 | I47: -43390974 | J47: =IF(I47=0,"",I47/H47) -> -0.8367186479 | K47: 47786000
A49: TOTAL EXPENDITURE OF TRANSFERS AND GRANTS | C49: =C28+C47 -> 256301916 | D49: 242364726 | E49: 0 | F49: 23872375 | G49: 40879616 | H49: 188856226 | I49: -147976610 | J49: =IF(I49=0,"",I49/H49) -> -0.7835410732 | K49: 237364726
A50: =head27a -> References

Sheet SC7(2)
A1: =muni& " - "&S71T& " - "&Head57 -> LIM351 Blouberg - Supporting Table SC7(2) Monthly Budget Statement - Expenditure against approved rollovers - M07 January
A2: =desc -> Description | B2: =head27 -> Ref | C2: =Head2 -> Budget Year 2019/20
C3: ="Approved Rollover " &Head1 -> Approved Rollover 2018/19 | D3: =Head38 -> Monthly actual | E3: =Head39 -> YearTD actual | F3: =Head41 -> YTD variance | G3: =Head41 -> YTD variance
A4: R thousands | G4: %
A5: EXPENDITURE
A7: Operating expenditure of Approved Roll-overs
A8: ='SC6'!A8 -> National Government: | C8: =SUM(C9:C15) -> 0 | D8: =SUM(D9:D15) -> 0 | E8: =SUM(E9:E15) -> 0 | F8: =SUM(F9:F15) -> 0 | G8: =IF(F8=0,"",F8/C8) -> 
A9: ='SC6'!A9 -> Local Government Equitable Share | F9: =E9-C9 -> 0 | G9: =IF(F9=0,"",F9/C9) -> 
A10: ='SC6'!A10 -> Finance Management | F10: =C10-E10 -> 0
A11: ='SC6'!A11 -> EPWP Incentive | F11: 0
A12: ='SC6'!A12 -> Municipal Systems Improvement | F12: 0
A13: ='SC6'!A13 -> 0 | F13: 0
A14: ='SC6'!A14 -> 0 | F14: 0
A15: ='SC6'!A19 -> municipal demacation transition grant | F15: 0
A16: ='SC6'!A20 -> Provincial Government: | C16: =SUM(C17:C21) -> 0 | D16: =SUM(D17:D21) -> 0 | E16: =SUM(E17:E21) -> 0 | F16: =SUM(F17:F21) -> 0
A17: ='SC6'!A21 -> 0 | F17: =C17-E17 -> 0
A18: ='SC6'!A23 -> 0 | F18: =C18-E18 -> 0
A19: ='SC6'!A24 -> 0 | F19: =C19-E19 -> 0
A20: ='SC6'!A25 -> 0 | F20: =C20-E20 -> 0
A21: ='SC6'!A26 -> Other transfers and grants [insert description] | F21: =C21-E21 -> 0
A22: ='SC6'!A27 -> District Municipality: | C22: =SUM(C23:C24) -> 0 | D22: =SUM(D23:D24) -> 0 | E22: =SUM(E23:E24) -> 0 | F22: =SUM(F23:F24) -> 0
F23: =C23-E23 -> 0
A24: ='SC6'!A28 -> CDM Grant ( Landfile site grant) | F24: =C24-E24 -> 0
A25: ='SC6'!A30 -> Other grant providers: | C25: =SUM(C26:C27) -> 0 | D25: =SUM(D26:D27) -> 0 | E25: =SUM(E26:E27) -> 0 | F25: =SUM(F26:F27) -> 0
F26: =C26-E26 -> 0
A27: ='SC6'!A31 -> National skills fund-grant | F27: =C27-E27 -> 0
A28: Total operating expenditure of Approved Roll-overs | C28: =C8+C16+C22+C25 -> 0 | D28: =D8+D16+D22+D25 -> 0 | E28: =E8+E16+E22+E25 -> 0 | F28: =F8+F16+F22+F25 -> 0
A30: Capital expenditure of Approved Roll-overs
A31: ='SC6'!A41 -> National Government: | C31: =SUM(C32:C37) -> 0 | D31: =SUM(D32:D37) -> 0 | E31: =SUM(E32:E37) -> 0 | F31: =SUM(F32:F37) -> 0
A32: ='SC6'!A42 -> Municipal Infrastructure Grant (MIG) | F32: =C32-E32 -> 0
A33: ='SC6'!A47 -> 0 | F33: 0
A34: ='SC6'!A48 -> 0 | F34: 0
A35: ='SC6'!A49 -> 0 | F35: 0
A36: ='SC6'!A50 -> 0 | F36: 0
A37: ='SC6'!A51 -> INEP | F37: 0
A38: ='SC6'!A52 -> Provincial Government: | C38: =SUM(C39:C40) -> 0 | D38: =SUM(D39:D40) -> 0 | E38: =SUM(E39:E40) -> 0 | F38: =SUM(F39:F40) -> 0
F39: =C39-E39 -> 0
A40: ='SC6'!A58 -> 0 | F40: =C40-E40 -> 0
A41: ='SC6'!A59 -> District Municipality: | C41: =SUM(C42:C43) -> 0 | D41: =SUM(D42:D43) -> 0 | E41: =SUM(E42:E43) -> 0 | F41: =SUM(F42:F43) -> 0
F42: =C42-E42 -> 0
A43: ='SC6'!A61 -> 0 | F43: =C43-E43 -> 0
A44: ='SC6'!A62 -> Other grant providers: | C44: =SUM(C45:C46) -> 0 | D44: =SUM(D45:D46) -> 0 | E44: =SUM(E45:E46) -> 0 | F44: =SUM(F45:F46) -> 0
F45: =C45-E45 -> 0
A46: ='SC6'!A68 -> 0 | F46: =C46-E46 -> 0
A47: Total capital expenditure of Approved Roll-overs | C47: =C31+C38+C41+C44 -> 0 | D47: =D31+D38+D41+D44 -> 0 | E47: =E31+E38+E41+E44 -> 0 | F47: =F31+F38+F41+F44 -> 0
A49: TOTAL EXPENDITURE OF APPROVED ROLL-OVERS | C49: =C28+C47 -> 0 | D49: =D28+D47 -> 0 | E49: =E28+E47 -> 0 | F49: =F28+F47 -> 0
A50: =head27a -> References

Sheet SC8
A1: =muni& " - "&S71N& " - "&Head57 -> LIM351 Blouberg - Supporting Table SC8 Monthly Budget Statement - councillor and staff benefits - M07 January
A2: Summary of Employee and Councillor remuneration | B2: =head27 -> Ref | C2: =Head1 -> 2018/19 | D2: =Head2 -> Budget Year 2019/20
C3: =Head5 -> Audited Outcome | D3: =Head6 -> Original Budget | E3: =Head7 -> Adjusted Budget | F3: =Head38 -> Monthly actual | G3: =Head39 -> YearTD actual | H3: =Head40 -> YearTD budget | I3: =Head41 -> YTD variance | J3: =Head41 -> YTD variance | K3: =Head8 -> Full Year Forecast
A4: R thousands | J4: %
B5: 1 | C5: A | D5: B | E5: C | K5: D
A6: Councillors (Political Office Bearers plus Other)
A7: Basic Salaries and Wages | C7: 8594618.344 | D7: 8594618.344 | F7: 859414.08 | G7: 2693473 | H7: 2693473 | I7: =G7-H7 -> 0 | J7: =IF(I7=0,"",I7/H7) ->  | K7: 8594618.344
A8: Pension and UIF Contributions | C8: 2939044.245 | D8: 2939044.245 | F8: 141164.84 | G8: 390193 | H8: 390193 | I8: 0 | K8: 2939044.245
A9: Medical Aid Contributions | C9: 0 | D9: 0 | F9: 0 | G9: 0 | H9: 0 | I9: 0 | K9: 0
A10: Motor Vehicle Allowance | C10: 3946833.27 | D10: 3946833.27 | F10: 209991.3 | G10: 536810 | H10: 536810 | I10: =G10-H10 -> 0 | J10: =IF(I10=0,"",I10/H10) ->  | K10: 3946833.27
A11: Cellphone Allowance | C11: 1105056 | D11: 1105056 | F11: 101200 | G11: 314833 | H11: 314833 | I11: =G11-H11 -> 0 | J11: =IF(I11=0,"",I11/H11) ->  | K11: 1105056
A12: Housing Allowances | C12: 171072 | D12: 171072 | F12: 0 | G12: 0 | H12: 0 | I12: =G12-H12 -> 0 | J12: =IF(I12=0,"",I12/H12) ->  | K12: 171072
A13: Other benefits and allowances | C13: =3000000-111181 -> 2888819 | D13: 0 | E13: 0 | F13: 0 | G13: 0 | H13: 0 | I13: 0 | K13: 0
A14: Sub Total - Councillors | C14: =SUM(C7:C13) -> 19645442.86 | D14: 16756623.86 | E14: 0 | F14: 1311770.22 | G14: 3935309 | H14: 3935309 | I14: 0 | K14: 16756623.86
A15: % increase | B15: 4 | D15: =IF(D14=0,"",(D14/C14)-1) -> -0.1470477922 | E15: =IF(E14=0,"",(E14/C14)-1) ->  | K15: =IF(K14=0,"",(K14/C14)-1) -> -0.1470477922
A17: Senior Managers of the Municipality | B17: 3
A18: Basic Salaries and Wages | C18: =582145+141719+2192265 -> 2916129 | D18: 4557897.933 | F18: 194345 | G18: 194345 | H18: 682700.2983 | I18: =G18-H18 -> -488355.2983 | J18: =IF(I18=0,"",I18/H18) -> -0.7153289658 | K18: 4096201.79
A19: Pension and UIF Contributions | C19: =121579+155444 -> 277023 | D19: 681324.7779 | F19: 46870 | G19: 46870 | H19: 120574.8114 | I19: -73704.8114 | J19: -0.6112786787 | K19: 723448.8684
A20: Medical Aid Contributions | C20: 0 | D20: 0 | H20: 0 | I20: 0 | K20: 0
A21: Overtime | C21: 0 | D21: 0 | H21: 0 | I21: 0 | K21: 0
A22: Performance Bonus | C22: =59555+65356 -> 124911 | D22: 0 | H22: 0 | I22: =G22-H22 -> 0 | J22: =IF(I22=0,"",I22/H22) ->  | K22: 0
A23: Motor Vehicle Allowance | C23: =232311+40156+586653 -> 859120 | D23: 1304216.448 | F23: 91742 | G23: 91742 | H23: 228963.495 | I23: =G23-H23 -> -137221.495 | J23: =IF(I23=0,"",I23/H23) -> -0.5993160394 | K23: 1373780.97
A24: Cellphone Allowance | C24: 0 | D24: 159500.5344 | F24: 11631 | G24: 11631 | H24: 24614.28 | I24: =G24-H24 -> -12983.28 | J24: =IF(I24=0,"",I24/H24) -> -0.5274694202 | K24: 147685.68
A25: Housing Allowances | C25: 0 | D25: 0 | H25: 0 | I25: =G25-H25 -> 0 | J25: =IF(I25=0,"",I25/H25) -> 
A26: Other benefits and allowances | C26: =79480+187456+28955+38712+363299+186796 -> 884698 | D26: 2701.188 | F26: 41.25 | G26: 41.25 | H26: 416.85 | I26: -375.6 | J26: -0.9010435408 | K26: 2501.1
A27: Payments in lieu of leave | C27: 0 | H27: 0 | I27: 0
A28: Long service awards | C28: 0 | H28: 0 | I28: 0
A29: Post-retirement benefit obligations | B29: 2 | C29: 0 | I29: 0
A30: Sub Total - Senior Managers of Municipality | C30: =SUM(C18:C29) -> 5061881 | D30: 6705640.881 | E30: 0 | F30: =SUM(F18:F29) -> 344629.25 | G30: =SUM(G18:G29) -> 344629.25 | H30: =SUM(H18:H29) -> 1057269.735 | I30: -712640.4847 | J30: =IF(I30=0,"",I30/H30) -> -0.6740384798 | K30: 6343618.408
A31: % increase | B31: 4 | D31: =IF(D30=0,"",(D30/C30)-1) -> 0.3247330155 | E31: =IF(E30=0,"",(E30/C30)-1) ->  | K31: =IF(K30=0,"",(K30/C30)-1) -> 0.2532136588
A33: Other Municipal Staff
A34: Basic Salaries and Wages | C34: 56550516 | D34: 55953036.35 | F34: 5733311.63 | G34: 15545390.38 | H34: 16750468.57 | I34: =G34-H34 -> -1205078.192 | J34: =IF(I34=0,"",I34/H34) -> -0.07194295413 | K34: 55953036.35
A35: Pension and UIF Contributions | C35: 11799283 | D35: 13511259.56 | F35: 1051537.69 | G35: 3107598.27 | H35: 3107598.27 | I35: 0 | K35: 13511259.56
A36: Medical Aid Contributions | C36: 3611307 | D36: 3954486.906 | F36: 318205.4 | G36: 1020453.44 | H36: 1020453.44 | I36: 0 | K36: 3954486.906
A37: Overtime | C37: 2170304 | D37: 1359720 | F37: 237148.53 | G37: 648762.2 | H37: 648762.2 | I37: 0 | K37: 1359720
A38: Performance Bonus | C38: 0 | D38: 652995 | F38: 0 | G38: 1 | H38: 0 | I38: 1 | K38: 652995
A39: Motor Vehicle Allowance | C39: 13850500 | D39: 13826942.21 | F39: 1134941.81 | G39: 3291793.83 | H39: 3291793.83 | I39: =G39-H39 -> 0 | J39: =IF(I39=0,"",I39/H39) ->  | K39: 13826942.21
A40: Cellphone Allowance | C40: 1820108 | D40: 1696309.592 | F40: 143328.09 | G40: 474140.34 | H40: 474140.34 | I40: =G40-H40 -> 0 | J40: =IF(I40=0,"",I40/H40) ->  | K40: 1696309.592
A41: Housing Allowances | C41: 361405 | D41: 254737.6128 | F41: 12785.55 | G41: 36683.85 | H41: 22644.69333 | I41: =G41-H41 -> 14039.15667 | J41: =IF(I41=0,"",I41/H41) -> 0.6199755704 | K41: 254737.6128
A42: Other benefits and allowances | C42: =5205689+350475+747113+2598112+507000+191492+19841+457683 -> 10077405 | D42: 10349574.95 | F42: 669750.21 | G42: 1504821.81 | H42: 1504821.81 | I42: 0 | K42: 10349574.95
A43: Payments in lieu of leave | C43: 0 | D43: 0 | E43: 0 | F43: 0 | G43: 0 | H43: 0 | I43: 0 | K43: 0
A44: Long service awards | C44: 0 | D44: 0 | E44: 0 | F44: 0 | G44: 0 | H44: 0 | I44: 0 | K44: 0
A45: Post-retirement benefit obligations | B45: 2 | C45: 0 | D45: 0 | E45: 0 | F45: 0 | G45: 0 | H45: 0 | I45: 0 | K45: 0
A46: Sub Total - Other Municipal Staff | C46: =SUM(C34:C45) -> 100240828 | D46: 101559062.2 | E46: 0 | F46: =SUM(F34:F45) -> 9301008.91 | G46: =SUM(G34:G45) -> 25629645.12 | H46: =SUM(H34:H45) -> 26820683.16 | I46: -1191038.036 | J46: =IF(I46=0,"",I46/H46) -> -0.04440744587 | K46: 101559062.2
A47: % increase | B47: 4 | D47: =IF(D46=0,"",(D46/C46)-1) -> 0.01315067135 | E47: =IF(E46=0,"",(E46/C46)-1) ->  | K47: =IF(K46=0,"",(K46/C46)-1) -> 0.01315067135
A49: Total Parent Municipality | C49: =C14+C30+C46 -> 124948151.9 | D49: =D14+D30+D46 -> 125021326.9 | E49: 0 | F49: 10957408.38 | G49: 29909583.37 | H49: 31813261.89 | I49: =G49-H49 -> -1903678.52 | J49: =IF(I49=0,"",I49/H49) -> -0.05983914906 | K49: 124659304.5
D50: =IF(D49=0,"",(D49/C49)-1) -> 0.0005856434419 | E50: =IF(E49=0,"",(E49/C49)-1) ->  | K50: =IF(K49=0,"",(K49/C49)-1) -> -0.00231173813
A51: Unpaid salary, allowances & benefits in arrears:
A53: Board Members of Entities
A54: Basic Salaries and Wages | C54: 0 | D54: 0 | E54: 0 | F54: 0 | G54: 0 | H54: 0 | I54: =G54-H54 -> 0 | J54: =IF(I54=0,"",I54/H54) ->  | K54: 0
A55: Pension and UIF Contributions | C55: 0 | D55: 0 | E55: 0 | F55: 0 | G55: 0 | H55: 0 | I55: 0 | K55: 0
A56: Medical Aid Contributions | C56: 0 | D56: 0 | E56: 0 | F56: 0 | G56: 0 | H56: 0 | I56: 0 | K56: 0
A57: Overtime | C57: 0 | D57: 0 | E57: 0 | F57: 0 | G57: 0 | H57: 0 | I57: =G57-H57 -> 0 | J57: =IF(I57=0,"",I57/H57) ->  | K57: 0
A58: Performance Bonus | C58: 0 | D58: 0 | E58: 0 | F58: 0 | G58: 0 | H58: 0 | I58: =G58-H58 -> 0 | J58: =IF(I58=0,"",I58/H58) ->  | K58: 0
A59: Motor Vehicle Allowance | C59: 0 | D59: 0 | E59: 0 | F59: 0 | G59: 0 | H59: 0 | I59: =G59-H59 -> 0 | J59: =IF(I59=0,"",I59/H59) ->  | K59: 0
A60: Cellphone Allowance | C60: 0 | D60: 0 | E60: 0 | F60: 0 | G60: 0 | H60: 0 | I60: =G60-H60 -> 0 | J60: =IF(I60=0,"",I60/H60) ->  | K60: 0
A61: Housing Allowances | C61: 0 | D61: 0 | E61: 0 | F61: 0 | G61: 0 | H61: 0 | I61: =G61-H61 -> 0 | J61: =IF(I61=0,"",I61/H61) ->  | K61: 0
A62: Other benefits and allowances | C62: 0 | D62: 0 | E62: 0 | F62: 0 | G62: 0 | H62: 0 | I62: 0 | K62: 0
A63: Board Fees | C63: 0 | D63: 0 | E63: 0 | F63: 0 | G63: 0 | H63: 0 | I63: =G63-H63 -> 0 | J63: =IF(I63=0,"",I63/H63) ->  | K63: 0
A64: Payments in lieu of leave | C64: 0 | D64: 0 | E64: 0 | F64: 0 | G64: 0 | H64: 0 | I64: 0 | K64: 0
A65: Long service awards | C65: 0 | D65: 0 | E65: 0 | F65: 0 | G65: 0 | H65: 0 | I65: 0 | K65: 0
A66: Post-retirement benefit obligations | C66: 0 | D66: 0 | E66: 0 | F66: 0 | G66: 0 | H66: 0 | I66: 0 | K66: 0
A67: Sub Total - Board Members of Entities | B67: 2 | C67: =SUM(C54:C66) -> 0 | D67: 0 | E67: 0 | F67: =SUM(F54:F66) -> 0 | G67: =SUM(G54:G66) -> 0 | H67: =SUM(H54:H66) -> 0 | I67: 0 | J67: =IF(I67=0,"",I67/H67) ->  | K67: 0
A68: % increase | B68: 4 | D68: =IF(D67=0,"",(D67/C67)-1) ->  | E68: =IF(E67=0,"",(E67/C67)-1) ->  | K68: =IF(K67=0,"",(K67/C67)-1) -> 
A70: Senior Managers of Entities
A71: Basic Salaries and Wages | C71: 0 | D71: 0 | E71: 0 | F71: 0 | G71: 0 | H71: 0 | I71: =G71-H71 -> 0 | J71: =IF(I71=0,"",I71/H71) ->  | K71: 0
A72: Pension and UIF Contributions | C72: 0 | D72: 0 | E72: 0 | F72: 0 | G72: 0 | H72: 0 | I72: 0 | K72: 0
A73: Medical Aid Contributions | C73: 0 | D73: 0 | E73: 0 | F73: 0 | G73: 0 | H73: 0 | I73: 0 | K73: 0
A74: Overtime | C74: 0 | D74: 0 | E74: 0 | F74: 0 | G74: 0 | H74: 0 | I74: 0 | K74: 0
A75: Performance Bonus | C75: 0 | D75: 0 | E75: 0 | F75: 0 | G75: 0 | H75: 0 | I75: =G75-H75 -> 0 | J75: =IF(I75=0,"",I75/H75) ->  | K75: 0
A76: Motor Vehicle Allowance | C76: 0 | D76: 0 | E76: 0 | F76: 0 | G76: 0 | H76: 0 | I76: =G76-H76 -> 0 | J76: =IF(I76=0,"",I76/H76) ->  | K76: 0
A77: Cellphone Allowance | C77: 0 | D77: 0 | E77: 0 | F77: 0 | G77: 0 | H77: 0 | I77: =G77-H77 -> 0 | J77: =IF(I77=0,"",I77/H77) ->  | K77: 0
A78: Housing Allowances | C78: 0 | D78: 0 | E78: 0 | F78: 0 | G78: 0 | H78: 0 | I78: =G78-H78 -> 0 | J78: =IF(I78=0,"",I78/H78) ->  | K78: 0
A79: Other benefits and allowances | C79: 0 | D79: 0 | E79: 0 | F79: 0 | G79: 0 | H79: 0 | I79: 0 | K79: 0
A80: Payments in lieu of leave | C80: 0 | D80: 0 | E80: 0 | F80: 0 | G80: 0 | H80: 0 | I80: 0 | K80: 0
A81: Long service awards | C81: 0 | D81: 0 | E81: 0 | F81: 0 | G81: 0 | H81: 0 | I81: 0 | K81: 0
A82: Post-retirement benefit obligations | B82: 2 | C82: 0 | D82: 0 | E82: 0 | F82: 0 | G82: 0 | H82: 0 | I82: 0 | K82: 0
A83: Sub Total - Senior Managers of Entities | C83: =SUM(C71:C82) -> 0 | D83: 0 | E83: 0 | F83: =SUM(F71:F82) -> 0 | G83: =SUM(G71:G82) -> 0 | H83: =SUM(H71:H82) -> 0 | I83: 0 | J83: =IF(I83=0,"",I83/H83) ->  | K83: 0
A84: % increase | B84: 4 | D84: =IF(D83=0,"",(D83/C83)-1) ->  | E84: =IF(E83=0,"",(E83/C83)-1) ->  | K84: =IF(K83=0,"",(K83/C83)-1) -> 
A86: Other Staff of Entities
A87: Basic Salaries and Wages | C87: 0 | D87: 0 | E87: 0 | F87: 0 | G87: 0 | H87: 0 | I87: =G87-H87 -> 0 | J87: =IF(I87=0,"",I87/H87) ->  | K87: 0
A88: Pension and UIF Contributions | C88: 0 | D88: 0 | E88: 0 | F88: 0 | G88: 0 | H88: 0 | I88: 0 | K88: 0
A89: Medical Aid Contributions | C89: 0 | D89: 0 | E89: 0 | F89: 0 | G89: 0 | H89: 0 | I89: =G89-H89 -> 0 | J89: =IF(I89=0,"",I89/H89) ->  | K89: 0
A90: Overtime | C90: 0 | D90: 0 | E90: 0 | F90: 0 | G90: 0 | H90: 0 | I90: =G90-H90 -> 0 | J90: =IF(I90=0,"",I90/H90) ->  | K90: 0
A91: Performance Bonus | C91: 0 | D91: 0 | E91: 0 | F91: 0 | G91: 0 | H91: 0 | I91: =G91-H91 -> 0 | J91: =IF(I91=0,"",I91/H91) ->  | K91: 0
A92: Motor Vehicle Allowance | C92: 0 | D92: 0 | E92: 0 | F92: 0 | G92: 0 | H92: 0 | I92: =G92-H92 -> 0 | J92: =IF(I92=0,"",I92/H92) ->  | K92: 0
A93: Cellphone Allowance | C93: 0 | D93: 0 | E93: 0 | F93: 0 | G93: 0 | H93: 0 | I93: 0 | K93: 0
A94: Housing Allowances | C94: 0 | D94: 0 | E94: 0 | F94: 0 | G94: 0 | H94: 0 | I94: 0 | K94: 0
A95: Other benefits and allowances | C95: 0 | D95: 0 | E95: 0 | F95: 0 | G95: 0 | H95: 0 | I95: 0 | K95: 0
A96: Payments in lieu of leave | C96: 0 | D96: 0 | E96: 0 | F96: 0 | G96: 0 | H96: 0 | I96: 0 | K96: 0
A97: Long service awards | C97: 0 | D97: 0 | E97: 0 | F97: 0 | G97: 0 | H97: 0 | I97: 0 | K97: 0
A98: Post-retirement benefit obligations | C98: 0 | D98: 0 | E98: 0 | F98: 0 | G98: 0 | H98: 0 | I98: 0 | K98: 0
A99: Sub Total - Other Staff of Entities | C99: =SUM(C87:C98) -> 0 | D99: 0 | E99: 0 | F99: 0 | G99: 0 | H99: 0 | I99: 0 | J99: =IF(I99=0,"",I99/H99) ->  | K99: =SUM(K87:K98) -> 0
A100: % increase | B100: 4 | D100: =IF(D99=0,"",(D99/C99)-1) ->  | E100: =IF(E99=0,"",(E99/C99)-1) ->  | K100: =IF(K99=0,"",(K99/C99)-1) -> 
A102: Total Municipal Entities | C102: =C67+C83+C99 -> 0 | D102: 0 | E102: 0 | F102: 0 | G102: 0 | H102: 0 | I102: =G102-H102 -> 0 | J102: =IF(I102=0,"",I102/H102) ->  | K102: =K67+K83+K99 -> 0
A104: TOTAL SALARY, ALLOWANCES & BENEFITS | C104: =C49+C102 -> 124948151.9 | D104: 125021326.9 | E104: 0 | F104: 10957408.38 | G104: 29909583.37 | H104: 31813261.89 | I104: =G104-H104 -> -1903678.52 | J104: =IF(I104=0,"",I104/H104) -> -0.05983914906 | K104: =K49+K102 -> 124659304.5
A105: % increase | B105: 4 | D105: =IF(D104=0,"",(D104/C104)-1) -> 0.0005856434419 | E105: =IF(E104=0,"",(E104/C104)-1) ->  | K105: =IF(K104=0,"",(K104/C104)-1) -> -0.00231173813
A106: TOTAL MANAGERS AND STAFF | C106: =C30+C46+C83+C99 -> 105302709 | D106: 108264703.1 | E106: 0 | F106: 9645638.16 | G106: 25974274.37 | H106: 27877952.89 | I106: -1903678.52 | J106: =IF(I106=0,"",I106/H106) -> -0.06828616605 | K106: =K30+K46+K83+K99 -> 107902680.6
A107: =head27a -> References
A108: 1. Include 'Loans and advances' where applicable if any reportable amounts until phased compliance with s164 of MFMA achieved
A109: 2. If benefits in kind are provided (e.g. provision of living quarters) the full market value must be shown as the cost to the municipality
A110: 3. s57 of the Systems Act
A111: 4. B/A, C/A, D/A
A112: Column Definitions:
A113: A. Audited actual 2005/06 (audited financial statements). If audited amounts unavailable, unaudited amounts must be provided with a note stating these are unaudited
A114: B. The original budget approved by council for the 2006/07 budget year.
A115: C. The budget for 2006/07 budget year as adjusted by council resolution in terms of section 28 of the MFMA.
A116: D. An estimate of final actual amounts (pre audit - 2006/07 budget year) at the time of preparing the budget for the 2007/08 budget year. This may differ from C.

Sheet SC9
A1: =muni& " - "&S71O& " - "&Head57 -> LIM351 Blouberg - Supporting Table SC9 Monthly Budget Statement - actuals and revised targets for cash receipts - M07 January
A2: =desc -> Description | B2: =head27 -> Ref | C2: =Head2 -> Budget Year 2019/20 | O2: ='Template names'!B5 -> 2019/20 Medium Term Revenue & Expenditure Framework
C3: July | D3: August | E3: Sept | F3: October | G3: Nov | H3: Dec | I3: January | J3: Feb | K3: March | L3: April | M3: May | N3: June | O3: =Head9 -> Budget Year 2019/20 | P3: =Head10 -> Budget Year +1 2020/21 | Q3: =Head11 -> Budget Year +2 2021/22
A4: R thousands | B4: 1 | C4: Outcome | D4: Outcome | E4: Outcome | F4: Outcome | G4: Outcome | H4: Outcome | I4: Budget | J4: Budget | K4: Budget | L4: Budget | M4: Budget | N4: Budget
A5: Cash Receipts By Source
A6: Property rates | C6: 254406 | D6: 1431929 | E6: 203669 | F6: 303446 | G6: 303446 | H6: 303446 | I6: 303446 | N6: =O6-SUM(C6:M6) -> 22396212 | O6: 25500000 | P6: 27560000 | Q6: 29213600
A7: Service charges - electricity revenue | C7: 1021807 | D7: 1103907 | E7: 1695820 | F7: 1436438 | G7: 1436438 | H7: 1436438 | I7: 1436438 | N7: 17098714 | O7: 26666000 | P7: 29325960 | Q7: 31085566
A8: Service charges - water revenue | C8: 0 | D8: 0 | E8: 0 | N8: 0 | O8: 0 | P8: 0 | Q8: 0
A9: Service charges - sanitation revenue | C9: 0 | D9: 0 | E9: 0 | N9: 0 | O9: 0 | P9: 0 | Q9: 0
A10: Service charges - refuse | C10: 15682 | D10: 17897 | E10: 26230 | F10: 42462.62 | G10: 42462.62 | H10: 42462.62 | I10: 42462.62 | N10: 570340.52 | O10: 800000 | P10: 840000 | Q10: 882000
A11: Service charges - other | N11: 0 | O11: 0 | P11: 0 | Q11: 0
A12: Rental of facilities and equipment | C12: 45062.65 | D12: 0 | E12: 0 | F12: 46077 | G12: 46077 | H12: 46077 | I12: 46077 | N12: 85629.35 | O12: 315000 | P12: 349800 | Q12: 370788
A13: Interest earned - external investments | C13: 159 | D13: 0 | E13: 0 | F13: 47768.42 | G13: 47768.42 | H13: 47768.42 | I13: 47768.42 | N13: 1508767.32 | O13: 1700000 | P13: 1590000 | Q13: 1685400
A14: Interest earned - outstanding debtors | C14: 26627 | D14: 0 | E14: 0 | F14: 36768.04 | G14: 36768.04 | H14: 36768.04 | I14: 36768.04 | N14: 357000.84 | O14: 530700 | P14: 654232 | Q14: 693485.92
A15: Dividends received | C15: 0 | N15: 0 | O15: 0 | P15: 0 | Q15: 0
A16: Fines, penalties and forfeits | C16: 21389 | D16: 28388.6 | E16: 41388.6 | F16: 20870 | G16: 20870 | H16: 20870 | I16: 20870 | N16: 3265696.8 | O16: 3440343 | P16: 3614240 | Q16: 3809231
A17: Licences and permits | C17: 211390 | D17: 314188.6 | E17: 204188.6 | F17: 124584.02 | G17: 124584.02 | H17: 124584.02 | I17: 124584.02 | N17: 2771896.72 | O17: 4000000 | P17: 3892157.82 | Q17: 4125687.289
A18: Agency services | C18: 86089 | D18: 95972 | E18: 95972 | F18: 10422 | G18: 10422 | H18: 10422 | I18: 10422 | N18: -169721 | O18: 150000 | P18: 160000 | Q18: 169719
A19: Transfer receipts - operating | C19: 68146000 | D19: 0 | E19: 0 | F19: 0 | G19: 490000 | H19: 0 | I19: 0 | N19: 120942726 | O19: 189578726 | P19: 184605000 | Q19: 197882000
A20: Other revenue | C20: 686926.14 | D20: 103113 | E20: 113113 | F20: 426827.59 | G20: 426827.59 | H20: 426827.59 | I20: 426827.59 | N20: 2603958.5 | O20: 5214421 | P20: 7235309 | Q20: 6402045.6
A21: Cash Receipts by Source | C21: =SUM(C6:C20) -> 70515537.79 | D21: 3095395.2 | E21: 2380381.2 | F21: 2495663.69 | G21: 2985663.69 | H21: 2495663.69 | I21: 2495663.69 | J21: 0 | K21: 0 | L21: 0 | M21: 0 | N21: 171431221.1 | O21: 257895190 | P21: 259826698.8 | Q21: 276319522.8
N22: =O22-SUM(C22:M22) -> 0
A23: Other Cash Flows by Source | N23: 0
A24: Transfer receipts - capital | C24: 0 | D24: 0 | E24: 20824000 | F24: 0 | G24: 0 | H24: 0 | I24: 0 | N24: 26962000 | O24: 47786000 | P24: 63550000 | Q24: 65925000
A25: Contributions & Contributed assets | C25: 0 | D25: 0 | E25: 0 | F25: 0 | G25: 0 | H25: 0 | I25: 0 | N25: 5000000 | O25: 5000000 | P25: 0 | Q25: 0
A26: Proceeds on disposal of PPE | C26: 0 | D26: 0 | E26: 0 | F26: 0 | G26: 0 | H26: 0 | I26: 0 | N26: 0
A27: Short term loans | C27: 0 | D27: 0 | E27: 0 | F27: 0 | G27: 0 | H27: 0 | I27: 0 | N27: 0
A28: Borrowing long term/refinancing | C28: 0 | D28: 0 | E28: 0 | F28: 0 | G28: 0 | H28: 0 | I28: 0 | N28: 0
A29: Increase in consumer deposits | C29: 0 | D29: 0 | E29: 0 | F29: 0 | G29: 0 | H29: 0 | I29: 0 | N29: 0
A30: Receipt of non-current debtors | C30: 0 | D30: 0 | E30: 0 | F30: 0 | G30: 0 | H30: 0 | I30: 0 | N30: 0
A31: Receipt of non-current receivables | C31: 0 | D31: 0 | E31: 0 | F31: 0 | G31: 0 | H31: 0 | I31: 0 | N31: 0
A32: Change in non-current investments | C32: 0 | D32: 0 | E32: 0 | F32: 0 | G32: 0 | H32: 0 | I32: 0 | N32: 0
A33: Total Cash Receipts by Source | C33: =SUM(C21:C32) -> 70515537.79 | D33: 3095395.2 | E33: 23204381.2 | F33: 2495663.69 | G33: 2985663.69 | H33: 2495663.69 | I33: 2495663.69 | J33: 0 | K33: 0 | L33: 0 | M33: 0 | N33: 203393221.1 | O33: 310681190 | P33: 323376698.8 | Q33: 342244522.8
N34: =O34-SUM(C34:M34) -> 0
A35: Cash Payments by Type | N35: 0
A36: Employee related costs | C36: 7814643 | D36: 7964461 | E36: 9691598.72 | F36: 8472241 | G36: 8472241 | H36: 9691598.72 | I36: 8372241 | N36: 47785676.9 | O36: 108264701.3 | P36: 113083895.9 | Q36: 118802559.5
A37: Remuneration of councillors | C37: 1315755.31 | D37: 1402688 | E37: 1311769.83 | F37: 1328011.14 | G37: 1328011.14 | H37: 1311769.83 | I37: 1328011.14 | N37: 7430607.79 | O37: 16756624.18 | P37: 17762021.63 | Q37: 18827742.93
A38: Interest paid | C38: 0 | D38: 0 | E38: 0 | F38: 0 | G38: 0 | H38: 0 | I38: 0 | N38: 0 | O38: 0 | P38: 8012407.5 | Q38: 8413027.875
A39: Bulk purchases - Electricity | C39: 62823 | D39: 2819290 | E39: 3328119.21 | F39: 2428367.81 | G39: 2428367.81 | H39: 3328119.21 | I39: 2428367.81 | N39: 13176545.15 | O39: 30000000 | P39: 41673731.46 | Q39: 44174155.35
A40: Bulk purchases - Water & Sewer | C40: 0 | D40: 0 | E40: 0 | H40: 0 | N40: 0 | O40: 0 | P40: 0 | Q40: 0
A41: Other materials | C41: 47837.03 | D41: 111895.78 | E41: 331896 | F41: 331896 | G41: 331896 | H41: 331896 | I41: =331896-100000 -> 231896 | N41: 2650787.19 | O41: 4370000 | P41: 34800000 | Q41: 36888000
A42: Contracted services | C42: 0 | D42: 1540662 | E42: 862712.25 | F42: 624000 | G42: 624000 | H42: 862712.25 | I42: 624000 | N42: 7566913.5 | O42: 12705000 | P42: 7132200 | Q42: 7560132
A43: Grants and subsidies paid - other municipalities | C43: 0 | D43: 0 | E43: 0 | F43: 0 | G43: 0 | H43: 0 | I43: 0 | N43: 0 | O43: 0
A44: Grants and subsidies paid - other | C44: 0 | D44: 0 | E44: 0 | F44: 0 | G44: 0 | H44: 0 | I44: 0 | N44: 0 | O44: 0 | P44: 0 | Q44: 0
A45: General expenses | C45: 1875363 | D45: 14981956.7 | E45: 8661924.94 | F45: 5602248.97 | G45: 5602248.97 | H45: 8661924.94 | I45: =5602248.97-173000 -> 5429248.97 | N45: 28796571.19 | O45: 79611487.68 | P45: 34008186.68 | Q45: 31445410.96
A46: Cash Payments by Type | B46: =SUM(B36:B45) -> 0 | C46: =SUM(C36:C45) -> 11116421.34 | D46: =SUM(D36:D45) -> 28820953.48 | E46: 24188020.95 | F46: 18786764.92 | G46: 18786764.92 | H46: 24188020.95 | I46: 18413764.92 | J46: 0 | K46: 0 | L46: 0 | M46: 0 | N46: 107407101.7 | O46: 251707813.2 | P46: 256472443.2 | Q46: 266111028.6
N47: =O47-SUM(C47:M47) -> 0
A48: Other Cash Flows/Payments by Type
A49: Capital assets | C49: 18000000 | D49: 2000000 | E49: 0 | F49: 0 | G49: 0 | H49: 0 | I49: 0 | N49: =O49-SUM(C49:M49) -> 40106650 | O49: 60106650 | P49: 68182000.12 | Q49: 70596920.05
A50: Repayment of borrowing | N50: =O50-SUM(C50:M50) -> 0 | O50: 0 | P50: 0 | Q50: 0
A51: Other Cash Flows/Payments | N51: =O51-SUM(C51:M51) -> 0 | O51: 0 | P51: 0 | Q51: 0
A52: Total Cash Payments by Type | B52: =SUM(B46:B51) -> 0 | C52: 29116421.34 | D52: 30820953.48 | E52: 24188020.95 | F52: 18786764.92 | G52: 18786764.92 | H52: 24188020.95 | I52: 18413764.92 | J52: 0 | K52: 0 | L52: 0 | M52: 0 | N52: 147513751.7 | O52: 311814463.2 | P52: 324654443.3 | Q52: 336707948.6
N53: =O53-SUM(C53:M53) -> 0
A54: NET INCREASE/(DECREASE) IN CASH HELD | B54: =B33-B52 -> 0 | C54: 41399116.45 | D54: -27725558.28 | E54: -983639.75 | F54: -16291101.23 | G54: -15801101.23 | H54: -21692357.26 | I54: -15918101.23 | J54: 0 | K54: 0 | L54: 0 | M54: 0 | N54: 55879469.33 | O54: -1133273.196 | P54: -1277744.458 | Q54: 5536574.178
A55: Cash/cash equivalents at the month/year beginning: | C55: 41112807 | D55: =C56 -> 82511923.45 | E55: =D56 -> 54786365.17 | F55: 53802725.42 | G55: 37511624.19 | H55: 21710522.96 | I55: 18165.7 | J55: -15899935.53 | K55: -15899935.53 | L55: -15899935.53 | M55: -15899935.53 | N55: -15899935.53 | O55: =C55 -> 41112807 | P55: =O56 -> 39979533.8 | Q55: =P56 -> 38701789.35
A56: Cash/cash equivalents at the month/year end: | C56: =C54+C55 -> 82511923.45 | D56: =D54+D55 -> 54786365.17 | E56: =E54+E55 -> 53802725.42 | F56: 37511624.19 | G56: 21710522.96 | H56: 18165.7 | I56: -15899935.53 | J56: -15899935.53 | K56: -15899935.53 | L56: -15899935.53 | M56: -15899935.53 | N56: 39979533.8 | O56: =O54+O55 -> 39979533.8 | P56: =P54+P55 -> 38701789.35 | Q56: =Q54+Q55 -> 44238363.52
A57: =head27a -> References
A58: 1. Replace 'budget' heading with adjusted budget, or 'outcome' only for month/s complete
A59: 2. Total of monthly amounts must always agree to the approved or adjusted budget
A60: 3. Amend 'cash-at-beginning' when prior year actual known (as part of the adjustments budget)
E65: =E46+E64 -> 24188020.95 | F65: 18786764.92 | G65: 18786764.92 | H65: 24188020.95 | I65: 18413764.92 | J65: 0 | K65: 0 | L65: 0 | N65: =N46+N64 -> 107407101.7 | O65: 251707813.2 | P65: 256472443.2
E66: =E54-E64 -> -983639.75 | F66: -16291101.23 | G66: -15801101.23 | H66: -21692357.26 | I66: -15918101.23 | J66: 0 | K66: 0 | L66: 0 | M66: =M54-M64 -> 0 | N66: =N54-N64 -> 55879469.33 | O66: -1133273.196 | P66: -1277744.458

Sheet SC10
A1: =muni& " - "&S71P& " - "&Head57 -> LIM351 Blouberg - NOT REQUIRED - municipality does not have entities or this is the parent municipality's budget - M07 January
A2: =desc -> Description | B2: =head27 -> Ref | C2: =Head1 -> 2018/19 | D2: =Head2 -> Budget Year 2019/20
C3: =Head5 -> Audited Outcome | D3: =Head6 -> Original Budget | E3: =Head7 -> Adjusted Budget | F3: =Head38 -> Monthly actual | G3: =Head39 -> YearTD actual | H3: =Head40 -> YearTD budget | I3: =Head41 -> YTD variance | J3: =Head41 -> YTD variance | K3: =Head8 -> Full Year Forecast
A4: R thousands | B4: 1 | J4: %
A5: ='C4-FinPerf RE'!A5 -> Revenue By Source
A6: ='C4-FinPerf RE'!A6 -> Property rates | I6: =G6-H6 -> 0 | J6: =IF(I6=0,"",I6/H6) -> 
A7: ='C4-FinPerf RE'!A7 -> Service charges - electricity revenue | I7: 0 | J7: =IF(I7=0,"",I7/H7) -> 
A8: ='C4-FinPerf RE'!A8 -> Service charges - water revenue | I8: 0
A9: ='C4-FinPerf RE'!A9 -> Service charges - sanitation revenue | I9: 0
A10: ='C4-FinPerf RE'!A10 -> Service charges - refuse revenue | I10: 0
A11: ='C4-FinPerf RE'!A11 -> Service charges - other | I11: 0
A12: ='C4-FinPerf RE'!A12 -> Rental of facilities and equipment | I12: 0
A13: ='C4-FinPerf RE'!A13 -> Interest earned - external investments | I13: 0
A14: ='C4-FinPerf RE'!A14 -> Interest earned - outstanding debtors | I14: 0
A15: ='C4-FinPerf RE'!A15 -> Dividends received | I15: 0
A16: ='C4-FinPerf RE'!A16 -> Fines, penalties and forfeits | I16: 0
A17: ='C4-FinPerf RE'!A17 -> Licences and permits | I17: 0
A18: ='C4-FinPerf RE'!A18 -> Agency services | I18: 0
A19: ='C4-FinPerf RE'!A19 -> Transfers and subsidies | I19: 0
A20: ='C4-FinPerf RE'!A20 -> Other revenue | I20: 0
A21: ='C4-FinPerf RE'!A21 -> Gains on disposal of PPE | I21: 0
A22: Total Revenue (excluding capital transfers and contributions) | C22: =SUM(C6:C21) -> 0 | D22: 0 | E22: 0 | F22: 0 | G22: 0 | H22: 0 | I22: =G22-H22 -> 0 | K22: =SUM(K6:K21) -> 0
A24: Expenditure By Type
A25: ='C4-FinPerf RE'!A25 -> Employee related costs | I25: =G25-H25 -> 0 | J25: =IF(I25=0,"",I25/H25) -> 
A26: ='C4-FinPerf RE'!A26 -> Remuneration of councillors | I26: 0
A27: ='C4-FinPerf RE'!A27 -> Debt impairment | I27: 0
A28: ='C4-FinPerf RE'!A28 -> Depreciation & asset impairment | I28: 0
A29: ='C4-FinPerf RE'!A29 -> Finance charges | I29: 0
A30: ='C4-FinPerf RE'!A30 -> Bulk purchases | I30: 0
A31: ='C4-FinPerf RE'!A31 -> Other materials | I31: 0
A32: ='C4-FinPerf RE'!A32 -> Contracted services | I32: 0
A33: ='C4-FinPerf RE'!A33 -> Transfers and subsidies | I33: 0
A34: ='C4-FinPerf RE'!A34 -> Other expenditure | I34: 0
A35: ='C4-FinPerf RE'!A35 -> Loss on disposal of PPE | I35: 0
A36: Total Expenditure | C36: =SUM(C25:C35) -> 0 | D36: 0 | E36: 0 | F36: 0 | G36: 0 | H36: 0 | I36: 0 | K36: =SUM(K25:K35) -> 0
I37: 0
A38: ='C4-FinPerf RE'!A38 -> Surplus/(Deficit) | C38: =C22-C36 -> 0 | D38: 0 | E38: 0 | F38: 0 | G38: 0 | H38: 0 | I38: 0 | K38: =K22-K36 -> 0
A39: ='C4-FinPerf RE'!A39 -> Transfers and subsidies - capital (monetary allocations) (National / Provincial and District) | I39: 0
A40: ='C4-FinPerf RE'!A40 -> Transfers and subsidies - capital (monetary allocations) (National / Provincial Departmental Agencies, Households, Non-profit Institutions, Private Enterprises, Public Corporatons, Higher Educational Institutions) | I40: 0
A41: ='C4-FinPerf RE'!A41 -> Transfers and subsidies - capital (in-kind - all) | I41: 0
A42: ='C4-FinPerf RE'!A42 -> Surplus/(Deficit) after capital transfers & contributions | C42: =C38+SUM(C39:C41) -> 0 | D42: =D38+SUM(D39:D41) -> 0 | E42: 0 | F42: 0 | G42: 0 | H42: 0 | I42: 0 | K42: 0
A43: ='C4-FinPerf RE'!A43 -> Taxation | I43: 0
A44: ='C4-FinPerf RE'!A44 -> Surplus/(Deficit) after taxation | C44: =C42-C43 -> 0 | D44: 0 | E44: 0 | F44: 0 | G44: 0 | H44: 0 | I44: 0 | K44: =K42-K43 -> 0
A45: =head27a -> References
A46: 1. Votes (consolidated) are revenue sources and expenditure type

Sheet SC11
A1: =muni& " - "&S71Q& " - "&Head57 -> LIM351 Blouberg - NOT REQUIRED - municipality does not have entities or this is the parent municipality's budget - M07 January
A2: =desc -> Description | B2: =head27 -> Ref | C2: =Head1 -> 2018/19 | D2: =Head2 -> Budget Year 2019/20
C3: =Head5 -> Audited Outcome | D3: =Head6 -> Original Budget | E3: =Head7 -> Adjusted Budget | F3: =Head38 -> Monthly actual | G3: =Head39 -> YearTD actual | H3: =Head40 -> YearTD budget | I3: =Head41 -> YTD variance | J3: =Head41 -> YTD variance | K3: =Head8 -> Full Year Forecast
A4: R thousands | J4: %
A5: Revenue By Municipal Entity
A6: Insert name of municipal entity | I6: =G6-H6 -> 0 | J6: =IF(I6=0,"",I6/H6) -> 
I7: 0 | J7: =IF(I7=0,"",I7/H7) -> 
I8: 0
I9: 0
I10: 0
I11: 0
I12: 0
I13: 0
I14: 0
I15: 0
A16: Total Operating Revenue | B16: 1 | C16: =SUM(C6:C15) -> 0 | D16: 0 | E16: 0 | F16: 0 | G16: 0 | H16: 0 | I16: 0 | K16: =SUM(K6:K15) -> 0
A18: Expenditure By Municipal Entity
A19: =A6 -> Insert name of municipal entity | I19: 0 | J19: =IF(I19=0,"",I19/H19) -> 
A20: =IF(A7="","",A7) ->  | I20: 0
A21: =IF(A8="","",A8) ->  | I21: 0
I22: 0
I23: 0
I24: 0
I25: 0
I26: 0
I27: 0
I28: 0
A29: Total Operating Expenditure | B29: 2 | C29: =SUM(C19:C28) -> 0 | D29: 0 | E29: 0 | F29: 0 | G29: 0 | H29: 0 | I29: 0 | K29: =SUM(K19:K28) -> 0
A31: =Head42 -> Surplus/ (Deficit) for the yr/period | C31: =C16-C29 -> 0 | D31: =D16-D29 -> 0 | E31: 0 | F31: 0 | G31: 0 | H31: 0 | I31: =I16+I29 -> 0 | K31: 0
A32: Capital Expenditure By Municipal Entity
A33: =$A$6 -> Insert name of municipal entity | I33: 0
A34: =IF(A7="","",A7) ->  | I34: 0
A35: =IF(A8="","",A8) ->  | I35: 0
I36: 0
I37: 0
I38: 0
I39: 0
I40: 0
I41: 0
A43: Total Capital Expenditure | B43: 3 | C43: =SUM(C32:C42) -> 0 | D43: =SUM(D32:D42) -> 0 | E43: 0 | F43: 0 | G43: 0 | H43: =SUM(H32:H42) -> 0 | I43: =G43-H43 -> 0 | K43: 0
A44: =head27a -> References
A45: 1. Must reconcile to the sum of all municipal entity monthly revenue reports
A46: 2. Must reconcile to the sum of all municipal entity monthly expenditure reports
A47: 3. YTD = Year to date; FAV - favourable variance or unfavourable variance
A48: 4. Material variances to be explained
A49: 5. Insert additional 'Adjustment' Budget column for each Adjustment made by an entity

Sheet SC12
A1: =muni& " - "&S71R& " - "&Head57 -> LIM351 Blouberg - Supporting Table SC12 Monthly Budget Statement - capital expenditure trend - M07 January
A2: Month | B2: =Head1 -> 2018/19 | C2: =Head2 -> Budget Year 2019/20
B3: =Head5 -> Audited Outcome | C3: =Head6 -> Original Budget | D3: =Head7 -> Adjusted Budget | E3: =Head38 -> Monthly actual | F3: =Head39 -> YearTD actual | G3: =Head40 -> YearTD budget | H3: =Head41 -> YTD variance | I3: =Head41 -> YTD variance | J3: % spend of Original Budget
A4: R thousands | I4: %
A5: Monthly expenditure performance trend
A6: July | B6: 1764202 | C6: 7133586 | E6: 0 | F6: =IF(E6>0,E6,"") ->  | G6: =IF(D6>0,D6,C6) -> 7133586 | H6: =IF(F6="",0,G6-F6) -> 0 | I6: =IF(F6="","",IF(H6=0,"",H6/G6)) ->  | J6: =IF(F6="","",F6/$C$18) -> 
A7: August | B7: 5975198 | C7: 8189287.6 | E7: 1808914.69 | F7: =IF(E7>0,E7+F6,"") ->  | G7: =IF(D7>0,D7+D6,C7+C6) -> 15322873.6
A8: September | B8: 4684863 | C8: 7681185.17 | E8: 264770 | F8: =IF(E8>0,E8+F7,"") ->  | G8: =IF(D8>0,D8+G7,C8+G7) -> 23004058.77
A9: October | B9: 5512817 | C9: 6393696 | E9: 3185649.5 | G9: =IF(D9>0,D9+G8,C9+G8) -> 29397754.77
A10: November | B10: 2934390 | C10: 9628353.77 | E10: 6133145.83 | G10: 39026108.54
A11: December | B11: =8900025 -> 8900025 | C11: 4709711 | E11: 11421362.5 | G11: 43735819.54
A12: January | B12: 4858390 | C12: 5261692 | E12: 282272.1 | G12: 48997511.54
A13: February | B13: =5076922+5687 -> 5082609 | C13: 3126907.34 | G13: 52124418.88 | H13: 0
A14: March | B14: 6130390 | C14: 2658844 | G14: 54783262.88 | H14: 0
A15: April | B15: 4619097 | C15: 2104625 | G15: 56887887.88 | H15: 0
A16: May | B16: 3408390 | C16: 1300000 | G16: 58187887.88 | H16: 0
A17: June | B17: 6295816 | C17: 1918762.12 | G17: 60106650 | H17: =IF(F17="",0,G17-F17) -> 0 | I17: =IF(F17="","",IF(H17=0,"",H17/G17)) ->  | J17: =IF(F17="","",F17/$C$18) -> 
A18: Total Capital expenditure | B18: =SUM(B6:B17) -> 60166187 | C18: =SUM(C6:C17) -> 60106650 | D18: =SUM(D6:D17) -> 0 | E18: =SUM(E6:E17) -> 23096114.62

Sheet SC13a
A1: =muni& " - "&S71Sa& " - "&Head57 -> LIM351 Blouberg - Supporting Table SC13a Monthly Budget Statement - capital expenditure on new assets by asset class - M07 January
A2: =desc -> Description | B2: =head27 -> Ref | C2: =Head1 -> 2018/19 | D2: =Head2 -> Budget Year 2019/20
C3: =Head5 -> Audited Outcome | D3: =Head6 -> Original Budget | E3: =Head7 -> Adjusted Budget | F3: =Head38 -> Monthly actual | G3: =Head39 -> YearTD actual | H3: =Head40 -> YearTD budget | I3: =Head41 -> YTD variance | J3: =Head41 -> YTD variance | K3: =Head8 -> Full Year Forecast
A4: R thousands | B4: 1 | J4: %
A5: Capital expenditure on new assets by Asset Class/Sub-class
A7: Infrastructure | C7: =C8+C13+C17+C27+C38+C45+C53+C63+C69 -> 0 | D7: 46371450 | E7: 0 | F7: 0 | G7: 18547081.15 | H7: 32400000 | I7: =H7-G7 -> 13852918.85 | J7: =IF(I7=0,"",I7/H7) -> 0.4275592236 | K7: =K8+K13+K17+K27+K38+K45+K53+K63+K69 -> 11875000
A8: Roads Infrastructure | C8: =SUM(C9:C12) -> 0 | D8: 34496450 | E8: 0 | F8: 0 | G8: 17072780.88 | H8: 25000000 | I8: 7927219.12 | J8: 0.3170887648 | K8: =SUM(K9:K12) -> 0
A9: Roads | D9: 34496450 | F9: 0 | G9: 17072780.88 | H9: 25000000 | I9: 7927219.12 | J9: 0.3170887648
A10: Road Structures | I10: 0
A11: Road Furniture | I11: 0
A12: Capital Spares | I12: 0
A13: Storm water Infrastructure | C13: =SUM(C14:C16) -> 0 | D13: 0 | E13: 0 | F13: 0 | G13: 0 | H13: 0 | I13: 0 | K13: =SUM(K14:K16) -> 0
A14: Drainage Collection | I14: 0
A15: Storm water Conveyance | I15: 0
A16: Attenuation | I16: 0
A17: Electrical Infrastructure | C17: =SUM(C18:C26) -> 0 | D17: 11875000 | E17: 0 | F17: 0 | G17: 1474300.275 | H17: 7400000 | I17: 5925699.725 | J17: 0.8007702331 | K17: =SUM(K18:K26) -> 11875000
A18: Power Plants | I18: 0
A19: HV Substations | D19: 5000000 | F19: 0 | G19: 395274 | H19: 3000000 | I19: 2604726 | J19: 0.868242 | K19: 5000000
A20: HV Switching Station | I20: 0
A21: HV Transmission Conductors | I21: 0
A22: MV Substations | I22: 0
A23: MV Switching Stations | I23: 0
A24: MV Networks | D24: 2987500 | F24: 0 | G24: =737150-395274 -> 341876 | H24: 2000000 | I24: 1658124 | J24: 0.829062 | K24: 2987500
A25: LV Networks | D25: 2987500 | F25: 0 | G25: =737150.275-228978 -> 508172.275 | H25: 2000000 | I25: 1491827.725 | J25: 0.7459138625 | K25: 2987500
A26: Capital Spares | D26: 900000 | F26: 0 | G26: 228978 | H26: 400000 | I26: 171022 | J26: 0.427555 | K26: 900000
A27: Water Supply Infrastructure | C27: =SUM(C28:C37) -> 0 | D27: 0 | E27: 0 | F27: 0 | G27: 0 | H27: 0 | I27: 0 | K27: =SUM(K28:K37) -> 0
A28: Dams and Weirs | I28: 0
A29: Boreholes | I29: 0
A30: Reservoirs | I30: 0
A31: Pump Stations | I31: 0
A32: Water Treatment Works | I32: 0
A33: Bulk Mains | I33: 0
A34: Distribution | I34: 0
A35: Distribution Points | I35: 0
A36: PRV Stations | I36: 0
A37: Capital Spares | I37: 0
A38: Sanitation Infrastructure | C38: =SUM(C39:C44) -> 0 | D38: 0 | E38: 0 | F38: 0 | G38: 0 | H38: 0 | I38: =H38-G38 -> 0 | J38: =IF(I38=0,"",I38/H38) ->  | K38: =SUM(K39:K44) -> 0
A39: Pump Station | I39: 0
A40: Reticulation | I40: =H40-G40 -> 0 | J40: =IF(I40=0,"",I40/H40) -> 
A41: Waste Water Treatment Works | I41: =H41-G41 -> 0 | J41: =IF(I41=0,"",I41/H41) -> 
A42: Outfall Sewers | I42: =H42-G42 -> 0 | J42: =IF(I42=0,"",I42/H42) -> 
A43: Toilet Facilities | I43: 0
A44: Capital Spares | I44: 0
A45: Solid Waste Infrastructure | C45: =SUM(C46:C52) -> 0 | D45: 0 | E45: 0 | F45: 0 | G45: 0 | H45: 0 | I45: =H45-G45 -> 0 | J45: =IF(I45=0,"",I45/H45) ->  | K45: =SUM(K46:K52) -> 0
A46: Landfill Sites | I46: 0
A47: Waste Transfer Stations | I47: 0
A48: Waste Processing Facilities | I48: =H48-G48 -> 0 | J48: =IF(I48=0,"",I48/H48) -> 
A49: Waste Drop-off Points | I49: 0
A50: Waste Separation Facilities | I50: 0
A51: Electricity Generation Facilities | I51: 0
A52: Capital Spares | I52: 0
A53: Rail Infrastructure | C53: =SUM(C54:C62) -> 0 | D53: 0 | E53: 0 | F53: 0 | G53: 0 | H53: 0 | I53: 0 | K53: =SUM(K54:K62) -> 0
A54: Rail Lines | I54: 0
A55: Rail Structures | I55: 0
A56: Rail Furniture | I56: 0
A57: Drainage Collection | I57: 0
A58: Storm water Conveyance | I58: 0
A59: Attenuation | I59: 0
A60: MV Substations | I60: 0
A61: LV Networks | I61: 0
A62: Capital Spares | I62: 0
A63: Coastal Infrastructure | C63: =SUM(C64:C68) -> 0 | D63: 0 | E63: 0 | F63: 0 | G63: 0 | H63: 0 | I63: 0 | K63: =SUM(K64:K68) -> 0
A64: Sand Pumps | I64: 0
A65: Piers | I65: 0
A66: Revetments | I66: 0
A67: Promenades | I67: 0
A68: Capital Spares | I68: 0
A69: Information and Communication Infrastructure | C69: =SUM(C70:C73) -> 0 | D69: 0 | E69: 0 | F69: 0 | G69: 0 | H69: 0 | I69: =H69-G69 -> 0 | J69: =IF(I69=0,"",I69/H69) ->  | K69: =SUM(K70:K73) -> 0
A70: Data Centres | I70: =H70-G70 -> 0
A71: Core Layers | I71: =H71-G71 -> 0
A72: Distribution Layers | I72: =H72-G72 -> 0
A73: Capital Spares | I73: =H73-G73 -> 0
A75: Community Assets | C75: =+C76+C99 -> 0 | D75: 9320200 | E75: 0 | F75: 0 | G75: 3886005.79 | H75: 5500000 | I75: =H75-G75 -> 1613994.21 | J75: 0.2934534927 | K75: =+K76+K99 -> 0
A76: Community Facilities | C76: =SUM(C77:C98) -> 0 | D76: 2500000 | E76: 0 | F76: 0 | G76: 1777743.01 | H76: 2500000 | I76: =H76-G76 -> 722256.99 | J76: =IF(I76=0,"",I76/H76) -> 0.288902796 | K76: =SUM(K77:K98) -> 0
A77: Halls | D77: 500000 | F77: 0 | G77: 0 | H77: 500000 | I77: 500000 | J77: 1
A78: Centres | I78: 0
A79: Crèches | D79: 2000000 | F79: 0 | G79: 1777743.01 | H79: 2000000 | I79: 222256.99 | J79: 0.111128495
A80: Clinics/Care Centres | I80: 0
A81: Fire/Ambulance Stations | I81: 0
A82: Testing Stations | I82: 0
A83: Museums | I83: 0
A84: Galleries | I84: 0
A85: Theatres | I85: 0
A86: Libraries | I86: 0
A87: Cemeteries/Crematoria | I87: 0
A88: Police | I88: =H88-G88 -> 0 | J88: =IF(I88=0,"",I88/H88) -> 
A89: Purls | I89: 0
A90: Public Open Space | D90: 0 | I90: 0
A91: Nature Reserves | I91: 0
A92: Public Ablution Facilities | I92: 0
A93: Markets | I93: 0
A94: Stalls | I94: 0
A95: Abattoirs | I95: 0
A96: Airports | I96: 0
A97: Taxi Ranks/Bus Terminals | I97: 0
A98: Capital Spares | I98: 0
A99: Sport and Recreation Facilities | C99: =SUM(C100:C102) -> 0 | D99: 6820200 | E99: 0 | F99: 0 | G99: 2108262.78 | H99: 3000000 | I99: 891737.22 | J99: 0.29724574 | K99: =SUM(K100:K102) -> 0
A100: Indoor Facilities | I100: 0
A101: Outdoor Facilities | D101: 6820200 | F101: 0 | G101: 2108262.78 | H101: 3000000 | I101: 891737.22 | J101: 0.29724574
A102: Capital Spares | I102: 0
A103: Heritage assets | C103: =SUM(C104:C108) -> 0 | D103: 0 | E103: 0 | F103: 0 | G103: 0 | H103: 0 | I103: 0 | K103: =SUM(K104:K108) -> 0
A104: Monuments | I104: 0
A105: Historic Buildings | I105: 0
A106: Works of Art | I106: 0
A107: Conservation Areas | I107: 0
A108: Other Heritage | I108: 0
I109: 0
A110: Investment properties | C110: =+C111+C114 -> 0 | D110: 0 | E110: 0 | F110: 0 | G110: 0 | H110: 0 | I110: 0 | K110: =+K111+K114 -> 0
A111: Revenue Generating | C111: =SUM(C112:C113) -> 0 | D111: 0 | E111: 0 | F111: 0 | G111: 0 | H111: 0 | I111: 0 | K111: =SUM(K112:K113) -> 0
A112: Improved Property | I112: 0
A113: Unimproved Property | I113: 0
A114: Non-revenue Generating | C114: =SUM(C115:C116) -> 0 | D114: 0 | E114: 0 | F114: 0 | G114: 0 | H114: 0 | I114: 0 | K114: =SUM(K115:K116) -> 0
A115: Improved Property | I115: 0
A116: Unimproved Property | I116: 0
A117: Other assets | C117: =+C118+C130 -> 0 | D117: 0 | E117: 0 | F117: 0 | G117: 0 | H117: 0 | I117: 0 | K117: =+K118+K130 -> 0
A118: Operational Buildings | C118: =SUM(C119:C129) -> 0 | D118: 0 | E118: 0 | F118: 0 | G118: 0 | H118: 0 | I118: 0 | K118: =SUM(K119:K129) -> 0
A119: Municipal Offices | I119: 0
A120: Pay/Enquiry Points | I120: 0 | J120: =IF(I120=0,"",I120/H120) -> 
A121: Building Plan Offices | I121: 0
A122: Workshops | I122: 0
A123: Yards | I123: 0
A124: Stores | I124: 0
A125: Laboratories | I125: 0
A126: Training Centres | I126: 0
A127: Manufacturing Plant | I127: 0
A128: Depots | I128: 0
A129: Capital Spares | I129: 0
A130: Housing | C130: =SUM(C131:C133) -> 0 | D130: 0 | E130: 0 | F130: 0 | G130: 0 | H130: 0 | I130: 0 | K130: =SUM(K131:K133) -> 0
A131: Staff Housing | I131: 0
A132: Social Housing | I132: 0
A133: Capital Spares | I133: 0
A135: Biological or Cultivated Assets | C135: =SUM(C136:C136) -> 0 | D135: 0 | E135: 0 | F135: 0 | G135: 0 | H135: 0 | I135: =H135-G135 -> 0 | K135: =SUM(K136) -> 0
A136: Biological or Cultivated Assets | I136: =H136-G136 -> 0
A138: Intangible Assets | C138: =SUM(C139:C140) -> 0 | D138: 1555000 | E138: 0 | F138: 213272.1 | G138: 293636.88 | H138: 300000 | I138: =H138-G138 -> 6363.12 | J138: 0.0212104 | K138: =SUM(K139:K140) -> 0
A139: Servitudes | I139: 0
A140: Licences and Rights | C140: =SUM(C141:C146) -> 0 | D140: 1555000 | E140: 0 | F140: 213272.1 | G140: 293636.88 | H140: 300000 | I140: 6363.12 | J140: 0.0212104 | K140: =SUM(K141:K146) -> 0
A141: Water Rights | I141: 0
A142: Effluent Licenses | I142: 0
A143: Solid Waste Licenses | I143: 0
A144: Computer Software and Applications | I144: 0
A145: Load Settlement Software Applications | I145: 0
A146: Unspecified | D146: 1555000 | F146: 213272.1 | G146: 293636.88 | H146: 300000 | I146: 6363.12 | J146: 0.0212104
A148: Computer Equipment | C148: =SUM(C149:C149) -> 0 | D148: 250000 | E148: 0 | F148: 0 | G148: 87118 | H148: 200000 | I148: =H148-G148 -> 112882 | J148: =IF(I148=0,"",I148/H148) -> 0.56441 | K148: =SUM(K149) -> 0
A149: Computer Equipment | D149: 250000 | F149: 0 | G149: 87118 | H149: 200000 | I149: =H149-G149 -> 112882 | J149: =IF(I149=0,"",I149/H149) -> 0.56441
A151: Furniture and Office Equipment | C151: =SUM(C152:C152) -> 0 | D151: 810000 | E151: 0 | F151: 0 | G151: 0 | H151: 0 | I151: =H151-G151 -> 0 | J151: =IF(I151=0,"",I151/H151) ->  | K151: =SUM(K152) -> 0
A152: Furniture and Office Equipment | D152: 810000 | G152: 0 | H152: 0 | I152: =H152-G152 -> 0 | J152: =IF(I152=0,"",I152/H152) -> 
J153: =IF(I153=0,"",I153/H153) -> 
A154: Machinery and Equipment | C154: =SUM(C155:C155) -> 0 | D154: 1000000 | E154: 0 | F154: 69000 | G154: 0 | H154: 0 | I154: =H154-G154 -> 0 | J154: =IF(I154=0,"",I154/H154) ->  | K154: =SUM(K155) -> 0
A155: Machinery and Equipment | D155: 1000000 | F155: 69000 | G155: 0 | H155: 0 | I155: =H155-G155 -> 0 | J155: =IF(I155=0,"",I155/H155) -> 
A157: Transport Assets | C157: =SUM(C158:C158) -> 0 | D157: 0 | E157: 0 | F157: 0 | G157: 0 | H157: 0 | I157: =H157-G157 -> 0 | J157: =IF(I157=0,"",I157/H157) ->  | K157: =SUM(K158) -> 0
A158: Transport Assets | D158: 0 | I158: =H158-G158 -> 0 | J158: =IF(I158=0,"",I158/H158) -> 
A160: Land | C160: =SUM(C161:C161) -> 0 | D160: 0 | E160: 0 | F160: 0 | G160: 0 | H160: 0 | I160: =H160-G160 -> 0 | J160: =IF(I160=0,"",I160/H160) ->  | K160: =SUM(K161) -> 0
A161: Land | I161: =H161-G161 -> 0 | J161: =IF(I161=0,"",I161/H161) -> 
A163: Zoo's, Marine and Non-biological Animals | C163: =SUM(C164:C164) -> 0 | D163: 0 | E163: 0 | F163: 0 | G163: 0 | H163: 0 | I163: =H163-G163 -> 0 | J163: =IF(I163=0,"",I163/H163) ->  | K163: =SUM(K164) -> 0
A164: Zoo's, Marine and Non-biological Animals | I164: =H164-G164 -> 0 | J164: =IF(I164=0,"",I164/H164) -> 
J165: =IF(I165=0,"",I165/H165) -> 
A166: Total Capital Expenditure on new assets | B166: 1 | C166: =C7+C75+C103+C110+C117+C135+C138+C148+C151+C154+C157+C160+C163 -> 0 | D166: 59306650 | E166: 0 | F166: 282272.1 | G166: 22813841.82 | H166: 38400000 | I166: =H166-G166 -> 15586158.18 | J166: =IF(I166=0,"",I166/H166) -> 0.4058895358 | K166: =K7+K75+K103+K110+K117+K135+K138+K148+K151+K154+K157+K160+K163 -> 11875000
A168: =head27a -> References
A169: 1. Total Capital Expenditure on new assets (SC13a) plus Total Capital Expenditure on renewal of existing assets (SC13b) plus Total Capital Expenditure on upgrading of existing assets (SC13e) must reconcile to total capital expenditure in Table C5
A171: check balance | C171: =C166+SC13b!C166+SC13e!C166-'C5-Capex'!C40 -> 0 | D171: =D166+SC13b!D166+SC13e!D166-'C5-Capex'!D40 -> 0 | E171: =E166+SC13b!E166+SC13e!E166-'C5-Capex'!E40 -> 0 | F171: =F166+SC13b!F166+SC13e!F166-'C5-Capex'!F40 -> 0 | G171: =G166+SC13b!G166+SC13e!G166-'C5-Capex'!G40 -> -386349.215 | H171: =H166+SC13b!H166+SC13e!H166-'C5-Capex'!H40 -> -4535819.54 | K171: =K166+SC13b!K166+SC13e!K166-'C5-Capex'!K40 -> -47431650

Sheet SC13b
A1: =muni& " - "&S71Sb& " - "&Head57 -> LIM351 Blouberg - Supporting Table SC13b Monthly Budget Statement - capital expenditure on renewal of existing assets by asset class - M07 January
A2: =desc -> Description | B2: =head27 -> Ref | C2: =Head1 -> 2018/19 | D2: =Head2 -> Budget Year 2019/20
C3: =Head5 -> Audited Outcome | D3: =Head6 -> Original Budget | E3: =Head7 -> Adjusted Budget | F3: =Head38 -> Monthly actual | G3: =Head39 -> YearTD actual | H3: =Head40 -> YearTD budget | I3: =Head41 -> YTD variance | J3: =Head41 -> YTD variance | K3: =Head8 -> Full Year Forecast
A4: R thousands | B4: 1 | J4: %
A5: Capital expenditure on renewal of existing assets by Asset Class/Sub-class
A7: Infrastructure | C7: =C8+C13+C17+C27+C38+C45+C53+C63+C69 -> 0 | D7: 800000 | E7: 0 | F7: 0 | G7: 0 | H7: 800000 | I7: =H7-G7 -> 800000 | J7: =IF(I7=0,"",I7/H7) -> 1 | K7: =K8+K13+K17+K27+K38+K45+K53+K63+K69 -> 800000
A8: Roads Infrastructure | C8: =SUM(C9:C12) -> 0 | D8: 500000 | E8: 0 | F8: 0 | G8: 0 | H8: 500000 | I8: 500000 | J8: 1 | K8: =SUM(K9:K12) -> 500000
A9: Roads | C9: 0 | D9: 500000 | F9: 0 | G9: 0 | H9: 500000 | I9: 500000 | J9: 1 | K9: 500000
A10: Road Structures | I10: 0
A11: Road Furniture | I11: 0
A12: Capital Spares | I12: 0
A13: Storm water Infrastructure | C13: =SUM(C14:C16) -> 0 | D13: 0 | E13: 0 | F13: 0 | G13: 0 | H13: 0 | I13: 0 | K13: =SUM(K14:K16) -> 0
A14: Drainage Collection | I14: 0
A15: Storm water Conveyance | I15: 0
A16: Attenuation | I16: 0
A17: Electrical Infrastructure | C17: =SUM(C18:C26) -> 0 | D17: 300000 | E17: 0 | F17: 0 | G17: 0 | H17: 300000 | I17: 300000 | J17: 1 | K17: =SUM(K18:K26) -> 300000
A18: Power Plants | I18: 0
A19: HV Substations | I19: 0
A20: HV Switching Station | I20: 0
A21: HV Transmission Conductors | I21: 0
A22: MV Substations | I22: 0
A23: MV Switching Stations | I23: 0
A24: MV Networks | C24: 0 | D24: 300000 | F24: 0 | G24: 0 | H24: 300000 | I24: 300000 | J24: 1 | K24: 300000
A25: LV Networks | I25: 0
A26: Capital Spares | I26: 0
A27: Water Supply Infrastructure | C27: =SUM(C28:C37) -> 0 | D27: 0 | E27: 0 | F27: 0 | G27: 0 | H27: 0 | I27: 0 | K27: =SUM(K28:K37) -> 0
A28: Dams and Weirs | I28: 0
A29: Boreholes | I29: 0
A30: Reservoirs | I30: 0
A31: Pump Stations | I31: 0
A32: Water Treatment Works | I32: 0
A33: Bulk Mains | I33: 0
A34: Distribution | I34: 0
A35: Distribution Points | I35: 0
A36: PRV Stations | I36: 0
A37: Capital Spares | I37: 0
A38: Sanitation Infrastructure | C38: =SUM(C39:C44) -> 0 | D38: 0 | E38: 0 | F38: 0 | G38: 0 | H38: 0 | I38: 0 | K38: =SUM(K39:K44) -> 0
A39: Pump Station | I39: 0
A40: Reticulation | I40: 0
A41: Waste Water Treatment Works | I41: 0
A42: Outfall Sewers | I42: 0
A43: Toilet Facilities | I43: 0
A44: Capital Spares | I44: 0
A45: Solid Waste Infrastructure | C45: =SUM(C46:C52) -> 0 | D45: 0 | E45: 0 | F45: 0 | G45: 0 | H45: 0 | I45: 0 | K45: =SUM(K46:K52) -> 0
A46: Landfill Sites | I46: 0
A47: Waste Transfer Stations | I47: 0
A48: Waste Processing Facilities | I48: 0
A49: Waste Drop-off Points | I49: 0
A50: Waste Separation Facilities | I50: 0
A51: Electricity Generation Facilities | I51: 0
A52: Capital Spares | I52: 0
A53: Rail Infrastructure | C53: =SUM(C54:C62) -> 0 | D53: 0 | E53: 0 | F53: 0 | G53: 0 | H53: 0 | I53: 0 | K53: =SUM(K54:K62) -> 0
A54: Rail Lines | I54: 0
A55: Rail Structures | I55: 0
A56: Rail Furniture | I56: 0
A57: Drainage Collection | I57: 0
A58: Storm water Conveyance | I58: 0
A59: Attenuation | I59: 0
A60: MV Substations | I60: 0
A61: LV Networks | I61: 0
A62: Capital Spares | I62: 0
A63: Coastal Infrastructure | C63: =SUM(C64:C68) -> 0 | D63: 0 | E63: 0 | F63: 0 | G63: 0 | H63: 0 | I63: 0 | K63: =SUM(K64:K68) -> 0
A64: Sand Pumps | I64: 0
A65: Piers | I65: 0
A66: Revetments | I66: 0
A67: Promenades | I67: 0
A68: Capital Spares | I68: 0
A69: Information and Communication Infrastructure | C69: =SUM(C70:C73) -> 0 | D69: 0 | E69: 0 | F69: 0 | G69: 0 | H69: 0 | I69: 0 | K69: =SUM(K70:K73) -> 0
A70: Data Centres | I70: 0
A71: Core Layers | I71: 0
A72: Distribution Layers | I72: 0
A73: Capital Spares | I73: 0
A75: Community Assets | C75: =+C76+C99 -> 0 | D75: 0 | E75: 0 | F75: 0 | G75: 0 | H75: 0 | I75: 0 | K75: =+K76+K99 -> 0
A76: Community Facilities | C76: =SUM(C77:C98) -> 0 | D76: 0 | E76: 0 | F76: 0 | G76: 0 | H76: 0 | I76: 0 | K76: =SUM(K77:K98) -> 0
A77: Halls | I77: 0
A78: Centres | I78: 0
A79: Crèches | I79: 0
A80: Clinics/Care Centres | I80: 0
A81: Fire/Ambulance Stations | I81: 0
A82: Testing Stations | I82: 0
A83: Museums | I83: 0
A84: Galleries | I84: 0
A85: Theatres | I85: 0
A86: Libraries | I86: 0
A87: Cemeteries/Crematoria | I87: 0
A88: Police | I88: 0
A89: Purls | I89: 0
A90: Public Open Space | I90: 0
A91: Nature Reserves | I91: 0
A92: Public Ablution Facilities | I92: 0
A93: Markets | I93: 0
A94: Stalls | I94: 0
A95: Abattoirs | I95: 0
A96: Airports | I96: 0
A97: Taxi Ranks/Bus Terminals | I97: 0
A98: Capital Spares | I98: 0
A99: Sport and Recreation Facilities | C99: =SUM(C100:C102) -> 0 | D99: 0 | E99: 0 | F99: 0 | G99: 0 | H99: 0 | I99: 0 | K99: =SUM(K100:K102) -> 0
A100: Indoor Facilities | I100: 0
A101: Outdoor Facilities | I101: =H101-G101 -> 0 | J101: =IF(I101=0,"",I101/H101) -> 
A102: Capital Spares | I102: 0
A103: Heritage assets | C103: =SUM(C104:C108) -> 0 | D103: 0 | E103: 0 | F103: 0 | G103: 0 | H103: 0 | I103: 0 | K103: =SUM(K104:K108) -> 0
A104: Monuments | I104: 0
A105: Historic Buildings | I105: 0
A106: Works of Art | I106: 0
A107: Conservation Areas | I107: 0
A108: Other Heritage | I108: 0
I109: 0
A110: Investment properties | C110: =+C111+C114 -> 0 | D110: 0 | E110: 0 | F110: 0 | G110: 0 | H110: 0 | I110: 0 | K110: =+K111+K114 -> 0
A111: Revenue Generating | C111: =SUM(C112:C113) -> 0 | D111: 0 | E111: 0 | F111: 0 | G111: 0 | H111: 0 | I111: 0 | K111: =SUM(K112:K113) -> 0
A112: Improved Property | I112: 0
A113: Unimproved Property | I113: 0
A114: Non-revenue Generating | C114: =SUM(C115:C116) -> 0 | D114: 0 | E114: 0 | F114: 0 | G114: 0 | H114: 0 | I114: 0 | K114: =SUM(K115:K116) -> 0
A115: Improved Property | I115: 0
A116: Unimproved Property | I116: =H116-G116 -> 0 | J116: =IF(I116=0,"",I116/H116) -> 
A117: Other assets | C117: =+C118+C130 -> 0 | D117: 0 | E117: 0 | F117: 0 | G117: 0 | H117: 0 | I117: 0 | K117: =+K118+K130 -> 0
A118: Operational Buildings | C118: =SUM(C119:C129) -> 0 | D118: 0 | E118: 0 | F118: 0 | G118: 0 | H118: 0 | I118: 0 | K118: =SUM(K119:K129) -> 0
A119: Municipal Offices | I119: 0
A120: Pay/Enquiry Points | I120: 0
A121: Building Plan Offices | I121: 0
A122: Workshops | I122: 0
A123: Yards | I123: 0
A124: Stores | I124: 0
A125: Laboratories | I125: 0
A126: Training Centres | I126: 0
A127: Manufacturing Plant | I127: 0
A128: Depots | I128: 0
A129: Capital Spares | I129: 0
A130: Housing | C130: =SUM(C131:C133) -> 0 | D130: 0 | E130: 0 | F130: 0 | G130: 0 | H130: 0 | I130: 0 | K130: =SUM(K131:K133) -> 0
A131: Staff Housing | I131: 0
A132: Social Housing | I132: 0
A133: Capital Spares | I133: 0
A135: Biological or Cultivated Assets | C135: =SUM(C136:C136) -> 0 | D135: 0 | E135: 0 | F135: 0 | G135: 0 | H135: 0 | I135: =H135-G135 -> 0 | K135: =SUM(K136) -> 0
A136: Biological or Cultivated Assets | I136: =H136-G136 -> 0
J137: =IF(I137=0,"",I137/H137) -> 
A138: Intangible Assets | C138: =SUM(C139:C140) -> 0 | D138: 0 | E138: 0 | F138: 0 | G138: 0 | H138: 0 | I138: =H138-G138 -> 0 | K138: =SUM(K139:K140) -> 0
A139: Servitudes | I139: 0
A140: Licences and Rights | C140: =SUM(C141:C146) -> 0 | D140: 0 | E140: 0 | F140: 0 | G140: 0 | H140: 0 | I140: 0 | K140: =SUM(K141:K146) -> 0
A141: Water Rights | I141: 0
A142: Effluent Licenses | I142: 0
A143: Solid Waste Licenses | I143: 0
A144: Computer Software and Applications | I144: 0
A145: Load Settlement Software Applications | I145: 0
A146: Unspecified | I146: 0
A148: Computer Equipment | C148: =SUM(C149:C149) -> 0 | D148: 0 | E148: 0 | F148: 0 | G148: 0 | H148: 0 | I148: =H148-G148 -> 0 | J148: =IF(I148=0,"",I148/H148) ->  | K148: =SUM(K149) -> 0
A149: Computer Equipment | I149: =H149-G149 -> 0 | J149: =IF(I149=0,"",I149/H149) -> 
A151: Furniture and Office Equipment | C151: =SUM(C152:C152) -> 0 | D151: 0 | E151: 0 | F151: 0 | G151: 0 | H151: 0 | I151: =H151-G151 -> 0 | J151: =IF(I151=0,"",I151/H151) ->  | K151: =SUM(K152) -> 0
A152: Furniture and Office Equipment | I152: =H152-G152 -> 0 | J152: =IF(I152=0,"",I152/H152) -> 
J153: =IF(I153=0,"",I153/H153) -> 
A154: Machinery and Equipment | C154: =SUM(C155:C155) -> 0 | D154: 0 | E154: 0 | F154: 0 | G154: 0 | H154: 0 | I154: =H154-G154 -> 0 | J154: =IF(I154=0,"",I154/H154) ->  | K154: =SUM(K155) -> 0
A155: Machinery and Equipment | I155: =H155-G155 -> 0 | J155: =IF(I155=0,"",I155/H155) -> 
A157: Transport Assets | C157: =SUM(C158:C158) -> 0 | D157: 0 | E157: 0 | F157: 0 | G157: 0 | H157: 0 | I157: =H157-G157 -> 0 | J157: =IF(I157=0,"",I157/H157) ->  | K157: =SUM(K158) -> 0
A158: Transport Assets | I158: =H158-G158 -> 0 | J158: =IF(I158=0,"",I158/H158) -> 
A160: Land | C160: =SUM(C161:C161) -> 0 | D160: 0 | E160: 0 | F160: 0 | G160: 0 | H160: 0 | I160: =H160-G160 -> 0 | J160: =IF(I160=0,"",I160/H160) ->  | K160: =SUM(K161) -> 0
A161: Land | I161: =H161-G161 -> 0 | J161: =IF(I161=0,"",I161/H161) -> 
J162: .
A163: Zoo's, Marine and Non-biological Animals | C163: =SUM(C164:C164) -> 0 | D163: 0 | E163: 0 | F163: 0 | G163: 0 | H163: 0 | I163: =H163-G163 -> 0 | J163: =IF(I163=0,"",I163/H163) ->  | K163: =SUM(K164) -> 0
A164: Zoo's, Marine and Non-biological Animals | I164: =H164-G164 -> 0 | J164: =IF(I164=0,"",I164/H164) -> 
J165: =IF(I165=0,"",I165/H165) -> 
A166: Total Capital Expenditure on renewal of existing assets | B166: 1 | C166: =C7+C75+C103+C110+C117+C135+C138+C148+C151+C154+C157+C160+C163 -> 0 | D166: 800000 | E166: 0 | F166: 0 | G166: 0 | H166: 800000 | I166: =H166-G166 -> 800000 | J166: =IF(I166=0,"",I166/H166) -> 1 | K166: =K7+K75+K103+K110+K117+K135+K138+K148+K151+K154+K157+K160+K163 -> 800000
A168: =head27a -> References
A169: 1. Total Capital Expenditure on new assets (SC13a) plus Total Capital Expenditure on renewal of existing assets (SC13b) plus Total Capital Expenditure on upgrading of existing assets (SC13e) must reconcile to total capital expenditure in Table C5
A171: check balance | C171: =C166+SC13a!C166+SC13e!C166-'C5-Capex'!C40 -> 0 | D171: =D166+SC13a!D166+SC13e!D166-'C5-Capex'!D40 -> 0 | E171: =E166+SC13a!E166+SC13e!E166-'C5-Capex'!E40 -> 0 | F171: =F166+SC13a!F166+SC13e!F166-'C5-Capex'!F40 -> 0 | G171: =G166+SC13a!G166+SC13e!G166-'C5-Capex'!G40 -> -386349.215 | H171: =H166+SC13a!H166+SC13e!H166-'C5-Capex'!H40 -> -4535819.54 | K171: =K166+SC13a!K166+SC13e!K166-'C5-Capex'!K40 -> -47431650

Sheet SC13c
A1: =muni& " - "&S71Sc& " - "&Head57 -> LIM351 Blouberg - Supporting Table SC13c Monthly Budget Statement - expenditure on repairs and maintenance by asset class - M07 January
A2: =desc -> Description | B2: =head27 -> Ref | C2: =Head1 -> 2018/19 | D2: =Head2 -> Budget Year 2019/20
C3: =Head5 -> Audited Outcome | D3: =Head6 -> Original Budget | E3: =Head7 -> Adjusted Budget | F3: =Head38 -> Monthly actual | G3: =Head39 -> YearTD actual | H3: =Head40 -> YearTD budget | I3: =Head41 -> YTD variance | J3: =Head41 -> YTD variance | K3: =Head8 -> Full Year Forecast
A4: R thousands | B4: 1 | J4: %
A5: Repairs and maintenance expenditure by Asset Class/Sub-class
A7: Infrastructure | C7: =C8+C13+C17+C27+C38+C45+C53+C63+C69 -> 1812200 | D7: 1600000 | E7: 0 | F7: 261495 | G7: 574333 | H7: 800000 | I7: =H7-G7 -> 225667 | J7: =IF(I7=0,"",I7/H7) -> 0.28208375 | K7: =K8+K13+K17+K27+K38+K45+K53+K63+K69 -> 1600000
A8: Roads Infrastructure | C8: =SUM(C9:C12) -> 961000 | D8: 600000 | E8: 0 | F8: 214200 | G8: 214200 | H8: 300000 | I8: 85800 | J8: 0.286 | K8: =SUM(K9:K12) -> 600000
A9: Roads | C9: 961000 | D9: 600000 | E9: 0 | F9: 214200 | G9: 214200 | H9: 300000 | I9: 85800 | J9: 0.286 | K9: 600000
A10: Road Structures | I10: 0
A11: Road Furniture | I11: 0
A12: Capital Spares | I12: 0
A13: Storm water Infrastructure | C13: =SUM(C14:C16) -> 0 | D13: 0 | E13: 0 | F13: 0 | G13: 0 | H13: 0 | I13: 0 | K13: =SUM(K14:K16) -> 0
A14: Drainage Collection | I14: 0
A15: Storm water Conveyance | I15: 0
A16: Attenuation | I16: 0
A17: Electrical Infrastructure | C17: =SUM(C18:C26) -> 851200 | D17: 1000000 | E17: 0 | F17: 47295 | G17: 360133 | H17: 500000 | I17: 139867 | J17: 0.279734 | K17: =SUM(K18:K26) -> 1000000
A18: Power Plants | I18: 0
A19: HV Substations | I19: 0
A20: HV Switching Station | I20: 0
A21: HV Transmission Conductors | I21: 0
A22: MV Substations | I22: 0
A23: MV Switching Stations | I23: 0
A24: MV Networks | I24: 0
A25: LV Networks | I25: 0
A26: Capital Spares | C26: 851200 | D26: 1000000 | E26: 0 | F26: 47295 | G26: 360133 | H26: 500000 | I26: 139867 | J26: 0.279734 | K26: 1000000
A27: Water Supply Infrastructure | C27: =SUM(C28:C37) -> 0 | D27: 0 | E27: 0 | F27: 0 | G27: 0 | H27: 0 | I27: 0 | K27: =SUM(K28:K37) -> 0
A28: Dams and Weirs | I28: 0
A29: Boreholes | I29: 0
A30: Reservoirs | I30: 0
A31: Pump Stations | I31: 0
A32: Water Treatment Works | I32: 0
A33: Bulk Mains | I33: 0
A34: Distribution | I34: 0
A35: Distribution Points | I35: 0
A36: PRV Stations | I36: 0
A37: Capital Spares | I37: 0
A38: Sanitation Infrastructure | C38: =SUM(C39:C44) -> 0 | D38: 0 | E38: 0 | F38: 0 | G38: 0 | H38: 0 | I38: 0 | K38: =SUM(K39:K44) -> 0
A39: Pump Station | I39: 0
A40: Reticulation | I40: 0
A41: Waste Water Treatment Works | I41: 0
A42: Outfall Sewers | I42: 0
A43: Toilet Facilities | I43: 0
A44: Capital Spares | I44: 0
A45: Solid Waste Infrastructure | C45: =SUM(C46:C52) -> 0 | D45: 0 | E45: 0 | F45: 0 | G45: 0 | H45: 0 | I45: 0 | K45: =SUM(K46:K52) -> 0
A46: Landfill Sites | I46: 0
A47: Waste Transfer Stations | I47: 0
A48: Waste Processing Facilities | I48: 0
A49: Waste Drop-off Points | I49: 0
A50: Waste Separation Facilities | I50: 0
A51: Electricity Generation Facilities | I51: 0
A52: Capital Spares | I52: 0
A53: Rail Infrastructure | C53: =SUM(C54:C62) -> 0 | D53: 0 | E53: 0 | F53: 0 | G53: 0 | H53: 0 | I53: 0 | K53: =SUM(K54:K62) -> 0
A54: Rail Lines | I54: 0
A55: Rail Structures | I55: 0
A56: Rail Furniture | I56: 0
A57: Drainage Collection | I57: 0
A58: Storm water Conveyance | I58: 0
A59: Attenuation | I59: 0
A60: MV Substations | I60: 0
A61: LV Networks | I61: 0
A62: Capital Spares | I62: 0
A63: Coastal Infrastructure | C63: =SUM(C64:C68) -> 0 | D63: 0 | E63: 0 | F63: 0 | G63: 0 | H63: 0 | I63: 0 | K63: =SUM(K64:K68) -> 0
A64: Sand Pumps | I64: 0
A65: Piers | I65: 0
A66: Revetments | I66: 0
A67: Promenades | I67: 0
A68: Capital Spares | I68: 0
A69: Information and Communication Infrastructure | C69: =SUM(C70:C73) -> 0 | D69: 0 | E69: 0 | F69: 0 | G69: 0 | H69: 0 | I69: 0 | K69: =SUM(K70:K73) -> 0
A70: Data Centres | I70: 0
A71: Core Layers | I71: 0
A72: Distribution Layers | I72: 0
A73: Capital Spares | I73: 0
A75: Community Assets | C75: =+C76+C99 -> 26000 | D75: 100000 | E75: 0 | F75: 0 | G75: 0 | H75: 50000 | I75: 50000 | J75: 1 | K75: =+K76+K99 -> 100000
A76: Community Facilities | C76: =SUM(C77:C98) -> 26000 | D76: 100000 | E76: 0 | F76: 0 | G76: 0 | H76: 50000 | I76: 50000 | J76: 1 | K76: =SUM(K77:K98) -> 100000
A77: Halls | C77: 26000 | D77: 100000 | E77: 0 | F77: 0 | G77: 0 | H77: 50000 | I77: 50000 | J77: 1 | K77: 100000
A78: Centres | I78: 0
A79: Crèches | I79: 0
A80: Clinics/Care Centres | I80: 0
A81: Fire/Ambulance Stations | I81: 0
A82: Testing Stations | I82: 0
A83: Museums | I83: 0
A84: Galleries | I84: 0
A85: Theatres | I85: 0
A86: Libraries | I86: 0
A87: Cemeteries/Crematoria | I87: 0
A88: Police | I88: 0
A89: Purls | I89: 0
A90: Public Open Space | I90: 0
A91: Nature Reserves | I91: 0
A92: Public Ablution Facilities | I92: 0
A93: Markets | I93: 0
A94: Stalls | I94: 0
A95: Abattoirs | I95: 0
A96: Airports | I96: 0
A97: Taxi Ranks/Bus Terminals | I97: 0
A98: Capital Spares | I98: 0
A99: Sport and Recreation Facilities | C99: =SUM(C100:C102) -> 0 | D99: 0 | E99: 0 | F99: 0 | G99: 0 | H99: 0 | I99: 0 | K99: =SUM(K100:K102) -> 0
A100: Indoor Facilities | I100: 0
A101: Outdoor Facilities | I101: =H101-G101 -> 0 | J101: =IF(I101=0,"",I101/H101) -> 
A102: Capital Spares | I102: 0
A103: Heritage assets | C103: =SUM(C104:C108) -> 0 | D103: 0 | E103: 0 | F103: 0 | G103: 0 | H103: 0 | I103: 0 | K103: =SUM(K104:K108) -> 0
A104: Monuments | I104: 0
A105: Historic Buildings | I105: 0
A106: Works of Art | I106: 0
A107: Conservation Areas | I107: 0
A108: Other Heritage | I108: 0
I109: 0
A110: Investment properties | C110: =+C111+C114 -> 0 | D110: 0 | E110: 0 | F110: 0 | G110: 0 | H110: 0 | I110: 0 | K110: =+K111+K114 -> 0
A111: Revenue Generating | C111: =SUM(C112:C113) -> 0 | D111: 0 | E111: 0 | F111: 0 | G111: 0 | H111: 0 | I111: 0 | K111: =SUM(K112:K113) -> 0
A112: Improved Property | I112: 0
A113: Unimproved Property | I113: 0
A114: Non-revenue Generating | C114: =SUM(C115:C116) -> 0 | D114: 0 | E114: 0 | F114: 0 | G114: 0 | H114: 0 | I114: 0 | K114: =SUM(K115:K116) -> 0
A115: Improved Property | I115: 0
A116: Unimproved Property | I116: =H116-G116 -> 0 | J116: =IF(I116=0,"",I116/H116) -> 
A117: Other assets | C117: =+C118+C130 -> 152030 | D117: 300000 | E117: 0 | F117: 0 | G117: 0 | H117: 0 | I117: 0 | K117: =+K118+K130 -> 300000
A118: Operational Buildings | C118: =SUM(C119:C129) -> 152030 | D118: 300000 | E118: 0 | F118: 0 | G118: 0 | H118: 0 | I118: 0 | K118: =SUM(K119:K129) -> 300000
A119: Municipal Offices | C119: 152030 | D119: 300000 | I119: 0 | K119: 300000
A120: Pay/Enquiry Points | I120: 0
A121: Building Plan Offices | I121: 0
A122: Workshops | I122: 0
A123: Yards | I123: 0
A124: Stores | I124: 0
A125: Laboratories | I125: 0
A126: Training Centres | I126: 0
A127: Manufacturing Plant | I127: 0
A128: Depots | I128: 0
A129: Capital Spares | I129: 0
A130: Housing | C130: =SUM(C131:C133) -> 0 | D130: 0 | E130: 0 | F130: 0 | G130: 0 | H130: 0 | I130: 0 | K130: =SUM(K131:K133) -> 0
A131: Staff Housing | I131: 0
A132: Social Housing | I132: 0
A133: Capital Spares | I133: 0
A135: Biological or Cultivated Assets | C135: =SUM(C136:C136) -> 0 | D135: 0 | E135: 0 | F135: 0 | G135: 0 | H135: 0 | I135: =H135-G135 -> 0 | K135: =SUM(K136) -> 0
A136: Biological or Cultivated Assets | I136: =H136-G136 -> 0
J137: =IF(I137=0,"",I137/H137) -> 
A138: Intangible Assets | C138: =SUM(C139:C140) -> 0 | D138: 550000 | E138: 0 | F138: 0 | G138: 0 | H138: 0 | I138: =H138-G138 -> 0 | K138: =SUM(K139:K140) -> 550000
A139: Servitudes | I139: 0
A140: Licences and Rights | C140: =SUM(C141:C146) -> 0 | D140: 550000 | E140: 0 | F140: 0 | G140: 0 | H140: 0 | I140: 0 | K140: =SUM(K141:K146) -> 550000
A141: Water Rights | I141: 0
A142: Effluent Licenses | I142: 0
A143: Solid Waste Licenses | I143: 0 | K143: 550000
A144: Computer Software and Applications | C144: 0 | D144: 550000 | I144: 0
A145: Load Settlement Software Applications | I145: 0
A146: Unspecified | I146: 0
A148: Computer Equipment | C148: =SUM(C149:C149) -> 0 | D148: 0 | E148: 0 | F148: 0 | G148: 0 | H148: 0 | I148: =H148-G148 -> 0 | J148: =IF(I148=0,"",I148/H148) ->  | K148: =SUM(K149) -> 0
A149: Computer Equipment | I149: =H149-G149 -> 0 | J149: =IF(I149=0,"",I149/H149) -> 
A151: Furniture and Office Equipment | C151: =SUM(C152:C152) -> 0 | D151: 400000 | E151: 0 | F151: 0 | G151: 0 | H151: 0 | I151: =H151-G151 -> 0 | J151: =IF(I151=0,"",I151/H151) ->  | K151: =SUM(K152) -> 400000
A152: Furniture and Office Equipment | D152: 400000 | I152: =H152-G152 -> 0 | J152: =IF(I152=0,"",I152/H152) ->  | K152: 400000
J153: =IF(I153=0,"",I153/H153) -> 
A154: Machinery and Equipment | C154: =SUM(C155:C155) -> 0 | D154: 120000 | E154: 0 | F154: 0 | G154: 0 | H154: 0 | I154: =H154-G154 -> 0 | J154: =IF(I154=0,"",I154/H154) ->  | K154: =SUM(K155) -> 120000
A155: Machinery and Equipment | D155: 120000 | I155: =H155-G155 -> 0 | J155: =IF(I155=0,"",I155/H155) ->  | K155: 120000
A157: Transport Assets | C157: =SUM(C158:C158) -> 504465 | D157: 1300000 | E157: 0 | F157: 0 | G157: 444175.86 | H157: 500000 | I157: =H157-G157 -> 55824.14 | J157: =IF(I157=0,"",I157/H157) -> 0.11164828 | K157: =SUM(K158) -> 1300000
A158: Transport Assets | C158: =550000-45535 -> 504465 | D158: 1300000 | F158: 0 | G158: =658375.86-214200 -> 444175.86 | H158: 500000 | I158: =H158-G158 -> 55824.14 | J158: =IF(I158=0,"",I158/H158) -> 0.11164828 | K158: 1300000
A160: Land | C160: =SUM(C161:C161) -> 0 | D160: 0 | E160: 0 | F160: 0 | G160: 0 | H160: 0 | I160: =H160-G160 -> 0 | J160: =IF(I160=0,"",I160/H160) ->  | K160: =SUM(K161) -> 0
A161: Land | I161: =H161-G161 -> 0 | J161: =IF(I161=0,"",I161/H161) -> 
A163: Zoo's, Marine and Non-biological Animals | C163: =SUM(C164:C164) -> 0 | D163: 0 | E163: 0 | F163: 0 | G163: 0 | H163: 0 | I163: =H163-G163 -> 0 | J163: =IF(I163=0,"",I163/H163) ->  | K163: =SUM(K164) -> 0
A164: Zoo's, Marine and Non-biological Animals | I164: =H164-G164 -> 0 | J164: =IF(I164=0,"",I164/H164) -> 
J165: =IF(I165=0,"",I165/H165) -> 
A166: Total Repairs and Maintenance Expenditure | B166: 1 | C166: =C7+C75+C103+C110+C117+C135+C138+C148+C151+C154+C157+C160+C163 -> 2494695 | D166: 4370000 | E166: 0 | F166: 261495 | G166: 1018508.86 | H166: 1350000 | I166: 331491.14 | J166: 0.2455489926 | K166: =K7+K75+K103+K110+K117+K135+K138+K148+K151+K154+K157+K160+K163 -> 4370000

Sheet SC13d
A1: =muni& " - "&S71Sd& " - "&Head57 -> LIM351 Blouberg - Supporting Table SC13d Monthly Budget Statement - depreciation by asset class - M07 January
A2: =desc -> Description | B2: =head27 -> Ref | C2: =Head1 -> 2018/19 | D2: =Head2 -> Budget Year 2019/20
C3: =Head5 -> Audited Outcome | D3: =Head6 -> Original Budget | E3: =Head7 -> Adjusted Budget | F3: =Head38 -> Monthly actual | G3: =Head39 -> YearTD actual | H3: =Head40 -> YearTD budget | I3: =Head41 -> YTD variance | J3: =Head41 -> YTD variance | K3: =Head8 -> Full Year Forecast
A4: R thousands | B4: 1 | J4: %
A5: Depreciation by Asset Class/Sub-class
A7: Infrastructure | C7: =C8+C13+C17+C27+C38+C45+C53+C63+C69 -> 23521064.2 | D7: 22070038.2 | E7: 0 | F7: 0 | G7: 0 | H7: 0 | I7: =H7-G7 -> 0 | J7: =IF(I7=0,"",I7/H7) ->  | K7: =K8+K13+K17+K27+K38+K45+K53+K63+K69 -> 22070038.2
A8: Roads Infrastructure | C8: =SUM(C9:C12) -> 14652227 | D8: 11201201 | E8: 0 | F8: 0 | G8: 0 | H8: 0 | I8: 0 | K8: =SUM(K9:K12) -> 11201201
A9: Roads | C9: 14652227 | D9: 11201201 | F9: 0 | G9: 0 | H9: 0 | I9: 0 | K9: 11201201
A10: Road Structures | I10: 0
A11: Road Furniture | I11: 0
A12: Capital Spares | I12: 0
A13: Storm water Infrastructure | C13: =SUM(C14:C16) -> 0 | D13: 0 | E13: 0 | F13: 0 | G13: 0 | H13: 0 | I13: 0 | K13: =SUM(K14:K16) -> 0
A14: Drainage Collection | I14: 0
A15: Storm water Conveyance | I15: 0
A16: Attenuation | I16: 0
A17: Electrical Infrastructure | C17: =SUM(C18:C26) -> 8868837.2 | D17: 10868837.2 | E17: 0 | F17: 0 | G17: 0 | H17: 0 | I17: 0 | K17: =SUM(K18:K26) -> 10868837.2
A18: Power Plants | I18: 0
A19: HV Substations | I19: 0
A20: HV Switching Station | I20: 0
A21: HV Transmission Conductors | I21: 0
A22: MV Substations | I22: 0
A23: MV Switching Stations | I23: 0
A24: MV Networks | C24: 4434418.6 | D24: 5434418.6 | F24: 0 | G24: 0 | H24: 0 | I24: 0 | K24: 5434418.6
A25: LV Networks | C25: 4434418.6 | D25: 5434418.6 | F25: 0 | G25: 0 | H25: 0 | I25: 0 | K25: 5434418.6
A26: Capital Spares | I26: 0
A27: Water Supply Infrastructure | C27: =SUM(C28:C37) -> 0 | D27: 0 | E27: 0 | F27: 0 | G27: 0 | H27: 0 | I27: 0 | K27: =SUM(K28:K37) -> 0
A28: Dams and Weirs | I28: 0
A29: Boreholes | I29: 0
A30: Reservoirs | I30: 0
A31: Pump Stations | I31: 0
A32: Water Treatment Works | I32: 0
A33: Bulk Mains | I33: 0
A34: Distribution | I34: 0
A35: Distribution Points | I35: 0
A36: PRV Stations | I36: 0
A37: Capital Spares | I37: 0
A38: Sanitation Infrastructure | C38: =SUM(C39:C44) -> 0 | D38: 0 | E38: 0 | F38: 0 | G38: 0 | H38: 0 | I38: 0 | K38: =SUM(K39:K44) -> 0
A39: Pump Station | I39: 0
A40: Reticulation | I40: 0
A41: Waste Water Treatment Works | I41: 0
A42: Outfall Sewers | I42: 0
A43: Toilet Facilities | I43: 0
A44: Capital Spares | I44: 0
A45: Solid Waste Infrastructure | C45: =SUM(C46:C52) -> 0 | D45: 0 | E45: 0 | F45: 0 | G45: 0 | H45: 0 | I45: 0 | K45: =SUM(K46:K52) -> 0
A46: Landfill Sites | I46: 0
A47: Waste Transfer Stations | I47: 0
A48: Waste Processing Facilities | I48: 0
A49: Waste Drop-off Points | I49: 0
A50: Waste Separation Facilities | I50: 0
A51: Electricity Generation Facilities | I51: 0
A52: Capital Spares | I52: 0
A53: Rail Infrastructure | C53: =SUM(C54:C62) -> 0 | D53: 0 | E53: 0 | F53: 0 | G53: 0 | H53: 0 | I53: 0 | K53: =SUM(K54:K62) -> 0
A54: Rail Lines | I54: 0
A55: Rail Structures | I55: 0
A56: Rail Furniture | I56: 0
A57: Drainage Collection | I57: 0
A58: Storm water Conveyance | I58: 0
A59: Attenuation | I59: 0
A60: MV Substations | I60: 0
A61: LV Networks | I61: 0
A62: Capital Spares | I62: 0
A63: Coastal Infrastructure | C63: =SUM(C64:C68) -> 0 | D63: 0 | E63: 0 | F63: 0 | G63: 0 | H63: 0 | I63: 0 | K63: =SUM(K64:K68) -> 0
A64: Sand Pumps | I64: 0
A65: Piers | I65: 0
A66: Revetments | I66: 0
A67: Promenades | I67: 0
A68: Capital Spares | I68: 0
A69: Information and Communication Infrastructure | C69: =SUM(C70:C73) -> 0 | D69: 0 | E69: 0 | F69: 0 | G69: 0 | H69: 0 | I69: 0 | K69: =SUM(K70:K73) -> 0
A70: Data Centres | I70: 0
A71: Core Layers | I71: 0
A72: Distribution Layers | I72: 0
A73: Capital Spares | I73: 0
A75: Community Assets | C75: =+C76+C99 -> 6928954 | D75: 6624205.883 | E75: 0 | F75: 0 | G75: 0 | H75: 0 | I75: 0 | K75: =+K76+K99 -> 6624205.883
A76: Community Facilities | C76: =SUM(C77:C98) -> 6928954 | D76: 6624205.883 | E76: 0 | F76: 0 | G76: 0 | H76: 0 | I76: 0 | K76: =SUM(K77:K98) -> 6624205.883
A77: Halls | I77: 0
A78: Centres | I78: 0
A79: Crèches | C79: 6928954 | D79: 6624205.883 | F79: 0 | G79: 0 | H79: 0 | I79: 0 | K79: 6624205.883
A80: Clinics/Care Centres | I80: 0
A81: Fire/Ambulance Stations | I81: 0
A82: Testing Stations | I82: 0
A83: Museums | I83: 0
A84: Galleries | I84: 0
A85: Theatres | I85: 0
A86: Libraries | I86: 0
A87: Cemeteries/Crematoria | I87: 0
A88: Police | I88: 0
A89: Purls | I89: 0
A90: Public Open Space | I90: 0
A91: Nature Reserves | I91: 0
A92: Public Ablution Facilities | I92: 0
A93: Markets | I93: 0
A94: Stalls | I94: 0
A95: Abattoirs | I95: 0
A96: Airports | I96: 0
A97: Taxi Ranks/Bus Terminals | I97: 0
A98: Capital Spares | I98: 0
A99: Sport and Recreation Facilities | C99: =SUM(C100:C102) -> 0 | D99: 0 | E99: 0 | F99: 0 | G99: 0 | H99: 0 | I99: 0 | K99: =SUM(K100:K102) -> 0
A100: Indoor Facilities | I100: 0
A101: Outdoor Facilities | I101: =H101-G101 -> 0 | J101: =IF(I101=0,"",I101/H101) -> 
A102: Capital Spares | I102: 0
A103: Heritage assets | C103: =SUM(C104:C108) -> 0 | D103: 0 | E103: 0 | F103: 0 | G103: 0 | H103: 0 | I103: 0 | K103: =SUM(K104:K108) -> 0
A104: Monuments | I104: 0
A105: Historic Buildings | I105: 0
A106: Works of Art | I106: 0
A107: Conservation Areas | I107: 0
A108: Other Heritage | I108: 0
I109: 0
A110: Investment properties | C110: =+C111+C114 -> 0 | D110: 0 | E110: 0 | F110: 0 | G110: 0 | H110: 0 | I110: 0 | K110: =+K111+K114 -> 0
A111: Revenue Generating | C111: =SUM(C112:C113) -> 0 | D111: 0 | E111: 0 | F111: 0 | G111: 0 | H111: 0 | I111: 0 | K111: =SUM(K112:K113) -> 0
A112: Improved Property | I112: 0
A113: Unimproved Property | I113: 0
A114: Non-revenue Generating | C114: =SUM(C115:C116) -> 0 | D114: 0 | E114: 0 | F114: 0 | G114: 0 | H114: 0 | I114: 0 | K114: =SUM(K115:K116) -> 0
A115: Improved Property | I115: 0
A116: Unimproved Property | I116: =H116-G116 -> 0 | J116: =IF(I116=0,"",I116/H116) -> 
A117: Other assets | C117: =+C118+C130 -> 1582360 | D117: 6404534.852 | E117: 0 | F117: 0 | G117: 0 | H117: 0 | I117: 0 | K117: =+K118+K130 -> 6404534.852
A118: Operational Buildings | C118: =SUM(C119:C129) -> 1582360 | D118: 6404534.852 | E118: 0 | F118: 0 | G118: 0 | H118: 0 | I118: 0 | K118: =SUM(K119:K129) -> 6404534.852
A119: Municipal Offices | C119: 1582360 | D119: 6404534.852 | F119: 0 | G119: 0 | H119: 0 | I119: 0 | K119: 6404534.852
A120: Pay/Enquiry Points | I120: 0
A121: Building Plan Offices | I121: 0
A122: Workshops | I122: 0
A123: Yards | I123: 0
A124: Stores | I124: 0
A125: Laboratories | I125: 0
A126: Training Centres | I126: 0
A127: Manufacturing Plant | I127: 0
A128: Depots | I128: 0
A129: Capital Spares | I129: 0
A130: Housing | C130: =SUM(C131:C133) -> 0 | D130: 0 | E130: 0 | F130: 0 | G130: 0 | H130: 0 | I130: 0 | K130: =SUM(K131:K133) -> 0
A131: Staff Housing | I131: 0
A132: Social Housing | I132: 0
A133: Capital Spares | I133: 0
A135: Biological or Cultivated Assets | C135: =SUM(C136:C136) -> 0 | D135: 0 | E135: 0 | F135: 0 | G135: 0 | H135: 0 | I135: =H135-G135 -> 0 | K135: =SUM(K136) -> 0
A136: Biological or Cultivated Assets | I136: =H136-G136 -> 0
J137: =IF(I137=0,"",I137/H137) -> 
A138: Intangible Assets | C138: =SUM(C139:C140) -> 0 | D138: 0 | E138: 0 | F138: 0 | G138: 0 | H138: 0 | I138: =H138-G138 -> 0 | K138: =SUM(K139:K140) -> 0
A139: Servitudes | I139: 0
A140: Licences and Rights | C140: =SUM(C141:C146) -> 0 | D140: 0 | E140: 0 | F140: 0 | G140: 0 | H140: 0 | I140: 0 | K140: =SUM(K141:K146) -> 0
A141: Water Rights | I141: 0
A142: Effluent Licenses | I142: 0
A143: Solid Waste Licenses | I143: 0
A144: Computer Software and Applications | I144: 0
A145: Load Settlement Software Applications | I145: 0
A146: Unspecified | I146: 0
A148: Computer Equipment | C148: =SUM(C149:C149) -> 0 | D148: 380000 | E148: 0 | F148: 0 | G148: 0 | H148: 0 | I148: =H148-G148 -> 0 | J148: =IF(I148=0,"",I148/H148) ->  | K148: =SUM(K149) -> 380000
A149: Computer Equipment | D149: 380000 | G149: 0 | H149: 0 | I149: =H149-G149 -> 0 | J149: =IF(I149=0,"",I149/H149) ->  | K149: 380000
A151: Furniture and Office Equipment | C151: =SUM(C152:C152) -> 0 | D151: 206000 | E151: 0 | F151: 0 | G151: 0 | H151: 0 | I151: =H151-G151 -> 0 | J151: =IF(I151=0,"",I151/H151) ->  | K151: =SUM(K152) -> 206000
A152: Furniture and Office Equipment | D152: 206000 | G152: 0 | H152: 0 | I152: =H152-G152 -> 0 | J152: =IF(I152=0,"",I152/H152) ->  | K152: 206000
J153: =IF(I153=0,"",I153/H153) -> 
A154: Machinery and Equipment | C154: =SUM(C155:C155) -> 0 | D154: 155000 | E154: 0 | F154: 0 | G154: 0 | H154: 0 | I154: =H154-G154 -> 0 | J154: =IF(I154=0,"",I154/H154) ->  | K154: =SUM(K155) -> 155000
A155: Machinery and Equipment | D155: 155000 | G155: 0 | H155: 0 | I155: =H155-G155 -> 0 | J155: =IF(I155=0,"",I155/H155) ->  | K155: 155000
A157: Transport Assets | C157: =SUM(C158:C158) -> 3210452 | D157: 3475962.569 | E157: 0 | F157: 0 | G157: 0 | H157: 0 | I157: =H157-G157 -> 0 | J157: =IF(I157=0,"",I157/H157) ->  | K157: =SUM(K158) -> 3475962.569
A158: Transport Assets | C158: 3210452 | D158: 3475962.569 | G158: 0 | H158: 0 | I158: =H158-G158 -> 0 | J158: =IF(I158=0,"",I158/H158) ->  | K158: 3475962.569
A160: Land | C160: =SUM(C161:C161) -> 0 | D160: 0 | E160: 0 | F160: 0 | G160: 0 | H160: 0 | I160: =H160-G160 -> 0 | J160: =IF(I160=0,"",I160/H160) ->  | K160: =SUM(K161) -> 0
A161: Land | I161: =H161-G161 -> 0 | J161: =IF(I161=0,"",I161/H161) -> 
A163: Zoo's, Marine and Non-biological Animals | C163: =SUM(C164:C164) -> 0 | D163: 0 | E163: 0 | F163: 0 | G163: 0 | H163: 0 | I163: =H163-G163 -> 0 | J163: =IF(I163=0,"",I163/H163) ->  | K163: =SUM(K164) -> 0
A164: Zoo's, Marine and Non-biological Animals | I164: =H164-G164 -> 0 | J164: =IF(I164=0,"",I164/H164) -> 
J165: =IF(I165=0,"",I165/H165) -> 
A166: Total Depreciation | B166: 1 | C166: =C7+C75+C103+C110+C117+C135+C138+C148+C151+C154+C157+C160+C163 -> 35242830.2 | D166: 39315741.5 | E166: 0 | F166: 0 | G166: 0 | H166: 0 | I166: 0 | K166: =K7+K75+K103+K110+K117+K135+K138+K148+K151+K154+K157+K160+K163 -> 39315741.5

Sheet SC13e
A1: =muni& " - "&S71Se& " - "&Head57 -> LIM351 Blouberg - Supporting Table SC13e Monthly Budget Statement - capital expenditure on upgrading of existing assets by asset class - M07 January
A2: =desc -> Description | B2: =head27 -> Ref | C2: =Head1 -> 2018/19 | D2: =Head2 -> Budget Year 2019/20
C3: =Head5 -> Audited Outcome | D3: =Head6 -> Original Budget | E3: =Head7 -> Adjusted Budget | F3: =Head38 -> Monthly actual | G3: =Head39 -> YearTD actual | H3: =Head40 -> YearTD budget | I3: =Head41 -> YTD variance | J3: =Head41 -> YTD variance | K3: =Head8 -> Full Year Forecast
A4: R thousands | B4: 1 | J4: %
A5: Capital expenditure on upgrading of existing assets by Asset Class/Sub-class
A7: Infrastructure | C7: =C8+C13+C17+C27+C38+C45+C53+C63+C69 -> 0 | D7: 0 | E7: 0 | F7: 0 | G7: 0 | H7: 0 | I7: =H7-G7 -> 0 | J7: =IF(I7=0,"",I7/H7) ->  | K7: =K8+K13+K17+K27+K38+K45+K53+K63+K69 -> 0
A8: Roads Infrastructure | C8: =SUM(C9:C12) -> 0 | D8: 0 | E8: 0 | F8: 0 | G8: 0 | H8: 0 | I8: 0 | K8: =SUM(K9:K12) -> 0
A9: Roads | I9: 0
A10: Road Structures | I10: 0
A11: Road Furniture | I11: 0
A12: Capital Spares | I12: 0
A13: Storm water Infrastructure | C13: =SUM(C14:C16) -> 0 | D13: 0 | E13: 0 | F13: 0 | G13: 0 | H13: 0 | I13: 0 | K13: =SUM(K14:K16) -> 0
A14: Drainage Collection | I14: 0
A15: Storm water Conveyance | I15: 0
A16: Attenuation | I16: 0
A17: Electrical Infrastructure | C17: =SUM(C18:C26) -> 0 | D17: 0 | E17: 0 | F17: 0 | G17: 0 | H17: 0 | I17: 0 | K17: =SUM(K18:K26) -> 0
A18: Power Plants | I18: 0
A19: HV Substations | I19: 0
A20: HV Switching Station | I20: 0
A21: HV Transmission Conductors | I21: 0
A22: MV Substations | I22: 0
A23: MV Switching Stations | I23: 0
A24: MV Networks | I24: 0
A25: LV Networks | I25: 0
A26: Capital Spares | I26: 0
A27: Water Supply Infrastructure | C27: =SUM(C28:C37) -> 0 | D27: 0 | E27: 0 | F27: 0 | G27: 0 | H27: 0 | I27: 0 | K27: =SUM(K28:K37) -> 0
A28: Dams and Weirs | I28: 0
A29: Boreholes | I29: 0
A30: Reservoirs | I30: 0
A31: Pump Stations | I31: 0
A32: Water Treatment Works | I32: 0
A33: Bulk Mains | I33: 0
A34: Distribution | I34: 0
A35: Distribution Points | I35: 0
A36: PRV Stations | I36: 0
A37: Capital Spares | I37: 0
A38: Sanitation Infrastructure | C38: =SUM(C39:C44) -> 0 | D38: 0 | E38: 0 | F38: 0 | G38: 0 | H38: 0 | I38: 0 | K38: =SUM(K39:K44) -> 0
A39: Pump Station | I39: 0
A40: Reticulation | I40: 0
A41: Waste Water Treatment Works | I41: 0
A42: Outfall Sewers | I42: 0
A43: Toilet Facilities | I43: 0
A44: Capital Spares | I44: 0
A45: Solid Waste Infrastructure | C45: =SUM(C46:C52) -> 0 | D45: 0 | E45: 0 | F45: 0 | G45: 0 | H45: 0 | I45: 0 | K45: =SUM(K46:K52) -> 0
A46: Landfill Sites | I46: 0
A47: Waste Transfer Stations | I47: 0
A48: Waste Processing Facilities | I48: 0
A49: Waste Drop-off Points | I49: 0
A50: Waste Separation Facilities | I50: 0
A51: Electricity Generation Facilities | I51: 0
A52: Capital Spares | I52: 0
A53: Rail Infrastructure | C53: =SUM(C54:C62) -> 0 | D53: 0 | E53: 0 | F53: 0 | G53: 0 | H53: 0 | I53: 0 | K53: =SUM(K54:K62) -> 0
A54: Rail Lines | I54: 0
A55: Rail Structures | I55: 0
A56: Rail Furniture | I56: 0
A57: Drainage Collection | I57: 0
A58: Storm water Conveyance | I58: 0
A59: Attenuation | I59: 0
A60: MV Substations | I60: 0
A61: LV Networks | I61: 0
A62: Capital Spares | I62: 0
A63: Coastal Infrastructure | C63: =SUM(C64:C68) -> 0 | D63: 0 | E63: 0 | F63: 0 | G63: 0 | H63: 0 | I63: 0 | K63: =SUM(K64:K68) -> 0
A64: Sand Pumps | I64: 0
A65: Piers | I65: 0
A66: Revetments | I66: 0
A67: Promenades | I67: 0
A68: Capital Spares | I68: 0
A69: Information and Communication Infrastructure | C69: =SUM(C70:C73) -> 0 | D69: 0 | E69: 0 | F69: 0 | G69: 0 | H69: 0 | I69: 0 | K69: =SUM(K70:K73) -> 0
A70: Data Centres | I70: 0
A71: Core Layers | I71: 0
A72: Distribution Layers | I72: 0
A73: Capital Spares | I73: 0
A75: Community Assets | C75: =+C76+C99 -> 0 | D75: 0 | E75: 0 | F75: 0 | G75: 0 | H75: 0 | I75: 0 | K75: =+K76+K99 -> 0
A76: Community Facilities | C76: =SUM(C77:C98) -> 0 | D76: 0 | E76: 0 | F76: 0 | G76: 0 | H76: 0 | I76: 0 | K76: =SUM(K77:K98) -> 0
A77: Halls | I77: 0
A78: Centres | I78: 0
A79: Crèches | I79: 0
A80: Clinics/Care Centres | I80: 0
A81: Fire/Ambulance Stations | I81: 0
A82: Testing Stations | I82: 0
A83: Museums | I83: 0
A84: Galleries | I84: 0
A85: Theatres | I85: 0
A86: Libraries | I86: 0
A87: Cemeteries/Crematoria | I87: 0
A88: Police | I88: 0
A89: Purls | I89: 0
A90: Public Open Space | I90: 0
A91: Nature Reserves | I91: 0
A92: Public Ablution Facilities | I92: 0
A93: Markets | I93: 0
A94: Stalls | I94: 0
A95: Abattoirs | I95: 0
A96: Airports | I96: 0
A97: Taxi Ranks/Bus Terminals | I97: 0
A98: Capital Spares | I98: 0
A99: Sport and Recreation Facilities | C99: =SUM(C100:C102) -> 0 | D99: 0 | E99: 0 | F99: 0 | G99: 0 | H99: 0 | I99: 0 | K99: =SUM(K100:K102) -> 0
A100: Indoor Facilities | I100: 0
A101: Outdoor Facilities | I101: =H101-G101 -> 0 | J101: =IF(I101=0,"",I101/H101) -> 
A102: Capital Spares | I102: 0
A103: Heritage assets | C103: =SUM(C104:C108) -> 0 | D103: 0 | E103: 0 | F103: 0 | G103: 0 | H103: 0 | I103: 0 | K103: =SUM(K104:K108) -> 0
A104: Monuments | I104: 0
A105: Historic Buildings | I105: 0
A106: Works of Art | I106: 0
A107: Conservation Areas | I107: 0
A108: Other Heritage | I108: 0
I109: 0
A110: Investment properties | C110: =+C111+C114 -> 0 | D110: 0 | E110: 0 | F110: 0 | G110: 0 | H110: 0 | I110: 0 | K110: =+K111+K114 -> 0
A111: Revenue Generating | C111: =SUM(C112:C113) -> 0 | D111: 0 | E111: 0 | F111: 0 | G111: 0 | H111: 0 | I111: 0 | K111: =SUM(K112:K113) -> 0
A112: Improved Property | I112: 0
A113: Unimproved Property | I113: 0
A114: Non-revenue Generating | C114: =SUM(C115:C116) -> 0 | D114: 0 | E114: 0 | F114: 0 | G114: 0 | H114: 0 | I114: 0 | K114: =SUM(K115:K116) -> 0
A115: Improved Property | I115: 0
A116: Unimproved Property | I116: =H116-G116 -> 0 | J116: =IF(I116=0,"",I116/H116) -> 
A117: Other assets | C117: =+C118+C130 -> 0 | D117: 0 | E117: 0 | F117: 0 | G117: 0 | H117: 0 | I117: 0 | K117: =+K118+K130 -> 0
A118: Operational Buildings | C118: =SUM(C119:C129) -> 0 | D118: 0 | E118: 0 | F118: 0 | G118: 0 | H118: 0 | I118: 0 | K118: =SUM(K119:K129) -> 0
A119: Municipal Offices | I119: 0
A120: Pay/Enquiry Points | I120: 0
A121: Building Plan Offices | I121: 0
A122: Workshops | I122: 0
A123: Yards | I123: 0
A124: Stores | I124: 0
A125: Laboratories | I125: 0
A126: Training Centres | I126: 0
A127: Manufacturing Plant | I127: 0
A128: Depots | I128: 0
A129: Capital Spares | I129: 0
A130: Housing | C130: =SUM(C131:C133) -> 0 | D130: 0 | E130: 0 | F130: 0 | G130: 0 | H130: 0 | I130: 0 | K130: =SUM(K131:K133) -> 0
A131: Staff Housing | I131: 0
A132: Social Housing | I132: 0
A133: Capital Spares | I133: 0
A135: Biological or Cultivated Assets | C135: =SUM(C136:C136) -> 0 | D135: 0 | E135: 0 | F135: 0 | G135: 0 | H135: 0 | I135: =H135-G135 -> 0 | K135: =SUM(K136) -> 0
A136: Biological or Cultivated Assets | I136: =H136-G136 -> 0
J137: =IF(I137=0,"",I137/H137) -> 
A138: Intangible Assets | C138: =SUM(C139:C140) -> 0 | D138: 0 | E138: 0 | F138: 0 | G138: 0 | H138: 0 | I138: =H138-G138 -> 0 | K138: =SUM(K139:K140) -> 0
A139: Servitudes | I139: 0
A140: Licences and Rights | C140: =SUM(C141:C146) -> 0 | D140: 0 | E140: 0 | F140: 0 | G140: 0 | H140: 0 | I140: 0 | K140: =SUM(K141:K146) -> 0
A141: Water Rights | I141: 0
A142: Effluent Licenses | I142: 0
A143: Solid Waste Licenses | I143: 0
A144: Computer Software and Applications | I144: 0
A145: Load Settlement Software Applications | I145: 0
A146: Unspecified | I146: 0
A148: Computer Equipment | C148: =SUM(C149:C149) -> 0 | D148: 0 | E148: 0 | F148: 0 | G148: 0 | H148: 0 | I148: =H148-G148 -> 0 | J148: =IF(I148=0,"",I148/H148) ->  | K148: =SUM(K149) -> 0
A149: Computer Equipment | I149: =H149-G149 -> 0 | J149: =IF(I149=0,"",I149/H149) -> 
A151: Furniture and Office Equipment | C151: =SUM(C152:C152) -> 0 | D151: 0 | E151: 0 | F151: 0 | G151: 0 | H151: 0 | I151: =H151-G151 -> 0 | J151: =IF(I151=0,"",I151/H151) ->  | K151: =SUM(K152) -> 0
A152: Furniture and Office Equipment | I152: =H152-G152 -> 0 | J152: =IF(I152=0,"",I152/H152) -> 
J153: =IF(I153=0,"",I153/H153) -> 
A154: Machinery and Equipment | C154: =SUM(C155:C155) -> 0 | D154: 0 | E154: 0 | F154: 0 | G154: 0 | H154: 0 | I154: =H154-G154 -> 0 | J154: =IF(I154=0,"",I154/H154) ->  | K154: =SUM(K155) -> 0
A155: Machinery and Equipment | I155: =H155-G155 -> 0 | J155: =IF(I155=0,"",I155/H155) -> 
A157: Transport Assets | C157: =SUM(C158:C158) -> 0 | D157: 0 | E157: 0 | F157: 0 | G157: 0 | H157: 0 | I157: =H157-G157 -> 0 | J157: =IF(I157=0,"",I157/H157) ->  | K157: =SUM(K158) -> 0
A158: Transport Assets | I158: =H158-G158 -> 0 | J158: =IF(I158=0,"",I158/H158) -> 
A160: Land | C160: =SUM(C161:C161) -> 0 | D160: 0 | E160: 0 | F160: 0 | G160: 0 | H160: 0 | I160: =H160-G160 -> 0 | J160: =IF(I160=0,"",I160/H160) ->  | K160: =SUM(K161) -> 0
A161: Land | I161: =H161-G161 -> 0 | J161: =IF(I161=0,"",I161/H161) -> 
J162: .
A163: Zoo's, Marine and Non-biological Animals | C163: =SUM(C164:C164) -> 0 | D163: 0 | E163: 0 | F163: 0 | G163: 0 | H163: 0 | I163: =H163-G163 -> 0 | J163: =IF(I163=0,"",I163/H163) ->  | K163: =SUM(K164) -> 0
A164: Zoo's, Marine and Non-biological Animals | I164: =H164-G164 -> 0 | J164: =IF(I164=0,"",I164/H164) -> 
J165: =IF(I165=0,"",I165/H165) -> 
A166: Total Capital Expenditure on upgrading of existing assets | B166: 1 | C166: =C7+C75+C103+C110+C117+C135+C138+C148+C151+C154+C157+C160+C163 -> 0 | D166: 0 | E166: 0 | F166: 0 | G166: 0 | H166: 0 | I166: =H166-G166 -> 0 | J166: =IF(I166=0,"",I166/H166) ->  | K166: =K7+K75+K103+K110+K117+K135+K138+K148+K151+K154+K157+K160+K163 -> 0
A168: =head27a -> References
A169: 1. Total Capital Expenditure on new assets (SC13a) plus Total Capital Expenditure on renewal of existing assets (SC13b) plus Total Capital Expenditure on upgrading of existing assets (SC13e) must reconcile to total capital expenditure in Table C5
A171: check balance | C171: =C166+SC13a!C166+SC13b!C166-'C5-Capex'!C40 -> 0 | D171: =D166+SC13a!D166+SC13b!D166-'C5-Capex'!D40 -> 0 | E171: =E166+SC13a!E166+SC13b!E166-'C5-Capex'!E40 -> 0 | F171: =F166+SC13a!F166+SC13b!F166-'C5-Capex'!F40 -> 0 | G171: =G166+SC13a!G166+SC13b!G166-'C5-Capex'!G40 -> -386349.215 | H171: =H166+SC13a!H166+SC13b!H166-'C5-Capex'!H40 -> -4535819.54 | K171: =K166+SC13a!K166+SC13b!K166-'C5-Capex'!K40 -> -47431650

Sheet SC71charts
A1: ='Template names'!B102 -> Chart C1 2019/20 Capital Expenditure Monthly Trend: actual v target
A2: Month | B2: ='SC12'!B2 -> 2018/19 | C2: ='SC12'!C3 -> Original Budget | D2: ='SC12'!D3 -> Adjusted Budget | E2: ='SC12'!E3 -> Monthly actual
A3: =LEFT('SC12'!A6,3) -> Jul | B3: ='SC12'!B6 -> 1764202 | C3: ='SC12'!C6 -> 7133586 | D3: ='SC12'!D6 -> 0 | E3: ='SC12'!E6 -> 0
A4: =LEFT('SC12'!A7,3) -> Aug | B4: ='SC12'!B7 -> 5975198 | C4: ='SC12'!C7 -> 8189287.6 | D4: ='SC12'!D7 -> 0 | E4: ='SC12'!E7 -> 1808914.69
A5: =LEFT('SC12'!A8,3) -> Sep | B5: ='SC12'!B8 -> 4684863 | C5: ='SC12'!C8 -> 7681185.17 | D5: ='SC12'!D8 -> 0 | E5: ='SC12'!E8 -> 264770
A6: =LEFT('SC12'!A9,3) -> Oct | B6: ='SC12'!B9 -> 5512817 | C6: ='SC12'!C9 -> 6393696 | D6: ='SC12'!D9 -> 0 | E6: ='SC12'!E9 -> 3185649.5
A7: =LEFT('SC12'!A10,3) -> Nov | B7: ='SC12'!B10 -> 2934390 | C7: ='SC12'!C10 -> 9628353.77 | D7: ='SC12'!D10 -> 0 | E7: ='SC12'!E10 -> 6133145.83
A8: =LEFT('SC12'!A11,3) -> Dec | B8: ='SC12'!B11 -> 8900025 | C8: ='SC12'!C11 -> 4709711 | D8: ='SC12'!D11 -> 0 | E8: ='SC12'!E11 -> 11421362.5
A9: =LEFT('SC12'!A12,3) -> Jan | B9: ='SC12'!B12 -> 4858390 | C9: ='SC12'!C12 -> 5261692 | D9: ='SC12'!D12 -> 0 | E9: ='SC12'!E12 -> 282272.1
A10: =LEFT('SC12'!A13,3) -> Feb | B10: ='SC12'!B13 -> 5082609 | C10: ='SC12'!C13 -> 3126907.34 | D10: ='SC12'!D13 -> 0 | E10: ='SC12'!E13 -> 0
A11: =LEFT('SC12'!A14,3) -> Mar | B11: ='SC12'!B14 -> 6130390 | C11: ='SC12'!C14 -> 2658844 | D11: ='SC12'!D14 -> 0 | E11: ='SC12'!E14 -> 0
A12: =LEFT('SC12'!A15,3) -> Apr | B12: ='SC12'!B15 -> 4619097 | C12: ='SC12'!C15 -> 2104625 | D12: ='SC12'!D15 -> 0 | E12: ='SC12'!E15 -> 0
A13: =LEFT('SC12'!A16,3) -> May | B13: ='SC12'!B16 -> 3408390 | C13: ='SC12'!C16 -> 1300000 | D13: ='SC12'!D16 -> 0 | E13: ='SC12'!E16 -> 0
A14: =LEFT('SC12'!A17,3) -> Jun | B14: ='SC12'!B17 -> 6295816 | C14: ='SC12'!C17 -> 1918762.12 | D14: ='SC12'!D17 -> 0 | E14: ='SC12'!E17 -> 0
A26: ='Template names'!B103 -> Chart C2 2019/20 Capital Expenditure: YTD actual v YTD target
A27: Month | B27: ='SC12'!F3 -> YearTD actual | C27: ='SC12'!G3 -> YearTD budget
A28: =LEFT('SC12'!A6,3) -> Jul | B28: ='SC12'!F6 ->  | C28: ='SC12'!G6 -> 7133586
A29: =LEFT('SC12'!A7,3) -> Aug | B29: ='SC12'!F7 ->  | C29: ='SC12'!G7 -> 15322873.6
A30: =LEFT('SC12'!A8,3) -> Sep | B30: ='SC12'!F8 ->  | C30: ='SC12'!G8 -> 23004058.77
A31: =LEFT('SC12'!A9,3) -> Oct | B31: ='SC12'!F9 ->  | C31: ='SC12'!G9 -> 29397754.77
A32: =LEFT('SC12'!A10,3) -> Nov | B32: ='SC12'!F10 ->  | C32: ='SC12'!G10 -> 39026108.54
A33: =LEFT('SC12'!A11,3) -> Dec | B33: ='SC12'!F11 ->  | C33: ='SC12'!G11 -> 43735819.54
A34: =LEFT('SC12'!A12,3) -> Jan | B34: ='SC12'!F12 ->  | C34: ='SC12'!G12 -> 48997511.54
A35: =LEFT('SC12'!A13,3) -> Feb | B35: ='SC12'!F13 ->  | C35: ='SC12'!G13 -> 52124418.88
A36: =LEFT('SC12'!A14,3) -> Mar | B36: ='SC12'!F14 ->  | C36: ='SC12'!G14 -> 54783262.88
A37: =LEFT('SC12'!A15,3) -> Apr | B37: ='SC12'!F15 ->  | C37: ='SC12'!G15 -> 56887887.88
A38: =LEFT('SC12'!A16,3) -> May | B38: ='SC12'!F16 ->  | C38: ='SC12'!G16 -> 58187887.88
A39: =LEFT('SC12'!A17,3) -> Jun | B39: ='SC12'!F17 ->  | C39: ='SC12'!G17 -> 60106650
A51: ='Template names'!B104 -> Chart C3 Aged Consumer Debtors Analysis
B52: ='SC3'!C3 -> 0-30 Days | C52: ='SC3'!D3 -> 31-60 Days | D52: ='SC3'!E3 -> 61-90 Days | E52: ='SC3'!F3 -> 91-120 Days | F52: ='SC3'!G3 -> 121-150 Dys | G52: ='SC3'!H3 -> 151-180 Dys | H52: ='SC3'!I3 -> 181 Dys-1 Yr | I52: ='SC3'!J3 -> Over 1Yr
A53: =Head2 -> Budget Year 2019/20 | B53: ='SC3'!C14 -> 827935.91 | C53: ='SC3'!D14 -> 1682950.4 | D53: ='SC3'!E14 -> 654658.85 | E53: ='SC3'!F14 -> 577092.48 | F53: ='SC3'!G14 -> 20134787.4 | G53: ='SC3'!H14 -> 664457.66 | H53: ='SC3'!I14 -> 3206523.15 | I53: ='SC3'!J14 -> 85462023.97
A54: =Head1 -> 2018/19 | B54: ='SC3'!C15 -> 0 | C54: ='SC3'!D15 -> 0 | D54: ='SC3'!E15 -> 0 | E54: ='SC3'!F15 -> 0 | F54: ='SC3'!G15 -> 0 | G54: ='SC3'!H15 -> 0 | H54: ='SC3'!I15 -> 0 | I54: ='SC3'!J15 -> 0
A76: ='Template names'!B105 -> Chart C4 Consumer Debtors (total by Debtor Customer Category)
B77: =Head1 -> 2018/19 | C77: =Head2 -> Budget Year 2019/20
A78: ='SC3'!A17 -> Organs of State | B78: =C78*0.97 -> 97432622.59 | C78: ='SC3'!K17 -> 100446002.7
A79: ='SC3'!A18 -> Commercial | B79: =C79*0.97 -> 4386258.345 | C79: ='SC3'!K18 -> 4521915.82
A80: ='SC3'!A19 -> Households | B80: =C80*0.97 -> 7701275.201 | C80: ='SC3'!K19 -> 7939458.97
A81: ='SC3'!A20 -> Other | B81: =C81*0.97 -> 293960.7892 | C81: ='SC3'!K20 -> 303052.36
A101: ='Template names'!B106 -> Chart C5 Aged Creditors Analysis
B102: ='SC4'!A6 -> Bulk Electricity | C102: ='SC4'!A7 -> Bulk Water | D102: ='SC4'!A8 -> PAYE deductions | E102: ='SC4'!A9 -> VAT (output less input) | F102: ='SC4'!A10 -> Pensions / Retirement deductions | G102: ='SC4'!A11 -> Loan repayments | H102: ='SC4'!A12 -> Trade Creditors | I102: ='SC4'!A13 -> Auditor General | J102: ='SC4'!A14 -> Other
A103: =A54 -> 2018/19 | B103: ='SC4'!L6 -> 0 | C103: ='SC4'!L7 -> 0 | D103: ='SC4'!L8 -> 0 | E103: ='SC4'!L9 -> 0 | F103: ='SC4'!L10 -> 0 | G103: ='SC4'!L11 -> 0 | H103: ='SC4'!L12 -> 0 | I103: ='SC4'!L13 -> 0 | J103: ='SC4'!L14 -> 0
A104: =A53 -> Budget Year 2019/20 | B104: ='SC4'!K6 -> 0 | C104: ='SC4'!K7 -> 0 | D104: ='SC4'!K8 -> 0 | E104: ='SC4'!K9 -> 0 | F104: ='SC4'!K10 -> 0 | G104: ='SC4'!K11 -> 0 | H104: ='SC4'!K12 -> 0 | I104: ='SC4'!K13 -> 0 | J104: ='SC4'!K14 -> 0
